Workbook

Sheet 操作説明
A2: 水田流出簡易計算プログラム ver.0.0
A4: 操作簡易説明
A7: 本プログラムは、「田んぼダム」の検討の参考とするため、水田一筆からの流出量と田面水深の推移を計算するものです。
A8: 操作方法は以下のとおりですが、詳細については「水田流出簡易計算プログラム操作マニュアル」を参照して下さい。
B11: 1 | C11: 本ファイルの「Input」シートに、計算に必要な各データを入力します。
C12: ・必要な情報は計算諸元、水田及び落水枡諸元、田んぼダム器具の諸元です。
C13: ・各データの説明は「水田流出簡易計算プログラム操作マニュアル」を参考にしてください。
C14: ・水田情報は20個まで登録可能です。
B16: 1-1 | C16: 入力する降雨データは予め「Precipitation」シートに入力してください。
C17: ・降雨データはNo.1～No.100まで登録可能です。
C18: ・InputシートのR列[入力降雨]で、各水田に入力する降雨No.を選択できます。
C19: ・「Precipitation」シートのNo.1～No.10に、各地区の観測降雨などを登録してください。
C20: ・「Precipitation」シートのNo.11～No.100には、サンプル豪雨データを予め登録してあります。
C21: 詳細はマニュアルを参照してください。
B23: 1-2 | C23: 「Input」シートに、必要項目の数値を入力してください
C24: ・A-T列はすべての計算に必要な値です。
C25: ・T列[田んぼダム器具選択]に0、1、2、3、4、10、11のどれかの数字を入力してください。
C26: 入力数字によって、水田の落水口や田んぼダム器具の形状が設定されます。
C27: ・T列で田んぼダム器具を設置した場合は、器具の諸元（色付きセル）に数値を入力してください。
B30: 2 | C30: 必要なデータを入力し終わったら、「Input」シートにある以下の画像をクリックしてください。
E34: （←クリックすると計算を開始します）
B40: 3 | C40: 各水田の田面水深→「Result_田面水深」シートに出力
C41: 各水田の流出量→「Result_流出量」シートに出力
C42: ・計算結果を確認してください
A45: ※ 本プログラムの使用に当たっての留意点を「水田流出簡易計算プログラム操作マニュアル」に記載しておりますので、 ご確認いただき、使用条件に同意の上でご活用ください。

Sheet 変数説明
A1: 水田流出簡易計算プログラム ver.0.0
A2: 変数説明

Sheet Input
A1: 計算諸元 | E1: 水田諸元 | N1: 落水枡諸元 | R1: 降雨データ | T1: 田んぼダム器具選択 | U1: 水管理用堰板 | V1: 機能一体型の器具条件 | AA1: 機能分離型の器具条件 | AF1: チェック欄
A2: 総計算時間 | B2: 出力時間間隔 | C2: 計算時間 ステップ dt | D2: 降雨データ数 | E2: 水田番号 | F2: ① 長辺長 lb | G2: ② 短辺長 sb | H2: ①×② 面積 pa | I2: 畦畔高さ kh | J2: 落水枡の個数 dn | K2: 初期水深 ih | L2: 減水深 （浸透+蒸発散） etp | M2: 備考 | N2: 落水口の幅 ww | O2: 排水管の 直径 pd | P2: 田面から 排水管中心までの高さ ph | Q2: 備考 | R2: 入力降雨 | S2: 備考 | T2: 器具選択 0： 田んぼダムなし（落水枡） 1： 四角セキ方式 （一体型） 2： 三角セキ方式 （一体型） 3： 門型セキ方式 （一体型） 4： 立板方式 （分離型） 10： 田んぼダムなし（フリードレーン） 11： コーン方式 （フリードレーン用・分離型） | U2: 水管理用堰板高さ wh1 | V2: 切欠幅 ww2 | W2: 器具高さ wh2 | X2: 中心角 （三角セキ方式の場合） ca | Y2: 切欠高さ （門型セキ方式の場合） wh3 | Z2: 備考 | AA2: 流出孔 直径 dd | AB2: 田面から 流出孔中心までの高さ dh | AC2: 畦畔天端と 器具上端の 高さの差 dld | AD2: コーン方式（フリードレーンの場合) コーン長さ cnl | AE2: コーン方式（フリードレーンの場合) コーン上端の直径 cnd | AF2: 畦畔天端と田んぼダム器具高さの差 赤着色セル： 器具高さ＞畦畔天端 田んぼダムなしorコーン方式： 「-」 | AG2: 備考
A3: hr | B3: hr | C3: s | D3: 個 | E3: No. | F3: m | G3: m | H3: m2 | I3: m | J3: 個 | K3: m | L3: mm/日 | N3: m | O3: m | P3: m | R3: No. | T3: No. | U3: m | V3: m | W3: m | X3: ° | Y3: m | AA3: m | AB3: m | AC3: m | AD3: m | AE3: m | AF3: m
A4: 120 | B4: 1 | C4: 60 | D4: 100 | E4: 1 | F4: 100 | G4: 40 | H4: =F4*G4 -> 4000 | I4: 0.3 | J4: 1 | K4: 0.03 | L4: 5 | N4: 0.2 | O4: 0.15 | P4: 0.2 | R4: 1 | T4: 0 | U4: 0 | V4: 0.1 | W4: 0.1 | Y4: 0.1 | AF4: =IF(T4=4,AC4,IF(AND(1<=T4,T4<=3),ROUND(I4-U4-W4,5),"-")) -> -
E5: 2 | F5: 100 | G5: 40 | H5: =F5*G5 -> 4000 | I5: 0.3 | J5: 1 | K5: 0.03 | L5: 5 | N5: 0.3 | O5: 0.15 | P5: 0.3 | R5: 87 | T5: 2 | U5: 0 | V5: 0.1 | W5: 0.2 | X5: 30 | Y5: 0.1 | AF5: =IF(T5=4,AC5,IF(AND(1<=T5,T5<=3),ROUND(I5-U5-W5,5),"-")) -> 0.1
E6: 3 | F6: 100 | G6: 40 | H6: =F6*G6 -> 4000 | I6: 0.3 | J6: 1 | K6: 0.03 | L6: 5 | N6: 0.3 | O6: 0.15 | P6: 0.3 | R6: 87 | T6: 5 | U6: 0.03 | V6: 0.1 | W6: 0.25 | Y6: 0.05 | AF6: =IF(T6=4,AC6,IF(AND(1<=T6,T6<=3),ROUND(I6-U6-W6,5),"-")) -> -
A7: 流量係数 C | E7: 4 | F7: 100 | G7: 40 | H7: =F7*G7 -> 4000 | I7: 0.3 | J7: 1 | K7: 0.03 | L7: 5 | N7: 0.3 | O7: 0.15 | P7: 0.3 | R7: 87 | T7: 4 | U7: 0 | AA7: 0.05 | AB7: 0.3 | AC7: 0.1 | AF7: 0.1
A8: 四角セキ | B8: 三角セキ | C8: オリフィス | D8: 円筒セキ | AF8: -
A9: 0.6 | B9: 0.6 | C9: 0.6 | D9: 0.6 | AF9: -
AF10: -
AF11: -
AF12: -
AF13: -
AF14: -
AF15: -
AF16: -
AF17: -
AF18: =IF(T18=4,AC18,IF(AND(1<=T18,T18<=3),ROUND(I18-U18-W18,5),"-")) -> -
AF19: -
AF20: -
AF21: -
AF22: -
AF23: -

Sheet Precipitation
A1: 区分No. | U1: 1 | V1: 北海道 | W1: 1 | X1: 北海道 | Y1: 1 | Z1: 北海道 | AA1: 1 | AB1: 北海道 | AC1: 1 | AD1: 北海道 | AE1: 1 | AF1: 北海道 | AG1: 1 | AH1: 北海道 | AI1: 1 | AJ1: 北海道 | AK1: 1 | AL1: 北海道 | AM1: 2 | AN1: 東北 | AO1: 2 | AP1: 東北 | AQ1: 2 | AR1: 東北 | AS1: 2 | AT1: 東北 | AU1: 2 | AV1: 東北 | AW1: 2 | AX1: 東北 | AY1: 2 | AZ1: 東北 | BA1: 2 | BB1: 東北 | BC1: 2 | BD1: 東北 | BE1: 3 | BF1: 関東甲信 | BG1: 3 | BH1: 関東甲信 | BI1: 3 | BJ1: 関東甲信 | BK1: 3 | BL1: 関東甲信 | BM1: 3 | BN1: 関東甲信 | BO1: 3 | BP1: 関東甲信 | BQ1: 3 | BR1: 関東甲信 | BS1: 3 | BT1: 関東甲信 | BU1: 3 | BV1: 関東甲信 | BW1: 4 | BX1: 北陸 | BY1: 4 | BZ1: 北陸 | CA1: 4 | CB1: 北陸 | CC1: 4 | CD1: 北陸 | CE1: 4 | CF1: 北陸 | CG1: 4 | CH1: 北陸 | CI1: 4 | CJ1: 北陸 | CK1: 4 | CL1: 北陸 | CM1: 4 | CN1: 北陸 | CO1: 5 | CP1: 東海 | CQ1: 5 | CR1: 東海 | CS1: 5 | CT1: 東海 | CU1: 5 | CV1: 東海 | CW1: 5 | CX1: 東海 | CY1: 5 | CZ1: 東海 | DA1: 5 | DB1: 東海 | DC1: 5 | DD1: 東海 | DE1: 5 | DF1: 東海 | DG1: 6 | DH1: 近畿 | DI1: 6 | DJ1: 近畿 | DK1: 6 | DL1: 近畿 | DM1: 6 | DN1: 近畿 | DO1: 6 | DP1: 近畿 | DQ1: 6 | DR1: 近畿 | DS1: 6 | DT1: 近畿 | DU1: 6 | DV1: 近畿 | DW1: 6 | DX1: 近畿 | DY1: 7 | DZ1: 中国 | EA1: 7 | EB1: 中国 | EC1: 7 | ED1: 中国 | EE1: 7 | EF1: 中国 | EG1: 7 | EH1: 中国 | EI1: 7 | EJ1: 中国 | EK1: 7 | EL1: 中国 | EM1: 7 | EN1: 中国 | EO1: 7 | EP1: 中国 | EQ1: 8 | ER1: 四国 | ES1: 8 | ET1: 四国 | EU1: 8 | EV1: 四国 | EW1: 8 | EX1: 四国 | EY1: 8 | EZ1: 四国 | FA1: 8 | FB1: 四国 | FC1: 8 | FD1: 四国 | FE1: 8 | FF1: 四国 | FG1: 8 | FH1: 四国 | FI1: 9 | FJ1: 九州北部 | FK1: 9 | FL1: 九州北部 | FM1: 9 | FN1: 九州北部 | FO1: 9 | FP1: 九州北部 | FQ1: 9 | FR1: 九州北部 | FS1: 9 | FT1: 九州北部 | FU1: 9 | FV1: 九州北部 | FW1: 9 | FX1: 九州北部 | FY1: 9 | FZ1: 九州北部 | GA1: 10 | GB1: 九州南部 | GC1: 10 | GD1: 九州南部 | GE1: 10 | GF1: 九州南部 | GG1: 10 | GH1: 九州南部 | GI1: 10 | GJ1: 九州南部 | GK1: 10 | GL1: 九州南部 | GM1: 10 | GN1: 九州南部 | GO1: 10 | GP1: 九州南部 | GQ1: 10 | GR1: 九州南部
A2: 確率年 | U2: 30年確率日雨量 | W2: 30年確率日雨量 | Y2: 30年確率日雨量 | AA2: 50年確率日雨量 | AC2: 50年確率日雨量 | AE2: 50年確率日雨量 | AG2: 100年確率日雨量 | AI2: 100年確率日雨量 | AK2: 100年確率日雨量 | AM2: 30年確率日雨量 | AO2: 30年確率日雨量 | AQ2: 30年確率日雨量 | AS2: 50年確率日雨量 | AU2: 50年確率日雨量 | AW2: 50年確率日雨量 | AY2: 100年確率日雨量 | BA2: 100年確率日雨量 | BC2: 100年確率日雨量 | BE2: 30年確率日雨量 | BG2: 30年確率日雨量 | BI2: 30年確率日雨量 | BK2: 50年確率日雨量 | BM2: 50年確率日雨量 | BO2: 50年確率日雨量 | BQ2: 100年確率日雨量 | BS2: 100年確率日雨量 | BU2: 100年確率日雨量 | BW2: 30年確率日雨量 | BY2: 30年確率日雨量 | CA2: 30年確率日雨量 | CC2: 50年確率日雨量 | CE2: 50年確率日雨量 | CG2: 50年確率日雨量 | CI2: 100年確率日雨量 | CK2: 100年確率日雨量 | CM2: 100年確率日雨量 | CO2: 30年確率日雨量 | CQ2: 30年確率日雨量 | CS2: 30年確率日雨量 | CU2: 50年確率日雨量 | CW2: 50年確率日雨量 | CY2: 50年確率日雨量 | DA2: 100年確率日雨量 | DC2: 100年確率日雨量 | DE2: 100年確率日雨量 | DG2: 30年確率日雨量 | DI2: 30年確率日雨量 | DK2: 30年確率日雨量 | DM2: 50年確率日雨量 | DO2: 50年確率日雨量 | DQ2: 50年確率日雨量 | DS2: 100年確率日雨量 | DU2: 100年確率日雨量 | DW2: 100年確率日雨量 | DY2: 30年確率日雨量 | EA2: 30年確率日雨量 | EC2: 30年確率日雨量 | EE2: 50年確率日雨量 | EG2: 50年確率日雨量 | EI2: 50年確率日雨量 | EK2: 100年確率日雨量 | EM2: 100年確率日雨量 | EO2: 100年確率日雨量 | EQ2: 30年確率日雨量 | ES2: 30年確率日雨量 | EU2: 30年確率日雨量 | EW2: 50年確率日雨量 | EY2: 50年確率日雨量 | FA2: 50年確率日雨量 | FC2: 100年確率日雨量 | FE2: 100年確率日雨量 | FG2: 100年確率日雨量 | FI2: 30年確率日雨量 | FK2: 30年確率日雨量 | FM2: 30年確率日雨量 | FO2: 50年確率日雨量 | FQ2: 50年確率日雨量 | FS2: 50年確率日雨量 | FU2: 100年確率日雨量 | FW2: 100年確率日雨量 | FY2: 100年確率日雨量 | GA2: 30年確率日雨量 | GC2: 30年確率日雨量 | GE2: 30年確率日雨量 | GG2: 50年確率日雨量 | GI2: 50年確率日雨量 | GK2: 50年確率日雨量 | GM2: 100年確率日雨量 | GO2: 100年確率日雨量 | GQ2: 100年確率日雨量
A3: 波形形状 | U3: 前方山型 | W3: 中央山型 | Y3: 後方山型 | AA3: 前方山型 | AC3: 中央山型 | AE3: 後方山型 | AG3: 前方山型 | AI3: 中央山型 | AK3: 後方山型 | AM3: 前方山型 | AO3: 中央山型 | AQ3: 後方山型 | AS3: 前方山型 | AU3: 中央山型 | AW3: 後方山型 | AY3: 前方山型 | BA3: 中央山型 | BC3: 後方山型 | BE3: 前方山型 | BG3: 中央山型 | BI3: 後方山型 | BK3: 前方山型 | BM3: 中央山型 | BO3: 後方山型 | BQ3: 前方山型 | BS3: 中央山型 | BU3: 後方山型 | BW3: 前方山型 | BY3: 中央山型 | CA3: 後方山型 | CC3: 前方山型 | CE3: 中央山型 | CG3: 後方山型 | CI3: 前方山型 | CK3: 中央山型 | CM3: 後方山型 | CO3: 前方山型 | CQ3: 中央山型 | CS3: 後方山型 | CU3: 前方山型 | CW3: 中央山型 | CY3: 後方山型 | DA3: 前方山型 | DC3: 中央山型 | DE3: 後方山型 | DG3: 前方山型 | DI3: 中央山型 | DK3: 後方山型 | DM3: 前方山型 | DO3: 中央山型 | DQ3: 後方山型 | DS3: 前方山型 | DU3: 中央山型 | DW3: 後方山型 | DY3: 前方山型 | EA3: 中央山型 | EC3: 後方山型 | EE3: 前方山型 | EG3: 中央山型 | EI3: 後方山型 | EK3: 前方山型 | EM3: 中央山型 | EO3: 後方山型 | EQ3: 前方山型 | ES3: 中央山型 | EU3: 後方山型 | EW3: 前方山型 | EY3: 中央山型 | FA3: 後方山型 | FC3: 前方山型 | FE3: 中央山型 | FG3: 後方山型 | FI3: 前方山型 | FK3: 中央山型 | FM3: 後方山型 | FO3: 前方山型 | FQ3: 中央山型 | FS3: 後方山型 | FU3: 前方山型 | FW3: 中央山型 | FY3: 後方山型 | GA3: 前方山型 | GC3: 中央山型 | GE3: 後方山型 | GG3: 前方山型 | GI3: 中央山型 | GK3: 後方山型 | GM3: 前方山型 | GO3: 中央山型 | GQ3: 後方山型
A4: 降雨番号 | B4: 1 | C4: 降雨番号 | D4: =B4+1 -> 2 | E4: 降雨番号 | F4: =D4+1 -> 3 | G4: 降雨番号 | H4: =F4+1 -> 4 | I4: 降雨番号 | J4: =H4+1 -> 5 | K4: 降雨番号 | L4: =J4+1 -> 6 | M4: 降雨番号 | N4: =L4+1 -> 7 | O4: 降雨番号 | P4: =N4+1 -> 8 | Q4: 降雨番号 | R4: =P4+1 -> 9 | S4: 降雨番号 | T4: =R4+1 -> 10 | U4: 降雨番号 | V4: =T4+1 -> 11 | W4: 降雨番号 | X4: =V4+1 -> 12 | Y4: 降雨番号 | Z4: =X4+1 -> 13 | AA4: 降雨番号 | AB4: =Z4+1 -> 14 | AC4: 降雨番号 | AD4: =AB4+1 -> 15 | AE4: 降雨番号 | AF4: =AD4+1 -> 16 | AG4: 降雨番号 | AH4: =AF4+1 -> 17 | AI4: 降雨番号 | AJ4: =AH4+1 -> 18 | AK4: 降雨番号 | AL4: =AJ4+1 -> 19 | AM4: 降雨番号 | AN4: =AL4+1 -> 20 | AO4: 降雨番号 | AP4: =AN4+1 -> 21 | AQ4: 降雨番号 | AR4: =AP4+1 -> 22 | AS4: 降雨番号 | AT4: =AR4+1 -> 23 | AU4: 降雨番号 | AV4: =AT4+1 -> 24 | AW4: 降雨番号 | AX4: =AV4+1 -> 25 | AY4: 降雨番号 | AZ4: =AX4+1 -> 26 | BA4: 降雨番号 | BB4: =AZ4+1 -> 27 | BC4: 降雨番号 | BD4: =BB4+1 -> 28 | BE4: 降雨番号 | BF4: =BD4+1 -> 29 | BG4: 降雨番号 | BH4: =BF4+1 -> 30 | BI4: 降雨番号 | BJ4: =BH4+1 -> 31 | BK4: 降雨番号 | BL4: =BJ4+1 -> 32 | BM4: 降雨番号 | BN4: =BL4+1 -> 33 | BO4: 降雨番号 | BP4: =BN4+1 -> 34 | BQ4: 降雨番号 | BR4: =BP4+1 -> 35 | BS4: 降雨番号 | BT4: =BR4+1 -> 36 | BU4: 降雨番号 | BV4: =BT4+1 -> 37 | BW4: 降雨番号 | BX4: =BV4+1 -> 38 | BY4: 降雨番号 | BZ4: =BX4+1 -> 39 | CA4: 降雨番号 | CB4: =BZ4+1 -> 40 | CC4: 降雨番号 | CD4: =CB4+1 -> 41 | CE4: 降雨番号 | CF4: =CD4+1 -> 42 | CG4: 降雨番号 | CH4: =CF4+1 -> 43 | CI4: 降雨番号 | CJ4: =CH4+1 -> 44 | CK4: 降雨番号 | CL4: =CJ4+1 -> 45 | CM4: 降雨番号 | CN4: =CL4+1 -> 46 | CO4: 降雨番号 | CP4: =CN4+1 -> 47 | CQ4: 降雨番号 | CR4: =CP4+1 -> 48 | CS4: 降雨番号 | CT4: =CR4+1 -> 49 | CU4: 降雨番号 | CV4: =CT4+1 -> 50 | CW4: 降雨番号 | CX4: =CV4+1 -> 51 | CY4: 降雨番号 | CZ4: =CX4+1 -> 52 | DA4: 降雨番号 | DB4: =CZ4+1 -> 53 | DC4: 降雨番号 | DD4: =DB4+1 -> 54 | DE4: 降雨番号 | DF4: =DD4+1 -> 55 | DG4: 降雨番号 | DH4: =DF4+1 -> 56 | DI4: 降雨番号 | DJ4: =DH4+1 -> 57 | DK4: 降雨番号 | DL4: =DJ4+1 -> 58 | DM4: 降雨番号 | DN4: =DL4+1 -> 59 | DO4: 降雨番号 | DP4: =DN4+1 -> 60 | DQ4: 降雨番号 | DR4: =DP4+1 -> 61 | DS4: 降雨番号 | DT4: =DR4+1 -> 62 | DU4: 降雨番号 | DV4: =DT4+1 -> 63 | DW4: 降雨番号 | DX4: =DV4+1 -> 64 | DY4: 降雨番号 | DZ4: =DX4+1 -> 65 | EA4: 降雨番号 | EB4: =DZ4+1 -> 66 | EC4: 降雨番号 | ED4: =EB4+1 -> 67 | EE4: 降雨番号 | EF4: =ED4+1 -> 68 | EG4: 降雨番号 | EH4: =EF4+1 -> 69 | EI4: 降雨番号 | EJ4: =EH4+1 -> 70 | EK4: 降雨番号 | EL4: =EJ4+1 -> 71 | EM4: 降雨番号 | EN4: =EL4+1 -> 72 | EO4: 降雨番号 | EP4: =EN4+1 -> 73 | EQ4: 降雨番号 | ER4: =EP4+1 -> 74 | ES4: 降雨番号 | ET4: =ER4+1 -> 75 | EU4: 降雨番号 | EV4: =ET4+1 -> 76 | EW4: 降雨番号 | EX4: =EV4+1 -> 77 | EY4: 降雨番号 | EZ4: =EX4+1 -> 78 | FA4: 降雨番号 | FB4: =EZ4+1 -> 79 | FC4: 降雨番号 | FD4: =FB4+1 -> 80 | FE4: 降雨番号 | FF4: =FD4+1 -> 81 | FG4: 降雨番号 | FH4: =FF4+1 -> 82 | FI4: 降雨番号 | FJ4: =FH4+1 -> 83 | FK4: 降雨番号 | FL4: =FJ4+1 -> 84 | FM4: 降雨番号 | FN4: =FL4+1 -> 85 | FO4: 降雨番号 | FP4: =FN4+1 -> 86 | FQ4: 降雨番号 | FR4: =FP4+1 -> 87 | FS4: 降雨番号 | FT4: =FR4+1 -> 88 | FU4: 降雨番号 | FV4: =FT4+1 -> 89 | FW4: 降雨番号 | FX4: =FV4+1 -> 90 | FY4: 降雨番号 | FZ4: =FX4+1 -> 91 | GA4: 降雨番号 | GB4: =FZ4+1 -> 92 | GC4: 降雨番号 | GD4: =GB4+1 -> 93 | GE4: 降雨番号 | GF4: =GD4+1 -> 94 | GG4: 降雨番号 | GH4: =GF4+1 -> 95 | GI4: 降雨番号 | GJ4: =GH4+1 -> 96 | GK4: 降雨番号 | GL4: =GJ4+1 -> 97 | GM4: 降雨番号 | GN4: =GL4+1 -> 98 | GO4: 降雨番号 | GP4: =GN4+1 -> 99 | GQ4: 降雨番号 | GR4: =GP4+1 -> 100
A5: 総雨量 | B5: =SUM(B7:B126) -> 271.668025 | C5: 総雨量 | D5: =SUM(D7:D126) -> 362.601813 | E5: 総雨量 | F5: =SUM(F7:F126) -> 271.668025 | G5: 総雨量 | H5: =SUM(H7:H126) -> 0 | I5: 総雨量 | J5: =SUM(J7:J126) -> 0 | K5: 総雨量 | L5: =SUM(L7:L126) -> 0 | M5: 総雨量 | N5: =SUM(N7:N126) -> 0 | O5: 総雨量 | P5: =SUM(P7:P126) -> 0 | Q5: 総雨量 | R5: =SUM(R7:R126) -> 0 | S5: 総雨量 | T5: =SUM(T7:T126) -> 255 | U5: 総雨量 | V5: =SUM(V7:V126) -> 131.000655 | W5: 総雨量 | X5: =SUM(X7:X126) -> 131.000655 | Y5: 総雨量 | Z5: =SUM(Z7:Z126) -> 131.000655 | AA5: 総雨量 | AB5: =SUM(AB7:AB126) -> 144.1673875 | AC5: 総雨量 | AD5: =SUM(AD7:AD126) -> 144.1673875 | AE5: 総雨量 | AF5: =SUM(AF7:AF126) -> 144.1673875 | AG5: 総雨量 | AH5: =SUM(AH7:AH126) -> 162.8341475 | AI5: 総雨量 | AJ5: =SUM(AJ7:AJ126) -> 162.8341475 | AK5: 総雨量 | AL5: =SUM(AL7:AL126) -> 162.8341475 | AM5: 総雨量 | AN5: =SUM(AN7:AN126) -> 161.400807 | AO5: 総雨量 | AP5: =SUM(AP7:AP126) -> 161.400807 | AQ5: 総雨量 | AR5: =SUM(AR7:AR126) -> 161.400807 | AS5: 総雨量 | AT5: =SUM(AT7:AT126) -> 175.400877 | AU5: 総雨量 | AV5: =SUM(AV7:AV126) -> 175.400877 | AW5: 総雨量 | AX5: =SUM(AX7:AX126) -> 175.400877 | AY5: 総雨量 | AZ5: =SUM(AZ7:AZ126) -> 194.600973 | BA5: 総雨量 | BB5: =SUM(BB7:BB126) -> 194.600973 | BC5: 総雨量 | BD5: =SUM(BD7:BD126) -> 194.600973 | BE5: 総雨量 | BF5: =SUM(BF7:BF126) -> 191.1009555 | BG5: 総雨量 | BH5: =SUM(BH7:BH126) -> 191.1009555 | BI5: 総雨量 | BJ5: =SUM(BJ7:BJ126) -> 191.1009555 | BK5: 総雨量 | BL5: =SUM(BL7:BL126) -> 208.5010425 | BM5: 総雨量 | BN5: =SUM(BN7:BN126) -> 208.5010425 | BO5: 総雨量 | BP5: =SUM(BP7:BP126) -> 208.5010425 | BQ5: 総雨量 | BR5: =SUM(BR7:BR126) -> 232.3011615 | BS5: 総雨量 | BT5: =SUM(BT7:BT126) -> 232.3011615 | BU5: 総雨量 | BV5: =SUM(BV7:BV126) -> 232.3011615 | BW5: 総雨量 | BX5: =SUM(BX7:BX126) -> 167.000835 | BY5: 総雨量 | BZ5: =SUM(BZ7:BZ126) -> 167.000835 | CA5: 総雨量 | CB5: =SUM(CB7:CB126) -> 167.000835 | CC5: 総雨量 | CD5: =SUM(CD7:CD126) -> 180.66757 | CE5: 総雨量 | CF5: =SUM(CF7:CF126) -> 180.66757 | CG5: 総雨量 | CH5: =SUM(CH7:CH126) -> 180.66757 | CI5: 総雨量 | CJ5: =SUM(CJ7:CJ126) -> 198.334325 | CK5: 総雨量 | CL5: =SUM(CL7:CL126) -> 198.334325 | CM5: 総雨量 | CN5: =SUM(CN7:CN126) -> 198.334325 | CO5: 総雨量 | CP5: =SUM(CP7:CP126) -> 225.601128 | CQ5: 総雨量 | CR5: =SUM(CR7:CR126) -> 225.601128 | CS5: 総雨量 | CT5: =SUM(CT7:CT126) -> 225.601128 | CU5: 総雨量 | CV5: =SUM(CV7:CV126) -> 249.801249 | CW5: 総雨量 | CX5: =SUM(CX7:CX126) -> 249.801249 | CY5: 総雨量 | CZ5: =SUM(CZ7:CZ126) -> 249.801249 | DA5: 総雨量 | DB5: =SUM(DB7:DB126) -> 285.201426 | DC5: 総雨量 | DD5: =SUM(DD7:DD126) -> 285.201426 | DE5: 総雨量 | DF5: =SUM(DF7:DF126) -> 285.201426 | DG5: 総雨量 | DH5: =SUM(DH7:DH126) -> 189.200946 | DI5: 総雨量 | DJ5: =SUM(DJ7:DJ126) -> 189.200946 | DK5: 総雨量 | DL5: =SUM(DL7:DL126) -> 189.200946 | DM5: 総雨量 | DN5: =SUM(DN7:DN126) -> 208.00104 | DO5: 総雨量 | DP5: =SUM(DP7:DP126) -> 208.00104 | DQ5: 総雨量 | DR5: =SUM(DR7:DR126) -> 208.00104 | DS5: 総雨量 | DT5: =SUM(DT7:DT126) -> 234.601173 | DU5: 総雨量 | DV5: =SUM(DV7:DV126) -> 234.601173 | DW5: 総雨量 | DX5: =SUM(DX7:DX126) -> 234.601173 | DY5: 総雨量 | DZ5: =SUM(DZ7:DZ126) -> 210.00105 | EA5: 総雨量 | EB5: =SUM(EB7:EB126) -> 210.00105 | EC5: 総雨量 | ED5: =SUM(ED7:ED126) -> 210.00105 | EE5: 総雨量 | EF5: =SUM(EF7:EF126) -> 234.66784 | EG5: 総雨量 | EH5: =SUM(EH7:EH126) -> 234.66784 | EI5: 総雨量 | EJ5: =SUM(EJ7:EJ126) -> 234.66784 | EK5: 総雨量 | EL5: =SUM(EL7:EL126) -> 271.668025 | EM5: 総雨量 | EN5: =SUM(EN7:EN126) -> 271.668025 | EO5: 総雨量 | EP5: =SUM(EP7:EP126) -> 271.668025 | EQ5: 総雨量 | ER5: =SUM(ER7:ER126) -> 244.2512213 | ES5: 総雨量 | ET5: =SUM(ET7:ET126) -> 244.2512212 | EU5: 総雨量 | EV5: =SUM(EV7:EV126) -> 244.2512212 | EW5: 総雨量 | EX5: =SUM(EX7:EX126) -> 268.7513437 | EY5: 総雨量 | EZ5: =SUM(EZ7:EZ126) -> 268.7513437 | FA5: 総雨量 | FB5: =SUM(FB7:FB126) -> 268.7513437 | FC5: 総雨量 | FD5: =SUM(FD7:FD126) -> 302.5015125 | FE5: 総雨量 | FF5: =SUM(FF7:FF126) -> 302.5015125 | FG5: 総雨量 | FH5: =SUM(FH7:FH126) -> 302.5015125 | FI5: 総雨量 | FJ5: =SUM(FJ7:FJ126) -> 275.601378 | FK5: 総雨量 | FL5: =SUM(FL7:FL126) -> 275.601378 | FM5: 総雨量 | FN5: =SUM(FN7:FN126) -> 275.601378 | FO5: 総雨量 | FP5: =SUM(FP7:FP126) -> 304.201521 | FQ5: 総雨量 | FR5: =SUM(FR7:FR126) -> 304.201521 | FS5: 総雨量 | FT5: =SUM(FT7:FT126) -> 304.201521 | FU5: 総雨量 | FV5: =SUM(FV7:FV126) -> 344.201721 | FW5: 総雨量 | FX5: =SUM(FX7:FX126) -> 344.201721 | FY5: 総雨量 | FZ5: =SUM(FZ7:FZ126) -> 344.201721 | GA5: 総雨量 | GB5: =SUM(GB7:GB126) -> 333.201666 | GC5: 総雨量 | GD5: =SUM(GD7:GD126) -> 333.201666 | GE5: 総雨量 | GF5: =SUM(GF7:GF126) -> 333.201666 | GG5: 総雨量 | GH5: =SUM(GH7:GH126) -> 362.601813 | GI5: 総雨量 | GJ5: =SUM(GJ7:GJ126) -> 362.601813 | GK5: 総雨量 | GL5: =SUM(GL7:GL126) -> 362.601813 | GM5: 総雨量 | GN5: =SUM(GN7:GN126) -> 403.402017 | GO5: 総雨量 | GP5: =SUM(GP7:GP126) -> 403.402017 | GQ5: 総雨量 | GR5: =SUM(GR7:GR126) -> 403.402017
A6: 時間 | B6: 雨量(mm/h) | C6: 時間 | D6: 雨量(mm/h) | E6: 時間 | F6: 雨量(mm/h) | G6: 時間 | H6: 雨量(mm/h) | I6: 時間 | J6: 雨量(mm/h) | K6: 時間 | L6: 雨量(mm/h) | M6: 時間 | N6: 雨量(mm/h) | O6: 時間 | P6: 雨量(mm/h) | Q6: 時間 | R6: 雨量(mm/h) | S6: 時間 | T6: 雨量(mm/h) | U6: 時間 | V6: 雨量(mm/h) | W6: 時間 | X6: 雨量(mm/h) | Y6: 時間 | Z6: 雨量(mm/h) | AA6: 時間 | AB6: 雨量(mm/h) | AC6: 時間 | AD6: 雨量(mm/h) | AE6: 時間 | AF6: 雨量(mm/h) | AG6: 時間 | AH6: 雨量(mm/h) | AI6: 時間 | AJ6: 雨量(mm/h) | AK6: 時間 | AL6: 雨量(mm/h) | AM6: 時間 | AN6: 雨量(mm/h) | AO6: 時間 | AP6: 雨量(mm/h) | AQ6: 時間 | AR6: 雨量(mm/h) | AS6: 時間 | AT6: 雨量(mm/h) | AU6: 時間 | AV6: 雨量(mm/h) | AW6: 時間 | AX6: 雨量(mm/h) | AY6: 時間 | AZ6: 雨量(mm/h) | BA6: 時間 | BB6: 雨量(mm/h) | BC6: 時間 | BD6: 雨量(mm/h) | BE6: 時間 | BF6: 雨量(mm/h) | BG6: 時間 | BH6: 雨量(mm/h) | BI6: 時間 | BJ6: 雨量(mm/h) | BK6: 時間 | BL6: 雨量(mm/h) | BM6: 時間 | BN6: 雨量(mm/h) | BO6: 時間 | BP6: 雨量(mm/h) | BQ6: 時間 | BR6: 雨量(mm/h) | BS6: 時間 | BT6: 雨量(mm/h) | BU6: 時間 | BV6: 雨量(mm/h) | BW6: 時間 | BX6: 雨量(mm/h) | BY6: 時間 | BZ6: 雨量(mm/h) | CA6: 時間 | CB6: 雨量(mm/h) | CC6: 時間 | CD6: 雨量(mm/h) | CE6: 時間 | CF6: 雨量(mm/h) | CG6: 時間 | CH6: 雨量(mm/h) | CI6: 時間 | CJ6: 雨量(mm/h) | CK6: 時間 | CL6: 雨量(mm/h) | CM6: 時間 | CN6: 雨量(mm/h) | CO6: 時間 | CP6: 雨量(mm/h) | CQ6: 時間 | CR6: 雨量(mm/h) | CS6: 時間 | CT6: 雨量(mm/h) | CU6: 時間 | CV6: 雨量(mm/h) | CW6: 時間 | CX6: 雨量(mm/h) | CY6: 時間 | CZ6: 雨量(mm/h) | DA6: 時間 | DB6: 雨量(mm/h) | DC6: 時間 | DD6: 雨量(mm/h) | DE6: 時間 | DF6: 雨量(mm/h) | DG6: 時間 | DH6: 雨量(mm/h) | DI6: 時間 | DJ6: 雨量(mm/h) | DK6: 時間 | DL6: 雨量(mm/h) | DM6: 時間 | DN6: 雨量(mm/h) | DO6: 時間 | DP6: 雨量(mm/h) | DQ6: 時間 | DR6: 雨量(mm/h) | DS6: 時間 | DT6: 雨量(mm/h) | DU6: 時間 | DV6: 雨量(mm/h) | DW6: 時間 | DX6: 雨量(mm/h) | DY6: 時間 | DZ6: 雨量(mm/h) | EA6: 時間 | EB6: 雨量(mm/h) | EC6: 時間 | ED6: 雨量(mm/h) | EE6: 時間 | EF6: 雨量(mm/h) | EG6: 時間 | EH6: 雨量(mm/h) | EI6: 時間 | EJ6: 雨量(mm/h) | EK6: 時間 | EL6: 雨量(mm/h) | EM6: 時間 | EN6: 雨量(mm/h) | EO6: 時間 | EP6: 雨量(mm/h) | EQ6: 時間 | ER6: 雨量(mm/h) | ES6: 時間 | ET6: 雨量(mm/h) | EU6: 時間 | EV6: 雨量(mm/h) | EW6: 時間 | EX6: 雨量(mm/h) | EY6: 時間 | EZ6: 雨量(mm/h) | FA6: 時間 | FB6: 雨量(mm/h) | FC6: 時間 | FD6: 雨量(mm/h) | FE6: 時間 | FF6: 雨量(mm/h) | FG6: 時間 | FH6: 雨量(mm/h) | FI6: 時間 | FJ6: 雨量(mm/h) | FK6: 時間 | FL6: 雨量(mm/h) | FM6: 時間 | FN6: 雨量(mm/h) | FO6: 時間 | FP6: 雨量(mm/h) | FQ6: 時間 | FR6: 雨量(mm/h) | FS6: 時間 | FT6: 雨量(mm/h) | FU6: 時間 | FV6: 雨量(mm/h) | FW6: 時間 | FX6: 雨量(mm/h) | FY6: 時間 | FZ6: 雨量(mm/h) | GA6: 時間 | GB6: 雨量(mm/h) | GC6: 時間 | GD6: 雨量(mm/h) | GE6: 時間 | GF6: 雨量(mm/h) | GG6: 時間 | GH6: 雨量(mm/h) | GI6: 時間 | GJ6: 雨量(mm/h) | GK6: 時間 | GL6: 雨量(mm/h) | GM6: 時間 | GN6: 雨量(mm/h) | GO6: 時間 | GP6: 雨量(mm/h) | GQ6: 時間 | GR6: 雨量(mm/h)
A7: 1 | B7: 5.719941667 | C7: 1 | D7: 7.982639 | E7: 1 | F7: 8.998958333 | G7: 1 | H7: 0 | I7: 1 | J7: 0 | K7: 1 | L7: 0 | M7: 1 | N7: 0 | O7: 1 | P7: 0 | Q7: 1 | R7: 0 | S7: 1 | T7: 5 | U7: 1 | V7: 4.339375 | W7: 1 | X7: 2.883965 | Y7: 1 | Z7: 2.758205 | AA7: 1 | AB7: 4.775520833 | AC7: 1 | AD7: 3.173829167 | AE7: 1 | AF7: 3.035429167 | AG7: 1 | AH7: 5.393854167 | AI7: 1 | AJ7: 3.584775833 | AK7: 1 | AL7: 3.428455833 | AM7: 1 | AN7: 5.346375 | AO7: 1 | AP7: 3.553221 | AQ7: 1 | AR7: 3.398277 | AS7: 1 | AT7: 5.810125 | AU7: 1 | AV7: 3.861431 | AW7: 1 | AX7: 3.693047 | AY7: 1 | AZ7: 6.446125 | BA7: 1 | BB7: 4.284119 | BC7: 1 | BD7: 4.097303 | BE7: 1 | BF7: 6.3301875 | BG7: 1 | BH7: 4.2070665 | BI7: 1 | BJ7: 4.0236105 | BK7: 1 | BL7: 6.9065625 | BM7: 1 | BN7: 4.5901275 | BO7: 1 | BP7: 4.3899675 | BQ7: 1 | BR7: 7.6949375 | BS7: 1 | BT7: 5.1140845 | BU7: 1 | BV7: 4.8910765 | BW7: 1 | BX7: 5.531875 | BY7: 1 | BZ7: 3.676505 | CA7: 1 | CB7: 3.516185 | CC7: 1 | CD7: 5.984583333 | CE7: 1 | CF7: 3.977376667 | CG7: 1 | CH7: 3.803936667 | CI7: 1 | CJ7: 6.569791667 | CK7: 1 | CL7: 4.366308333 | CM7: 1 | CN7: 4.175908333 | CO7: 1 | CP7: 7.473 | CQ7: 1 | CR7: 4.966584 | CS7: 1 | CT7: 4.750008 | CU7: 1 | CV7: 8.274625 | CW7: 1 | CX7: 5.499347 | CY7: 1 | CZ7: 5.259539 | DA7: 1 | DB7: 9.44725 | DC7: 1 | DD7: 6.278678 | DE7: 1 | DF7: 6.004886 | DG7: 1 | DH7: 6.26725 | DI7: 1 | DJ7: 4.165238 | DK7: 1 | DL7: 3.983606 | DM7: 1 | DN7: 6.89 | DO7: 1 | DP7: 4.57912 | DQ7: 1 | DR7: 4.37944 | DS7: 1 | DT7: 7.771125 | DU7: 1 | DV7: 5.164719 | DW7: 1 | DX7: 4.939503 | DY7: 1 | DZ7: 6.95625 | EA7: 1 | EB7: 4.62315 | EC7: 1 | ED7: 4.42155 | EE7: 1 | EF7: 7.773333333 | EG7: 1 | EH7: 5.166186667 | EI7: 1 | EJ7: 4.940906667 | EK7: 1 | EL7: 8.998958333 | EM7: 1 | EN7: 5.980741667 | EO7: 1 | EP7: 5.719941667 | EQ7: 1 | ER7: 8.09078125 | ES7: 1 | ET7: 5.37716375 | EU7: 1 | EV7: 5.14268375 | EW7: 1 | EX7: 8.90234375 | EY7: 1 | EZ7: 5.91653125 | FA7: 1 | FB7: 5.65853125 | FC7: 1 | FD7: 10.0203125 | FE7: 1 | FF7: 6.6595375 | FG7: 1 | FH7: 6.3691375 | FI7: 1 | FJ7: 9.12925 | FK7: 1 | FL7: 6.067334 | FM7: 1 | FN7: 5.802758 | FO7: 1 | FP7: 10.076625 | FQ7: 1 | FR7: 6.696963 | FS7: 1 | FT7: 6.404931 | FU7: 1 | FV7: 11.401625 | FW7: 1 | FX7: 7.577563 | FY7: 1 | FZ7: 7.247131 | GA7: 1 | GB7: 11.03725 | GC7: 1 | GD7: 7.335398 | GE7: 1 | GF7: 7.015526 | GG7: 1 | GH7: 12.011125 | GI7: 1 | GJ7: 7.982639 | GK7: 1 | GL7: 7.634543 | GM7: 1 | GN7: 13.362625 | GO7: 1 | GP7: 8.880851 | GQ7: 1 | GR7: 8.493587
A8: 2 | B8: 5.846266667 | C8: 2 | D8: 8.381499 | E8: 2 | F8: 10.13045 | G8: 2 | H8: 0 | I8: 2 | J8: 0 | K8: 2 | L8: 0 | M8: 2 | N8: 0 | O8: 2 | P8: 0 | Q8: 2 | R8: 0 | S8: 2 | T8: 5 | U8: 2 | V8: 4.88499 | W8: 2 | X8: 3.028065 | Y8: 2 | Z8: 2.81912 | AA8: 2 | AB8: 5.375975 | AC8: 2 | AD8: 3.3324125 | AE8: 2 | AF8: 3.102466667 | AG8: 2 | AH8: 6.072055 | AI8: 2 | AJ8: 3.7638925 | AK8: 2 | AL8: 3.504173333 | AM8: 2 | AN8: 6.018606 | AO8: 2 | AP8: 3.730761 | AQ8: 2 | AR8: 3.473328 | AS8: 2 | AT8: 6.540666 | AU8: 2 | AV8: 4.054371 | AW8: 2 | AX8: 3.774608 | AY8: 2 | AZ8: 7.256634 | BA8: 2 | BB8: 4.498179 | BC8: 2 | BD8: 4.187792 | BE8: 2 | BF8: 7.126119 | BG8: 2 | BH8: 4.4172765 | BI8: 2 | BJ8: 4.112472 | BK8: 2 | BL8: 7.774965 | BM8: 2 | BN8: 4.8194775 | BO8: 2 | BP8: 4.48692 | BQ8: 2 | BR8: 8.662467 | BS8: 2 | BT8: 5.3696145 | BU8: 2 | BV8: 4.999096 | BW8: 2 | BX8: 6.22743 | BY8: 2 | BZ8: 3.860205 | CA8: 2 | CB8: 3.59384 | CC8: 2 | CD8: 6.73706 | CE8: 2 | CF8: 4.17611 | CG8: 2 | CH8: 3.887946667 | CI8: 2 | CJ8: 7.39585 | CK8: 2 | CL8: 4.584475 | CM8: 2 | CN8: 4.268133333 | CO8: 2 | CP8: 8.412624 | CQ8: 2 | CR8: 5.214744 | CS8: 2 | CT8: 4.854912 | CU8: 2 | CV8: 9.315042 | CW8: 2 | CX8: 5.774127 | CY8: 2 | CZ8: 5.375696 | DA8: 2 | DB8: 10.635108 | DC8: 2 | DD8: 6.592398 | DE8: 2 | DF8: 6.137504 | DG8: 2 | DH8: 7.055268 | DI8: 2 | DJ8: 4.373358 | DK8: 2 | DL8: 4.071584 | DM8: 2 | DN8: 7.75632 | DO8: 2 | DP8: 4.80792 | DQ8: 2 | DR8: 4.47616 | DS8: 2 | DT8: 8.748234 | DU8: 2 | DV8: 5.422779 | DW8: 2 | DX8: 5.048592 | DY8: 2 | DZ8: 7.8309 | EA8: 2 | EB8: 4.85415 | EC8: 2 | ED8: 4.5192 | EE8: 2 | EF8: 8.75072 | EG8: 2 | EH8: 5.42432 | EI8: 2 | EJ8: 5.050026667 | EK8: 2 | EL8: 10.13045 | EM8: 2 | EN8: 6.279575 | EO8: 2 | EP8: 5.846266667 | EQ8: 2 | ER8: 9.1080825 | ES8: 2 | ET8: 5.64583875 | EU8: 2 | EV8: 5.25626 | EW8: 2 | EX8: 10.0216875 | EY8: 2 | EZ8: 6.21215625 | FA8: 2 | FB8: 5.7835 | FC8: 2 | FD8: 11.280225 | FE8: 2 | FF8: 6.9922875 | FG8: 2 | FH8: 6.5098 | FI8: 2 | FJ8: 10.277124 | FK8: 2 | FL8: 6.370494 | FM8: 2 | FN8: 5.930912 | FO8: 2 | FP8: 11.343618 | FQ8: 2 | FR8: 7.031583 | FS8: 2 | FT8: 6.546384 | FU8: 2 | FV8: 12.835218 | FW8: 2 | FX8: 7.956183 | FY8: 2 | FZ8: 7.407184 | GA8: 2 | GB8: 12.425028 | GC8: 2 | GD8: 7.701918 | GE8: 2 | GF8: 7.170464 | GG8: 2 | GH8: 13.521354 | GI8: 2 | GJ8: 8.381499 | GK8: 2 | GL8: 7.803152 | GM8: 2 | GN8: 15.042786 | GO8: 2 | GP8: 9.324591 | GQ8: 2 | GR8: 8.681168
A9: 3 | B9: 5.980741667 | C9: 3 | D9: 8.84744 | E9: 3 | F9: 11.83515833 | G9: 3 | H9: 0 | I9: 3 | J9: 0 | K9: 3 | L9: 0 | M9: 3 | N9: 0 | O9: 3 | P9: 0 | Q9: 3 | R9: 0 | S9: 3 | T9: 5 | U9: 3 | V9: 5.707015 | W9: 3 | X9: 3.1964 | Y9: 3 | Z9: 2.883965 | AA9: 3 | AB9: 6.280620833 | AC9: 3 | AD9: 3.517666667 | AE9: 3 | AF9: 3.173829167 | AG9: 3 | AH9: 7.093834167 | AI9: 3 | AJ9: 3.973133333 | AK9: 3 | AL9: 3.584775833 | AM9: 3 | AN9: 7.031391 | AO9: 3 | AP9: 3.93816 | AQ9: 3 | AR9: 3.553221 | AS9: 3 | AT9: 7.641301 | AU9: 3 | AV9: 4.27976 | AW9: 3 | AX9: 3.861431 | AY9: 3 | AZ9: 8.477749 | BA9: 3 | BB9: 4.74824 | BC9: 3 | BD9: 4.284119 | BE9: 3 | BF9: 8.3252715 | BG9: 3 | BH9: 4.66284 | BI9: 3 | BJ9: 4.2070665 | BK9: 3 | BL9: 9.0833025 | BM9: 3 | BN9: 5.0874 | BO9: 3 | BP9: 4.5901275 | BQ9: 3 | BR9: 10.1201495 | BS9: 3 | BT9: 5.66812 | BU9: 3 | BV9: 5.1140845 | BW9: 3 | BX9: 7.275355 | BY9: 3 | BZ9: 4.0748 | CA9: 3 | CB9: 3.676505 | CC9: 3 | CD9: 7.870743333 | CE9: 3 | CF9: 4.408266667 | CG9: 3 | CH9: 3.977376667 | CI9: 3 | CJ9: 8.640391667 | CK9: 3 | CL9: 4.839333333 | CM9: 3 | CN9: 4.366308333 | CO9: 3 | CP9: 9.828264 | CQ9: 3 | CR9: 5.50464 | CS9: 3 | CT9: 4.966584 | CU9: 3 | CV9: 10.882537 | CW9: 3 | CX9: 6.09512 | CY9: 3 | CZ9: 5.499347 | DA9: 3 | DB9: 12.424738 | DC9: 3 | DD9: 6.95888 | DE9: 3 | DF9: 6.278678 | DG9: 3 | DH9: 8.242498 | DI9: 3 | DJ9: 4.61648 | DK9: 3 | DL9: 4.165238 | DM9: 3 | DN9: 9.06152 | DO9: 3 | DP9: 5.0752 | DQ9: 3 | DR9: 4.57912 | DS9: 3 | DT9: 10.220349 | DU9: 3 | DV9: 5.72424 | DW9: 3 | DX9: 5.164719 | DY9: 3 | DZ9: 9.14865 | EA9: 3 | EB9: 5.124 | EC9: 3 | ED9: 4.62315 | EE9: 3 | EF9: 10.22325333 | EG9: 3 | EH9: 5.725866667 | EI9: 3 | EJ9: 5.166186667 | EK9: 3 | EL9: 11.83515833 | EM9: 3 | EN9: 6.628666667 | EO9: 3 | EP9: 5.980741667 | EQ9: 3 | ER9: 10.64075125 | ES9: 3 | ET9: 5.9597 | EU9: 3 | EV9: 5.37716375 | EW9: 3 | EX9: 11.70809375 | EY9: 3 | EZ9: 6.5575 | FA9: 3 | FB9: 5.91653125 | FC9: 3 | FD9: 13.1784125 | FE9: 3 | FF9: 7.381 | FG9: 3 | FH9: 6.6595375 | FI9: 3 | FJ9: 12.006514 | FK9: 3 | FL9: 6.72464 | FM9: 3 | FN9: 6.067334 | FO9: 3 | FP9: 13.252473 | FQ9: 3 | FR9: 7.42248 | FS9: 3 | FT9: 6.696963 | FU9: 3 | FV9: 14.995073 | FW9: 3 | FX9: 8.39848 | FY9: 3 | FZ9: 7.577563 | GA9: 3 | GB9: 14.515858 | GC9: 3 | GD9: 8.13008 | GE9: 3 | GF9: 7.335398 | GG9: 3 | GH9: 15.796669 | GI9: 3 | GJ9: 8.84744 | GK9: 3 | GL9: 7.982639 | GM9: 3 | GN9: 17.574121 | GO9: 3 | GP9: 9.84296 | GQ9: 3 | GR9: 8.880851
A10: 4 | B10: 6.124725 | C10: 4 | D10: 9.400405 | E10: 4 | F10: 14.85880833 | G10: 4 | H10: 0 | I10: 4 | J10: 0 | K10: 4 | L10: 0 | M10: 4 | N10: 0 | O10: 4 | P10: 0 | Q10: 4 | R10: 0 | S10: 4 | T10: 5 | U10: 4 | V10: 7.165045 | W10: 4 | X10: 3.396175 | Y10: 4 | Z10: 2.953395 | AA10: 4 | AB10: 7.885195833 | AC10: 4 | AD10: 3.737520833 | AE10: 4 | AF10: 3.2502375 | AG10: 4 | AH10: 8.906169167 | AI10: 4 | AJ10: 4.221454167 | AK10: 4 | AL10: 3.6710775 | AM10: 4 | AN10: 8.827773 | AO10: 4 | AP10: 4.184295 | AQ10: 4 | AR10: 3.638763 | AS10: 4 | AT10: 9.593503 | AU10: 4 | AV10: 4.547245 | AW10: 4 | AX10: 3.954393 | AY10: 4 | AZ10: 10.643647 | BA10: 4 | BB10: 5.045005 | BC10: 4 | BD10: 4.387257 | BE10: 4 | BF10: 10.4522145 | BG10: 4 | BH10: 4.9542675 | BI10: 4 | BJ10: 4.3083495 | BK10: 4 | BL10: 11.4039075 | BM10: 4 | BN10: 5.4053625 | BO10: 4 | BP10: 4.7006325 | BQ10: 4 | BR10: 12.7056485 | BS10: 4 | BT10: 6.0223775 | BU10: 4 | BV10: 5.2372035 | BW10: 4 | BX10: 9.134065 | BY10: 4 | BZ10: 4.329475 | CA10: 4 | CB10: 3.765015 | CC10: 4 | CD10: 9.881563333 | CE10: 4 | CF10: 4.683783333 | CG10: 4 | CH10: 4.07313 | CI10: 4 | CJ10: 10.84784167 | CK10: 4 | CL10: 5.141791667 | CM10: 4 | CN10: 4.471425 | CO10: 4 | CP10: 12.339192 | CQ10: 4 | CR10: 5.84868 | CS10: 4 | CT10: 5.086152 | CU10: 4 | CV10: 13.662811 | CW10: 4 | CX10: 6.476065 | CY10: 4 | CZ10: 5.631741 | DA10: 4 | DB10: 15.599014 | DC10: 4 | DD10: 7.39381 | DE10: 4 | DF10: 6.429834 | DG10: 4 | DH10: 10.348294 | DI10: 4 | DJ10: 4.90501 | DK10: 4 | DL10: 4.265514 | DM10: 4 | DN10: 11.37656 | DO10: 4 | DP10: 5.3924 | DQ10: 4 | DR10: 4.68936 | DS10: 4 | DT10: 12.831447 | DU10: 4 | DV10: 6.082005 | DW10: 4 | DX10: 5.289057 | DY10: 4 | DZ10: 11.48595 | EA10: 4 | EB10: 5.44425 | EC10: 4 | ED10: 4.73445 | EE10: 4 | EF10: 12.83509333 | EG10: 4 | EH10: 6.083733333 | EI10: 4 | EJ10: 5.29056 | EK10: 4 | EL10: 14.85880833 | EM10: 4 | EN10: 7.042958333 | EO10: 4 | EP10: 6.124725 | EQ10: 4 | ER10: 13.35925375 | ES10: 4 | ET10: 6.33218125 | EU10: 4 | EV10: 5.50661625 | EW10: 4 | EX10: 14.69928125 | EY10: 4 | EZ10: 6.96734375 | FA10: 4 | FB10: 6.05896875 | FC10: 4 | FD10: 16.5452375 | FE10: 4 | FF10: 7.8423125 | FG10: 4 | FH10: 6.8198625 | FI10: 4 | FJ10: 15.073942 | FK10: 4 | FL10: 7.14493 | FM10: 4 | FN10: 6.213402 | FO10: 4 | FP10: 16.638219 | FQ10: 4 | FR10: 7.886385 | FS10: 4 | FT10: 6.858189 | FU10: 4 | FV10: 18.826019 | FW10: 4 | FX10: 8.923385 | FY10: 4 | FZ10: 7.759989 | GA10: 4 | GB10: 18.224374 | GC10: 4 | GD10: 8.63821 | GE10: 4 | GF10: 7.511994 | GG10: 4 | GH10: 19.832407 | GI10: 4 | GJ10: 9.400405 | GK10: 4 | GL10: 8.174817 | GM10: 4 | GN10: 22.063963 | GO10: 4 | GP10: 10.458145 | GQ10: 4 | GR10: 9.094653
A11: 5 | B11: 6.279575 | C11: 5 | D11: 10.074841 | E11: 5 | F11: 22.96941667 | G11: 5 | H11: 0 | I11: 5 | J11: 0 | K11: 5 | L11: 0 | M11: 5 | N11: 0 | O11: 5 | P11: 0 | Q11: 5 | R11: 0 | S11: 5 | T11: 5 | U11: 5 | V11: 11.07605 | W11: 5 | X11: 3.639835 | Y11: 5 | Z11: 3.028065 | AA11: 5 | AB11: 12.18929167 | AC11: 5 | AD11: 4.005670833 | AE11: 5 | AF11: 3.3324125 | AG11: 5 | AH11: 13.76755833 | AI11: 5 | AJ11: 4.524324167 | AK11: 5 | AL11: 3.7638925 | AM11: 5 | AN11: 13.64637 | AO11: 5 | AP11: 4.484499 | AQ11: 5 | AR11: 3.730761 | AS11: 5 | AT11: 14.83007 | AU11: 5 | AV11: 4.873489 | AW11: 5 | AX11: 4.054371 | AY11: 5 | AZ11: 16.45343 | BA11: 5 | BB11: 5.406961 | BC11: 5 | BD11: 4.498179 | BE11: 5 | BF11: 16.157505 | BG11: 5 | BH11: 5.3097135 | BI11: 5 | BJ11: 4.4172765 | BK11: 5 | BL11: 17.628675 | BM11: 5 | BN11: 5.7931725 | BO11: 5 | BP11: 4.8194775 | BQ11: 5 | BR11: 19.640965 | BS11: 5 | BT11: 6.4544555 | BU11: 5 | BV11: 5.3696145 | BW11: 5 | BX11: 14.11985 | BY11: 5 | BZ11: 4.640095 | CA11: 5 | CB11: 3.860205 | CC11: 5 | CD11: 15.27536667 | CE11: 5 | CF11: 5.019823333 | CG11: 5 | CH11: 4.17611 | CI11: 5 | CJ11: 16.76908333 | CK11: 5 | CL11: 5.510691667 | CM11: 5 | CN11: 4.584475 | CO11: 5 | CP11: 19.07448 | CQ11: 5 | CR11: 6.268296 | CS11: 5 | CT11: 5.214744 | CU11: 5 | CV11: 21.12059 | CW11: 5 | CX11: 6.940693 | CY11: 5 | CZ11: 5.774127 | DA11: 5 | DB11: 24.11366 | DC11: 5 | DD11: 7.924282 | DE11: 5 | DF11: 6.592398 | DG11: 5 | DH11: 15.99686 | DI11: 5 | DJ11: 5.256922 | DK11: 5 | DL11: 4.373358 | DM11: 5 | DN11: 17.5864 | DO11: 5 | DP11: 5.77928 | DQ11: 5 | DR11: 4.80792 | DS11: 5 | DT11: 19.83543 | DU11: 5 | DV11: 6.518361 | DW11: 5 | DX11: 5.422779 | DY11: 5 | DZ11: 17.7555 | EA11: 5 | EB11: 5.83485 | EC11: 5 | ED11: 4.85415 | EE11: 5 | EF11: 19.84106667 | EG11: 5 | EH11: 6.520213333 | EI11: 5 | EJ11: 5.42432 | EK11: 5 | EL11: 22.96941667 | EM11: 5 | EN11: 7.548258333 | EO11: 5 | EP11: 6.279575 | EQ11: 5 | ER11: 20.6513375 | ES11: 5 | ET11: 6.78648625 | EU11: 5 | EV11: 5.64583875 | EW11: 5 | EX11: 22.7228125 | EY11: 5 | EZ11: 7.46721875 | FA11: 5 | FB11: 6.21215625 | FC11: 5 | FD11: 25.576375 | FE11: 5 | FF11: 8.4049625 | FG11: 5 | FH11: 6.9922875 | FI11: 5 | FJ11: 23.30198 | FK11: 5 | FL11: 7.657546 | FM11: 5 | FN11: 6.370494 | FO11: 5 | FP11: 25.72011 | FQ11: 5 | FR11: 8.452197 | FS11: 5 | FT11: 7.031583 | FU11: 5 | FV11: 29.10211 | FW11: 5 | FX11: 9.563597 | FY11: 5 | FZ11: 7.956183 | GA11: 5 | GB11: 28.17206 | GC11: 5 | GD11: 9.257962 | GE11: 5 | GF11: 7.701918 | GG11: 5 | GH11: 30.65783 | GI11: 5 | GJ11: 10.074841 | GK11: 5 | GL11: 8.381499 | GM11: 5 | GN11: 34.10747 | GO11: 5 | GP11: 11.208469 | GQ11: 5 | GR11: 9.324591
A12: 6 | B12: 6.44665 | C12: 6 | D12: 10.916073 | E12: 6 | F12: 55.45395833 | G12: 6 | H12: 0 | I12: 6 | J12: 0 | K12: 6 | L12: 0 | M12: 6 | N12: 0 | O12: 6 | P12: 0 | Q12: 6 | R12: 0 | S12: 6 | T12: 5 | U12: 6 | V12: 26.740375 | W12: 6 | X12: 3.943755 | Y12: 6 | Z12: 3.10863 | AA12: 6 | AB12: 29.42802083 | AC12: 6 | AD12: 4.3401375 | AE12: 6 | AF12: 3.421075 | AG12: 6 | AH12: 33.23835417 | AI12: 6 | AJ12: 4.9020975 | AK12: 6 | AL12: 3.864035 | AM12: 6 | AN12: 32.945775 | AO12: 6 | AP12: 4.858947 | AQ12: 6 | AR12: 3.830022 | AS12: 6 | AT12: 35.803525 | AU12: 6 | AV12: 5.280417 | AW12: 6 | AX12: 4.162242 | AY12: 6 | AZ12: 39.722725 | BA12: 6 | BB12: 5.858433 | BC12: 6 | BD12: 4.617858 | BE12: 6 | BF12: 39.0082875 | BG12: 6 | BH12: 5.7530655 | BI12: 6 | BJ12: 4.534803 | BK12: 6 | BL12: 42.5600625 | BM12: 6 | BN12: 6.2768925 | BO12: 6 | BP12: 4.947705 | BQ12: 6 | BR12: 47.4182375 | BS12: 6 | BT12: 6.9933915 | BU12: 6 | BV12: 5.512479 | BW12: 6 | BX12: 34.088875 | BY12: 6 | BZ12: 5.027535 | CA12: 6 | CB12: 3.96291 | CC12: 6 | CD12: 36.87858333 | CE12: 6 | CF12: 5.43897 | CG12: 6 | CH12: 4.28722 | CI12: 6 | CJ12: 40.48479167 | CK12: 6 | CL12: 5.970825 | CM12: 6 | CN12: 4.70645 | CO12: 6 | CP12: 46.0506 | CQ12: 6 | CR12: 6.791688 | CS12: 6 | CT12: 5.353488 | CU12: 6 | CV12: 50.990425 | CW12: 6 | CX12: 7.520229 | CY12: 6 | CZ12: 5.927754 | DA12: 6 | DB12: 58.21645 | DC12: 6 | DD12: 8.585946 | DE12: 6 | DF12: 6.767796 | DG12: 6 | DH12: 38.62045 | DI12: 6 | DJ12: 5.695866 | DK12: 6 | DL12: 4.489716 | DM12: 6 | DN12: 42.458 | DO12: 6 | DP12: 6.26184 | DQ12: 6 | DR12: 4.93584 | DS12: 6 | DT12: 47.887725 | DU12: 6 | DV12: 7.062633 | DW12: 6 | DX12: 5.567058 | DY12: 6 | DZ12: 42.86625 | EA12: 6 | EB12: 6.32205 | EC12: 6 | ED12: 4.9833 | EE12: 6 | EF12: 47.90133333 | EG12: 6 | EH12: 7.06464 | EI12: 6 | EJ12: 5.56864 | EK12: 6 | EL12: 55.45395833 | EM12: 6 | EN12: 8.178525 | EO12: 6 | EP12: 6.44665 | EQ12: 6 | ER12: 49.85753125 | ES12: 6 | ET12: 7.35314625 | EU12: 6 | EV12: 5.7960525 | EW12: 6 | EX12: 54.85859375 | EY12: 6 | EZ12: 8.09071875 | FA12: 6 | FB12: 6.3774375 | FC12: 6 | FD12: 61.7478125 | FE12: 6 | FF12: 9.1067625 | FG12: 6 | FH12: 7.178325 | FI12: 6 | FJ12: 56.25685 | FK12: 6 | FL12: 8.296938 | FM12: 6 | FN12: 6.539988 | FO12: 6 | FP12: 62.094825 | FQ12: 6 | FR12: 9.157941 | FS12: 6 | FT12: 7.218666 | FU12: 6 | FV12: 70.259825 | FW12: 6 | FX12: 10.362141 | FY12: 6 | FZ12: 8.167866 | GA12: 6 | GB12: 68.01445 | GC12: 6 | GD12: 10.030986 | GE12: 6 | GF12: 7.906836 | GG12: 6 | GH12: 74.015725 | GI12: 6 | GJ12: 10.916073 | GK12: 6 | GL12: 8.604498 | GM12: 6 | GN12: 82.344025 | GO12: 6 | GP12: 12.144357 | GQ12: 6 | GR12: 9.572682
A13: 7 | B13: 6.628666667 | C13: 7 | D13: 12.011125 | E13: 7 | F13: 17.62573333 | G13: 7 | H13: 0 | I13: 7 | J13: 0 | K13: 7 | L13: 0 | M13: 7 | N13: 0 | O13: 7 | P13: 0 | Q13: 7 | R13: 0 | S13: 7 | T13: 5 | U13: 7 | V13: 8.49928 | W13: 7 | X13: 4.339375 | Y13: 7 | Z13: 3.1964 | AA13: 7 | AB13: 9.353533333 | AC13: 7 | AD13: 4.775520833 | AE13: 7 | AF13: 3.517666667 | AG13: 7 | AH13: 10.56462667 | AI13: 7 | AJ13: 5.393854167 | AK13: 7 | AL13: 3.973133333 | AM13: 7 | AN13: 10.471632 | AO13: 7 | AP13: 5.346375 | AQ13: 7 | AR13: 3.93816 | AS13: 7 | AT13: 11.379952 | AU13: 7 | AV13: 5.810125 | AW13: 7 | AX13: 4.27976 | AY13: 7 | AZ13: 12.625648 | BA13: 7 | BB13: 6.446125 | BC13: 7 | BD13: 4.74824 | BE13: 7 | BF13: 12.398568 | BG13: 7 | BH13: 6.3301875 | BI13: 7 | BJ13: 4.66284 | BK13: 7 | BL13: 13.52748 | BM13: 7 | BN13: 6.9065625 | BO13: 7 | BP13: 5.0874 | BQ13: 7 | BR13: 15.071624 | BS13: 7 | BT13: 7.6949375 | BU13: 7 | BV13: 5.66812 | BW13: 7 | BX13: 10.83496 | BY13: 7 | BZ13: 5.531875 | CA13: 7 | CB13: 4.0748 | CC13: 7 | CD13: 11.72165333 | CE13: 7 | CF13: 5.984583333 | CG13: 7 | CH13: 4.408266667 | CI13: 7 | CJ13: 12.86786667 | CK13: 7 | CL13: 6.569791667 | CM13: 7 | CN13: 4.839333333 | CO13: 7 | CP13: 14.636928 | CQ13: 7 | CR13: 7.473 | CS13: 7 | CT13: 5.50464 | CU13: 7 | CV13: 16.207024 | CW13: 7 | CX13: 8.274625 | CY13: 7 | CZ13: 6.09512 | DA13: 7 | DB13: 18.503776 | DC13: 7 | DD13: 9.44725 | DE13: 7 | DF13: 6.95888 | DG13: 7 | DH13: 12.275296 | DI13: 7 | DJ13: 6.26725 | DK13: 7 | DL13: 4.61648 | DM13: 7 | DN13: 13.49504 | DO13: 7 | DP13: 6.89 | DQ13: 7 | DR13: 5.0752 | DS13: 7 | DT13: 15.220848 | DU13: 7 | DV13: 7.771125 | DW13: 7 | DX13: 5.72424 | DY13: 7 | DZ13: 13.6248 | EA13: 7 | EB13: 6.95625 | EC13: 7 | ED13: 5.124 | EE13: 7 | EF13: 15.22517333 | EG13: 7 | EH13: 7.773333333 | EI13: 7 | EJ13: 5.725866667 | EK13: 7 | EL13: 17.62573333 | EM13: 7 | EN13: 8.998958333 | EO13: 7 | EP13: 6.628666667 | EQ13: 7 | ER13: 15.84694 | ES13: 7 | ET13: 8.09078125 | EU13: 7 | EV13: 5.9597 | EW13: 7 | EX13: 17.4365 | EY13: 7 | EZ13: 8.90234375 | FA13: 7 | FB13: 6.5575 | FC13: 7 | FD13: 19.6262 | FE13: 7 | FF13: 10.0203125 | FG13: 7 | FH13: 7.381 | FI13: 7 | FJ13: 17.880928 | FK13: 7 | FL13: 9.12925 | FM13: 7 | FN13: 6.72464 | FO13: 7 | FP13: 19.736496 | FQ13: 7 | FR13: 10.076625 | FS13: 7 | FT13: 7.42248 | FU13: 7 | FV13: 22.331696 | FW13: 7 | FX13: 11.401625 | FY13: 7 | FZ13: 8.39848 | GA13: 7 | GB13: 21.618016 | GC13: 7 | GD13: 11.03725 | GE13: 7 | GF13: 8.13008 | GG13: 7 | GH13: 23.525488 | GI13: 7 | GJ13: 12.011125 | GK13: 7 | GL13: 8.84744 | GM13: 7 | GN13: 26.172592 | GO13: 7 | GP13: 13.362625 | GQ13: 7 | GR13: 9.84296
A14: 8 | B14: 6.826983333 | C14: 8 | D14: 13.521354 | E14: 8 | F14: 13.09025833 | G14: 8 | H14: 0 | I14: 8 | J14: 0 | K14: 8 | L14: 0 | M14: 8 | N14: 0 | O14: 8 | P14: 0 | Q14: 8 | R14: 0 | S14: 8 | T14: 5 | U14: 8 | V14: 6.312235 | W14: 8 | X14: 4.88499 | Y14: 8 | Z14: 3.29203 | AA14: 8 | AB14: 6.946670833 | AC14: 8 | AD14: 5.375975 | AE14: 8 | AF14: 3.622908333 | AG14: 8 | AH14: 7.846124167 | AI14: 8 | AJ14: 6.072055 | AK14: 8 | AL14: 4.092001667 | AM14: 8 | AN14: 7.777059 | AO14: 8 | AP14: 6.018606 | AQ14: 8 | AR14: 4.055982 | AS14: 8 | AT14: 8.451649 | AU14: 8 | AV14: 6.540666 | AW14: 8 | AX14: 4.407802 | AY14: 8 | AZ14: 9.376801 | BA14: 8 | BB14: 7.256634 | BC14: 8 | BD14: 4.890298 | BE14: 8 | BF14: 9.2081535 | BG14: 8 | BH14: 7.126119 | BI14: 8 | BJ14: 4.802343 | BK14: 8 | BL14: 10.0465725 | BM14: 8 | BN14: 7.774965 | BO14: 8 | BP14: 5.239605 | BQ14: 8 | BR14: 11.1933755 | BS14: 8 | BT14: 8.662467 | BU14: 8 | BV14: 5.837699 | BW14: 8 | BX14: 8.046895 | BY14: 8 | BZ14: 6.22743 | CA14: 8 | CB14: 4.19671 | CC14: 8 | CD14: 8.705423333 | CE14: 8 | CF14: 6.73706 | CG14: 8 | CH14: 4.540153333 | CI14: 8 | CJ14: 9.556691667 | CK14: 8 | CL14: 7.39585 | CM14: 8 | CN14: 4.984116667 | CO14: 8 | CP14: 10.870536 | CQ14: 8 | CR14: 8.412624 | CS14: 8 | CT14: 5.669328 | CU14: 8 | CV14: 12.036613 | CW14: 8 | CX14: 9.315042 | CY14: 8 | CZ14: 6.277474 | DA14: 8 | DB14: 13.742362 | DC14: 8 | DD14: 10.635108 | DE14: 8 | DF14: 7.167076 | DG14: 8 | DH14: 9.116602 | DI14: 8 | DJ14: 7.055268 | DK14: 8 | DL14: 4.754596 | DM14: 8 | DN14: 10.02248 | DO14: 8 | DP14: 7.75632 | DQ14: 8 | DR14: 5.22704 | DS14: 8 | DT14: 11.304201 | DU14: 8 | DV14: 8.748234 | DW14: 8 | DX14: 5.895498 | DY14: 8 | DZ14: 10.11885 | EA14: 8 | EB14: 7.8309 | EC14: 8 | ED14: 5.2773 | EE14: 8 | EF14: 11.30741333 | EG14: 8 | EH14: 8.75072 | EI14: 8 | EJ14: 5.897173333 | EK14: 8 | EL14: 13.09025833 | EM14: 8 | EN14: 10.13045 | EO14: 8 | EP14: 6.826983333 | EQ14: 8 | ER14: 11.76918625 | ES14: 8 | ET14: 9.1080825 | EU14: 8 | EV14: 6.1380025 | EW14: 8 | EX14: 12.94971875 | EY14: 8 | EZ14: 10.0216875 | FA14: 8 | FB14: 6.7536875 | FC14: 8 | FD14: 14.5759625 | FE14: 8 | FF14: 11.280225 | FG14: 8 | FH14: 7.601825 | FI14: 8 | FJ14: 13.279786 | FK14: 8 | FL14: 10.277124 | FM14: 8 | FN14: 6.925828 | FO14: 8 | FP14: 14.657877 | FQ14: 8 | FR14: 11.343618 | FS14: 8 | FT14: 7.644546 | FU14: 8 | FV14: 16.585277 | FW14: 8 | FX14: 12.835218 | FY14: 8 | FZ14: 8.649746 | GA14: 8 | GB14: 16.055242 | GC14: 8 | GD14: 12.425028 | GE14: 8 | GF14: 8.373316 | GG14: 8 | GH14: 17.471881 | GI14: 8 | GJ14: 13.521354 | GK14: 8 | GL14: 9.112138 | GM14: 8 | GN14: 19.437829 | GO14: 8 | GP14: 15.042786 | GQ14: 8 | GR14: 10.137442
A15: 9 | B15: 7.042958333 | C15: 9 | D15: 15.796669 | E15: 9 | F15: 10.88296667 | G15: 9 | H15: 0 | I15: 9 | J15: 0 | K15: 9 | L15: 0 | M15: 9 | N15: 0 | O15: 9 | P15: 0 | Q15: 9 | R15: 0 | S15: 9 | T15: 5 | U15: 9 | V15: 5.24786 | W15: 9 | X15: 5.707015 | Y15: 9 | Z15: 3.396175 | AA15: 9 | AB15: 5.775316667 | AC15: 9 | AD15: 6.280620833 | AE15: 9 | AF15: 3.737520833 | AG15: 9 | AH15: 6.523103333 | AI15: 9 | AJ15: 7.093834167 | AK15: 9 | AL15: 4.221454167 | AM15: 9 | AN15: 6.465684 | AO15: 9 | AP15: 7.031391 | AQ15: 9 | AR15: 4.184295 | AS15: 9 | AT15: 7.026524 | AU15: 9 | AV15: 7.641301 | AW15: 9 | AX15: 4.547245 | AY15: 9 | AZ15: 7.795676 | BA15: 9 | BB15: 8.477749 | BC15: 9 | BD15: 5.045005 | BE15: 9 | BF15: 7.655466 | BG15: 9 | BH15: 8.3252715 | BI15: 9 | BJ15: 4.9542675 | BK15: 9 | BL15: 8.35251 | BM15: 9 | BN15: 9.0833025 | BO15: 9 | BP15: 5.4053625 | BQ15: 9 | BR15: 9.305938 | BS15: 9 | BT15: 10.1201495 | BU15: 9 | BV15: 6.0223775 | BW15: 9 | BX15: 6.69002 | BY15: 9 | BZ15: 7.275355 | CA15: 9 | CB15: 4.329475 | CC15: 9 | CD15: 7.237506667 | CE15: 9 | CF15: 7.870743333 | CG15: 9 | CH15: 4.683783333 | CI15: 9 | CJ15: 7.945233333 | CK15: 9 | CL15: 8.640391667 | CM15: 9 | CN15: 5.141791667 | CO15: 9 | CP15: 9.037536 | CQ15: 9 | CR15: 9.828264 | CS15: 9 | CT15: 5.84868 | CU15: 9 | CV15: 10.006988 | CW15: 9 | CX15: 10.882537 | CY15: 9 | CZ15: 6.476065 | DA15: 9 | DB15: 11.425112 | DC15: 9 | DD15: 12.424738 | DE15: 9 | DF15: 7.39381 | DG15: 9 | DH15: 7.579352 | DI15: 9 | DJ15: 8.242498 | DK15: 9 | DL15: 4.90501 | DM15: 9 | DN15: 8.33248 | DO15: 9 | DP15: 9.06152 | DQ15: 9 | DR15: 5.3924 | DS15: 9 | DT15: 9.398076 | DU15: 9 | DV15: 10.220349 | DW15: 9 | DX15: 6.082005 | DY15: 9 | DZ15: 8.4126 | EA15: 9 | EB15: 9.14865 | EC15: 9 | ED15: 5.44425 | EE15: 9 | EF15: 9.400746667 | EG15: 9 | EH15: 10.22325333 | EI15: 9 | EJ15: 6.083733333 | EK15: 9 | EL15: 10.88296667 | EM15: 9 | EN15: 11.83515833 | EO15: 9 | EP15: 7.042958333 | EQ15: 9 | ER15: 9.784655 | ES15: 9 | ET15: 10.64075125 | EU15: 9 | EV15: 6.33218125 | EW15: 9 | EX15: 10.766125 | EY15: 9 | EZ15: 11.70809375 | FA15: 9 | FB15: 6.96734375 | FC15: 9 | FD15: 12.11815 | FE15: 9 | FF15: 13.1784125 | FG15: 9 | FH15: 7.8423125 | FI15: 9 | FJ15: 11.040536 | FK15: 9 | FL15: 12.006514 | FM15: 9 | FN15: 7.14493 | FO15: 9 | FP15: 12.186252 | FQ15: 9 | FR15: 13.252473 | FS15: 9 | FT15: 7.886385 | FU15: 9 | FV15: 13.788652 | FW15: 9 | FX15: 14.995073 | FY15: 9 | FZ15: 8.923385 | GA15: 9 | GB15: 13.347992 | GC15: 9 | GD15: 14.515858 | GE15: 9 | GF15: 8.63821 | GG15: 9 | GH15: 14.525756 | GI15: 9 | GJ15: 15.796669 | GK15: 9 | GL15: 9.400405 | GM15: 9 | GN15: 16.160204 | GO15: 9 | GP15: 17.574121 | GQ15: 9 | GR15: 10.458145
A16: 10 | B16: 7.282025 | C16: 10 | D16: 19.832407 | E16: 10 | F16: 9.513766667 | G16: 10 | H16: 0 | I16: 10 | J16: 0 | K16: 10 | L16: 0 | M16: 10 | N16: 0 | O16: 10 | P16: 0 | Q16: 10 | R16: 0 | S16: 10 | T16: 5 | U16: 10 | V16: 4.58762 | W16: 10 | X16: 7.165045 | Y16: 10 | Z16: 3.511455 | AA16: 10 | AB16: 5.048716667 | AC16: 10 | AD16: 7.885195833 | AE16: 10 | AF16: 3.8643875 | AG16: 10 | AH16: 5.702423333 | AI16: 10 | AJ16: 8.906169167 | AK16: 10 | AL16: 4.3647475 | AM16: 10 | AN16: 5.652228 | AO16: 10 | AP16: 8.827773 | AQ16: 10 | AR16: 4.326327 | AS16: 10 | AT16: 6.142508 | AU16: 10 | AV16: 9.593503 | AW16: 10 | AX16: 4.701597 | AY16: 10 | AZ16: 6.814892 | BA16: 10 | BB16: 10.643647 | BC16: 10 | BD16: 5.216253 | BE16: 10 | BF16: 6.692322 | BG16: 10 | BH16: 10.4522145 | BI16: 10 | BJ16: 5.1224355 | BK16: 10 | BL16: 7.30167 | BM16: 10 | BN16: 11.4039075 | BO16: 10 | BP16: 5.5888425 | BQ16: 10 | BR16: 8.135146 | BS16: 10 | BT16: 12.7056485 | BU16: 10 | BV16: 6.2268015 | BW16: 10 | BX16: 5.84834 | BY16: 10 | BZ16: 9.134065 | CA16: 10 | CB16: 4.476435 | CC16: 10 | CD16: 6.326946667 | CE16: 10 | CF16: 9.881563333 | CG16: 10 | CH16: 4.84277 | CI16: 10 | CJ16: 6.945633333 | CK16: 10 | CL16: 10.84784167 | CM16: 10 | CN16: 5.316325 | CO16: 10 | CP16: 7.900512 | CQ16: 10 | CR16: 12.339192 | CS16: 10 | CT16: 6.047208 | CU16: 10 | CV16: 8.747996 | CW16: 10 | CX16: 13.662811 | CY16: 10 | CZ16: 6.695889 | DA16: 10 | DB16: 9.987704 | DC16: 10 | DD16: 15.599014 | DE16: 10 | DF16: 7.644786 | DG16: 10 | DH16: 6.625784 | DI16: 10 | DJ16: 10.348294 | DK16: 10 | DL16: 5.071506 | DM16: 10 | DN16: 7.28416 | DO16: 10 | DP16: 11.37656 | DQ16: 10 | DR16: 5.57544 | DS16: 10 | DT16: 8.215692 | DU16: 10 | DV16: 12.831447 | DW16: 10 | DX16: 6.288453 | DY16: 10 | DZ16: 7.3542 | EA16: 10 | EB16: 11.48595 | EC16: 10 | ED16: 5.62905 | EE16: 10 | EF16: 8.218026667 | EG16: 10 | EH16: 12.83509333 | EI16: 10 | EJ16: 6.29024 | EK16: 10 | EL16: 9.513766667 | EM16: 10 | EN16: 14.85880833 | EO16: 10 | EP16: 7.282025 | EQ16: 10 | ER16: 8.553635 | ES16: 10 | ET16: 13.35925375 | EU16: 10 | EV16: 6.54712125 | EW16: 10 | EX16: 9.411625 | EY16: 10 | EZ16: 14.69928125 | FA16: 10 | FB16: 7.20384375 | FC16: 10 | FD16: 10.59355 | FE16: 10 | FF16: 16.5452375 | FG16: 10 | FH16: 8.1085125 | FI16: 10 | FJ16: 9.651512 | FK16: 10 | FL16: 15.073942 | FM16: 10 | FN16: 7.387458 | FO16: 10 | FP16: 10.653084 | FQ16: 10 | FR16: 16.638219 | FS16: 10 | FT16: 8.154081 | FU16: 10 | FV16: 12.053884 | FW16: 10 | FX16: 18.826019 | FY16: 10 | FZ16: 9.226281 | GA16: 10 | GB16: 11.668664 | GC16: 10 | GD16: 18.224374 | GE16: 10 | GF16: 8.931426 | GG16: 10 | GH16: 12.698252 | GI16: 10 | GJ16: 19.832407 | GK16: 10 | GL16: 9.719493 | GM16: 10 | GN16: 14.127068 | GO16: 10 | GP16: 22.063963 | GQ16: 10 | GR16: 10.813137
A17: 11 | B17: 7.548258333 | C17: 11 | D17: 30.65783 | E17: 11 | F17: 8.558858333 | G17: 11 | H17: 0 | I17: 11 | J17: 0 | K17: 11 | L17: 0 | M17: 11 | N17: 0 | O17: 11 | P17: 0 | Q17: 11 | R17: 0 | S17: 11 | T17: 5 | U17: 11 | V17: 4.127155 | W17: 11 | X17: 11.07605 | Y17: 11 | Z17: 3.639835 | AA17: 11 | AB17: 4.541970833 | AC17: 11 | AD17: 12.18929167 | AE17: 11 | AF17: 4.005670833 | AG17: 11 | AH17: 5.130064167 | AI17: 11 | AJ17: 13.76755833 | AK17: 11 | AL17: 4.524324167 | AM17: 11 | AN17: 5.084907 | AO17: 11 | AP17: 13.64637 | AQ17: 11 | AR17: 4.484499 | AS17: 11 | AT17: 5.525977 | AU17: 11 | AV17: 14.83007 | AW17: 11 | AX17: 4.873489 | AY17: 11 | AZ17: 6.130873 | BA17: 11 | BB17: 16.45343 | BC17: 11 | BD17: 5.406961 | BE17: 11 | BF17: 6.0206055 | BG17: 11 | BH17: 16.157505 | BI17: 11 | BJ17: 5.3097135 | BK17: 11 | BL17: 6.5687925 | BM17: 11 | BN17: 17.628675 | BO17: 11 | BP17: 5.7931725 | BQ17: 11 | BR17: 7.3186115 | BS17: 11 | BT17: 19.640965 | BU17: 11 | BV17: 6.4544555 | BW17: 11 | BX17: 5.261335 | BY17: 11 | BZ17: 14.11985 | CA17: 11 | CB17: 4.640095 | CC17: 11 | CD17: 5.691903333 | CE17: 11 | CF17: 15.27536667 | CG17: 11 | CH17: 5.019823333 | CI17: 11 | CJ17: 6.248491667 | CK17: 11 | CL17: 16.76908333 | CM17: 11 | CN17: 5.510691667 | CO17: 11 | CP17: 7.107528 | CQ17: 11 | CR17: 19.07448 | CS17: 11 | CT17: 6.268296 | CU17: 11 | CV17: 7.869949 | CW17: 11 | CX17: 21.12059 | CY17: 11 | CZ17: 6.940693 | DA17: 11 | DB17: 8.985226 | DC17: 11 | DD17: 24.11366 | DE17: 11 | DF17: 7.924282 | DG17: 11 | DH17: 5.960746 | DI17: 11 | DJ17: 15.99686 | DK17: 11 | DL17: 5.256922 | DM17: 11 | DN17: 6.55304 | DO17: 11 | DP17: 17.5864 | DQ17: 11 | DR17: 5.77928 | DS17: 11 | DT17: 7.391073 | DU17: 11 | DV17: 19.83543 | DW17: 11 | DX17: 6.518361 | DY17: 11 | DZ17: 6.61605 | EA17: 11 | EB17: 17.7555 | EC17: 11 | ED17: 5.83485 | EE17: 11 | EF17: 7.393173333 | EG17: 11 | EH17: 19.84106667 | EI17: 11 | EJ17: 6.520213333 | EK17: 11 | EL17: 8.558858333 | EM17: 11 | EN17: 22.96941667 | EO17: 11 | EP17: 7.548258333 | EQ17: 11 | ER17: 7.69509625 | ES17: 11 | ET17: 20.6513375 | EU17: 11 | EV17: 6.78648625 | EW17: 11 | EX17: 8.46696875 | EY17: 11 | EZ17: 22.7228125 | FA17: 11 | FB17: 7.46721875 | FC17: 11 | FD17: 9.5302625 | FE17: 11 | FF17: 25.576375 | FG17: 11 | FH17: 8.4049625 | FI17: 11 | FJ17: 8.682778 | FK17: 11 | FL17: 23.30198 | FM17: 11 | FN17: 7.657546 | FO17: 11 | FP17: 9.583821 | FQ17: 11 | FR17: 25.72011 | FS17: 11 | FT17: 8.452197 | FU17: 11 | FV17: 10.844021 | FW17: 11 | FX17: 29.10211 | FY17: 11 | FZ17: 9.563597 | GA17: 11 | GB17: 10.497466 | GC17: 11 | GD17: 28.17206 | GE17: 11 | GF17: 9.257962 | GG17: 11 | GH17: 11.423713 | GI17: 11 | GJ17: 30.65783 | GK17: 11 | GL17: 10.074841 | GM17: 11 | GN17: 12.709117 | GO17: 11 | GP17: 34.10747 | GQ17: 11 | GR17: 11.208469
A18: 12 | B18: 8.178525 | C18: 12 | D18: 74.015725 | E18: 12 | F18: 8.178525 | G18: 12 | H18: 0 | I18: 12 | J18: 0 | K18: 12 | L18: 0 | M18: 12 | N18: 0 | O18: 12 | P18: 0 | Q18: 12 | R18: 0 | S18: 12 | T18: 5 | U18: 12 | V18: 3.943755 | W18: 12 | X18: 26.740375 | Y18: 12 | Z18: 3.943755 | AA18: 12 | AB18: 4.3401375 | AC18: 12 | AD18: 29.42802083 | AE18: 12 | AF18: 4.3401375 | AG18: 12 | AH18: 4.9020975 | AI18: 12 | AJ18: 33.23835417 | AK18: 12 | AL18: 4.9020975 | AM18: 12 | AN18: 4.858947 | AO18: 12 | AP18: 32.945775 | AQ18: 12 | AR18: 4.858947 | AS18: 12 | AT18: 5.280417 | AU18: 12 | AV18: 35.803525 | AW18: 12 | AX18: 5.280417 | AY18: 12 | AZ18: 5.858433 | BA18: 12 | BB18: 39.722725 | BC18: 12 | BD18: 5.858433 | BE18: 12 | BF18: 5.7530655 | BG18: 12 | BH18: 39.0082875 | BI18: 12 | BJ18: 5.7530655 | BK18: 12 | BL18: 6.2768925 | BM18: 12 | BN18: 42.5600625 | BO18: 12 | BP18: 6.2768925 | BQ18: 12 | BR18: 6.9933915 | BS18: 12 | BT18: 47.4182375 | BU18: 12 | BV18: 6.9933915 | BW18: 12 | BX18: 5.027535 | BY18: 12 | BZ18: 34.088875 | CA18: 12 | CB18: 5.027535 | CC18: 12 | CD18: 5.43897 | CE18: 12 | CF18: 36.87858333 | CG18: 12 | CH18: 5.43897 | CI18: 12 | CJ18: 5.970825 | CK18: 12 | CL18: 40.48479167 | CM18: 12 | CN18: 5.970825 | CO18: 12 | CP18: 6.791688 | CQ18: 12 | CR18: 46.0506 | CS18: 12 | CT18: 6.791688 | CU18: 12 | CV18: 7.520229 | CW18: 12 | CX18: 50.990425 | CY18: 12 | CZ18: 7.520229 | DA18: 12 | DB18: 8.585946 | DC18: 12 | DD18: 58.21645 | DE18: 12 | DF18: 8.585946 | DG18: 12 | DH18: 5.695866 | DI18: 12 | DJ18: 38.62045 | DK18: 12 | DL18: 5.695866 | DM18: 12 | DN18: 6.26184 | DO18: 12 | DP18: 42.458 | DQ18: 12 | DR18: 6.26184 | DS18: 12 | DT18: 7.062633 | DU18: 12 | DV18: 47.887725 | DW18: 12 | DX18: 7.062633 | DY18: 12 | DZ18: 6.32205 | EA18: 12 | EB18: 42.86625 | EC18: 12 | ED18: 6.32205 | EE18: 12 | EF18: 7.06464 | EG18: 12 | EH18: 47.90133333 | EI18: 12 | EJ18: 7.06464 | EK18: 12 | EL18: 8.178525 | EM18: 12 | EN18: 55.45395833 | EO18: 12 | EP18: 8.178525 | EQ18: 12 | ER18: 7.35314625 | ES18: 12 | ET18: 49.85753125 | EU18: 12 | EV18: 7.35314625 | EW18: 12 | EX18: 8.09071875 | EY18: 12 | EZ18: 54.85859375 | FA18: 12 | FB18: 8.09071875 | FC18: 12 | FD18: 9.1067625 | FE18: 12 | FF18: 61.7478125 | FG18: 12 | FH18: 9.1067625 | FI18: 12 | FJ18: 8.296938 | FK18: 12 | FL18: 56.25685 | FM18: 12 | FN18: 8.296938 | FO18: 12 | FP18: 9.157941 | FQ18: 12 | FR18: 62.094825 | FS18: 12 | FT18: 9.157941 | FU18: 12 | FV18: 10.362141 | FW18: 12 | FX18: 70.259825 | FY18: 12 | FZ18: 10.362141 | GA18: 12 | GB18: 10.030986 | GC18: 12 | GD18: 68.01445 | GE18: 12 | GF18: 10.030986 | GG18: 12 | GH18: 10.916073 | GI18: 12 | GJ18: 74.015725 | GK18: 12 | GL18: 10.916073 | GM18: 12 | GN18: 12.144357 | GO18: 12 | GP18: 82.344025 | GQ18: 12 | GR18: 12.144357
A19: 13 | B19: 8.998958333 | C19: 13 | D19: 23.525488 | E19: 13 | F19: 7.844375 | G19: 13 | H19: 0 | I19: 13 | J19: 0 | K19: 13 | L19: 0 | M19: 13 | N19: 0 | O19: 13 | P19: 0 | Q19: 13 | R19: 0 | S19: 13 | T19: 5 | U19: 13 | V19: 3.782625 | W19: 13 | X19: 8.49928 | Y19: 13 | Z19: 4.339375 | AA19: 13 | AB19: 4.1628125 | AC19: 13 | AD19: 9.353533333 | AE19: 13 | AF19: 4.775520833 | AG19: 13 | AH19: 4.7018125 | AI19: 13 | AJ19: 10.56462667 | AK19: 13 | AL19: 5.393854167 | AM19: 13 | AN19: 4.660425 | AO19: 13 | AP19: 10.471632 | AQ19: 13 | AR19: 5.346375 | AS19: 13 | AT19: 5.064675 | AU19: 13 | AV19: 11.379952 | AW19: 13 | AX19: 5.810125 | AY19: 13 | AZ19: 5.619075 | BA19: 13 | BB19: 12.625648 | BC19: 13 | BD19: 6.446125 | BE19: 13 | BF19: 5.5180125 | BG19: 13 | BH19: 12.398568 | BI19: 13 | BJ19: 6.3301875 | BK19: 13 | BL19: 6.0204375 | BM19: 13 | BN19: 13.52748 | BO19: 13 | BP19: 6.9065625 | BQ19: 13 | BR19: 6.7076625 | BS19: 13 | BT19: 15.071624 | BU19: 13 | BV19: 7.6949375 | BW19: 13 | BX19: 4.822125 | BY19: 13 | BZ19: 10.83496 | CA19: 13 | CB19: 5.531875 | CC19: 13 | CD19: 5.21675 | CE19: 13 | CF19: 11.72165333 | CG19: 13 | CH19: 5.984583333 | CI19: 13 | CJ19: 5.726875 | CK19: 13 | CL19: 12.86786667 | CM19: 13 | CN19: 6.569791667 | CO19: 13 | CP19: 6.5142 | CQ19: 13 | CR19: 14.636928 | CS19: 13 | CT19: 7.473 | CU19: 13 | CV19: 7.212975 | CW19: 13 | CX19: 16.207024 | CY19: 13 | CZ19: 8.274625 | DA19: 13 | DB19: 8.23515 | DC19: 13 | DD19: 18.503776 | DE19: 13 | DF19: 9.44725 | DG19: 13 | DH19: 5.46315 | DI19: 13 | DJ19: 12.275296 | DK19: 13 | DL19: 6.26725 | DM19: 13 | DN19: 6.006 | DO19: 13 | DP19: 13.49504 | DQ19: 13 | DR19: 6.89 | DS19: 13 | DT19: 6.774075 | DU19: 13 | DV19: 15.220848 | DW19: 13 | DX19: 7.771125 | DY19: 13 | DZ19: 6.06375 | EA19: 13 | EB19: 13.6248 | EC19: 13 | ED19: 6.95625 | EE19: 13 | EF19: 6.776 | EG19: 13 | EH19: 15.22517333 | EI19: 13 | EJ19: 7.773333333 | EK19: 13 | EL19: 7.844375 | EM19: 13 | EN19: 17.62573333 | EO19: 13 | EP19: 8.998958333 | EQ19: 13 | ER19: 7.05271875 | ES19: 13 | ET19: 15.84694 | EU19: 13 | EV19: 8.09078125 | EW19: 13 | EX19: 7.76015625 | EY19: 13 | EZ19: 17.4365 | FA19: 13 | FB19: 8.90234375 | FC19: 13 | FD19: 8.7346875 | FE19: 13 | FF19: 19.6262 | FG19: 13 | FH19: 10.0203125 | FI19: 13 | FJ19: 7.95795 | FK19: 13 | FL19: 17.880928 | FM19: 13 | FN19: 9.12925 | FO19: 13 | FP19: 8.783775 | FQ19: 13 | FR19: 19.736496 | FS19: 13 | FT19: 10.076625 | FU19: 13 | FV19: 9.938775 | FW19: 13 | FX19: 22.331696 | FY19: 13 | FZ19: 11.401625 | GA19: 13 | GB19: 9.62115 | GC19: 13 | GD19: 21.618016 | GE19: 13 | GF19: 11.03725 | GG19: 13 | GH19: 10.470075 | GI19: 13 | GJ19: 23.525488 | GK19: 13 | GL19: 12.011125 | GM19: 13 | GN19: 11.648175 | GO19: 13 | GP19: 26.172592 | GQ19: 13 | GR19: 13.362625
A20: 14 | B20: 10.13045 | C20: 14 | D20: 17.471881 | E20: 14 | F20: 7.548258333 | G20: 14 | H20: 0 | I20: 14 | J20: 0 | K20: 14 | L20: 0 | M20: 14 | N20: 0 | O20: 14 | P20: 0 | Q20: 14 | R20: 0 | S20: 14 | T20: 5 | U20: 14 | V20: 3.639835 | W20: 14 | X20: 6.312235 | Y20: 14 | Z20: 4.88499 | AA20: 14 | AB20: 4.005670833 | AC20: 14 | AD20: 6.946670833 | AE20: 14 | AF20: 5.375975 | AG20: 14 | AH20: 4.524324167 | AI20: 14 | AJ20: 7.846124167 | AK20: 14 | AL20: 6.072055 | AM20: 14 | AN20: 4.484499 | AO20: 14 | AP20: 7.777059 | AQ20: 14 | AR20: 6.018606 | AS20: 14 | AT20: 4.873489 | AU20: 14 | AV20: 8.451649 | AW20: 14 | AX20: 6.540666 | AY20: 14 | AZ20: 5.406961 | BA20: 14 | BB20: 9.376801 | BC20: 14 | BD20: 7.256634 | BE20: 14 | BF20: 5.3097135 | BG20: 14 | BH20: 9.2081535 | BI20: 14 | BJ20: 7.126119 | BK20: 14 | BL20: 5.7931725 | BM20: 14 | BN20: 10.0465725 | BO20: 14 | BP20: 7.774965 | BQ20: 14 | BR20: 6.4544555 | BS20: 14 | BT20: 11.1933755 | BU20: 14 | BV20: 8.662467 | BW20: 14 | BX20: 4.640095 | BY20: 14 | BZ20: 8.046895 | CA20: 14 | CB20: 6.22743 | CC20: 14 | CD20: 5.019823333 | CE20: 14 | CF20: 8.705423333 | CG20: 14 | CH20: 6.73706 | CI20: 14 | CJ20: 5.510691667 | CK20: 14 | CL20: 9.556691667 | CM20: 14 | CN20: 7.39585 | CO20: 14 | CP20: 6.268296 | CQ20: 14 | CR20: 10.870536 | CS20: 14 | CT20: 8.412624 | CU20: 14 | CV20: 6.940693 | CW20: 14 | CX20: 12.036613 | CY20: 14 | CZ20: 9.315042 | DA20: 14 | DB20: 7.924282 | DC20: 14 | DD20: 13.742362 | DE20: 14 | DF20: 10.635108 | DG20: 14 | DH20: 5.256922 | DI20: 14 | DJ20: 9.116602 | DK20: 14 | DL20: 7.055268 | DM20: 14 | DN20: 5.77928 | DO20: 14 | DP20: 10.02248 | DQ20: 14 | DR20: 7.75632 | DS20: 14 | DT20: 6.518361 | DU20: 14 | DV20: 11.304201 | DW20: 14 | DX20: 8.748234 | DY20: 14 | DZ20: 5.83485 | EA20: 14 | EB20: 10.11885 | EC20: 14 | ED20: 7.8309 | EE20: 14 | EF20: 6.520213333 | EG20: 14 | EH20: 11.30741333 | EI20: 14 | EJ20: 8.75072 | EK20: 14 | EL20: 7.548258333 | EM20: 14 | EN20: 13.09025833 | EO20: 14 | EP20: 10.13045 | EQ20: 14 | ER20: 6.78648625 | ES20: 14 | ET20: 11.76918625 | EU20: 14 | EV20: 9.1080825 | EW20: 14 | EX20: 7.46721875 | EY20: 14 | EZ20: 12.94971875 | FA20: 14 | FB20: 10.0216875 | FC20: 14 | FD20: 8.4049625 | FE20: 14 | FF20: 14.5759625 | FG20: 14 | FH20: 11.280225 | FI20: 14 | FJ20: 7.657546 | FK20: 14 | FL20: 13.279786 | FM20: 14 | FN20: 10.277124 | FO20: 14 | FP20: 8.452197 | FQ20: 14 | FR20: 14.657877 | FS20: 14 | FT20: 11.343618 | FU20: 14 | FV20: 9.563597 | FW20: 14 | FX20: 16.585277 | FY20: 14 | FZ20: 12.835218 | GA20: 14 | GB20: 9.257962 | GC20: 14 | GD20: 16.055242 | GE20: 14 | GF20: 12.425028 | GG20: 14 | GH20: 10.074841 | GI20: 14 | GJ20: 17.471881 | GK20: 14 | GL20: 13.521354 | GM20: 14 | GN20: 11.208469 | GO20: 14 | GP20: 19.437829 | GQ20: 14 | GR20: 15.042786
A21: 15 | B21: 11.83515833 | C21: 15 | D21: 14.525756 | E21: 15 | F21: 7.282025 | G21: 15 | H21: 0 | I21: 15 | J21: 0 | K21: 15 | L21: 0 | M21: 15 | N21: 0 | O21: 15 | P21: 0 | Q21: 15 | R21: 0 | S21: 15 | T21: 5 | U21: 15 | V21: 3.511455 | W21: 15 | X21: 5.24786 | Y21: 15 | Z21: 5.707015 | AA21: 15 | AB21: 3.8643875 | AC21: 15 | AD21: 5.775316667 | AE21: 15 | AF21: 6.280620833 | AG21: 15 | AH21: 4.3647475 | AI21: 15 | AJ21: 6.523103333 | AK21: 15 | AL21: 7.093834167 | AM21: 15 | AN21: 4.326327 | AO21: 15 | AP21: 6.465684 | AQ21: 15 | AR21: 7.031391 | AS21: 15 | AT21: 4.701597 | AU21: 15 | AV21: 7.026524 | AW21: 15 | AX21: 7.641301 | AY21: 15 | AZ21: 5.216253 | BA21: 15 | BB21: 7.795676 | BC21: 15 | BD21: 8.477749 | BE21: 15 | BF21: 5.1224355 | BG21: 15 | BH21: 7.655466 | BI21: 15 | BJ21: 8.3252715 | BK21: 15 | BL21: 5.5888425 | BM21: 15 | BN21: 8.35251 | BO21: 15 | BP21: 9.0833025 | BQ21: 15 | BR21: 6.2268015 | BS21: 15 | BT21: 9.305938 | BU21: 15 | BV21: 10.1201495 | BW21: 15 | BX21: 4.476435 | BY21: 15 | BZ21: 6.69002 | CA21: 15 | CB21: 7.275355 | CC21: 15 | CD21: 4.84277 | CE21: 15 | CF21: 7.237506667 | CG21: 15 | CH21: 7.870743333 | CI21: 15 | CJ21: 5.316325 | CK21: 15 | CL21: 7.945233333 | CM21: 15 | CN21: 8.640391667 | CO21: 15 | CP21: 6.047208 | CQ21: 15 | CR21: 9.037536 | CS21: 15 | CT21: 9.828264 | CU21: 15 | CV21: 6.695889 | CW21: 15 | CX21: 10.006988 | CY21: 15 | CZ21: 10.882537 | DA21: 15 | DB21: 7.644786 | DC21: 15 | DD21: 11.425112 | DE21: 15 | DF21: 12.424738 | DG21: 15 | DH21: 5.071506 | DI21: 15 | DJ21: 7.579352 | DK21: 15 | DL21: 8.242498 | DM21: 15 | DN21: 5.57544 | DO21: 15 | DP21: 8.33248 | DQ21: 15 | DR21: 9.06152 | DS21: 15 | DT21: 6.288453 | DU21: 15 | DV21: 9.398076 | DW21: 15 | DX21: 10.220349 | DY21: 15 | DZ21: 5.62905 | EA21: 15 | EB21: 8.4126 | EC21: 15 | ED21: 9.14865 | EE21: 15 | EF21: 6.29024 | EG21: 15 | EH21: 9.400746667 | EI21: 15 | EJ21: 10.22325333 | EK21: 15 | EL21: 7.282025 | EM21: 15 | EN21: 10.88296667 | EO21: 15 | EP21: 11.83515833 | EQ21: 15 | ER21: 6.54712125 | ES21: 15 | ET21: 9.784655 | EU21: 15 | EV21: 10.64075125 | EW21: 15 | EX21: 7.20384375 | EY21: 15 | EZ21: 10.766125 | FA21: 15 | FB21: 11.70809375 | FC21: 15 | FD21: 8.1085125 | FE21: 15 | FF21: 12.11815 | FG21: 15 | FH21: 13.1784125 | FI21: 15 | FJ21: 7.387458 | FK21: 15 | FL21: 11.040536 | FM21: 15 | FN21: 12.006514 | FO21: 15 | FP21: 8.154081 | FQ21: 15 | FR21: 12.186252 | FS21: 15 | FT21: 13.252473 | FU21: 15 | FV21: 9.226281 | FW21: 15 | FX21: 13.788652 | FY21: 15 | FZ21: 14.995073 | GA21: 15 | GB21: 8.931426 | GC21: 15 | GD21: 13.347992 | GE21: 15 | GF21: 14.515858 | GG21: 15 | GH21: 9.719493 | GI21: 15 | GJ21: 14.525756 | GK21: 15 | GL21: 15.796669 | GM21: 15 | GN21: 10.813137 | GO21: 15 | GP21: 16.160204 | GQ21: 15 | GR21: 17.574121
A22: 16 | B22: 14.85880833 | C22: 16 | D22: 12.698252 | E22: 16 | F22: 7.042958333 | G22: 16 | H22: 0 | I22: 16 | J22: 0 | K22: 16 | L22: 0 | M22: 16 | N22: 0 | O22: 16 | P22: 0 | Q22: 16 | R22: 0 | S22: 16 | T22: 5 | U22: 16 | V22: 3.396175 | W22: 16 | X22: 4.58762 | Y22: 16 | Z22: 7.165045 | AA22: 16 | AB22: 3.737520833 | AC22: 16 | AD22: 5.048716667 | AE22: 16 | AF22: 7.885195833 | AG22: 16 | AH22: 4.221454167 | AI22: 16 | AJ22: 5.702423333 | AK22: 16 | AL22: 8.906169167 | AM22: 16 | AN22: 4.184295 | AO22: 16 | AP22: 5.652228 | AQ22: 16 | AR22: 8.827773 | AS22: 16 | AT22: 4.547245 | AU22: 16 | AV22: 6.142508 | AW22: 16 | AX22: 9.593503 | AY22: 16 | AZ22: 5.045005 | BA22: 16 | BB22: 6.814892 | BC22: 16 | BD22: 10.643647 | BE22: 16 | BF22: 4.9542675 | BG22: 16 | BH22: 6.692322 | BI22: 16 | BJ22: 10.4522145 | BK22: 16 | BL22: 5.4053625 | BM22: 16 | BN22: 7.30167 | BO22: 16 | BP22: 11.4039075 | BQ22: 16 | BR22: 6.0223775 | BS22: 16 | BT22: 8.135146 | BU22: 16 | BV22: 12.7056485 | BW22: 16 | BX22: 4.329475 | BY22: 16 | BZ22: 5.84834 | CA22: 16 | CB22: 9.134065 | CC22: 16 | CD22: 4.683783333 | CE22: 16 | CF22: 6.326946667 | CG22: 16 | CH22: 9.881563333 | CI22: 16 | CJ22: 5.141791667 | CK22: 16 | CL22: 6.945633333 | CM22: 16 | CN22: 10.84784167 | CO22: 16 | CP22: 5.84868 | CQ22: 16 | CR22: 7.900512 | CS22: 16 | CT22: 12.339192 | CU22: 16 | CV22: 6.476065 | CW22: 16 | CX22: 8.747996 | CY22: 16 | CZ22: 13.662811 | DA22: 16 | DB22: 7.39381 | DC22: 16 | DD22: 9.987704 | DE22: 16 | DF22: 15.599014 | DG22: 16 | DH22: 4.90501 | DI22: 16 | DJ22: 6.625784 | DK22: 16 | DL22: 10.348294 | DM22: 16 | DN22: 5.3924 | DO22: 16 | DP22: 7.28416 | DQ22: 16 | DR22: 11.37656 | DS22: 16 | DT22: 6.082005 | DU22: 16 | DV22: 8.215692 | DW22: 16 | DX22: 12.831447 | DY22: 16 | DZ22: 5.44425 | EA22: 16 | EB22: 7.3542 | EC22: 16 | ED22: 11.48595 | EE22: 16 | EF22: 6.083733333 | EG22: 16 | EH22: 8.218026667 | EI22: 16 | EJ22: 12.83509333 | EK22: 16 | EL22: 7.042958333 | EM22: 16 | EN22: 9.513766667 | EO22: 16 | EP22: 14.85880833 | EQ22: 16 | ER22: 6.33218125 | ES22: 16 | ET22: 8.553635 | EU22: 16 | EV22: 13.35925375 | EW22: 16 | EX22: 6.96734375 | EY22: 16 | EZ22: 9.411625 | FA22: 16 | FB22: 14.69928125 | FC22: 16 | FD22: 7.8423125 | FE22: 16 | FF22: 10.59355 | FG22: 16 | FH22: 16.5452375 | FI22: 16 | FJ22: 7.14493 | FK22: 16 | FL22: 9.651512 | FM22: 16 | FN22: 15.073942 | FO22: 16 | FP22: 7.886385 | FQ22: 16 | FR22: 10.653084 | FS22: 16 | FT22: 16.638219 | FU22: 16 | FV22: 8.923385 | FW22: 16 | FX22: 12.053884 | FY22: 16 | FZ22: 18.826019 | GA22: 16 | GB22: 8.63821 | GC22: 16 | GD22: 11.668664 | GE22: 16 | GF22: 18.224374 | GG22: 16 | GH22: 9.400405 | GI22: 16 | GJ22: 12.698252 | GK22: 16 | GL22: 19.832407 | GM22: 16 | GN22: 10.458145 | GO22: 16 | GP22: 14.127068 | GQ22: 16 | GR22: 22.063963
A23: 17 | B23: 22.96941667 | C23: 17 | D23: 11.423713 | E23: 17 | F23: 6.826983333 | G23: 17 | H23: 0 | I23: 17 | J23: 0 | K23: 17 | L23: 0 | M23: 17 | N23: 0 | O23: 17 | P23: 0 | Q23: 17 | R23: 0 | S23: 17 | T23: 5 | U23: 17 | V23: 3.29203 | W23: 17 | X23: 4.127155 | Y23: 17 | Z23: 11.07605 | AA23: 17 | AB23: 3.622908333 | AC23: 17 | AD23: 4.541970833 | AE23: 17 | AF23: 12.18929167 | AG23: 17 | AH23: 4.092001667 | AI23: 17 | AJ23: 5.130064167 | AK23: 17 | AL23: 13.76755833 | AM23: 17 | AN23: 4.055982 | AO23: 17 | AP23: 5.084907 | AQ23: 17 | AR23: 13.64637 | AS23: 17 | AT23: 4.407802 | AU23: 17 | AV23: 5.525977 | AW23: 17 | AX23: 14.83007 | AY23: 17 | AZ23: 4.890298 | BA23: 17 | BB23: 6.130873 | BC23: 17 | BD23: 16.45343 | BE23: 17 | BF23: 4.802343 | BG23: 17 | BH23: 6.0206055 | BI23: 17 | BJ23: 16.157505 | BK23: 17 | BL23: 5.239605 | BM23: 17 | BN23: 6.5687925 | BO23: 17 | BP23: 17.628675 | BQ23: 17 | BR23: 5.837699 | BS23: 17 | BT23: 7.3186115 | BU23: 17 | BV23: 19.640965 | BW23: 17 | BX23: 4.19671 | BY23: 17 | BZ23: 5.261335 | CA23: 17 | CB23: 14.11985 | CC23: 17 | CD23: 4.540153333 | CE23: 17 | CF23: 5.691903333 | CG23: 17 | CH23: 15.27536667 | CI23: 17 | CJ23: 4.984116667 | CK23: 17 | CL23: 6.248491667 | CM23: 17 | CN23: 16.76908333 | CO23: 17 | CP23: 5.669328 | CQ23: 17 | CR23: 7.107528 | CS23: 17 | CT23: 19.07448 | CU23: 17 | CV23: 6.277474 | CW23: 17 | CX23: 7.869949 | CY23: 17 | CZ23: 21.12059 | DA23: 17 | DB23: 7.167076 | DC23: 17 | DD23: 8.985226 | DE23: 17 | DF23: 24.11366 | DG23: 17 | DH23: 4.754596 | DI23: 17 | DJ23: 5.960746 | DK23: 17 | DL23: 15.99686 | DM23: 17 | DN23: 5.22704 | DO23: 17 | DP23: 6.55304 | DQ23: 17 | DR23: 17.5864 | DS23: 17 | DT23: 5.895498 | DU23: 17 | DV23: 7.391073 | DW23: 17 | DX23: 19.83543 | DY23: 17 | DZ23: 5.2773 | EA23: 17 | EB23: 6.61605 | EC23: 17 | ED23: 17.7555 | EE23: 17 | EF23: 5.897173333 | EG23: 17 | EH23: 7.393173333 | EI23: 17 | EJ23: 19.84106667 | EK23: 17 | EL23: 6.826983333 | EM23: 17 | EN23: 8.558858333 | EO23: 17 | EP23: 22.96941667 | EQ23: 17 | ER23: 6.1380025 | ES23: 17 | ET23: 7.69509625 | EU23: 17 | EV23: 20.6513375 | EW23: 17 | EX23: 6.7536875 | EY23: 17 | EZ23: 8.46696875 | FA23: 17 | FB23: 22.7228125 | FC23: 17 | FD23: 7.601825 | FE23: 17 | FF23: 9.5302625 | FG23: 17 | FH23: 25.576375 | FI23: 17 | FJ23: 6.925828 | FK23: 17 | FL23: 8.682778 | FM23: 17 | FN23: 23.30198 | FO23: 17 | FP23: 7.644546 | FQ23: 17 | FR23: 9.583821 | FS23: 17 | FT23: 25.72011 | FU23: 17 | FV23: 8.649746 | FW23: 17 | FX23: 10.844021 | FY23: 17 | FZ23: 29.10211 | GA23: 17 | GB23: 8.373316 | GC23: 17 | GD23: 10.497466 | GE23: 17 | GF23: 28.17206 | GG23: 17 | GH23: 9.112138 | GI23: 17 | GJ23: 11.423713 | GK23: 17 | GL23: 30.65783 | GM23: 17 | GN23: 10.137442 | GO23: 17 | GP23: 12.709117 | GQ23: 17 | GR23: 34.10747
A24: 18 | B24: 55.45395833 | C24: 18 | D24: 10.470075 | E24: 18 | F24: 6.628666667 | G24: 18 | H24: 0 | I24: 18 | J24: 0 | K24: 18 | L24: 0 | M24: 18 | N24: 0 | O24: 18 | P24: 0 | Q24: 18 | R24: 0 | S24: 18 | T24: 5 | U24: 18 | V24: 3.1964 | W24: 18 | X24: 3.782625 | Y24: 18 | Z24: 26.740375 | AA24: 18 | AB24: 3.517666667 | AC24: 18 | AD24: 4.1628125 | AE24: 18 | AF24: 29.42802083 | AG24: 18 | AH24: 3.973133333 | AI24: 18 | AJ24: 4.7018125 | AK24: 18 | AL24: 33.23835417 | AM24: 18 | AN24: 3.93816 | AO24: 18 | AP24: 4.660425 | AQ24: 18 | AR24: 32.945775 | AS24: 18 | AT24: 4.27976 | AU24: 18 | AV24: 5.064675 | AW24: 18 | AX24: 35.803525 | AY24: 18 | AZ24: 4.74824 | BA24: 18 | BB24: 5.619075 | BC24: 18 | BD24: 39.722725 | BE24: 18 | BF24: 4.66284 | BG24: 18 | BH24: 5.5180125 | BI24: 18 | BJ24: 39.0082875 | BK24: 18 | BL24: 5.0874 | BM24: 18 | BN24: 6.0204375 | BO24: 18 | BP24: 42.5600625 | BQ24: 18 | BR24: 5.66812 | BS24: 18 | BT24: 6.7076625 | BU24: 18 | BV24: 47.4182375 | BW24: 18 | BX24: 4.0748 | BY24: 18 | BZ24: 4.822125 | CA24: 18 | CB24: 34.088875 | CC24: 18 | CD24: 4.408266667 | CE24: 18 | CF24: 5.21675 | CG24: 18 | CH24: 36.87858333 | CI24: 18 | CJ24: 4.839333333 | CK24: 18 | CL24: 5.726875 | CM24: 18 | CN24: 40.48479167 | CO24: 18 | CP24: 5.50464 | CQ24: 18 | CR24: 6.5142 | CS24: 18 | CT24: 46.0506 | CU24: 18 | CV24: 6.09512 | CW24: 18 | CX24: 7.212975 | CY24: 18 | CZ24: 50.990425 | DA24: 18 | DB24: 6.95888 | DC24: 18 | DD24: 8.23515 | DE24: 18 | DF24: 58.21645 | DG24: 18 | DH24: 4.61648 | DI24: 18 | DJ24: 5.46315 | DK24: 18 | DL24: 38.62045 | DM24: 18 | DN24: 5.0752 | DO24: 18 | DP24: 6.006 | DQ24: 18 | DR24: 42.458 | DS24: 18 | DT24: 5.72424 | DU24: 18 | DV24: 6.774075 | DW24: 18 | DX24: 47.887725 | DY24: 18 | DZ24: 5.124 | EA24: 18 | EB24: 6.06375 | EC24: 18 | ED24: 42.86625 | EE24: 18 | EF24: 5.725866667 | EG24: 18 | EH24: 6.776 | EI24: 18 | EJ24: 47.90133333 | EK24: 18 | EL24: 6.628666667 | EM24: 18 | EN24: 7.844375 | EO24: 18 | EP24: 55.45395833 | EQ24: 18 | ER24: 5.9597 | ES24: 18 | ET24: 7.05271875 | EU24: 18 | EV24: 49.85753125 | EW24: 18 | EX24: 6.5575 | EY24: 18 | EZ24: 7.76015625 | FA24: 18 | FB24: 54.85859375 | FC24: 18 | FD24: 7.381 | FE24: 18 | FF24: 8.7346875 | FG24: 18 | FH24: 61.7478125 | FI24: 18 | FJ24: 6.72464 | FK24: 18 | FL24: 7.95795 | FM24: 18 | FN24: 56.25685 | FO24: 18 | FP24: 7.42248 | FQ24: 18 | FR24: 8.783775 | FS24: 18 | FT24: 62.094825 | FU24: 18 | FV24: 8.39848 | FW24: 18 | FX24: 9.938775 | FY24: 18 | FZ24: 70.259825 | GA24: 18 | GB24: 8.13008 | GC24: 18 | GD24: 9.62115 | GE24: 18 | GF24: 68.01445 | GG24: 18 | GH24: 8.84744 | GI24: 18 | GJ24: 10.470075 | GK24: 18 | GL24: 74.015725 | GM24: 18 | GN24: 9.84296 | GO24: 18 | GP24: 11.648175 | GQ24: 18 | GR24: 82.344025
A25: 19 | B25: 17.62573333 | C25: 19 | D25: 9.719493 | E25: 19 | F25: 6.44665 | G25: 19 | H25: 0 | I25: 19 | J25: 0 | K25: 19 | L25: 0 | M25: 19 | N25: 0 | O25: 19 | P25: 0 | Q25: 19 | R25: 0 | S25: 19 | T25: 5 | U25: 19 | V25: 3.10863 | W25: 19 | X25: 3.511455 | Y25: 19 | Z25: 8.49928 | AA25: 19 | AB25: 3.421075 | AC25: 19 | AD25: 3.8643875 | AE25: 19 | AF25: 9.353533333 | AG25: 19 | AH25: 3.864035 | AI25: 19 | AJ25: 4.3647475 | AK25: 19 | AL25: 10.56462667 | AM25: 19 | AN25: 3.830022 | AO25: 19 | AP25: 4.326327 | AQ25: 19 | AR25: 10.471632 | AS25: 19 | AT25: 4.162242 | AU25: 19 | AV25: 4.701597 | AW25: 19 | AX25: 11.379952 | AY25: 19 | AZ25: 4.617858 | BA25: 19 | BB25: 5.216253 | BC25: 19 | BD25: 12.625648 | BE25: 19 | BF25: 4.534803 | BG25: 19 | BH25: 5.1224355 | BI25: 19 | BJ25: 12.398568 | BK25: 19 | BL25: 4.947705 | BM25: 19 | BN25: 5.5888425 | BO25: 19 | BP25: 13.52748 | BQ25: 19 | BR25: 5.512479 | BS25: 19 | BT25: 6.2268015 | BU25: 19 | BV25: 15.071624 | BW25: 19 | BX25: 3.96291 | BY25: 19 | BZ25: 4.476435 | CA25: 19 | CB25: 10.83496 | CC25: 19 | CD25: 4.28722 | CE25: 19 | CF25: 4.84277 | CG25: 19 | CH25: 11.72165333 | CI25: 19 | CJ25: 4.70645 | CK25: 19 | CL25: 5.316325 | CM25: 19 | CN25: 12.86786667 | CO25: 19 | CP25: 5.353488 | CQ25: 19 | CR25: 6.047208 | CS25: 19 | CT25: 14.636928 | CU25: 19 | CV25: 5.927754 | CW25: 19 | CX25: 6.695889 | CY25: 19 | CZ25: 16.207024 | DA25: 19 | DB25: 6.767796 | DC25: 19 | DD25: 7.644786 | DE25: 19 | DF25: 18.503776 | DG25: 19 | DH25: 4.489716 | DI25: 19 | DJ25: 5.071506 | DK25: 19 | DL25: 12.275296 | DM25: 19 | DN25: 4.93584 | DO25: 19 | DP25: 5.57544 | DQ25: 19 | DR25: 13.49504 | DS25: 19 | DT25: 5.567058 | DU25: 19 | DV25: 6.288453 | DW25: 19 | DX25: 15.220848 | DY25: 19 | DZ25: 4.9833 | EA25: 19 | EB25: 5.62905 | EC25: 19 | ED25: 13.6248 | EE25: 19 | EF25: 5.56864 | EG25: 19 | EH25: 6.29024 | EI25: 19 | EJ25: 15.22517333 | EK25: 19 | EL25: 6.44665 | EM25: 19 | EN25: 7.282025 | EO25: 19 | EP25: 17.62573333 | EQ25: 19 | ER25: 5.7960525 | ES25: 19 | ET25: 6.54712125 | EU25: 19 | EV25: 15.84694 | EW25: 19 | EX25: 6.3774375 | EY25: 19 | EZ25: 7.20384375 | FA25: 19 | FB25: 17.4365 | FC25: 19 | FD25: 7.178325 | FE25: 19 | FF25: 8.1085125 | FG25: 19 | FH25: 19.6262 | FI25: 19 | FJ25: 6.539988 | FK25: 19 | FL25: 7.387458 | FM25: 19 | FN25: 17.880928 | FO25: 19 | FP25: 7.218666 | FQ25: 19 | FR25: 8.154081 | FS25: 19 | FT25: 19.736496 | FU25: 19 | FV25: 8.167866 | FW25: 19 | FX25: 9.226281 | FY25: 19 | FZ25: 22.331696 | GA25: 19 | GB25: 7.906836 | GC25: 19 | GD25: 8.931426 | GE25: 19 | GF25: 21.618016 | GG25: 19 | GH25: 8.604498 | GI25: 19 | GJ25: 9.719493 | GK25: 19 | GL25: 23.525488 | GM25: 19 | GN25: 9.572682 | GO25: 19 | GP25: 10.813137 | GQ25: 19 | GR25: 26.172592
A26: 20 | B26: 13.09025833 | C26: 20 | D26: 9.112138 | E26: 20 | F26: 6.279575 | G26: 20 | H26: 0 | I26: 20 | J26: 0 | K26: 20 | L26: 0 | M26: 20 | N26: 0 | O26: 20 | P26: 0 | Q26: 20 | R26: 0 | S26: 20 | T26: 5 | U26: 20 | V26: 3.028065 | W26: 20 | X26: 3.29203 | Y26: 20 | Z26: 6.312235 | AA26: 20 | AB26: 3.3324125 | AC26: 20 | AD26: 3.622908333 | AE26: 20 | AF26: 6.946670833 | AG26: 20 | AH26: 3.7638925 | AI26: 20 | AJ26: 4.092001667 | AK26: 20 | AL26: 7.846124167 | AM26: 20 | AN26: 3.730761 | AO26: 20 | AP26: 4.055982 | AQ26: 20 | AR26: 7.777059 | AS26: 20 | AT26: 4.054371 | AU26: 20 | AV26: 4.407802 | AW26: 20 | AX26: 8.451649 | AY26: 20 | AZ26: 4.498179 | BA26: 20 | BB26: 4.890298 | BC26: 20 | BD26: 9.376801 | BE26: 20 | BF26: 4.4172765 | BG26: 20 | BH26: 4.802343 | BI26: 20 | BJ26: 9.2081535 | BK26: 20 | BL26: 4.8194775 | BM26: 20 | BN26: 5.239605 | BO26: 20 | BP26: 10.0465725 | BQ26: 20 | BR26: 5.3696145 | BS26: 20 | BT26: 5.837699 | BU26: 20 | BV26: 11.1933755 | BW26: 20 | BX26: 3.860205 | BY26: 20 | BZ26: 4.19671 | CA26: 20 | CB26: 8.046895 | CC26: 20 | CD26: 4.17611 | CE26: 20 | CF26: 4.540153333 | CG26: 20 | CH26: 8.705423333 | CI26: 20 | CJ26: 4.584475 | CK26: 20 | CL26: 4.984116667 | CM26: 20 | CN26: 9.556691667 | CO26: 20 | CP26: 5.214744 | CQ26: 20 | CR26: 5.669328 | CS26: 20 | CT26: 10.870536 | CU26: 20 | CV26: 5.774127 | CW26: 20 | CX26: 6.277474 | CY26: 20 | CZ26: 12.036613 | DA26: 20 | DB26: 6.592398 | DC26: 20 | DD26: 7.167076 | DE26: 20 | DF26: 13.742362 | DG26: 20 | DH26: 4.373358 | DI26: 20 | DJ26: 4.754596 | DK26: 20 | DL26: 9.116602 | DM26: 20 | DN26: 4.80792 | DO26: 20 | DP26: 5.22704 | DQ26: 20 | DR26: 10.02248 | DS26: 20 | DT26: 5.422779 | DU26: 20 | DV26: 5.895498 | DW26: 20 | DX26: 11.304201 | DY26: 20 | DZ26: 4.85415 | EA26: 20 | EB26: 5.2773 | EC26: 20 | ED26: 10.11885 | EE26: 20 | EF26: 5.42432 | EG26: 20 | EH26: 5.897173333 | EI26: 20 | EJ26: 11.30741333 | EK26: 20 | EL26: 6.279575 | EM26: 20 | EN26: 6.826983333 | EO26: 20 | EP26: 13.09025833 | EQ26: 20 | ER26: 5.64583875 | ES26: 20 | ET26: 6.1380025 | EU26: 20 | EV26: 11.76918625 | EW26: 20 | EX26: 6.21215625 | EY26: 20 | EZ26: 6.7536875 | FA26: 20 | FB26: 12.94971875 | FC26: 20 | FD26: 6.9922875 | FE26: 20 | FF26: 7.601825 | FG26: 20 | FH26: 14.5759625 | FI26: 20 | FJ26: 6.370494 | FK26: 20 | FL26: 6.925828 | FM26: 20 | FN26: 13.279786 | FO26: 20 | FP26: 7.031583 | FQ26: 20 | FR26: 7.644546 | FS26: 20 | FT26: 14.657877 | FU26: 20 | FV26: 7.956183 | FW26: 20 | FX26: 8.649746 | FY26: 20 | FZ26: 16.585277 | GA26: 20 | GB26: 7.701918 | GC26: 20 | GD26: 8.373316 | GE26: 20 | GF26: 16.055242 | GG26: 20 | GH26: 8.381499 | GI26: 20 | GJ26: 9.112138 | GK26: 20 | GL26: 17.471881 | GM26: 20 | GN26: 9.324591 | GO26: 20 | GP26: 10.137442 | GQ26: 20 | GR26: 19.437829
A27: 21 | B27: 10.88296667 | C27: 21 | D27: 8.604498 | E27: 21 | F27: 6.124725 | G27: 21 | H27: 0 | I27: 21 | J27: 0 | K27: 21 | L27: 0 | M27: 21 | N27: 0 | O27: 21 | P27: 0 | Q27: 21 | R27: 0 | S27: 21 | T27: 5 | U27: 21 | V27: 2.953395 | W27: 21 | X27: 3.10863 | Y27: 21 | Z27: 5.24786 | AA27: 21 | AB27: 3.2502375 | AC27: 21 | AD27: 3.421075 | AE27: 21 | AF27: 5.775316667 | AG27: 21 | AH27: 3.6710775 | AI27: 21 | AJ27: 3.864035 | AK27: 21 | AL27: 6.523103333 | AM27: 21 | AN27: 3.638763 | AO27: 21 | AP27: 3.830022 | AQ27: 21 | AR27: 6.465684 | AS27: 21 | AT27: 3.954393 | AU27: 21 | AV27: 4.162242 | AW27: 21 | AX27: 7.026524 | AY27: 21 | AZ27: 4.387257 | BA27: 21 | BB27: 4.617858 | BC27: 21 | BD27: 7.795676 | BE27: 21 | BF27: 4.3083495 | BG27: 21 | BH27: 4.534803 | BI27: 21 | BJ27: 7.655466 | BK27: 21 | BL27: 4.7006325 | BM27: 21 | BN27: 4.947705 | BO27: 21 | BP27: 8.35251 | BQ27: 21 | BR27: 5.2372035 | BS27: 21 | BT27: 5.512479 | BU27: 21 | BV27: 9.305938 | BW27: 21 | BX27: 3.765015 | BY27: 21 | BZ27: 3.96291 | CA27: 21 | CB27: 6.69002 | CC27: 21 | CD27: 4.07313 | CE27: 21 | CF27: 4.28722 | CG27: 21 | CH27: 7.237506667 | CI27: 21 | CJ27: 4.471425 | CK27: 21 | CL27: 4.70645 | CM27: 21 | CN27: 7.945233333 | CO27: 21 | CP27: 5.086152 | CQ27: 21 | CR27: 5.353488 | CS27: 21 | CT27: 9.037536 | CU27: 21 | CV27: 5.631741 | CW27: 21 | CX27: 5.927754 | CY27: 21 | CZ27: 10.006988 | DA27: 21 | DB27: 6.429834 | DC27: 21 | DD27: 6.767796 | DE27: 21 | DF27: 11.425112 | DG27: 21 | DH27: 4.265514 | DI27: 21 | DJ27: 4.489716 | DK27: 21 | DL27: 7.579352 | DM27: 21 | DN27: 4.68936 | DO27: 21 | DP27: 4.93584 | DQ27: 21 | DR27: 8.33248 | DS27: 21 | DT27: 5.289057 | DU27: 21 | DV27: 5.567058 | DW27: 21 | DX27: 9.398076 | DY27: 21 | DZ27: 4.73445 | EA27: 21 | EB27: 4.9833 | EC27: 21 | ED27: 8.4126 | EE27: 21 | EF27: 5.29056 | EG27: 21 | EH27: 5.56864 | EI27: 21 | EJ27: 9.400746667 | EK27: 21 | EL27: 6.124725 | EM27: 21 | EN27: 6.44665 | EO27: 21 | EP27: 10.88296667 | EQ27: 21 | ER27: 5.50661625 | ES27: 21 | ET27: 5.7960525 | EU27: 21 | EV27: 9.784655 | EW27: 21 | EX27: 6.05896875 | EY27: 21 | EZ27: 6.3774375 | FA27: 21 | FB27: 10.766125 | FC27: 21 | FD27: 6.8198625 | FE27: 21 | FF27: 7.178325 | FG27: 21 | FH27: 12.11815 | FI27: 21 | FJ27: 6.213402 | FK27: 21 | FL27: 6.539988 | FM27: 21 | FN27: 11.040536 | FO27: 21 | FP27: 6.858189 | FQ27: 21 | FR27: 7.218666 | FS27: 21 | FT27: 12.186252 | FU27: 21 | FV27: 7.759989 | FW27: 21 | FX27: 8.167866 | FY27: 21 | FZ27: 13.788652 | GA27: 21 | GB27: 7.511994 | GC27: 21 | GD27: 7.906836 | GE27: 21 | GF27: 13.347992 | GG27: 21 | GH27: 8.174817 | GI27: 21 | GJ27: 8.604498 | GK27: 21 | GL27: 14.525756 | GM27: 21 | GN27: 9.094653 | GO27: 21 | GP27: 9.572682 | GQ27: 21 | GR27: 16.160204
A28: 22 | B28: 9.513766667 | C28: 22 | D28: 8.174817 | E28: 22 | F28: 5.980741667 | G28: 22 | H28: 0 | I28: 22 | J28: 0 | K28: 22 | L28: 0 | M28: 22 | N28: 0 | O28: 22 | P28: 0 | Q28: 22 | R28: 0 | S28: 22 | T28: 5 | U28: 22 | V28: 2.883965 | W28: 22 | X28: 2.953395 | Y28: 22 | Z28: 4.58762 | AA28: 22 | AB28: 3.173829167 | AC28: 22 | AD28: 3.2502375 | AE28: 22 | AF28: 5.048716667 | AG28: 22 | AH28: 3.584775833 | AI28: 22 | AJ28: 3.6710775 | AK28: 22 | AL28: 5.702423333 | AM28: 22 | AN28: 3.553221 | AO28: 22 | AP28: 3.638763 | AQ28: 22 | AR28: 5.652228 | AS28: 22 | AT28: 3.861431 | AU28: 22 | AV28: 3.954393 | AW28: 22 | AX28: 6.142508 | AY28: 22 | AZ28: 4.284119 | BA28: 22 | BB28: 4.387257 | BC28: 22 | BD28: 6.814892 | BE28: 22 | BF28: 4.2070665 | BG28: 22 | BH28: 4.3083495 | BI28: 22 | BJ28: 6.692322 | BK28: 22 | BL28: 4.5901275 | BM28: 22 | BN28: 4.7006325 | BO28: 22 | BP28: 7.30167 | BQ28: 22 | BR28: 5.1140845 | BS28: 22 | BT28: 5.2372035 | BU28: 22 | BV28: 8.135146 | BW28: 22 | BX28: 3.676505 | BY28: 22 | BZ28: 3.765015 | CA28: 22 | CB28: 5.84834 | CC28: 22 | CD28: 3.977376667 | CE28: 22 | CF28: 4.07313 | CG28: 22 | CH28: 6.326946667 | CI28: 22 | CJ28: 4.366308333 | CK28: 22 | CL28: 4.471425 | CM28: 22 | CN28: 6.945633333 | CO28: 22 | CP28: 4.966584 | CQ28: 22 | CR28: 5.086152 | CS28: 22 | CT28: 7.900512 | CU28: 22 | CV28: 5.499347 | CW28: 22 | CX28: 5.631741 | CY28: 22 | CZ28: 8.747996 | DA28: 22 | DB28: 6.278678 | DC28: 22 | DD28: 6.429834 | DE28: 22 | DF28: 9.987704 | DG28: 22 | DH28: 4.165238 | DI28: 22 | DJ28: 4.265514 | DK28: 22 | DL28: 6.625784 | DM28: 22 | DN28: 4.57912 | DO28: 22 | DP28: 4.68936 | DQ28: 22 | DR28: 7.28416 | DS28: 22 | DT28: 5.164719 | DU28: 22 | DV28: 5.289057 | DW28: 22 | DX28: 8.215692 | DY28: 22 | DZ28: 4.62315 | EA28: 22 | EB28: 4.73445 | EC28: 22 | ED28: 7.3542 | EE28: 22 | EF28: 5.166186667 | EG28: 22 | EH28: 5.29056 | EI28: 22 | EJ28: 8.218026667 | EK28: 22 | EL28: 5.980741667 | EM28: 22 | EN28: 6.124725 | EO28: 22 | EP28: 9.513766667 | EQ28: 22 | ER28: 5.37716375 | ES28: 22 | ET28: 5.50661625 | EU28: 22 | EV28: 8.553635 | EW28: 22 | EX28: 5.91653125 | EY28: 22 | EZ28: 6.05896875 | FA28: 22 | FB28: 9.411625 | FC28: 22 | FD28: 6.6595375 | FE28: 22 | FF28: 6.8198625 | FG28: 22 | FH28: 10.59355 | FI28: 22 | FJ28: 6.067334 | FK28: 22 | FL28: 6.213402 | FM28: 22 | FN28: 9.651512 | FO28: 22 | FP28: 6.696963 | FQ28: 22 | FR28: 6.858189 | FS28: 22 | FT28: 10.653084 | FU28: 22 | FV28: 7.577563 | FW28: 22 | FX28: 7.759989 | FY28: 22 | FZ28: 12.053884 | GA28: 22 | GB28: 7.335398 | GC28: 22 | GD28: 7.511994 | GE28: 22 | GF28: 11.668664 | GG28: 22 | GH28: 7.982639 | GI28: 22 | GJ28: 8.174817 | GK28: 22 | GL28: 12.698252 | GM28: 22 | GN28: 8.880851 | GO28: 22 | GP28: 9.094653 | GQ28: 22 | GR28: 14.127068
A29: 23 | B29: 8.558858333 | C29: 23 | D29: 7.803152 | E29: 23 | F29: 5.846266667 | G29: 23 | H29: 0 | I29: 23 | J29: 0 | K29: 23 | L29: 0 | M29: 23 | N29: 0 | O29: 23 | P29: 0 | Q29: 23 | R29: 0 | S29: 23 | T29: 5 | U29: 23 | V29: 2.81912 | W29: 23 | X29: 2.81912 | Y29: 23 | Z29: 4.127155 | AA29: 23 | AB29: 3.102466667 | AC29: 23 | AD29: 3.102466667 | AE29: 23 | AF29: 4.541970833 | AG29: 23 | AH29: 3.504173333 | AI29: 23 | AJ29: 3.504173333 | AK29: 23 | AL29: 5.130064167 | AM29: 23 | AN29: 3.473328 | AO29: 23 | AP29: 3.473328 | AQ29: 23 | AR29: 5.084907 | AS29: 23 | AT29: 3.774608 | AU29: 23 | AV29: 3.774608 | AW29: 23 | AX29: 5.525977 | AY29: 23 | AZ29: 4.187792 | BA29: 23 | BB29: 4.187792 | BC29: 23 | BD29: 6.130873 | BE29: 23 | BF29: 4.112472 | BG29: 23 | BH29: 4.112472 | BI29: 23 | BJ29: 6.0206055 | BK29: 23 | BL29: 4.48692 | BM29: 23 | BN29: 4.48692 | BO29: 23 | BP29: 6.5687925 | BQ29: 23 | BR29: 4.999096 | BS29: 23 | BT29: 4.999096 | BU29: 23 | BV29: 7.3186115 | BW29: 23 | BX29: 3.59384 | BY29: 23 | BZ29: 3.59384 | CA29: 23 | CB29: 5.261335 | CC29: 23 | CD29: 3.887946667 | CE29: 23 | CF29: 3.887946667 | CG29: 23 | CH29: 5.691903333 | CI29: 23 | CJ29: 4.268133333 | CK29: 23 | CL29: 4.268133333 | CM29: 23 | CN29: 6.248491667 | CO29: 23 | CP29: 4.854912 | CQ29: 23 | CR29: 4.854912 | CS29: 23 | CT29: 7.107528 | CU29: 23 | CV29: 5.375696 | CW29: 23 | CX29: 5.375696 | CY29: 23 | CZ29: 7.869949 | DA29: 23 | DB29: 6.137504 | DC29: 23 | DD29: 6.137504 | DE29: 23 | DF29: 8.985226 | DG29: 23 | DH29: 4.071584 | DI29: 23 | DJ29: 4.071584 | DK29: 23 | DL29: 5.960746 | DM29: 23 | DN29: 4.47616 | DO29: 23 | DP29: 4.47616 | DQ29: 23 | DR29: 6.55304 | DS29: 23 | DT29: 5.048592 | DU29: 23 | DV29: 5.048592 | DW29: 23 | DX29: 7.391073 | DY29: 23 | DZ29: 4.5192 | EA29: 23 | EB29: 4.5192 | EC29: 23 | ED29: 6.61605 | EE29: 23 | EF29: 5.050026667 | EG29: 23 | EH29: 5.050026667 | EI29: 23 | EJ29: 7.393173333 | EK29: 23 | EL29: 5.846266667 | EM29: 23 | EN29: 5.846266667 | EO29: 23 | EP29: 8.558858333 | EQ29: 23 | ER29: 5.25626 | ES29: 23 | ET29: 5.25626 | EU29: 23 | EV29: 7.69509625 | EW29: 23 | EX29: 5.7835 | EY29: 23 | EZ29: 5.7835 | FA29: 23 | FB29: 8.46696875 | FC29: 23 | FD29: 6.5098 | FE29: 23 | FF29: 6.5098 | FG29: 23 | FH29: 9.5302625 | FI29: 23 | FJ29: 5.930912 | FK29: 23 | FL29: 5.930912 | FM29: 23 | FN29: 8.682778 | FO29: 23 | FP29: 6.546384 | FQ29: 23 | FR29: 6.546384 | FS29: 23 | FT29: 9.583821 | FU29: 23 | FV29: 7.407184 | FW29: 23 | FX29: 7.407184 | FY29: 23 | FZ29: 10.844021 | GA29: 23 | GB29: 7.170464 | GC29: 23 | GD29: 7.170464 | GE29: 23 | GF29: 10.497466 | GG29: 23 | GH29: 7.803152 | GI29: 23 | GJ29: 7.803152 | GK29: 23 | GL29: 11.423713 | GM29: 23 | GN29: 8.681168 | GO29: 23 | GP29: 8.681168 | GQ29: 23 | GR29: 12.709117
A30: 24 | B30: 7.844375 | C30: 24 | D30: 7.634543 | E30: 24 | F30: 5.719941667 | G30: 24 | H30: 0 | I30: 24 | J30: 0 | K30: 24 | L30: 0 | M30: 24 | N30: 0 | O30: 24 | P30: 0 | Q30: 24 | R30: 0 | S30: 24 | T30: 5 | U30: 24 | V30: 2.758205 | W30: 24 | X30: 2.758205 | Y30: 24 | Z30: 3.782625 | AA30: 24 | AB30: 3.035429167 | AC30: 24 | AD30: 3.035429167 | AE30: 24 | AF30: 4.1628125 | AG30: 24 | AH30: 3.428455833 | AI30: 24 | AJ30: 3.428455833 | AK30: 24 | AL30: 4.7018125 | AM30: 24 | AN30: 3.398277 | AO30: 24 | AP30: 3.398277 | AQ30: 24 | AR30: 4.660425 | AS30: 24 | AT30: 3.693047 | AU30: 24 | AV30: 3.693047 | AW30: 24 | AX30: 5.064675 | AY30: 24 | AZ30: 4.097303 | BA30: 24 | BB30: 4.097303 | BC30: 24 | BD30: 5.619075 | BE30: 24 | BF30: 4.0236105 | BG30: 24 | BH30: 4.0236105 | BI30: 24 | BJ30: 5.5180125 | BK30: 24 | BL30: 4.3899675 | BM30: 24 | BN30: 4.3899675 | BO30: 24 | BP30: 6.0204375 | BQ30: 24 | BR30: 4.8910765 | BS30: 24 | BT30: 4.8910765 | BU30: 24 | BV30: 6.7076625 | BW30: 24 | BX30: 3.516185 | BY30: 24 | BZ30: 3.516185 | CA30: 24 | CB30: 4.822125 | CC30: 24 | CD30: 3.803936667 | CE30: 24 | CF30: 3.803936667 | CG30: 24 | CH30: 5.21675 | CI30: 24 | CJ30: 4.175908333 | CK30: 24 | CL30: 4.175908333 | CM30: 24 | CN30: 5.726875 | CO30: 24 | CP30: 4.750008 | CQ30: 24 | CR30: 4.750008 | CS30: 24 | CT30: 6.5142 | CU30: 24 | CV30: 5.259539 | CW30: 24 | CX30: 5.259539 | CY30: 24 | CZ30: 7.212975 | DA30: 24 | DB30: 6.004886 | DC30: 24 | DD30: 6.004886 | DE30: 24 | DF30: 8.23515 | DG30: 24 | DH30: 3.983606 | DI30: 24 | DJ30: 3.983606 | DK30: 24 | DL30: 5.46315 | DM30: 24 | DN30: 4.37944 | DO30: 24 | DP30: 4.37944 | DQ30: 24 | DR30: 6.006 | DS30: 24 | DT30: 4.939503 | DU30: 24 | DV30: 4.939503 | DW30: 24 | DX30: 6.774075 | DY30: 24 | DZ30: 4.42155 | EA30: 24 | EB30: 4.42155 | EC30: 24 | ED30: 6.06375 | EE30: 24 | EF30: 4.940906667 | EG30: 24 | EH30: 4.940906667 | EI30: 24 | EJ30: 6.776 | EK30: 24 | EL30: 5.719941667 | EM30: 24 | EN30: 5.719941667 | EO30: 24 | EP30: 7.844375 | EQ30: 24 | ER30: 5.14268375 | ES30: 24 | ET30: 5.14268375 | EU30: 24 | EV30: 7.05271875 | EW30: 24 | EX30: 5.65853125 | EY30: 24 | EZ30: 5.65853125 | FA30: 24 | FB30: 7.76015625 | FC30: 24 | FD30: 6.3691375 | FE30: 24 | FF30: 6.3691375 | FG30: 24 | FH30: 8.7346875 | FI30: 24 | FJ30: 5.802758 | FK30: 24 | FL30: 5.802758 | FM30: 24 | FN30: 7.95795 | FO30: 24 | FP30: 6.404931 | FQ30: 24 | FR30: 6.404931 | FS30: 24 | FT30: 8.783775 | FU30: 24 | FV30: 7.247131 | FW30: 24 | FX30: 7.247131 | FY30: 24 | FZ30: 9.938775 | GA30: 24 | GB30: 7.015526 | GC30: 24 | GD30: 7.015526 | GE30: 24 | GF30: 9.62115 | GG30: 24 | GH30: 7.634543 | GI30: 24 | GJ30: 7.634543 | GK30: 24 | GL30: 10.470075 | GM30: 24 | GN30: 8.493587 | GO30: 24 | GP30: 8.493587 | GQ30: 24 | GR30: 11.648175
A31: 25 | B31: 0 | C31: 25 | D31: 0 | E31: 25 | F31: 0 | G31: 25 | H31: 0 | I31: 25 | J31: 0 | K31: 25 | L31: 0 | M31: 25 | N31: 0 | O31: 25 | P31: 0 | Q31: 25 | R31: 0 | S31: 25 | T31: 5 | U31: 25 | V31: 0 | W31: 25 | X31: 0 | Y31: 25 | Z31: 0 | AA31: 25 | AB31: 0 | AC31: 25 | AD31: 0 | AE31: 25 | AF31: 0 | AG31: 25 | AH31: 0 | AI31: 25 | AJ31: 0 | AK31: 25 | AL31: 0 | AM31: 25 | AN31: 0 | AO31: 25 | AP31: 0 | AQ31: 25 | AR31: 0 | AS31: 25 | AT31: 0 | AU31: 25 | AV31: 0 | AW31: 25 | AX31: 0 | AY31: 25 | AZ31: 0 | BA31: 25 | BB31: 0 | BC31: 25 | BD31: 0 | BE31: 25 | BF31: 0 | BG31: 25 | BH31: 0 | BI31: 25 | BJ31: 0 | BK31: 25 | BL31: 0 | BM31: 25 | BN31: 0 | BO31: 25 | BP31: 0 | BQ31: 25 | BR31: 0 | BS31: 25 | BT31: 0 | BU31: 25 | BV31: 0 | BW31: 25 | BX31: 0 | BY31: 25 | BZ31: 0 | CA31: 25 | CB31: 0 | CC31: 25 | CD31: 0 | CE31: 25 | CF31: 0 | CG31: 25 | CH31: 0 | CI31: 25 | CJ31: 0 | CK31: 25 | CL31: 0 | CM31: 25 | CN31: 0 | CO31: 25 | CP31: 0 | CQ31: 25 | CR31: 0 | CS31: 25 | CT31: 0 | CU31: 25 | CV31: 0 | CW31: 25 | CX31: 0 | CY31: 25 | CZ31: 0 | DA31: 25 | DB31: 0 | DC31: 25 | DD31: 0 | DE31: 25 | DF31: 0 | DG31: 25 | DH31: 0 | DI31: 25 | DJ31: 0 | DK31: 25 | DL31: 0 | DM31: 25 | DN31: 0 | DO31: 25 | DP31: 0 | DQ31: 25 | DR31: 0 | DS31: 25 | DT31: 0 | DU31: 25 | DV31: 0 | DW31: 25 | DX31: 0 | DY31: 25 | DZ31: 0 | EA31: 25 | EB31: 0 | EC31: 25 | ED31: 0 | EE31: 25 | EF31: 0 | EG31: 25 | EH31: 0 | EI31: 25 | EJ31: 0 | EK31: 25 | EL31: 0 | EM31: 25 | EN31: 0 | EO31: 25 | EP31: 0 | EQ31: 25 | ER31: 0 | ES31: 25 | ET31: 0 | EU31: 25 | EV31: 0 | EW31: 25 | EX31: 0 | EY31: 25 | EZ31: 0 | FA31: 25 | FB31: 0 | FC31: 25 | FD31: 0 | FE31: 25 | FF31: 0 | FG31: 25 | FH31: 0 | FI31: 25 | FJ31: 0 | FK31: 25 | FL31: 0 | FM31: 25 | FN31: 0 | FO31: 25 | FP31: 0 | FQ31: 25 | FR31: 0 | FS31: 25 | FT31: 0 | FU31: 25 | FV31: 0 | FW31: 25 | FX31: 0 | FY31: 25 | FZ31: 0 | GA31: 25 | GB31: 0 | GC31: 25 | GD31: 0 | GE31: 25 | GF31: 0 | GG31: 25 | GH31: 0 | GI31: 25 | GJ31: 0 | GK31: 25 | GL31: 0 | GM31: 25 | GN31: 0 | GO31: 25 | GP31: 0 | GQ31: 25 | GR31: 0
A32: 26 | B32: 0 | C32: 26 | D32: 0 | E32: 26 | F32: 0 | G32: 26 | H32: 0 | I32: 26 | J32: 0 | K32: 26 | L32: 0 | M32: 26 | N32: 0 | O32: 26 | P32: 0 | Q32: 26 | R32: 0 | S32: 26 | T32: 5 | U32: 26 | V32: 0 | W32: 26 | X32: 0 | Y32: 26 | Z32: 0 | AA32: 26 | AB32: 0 | AC32: 26 | AD32: 0 | AE32: 26 | AF32: 0 | AG32: 26 | AH32: 0 | AI32: 26 | AJ32: 0 | AK32: 26 | AL32: 0 | AM32: 26 | AN32: 0 | AO32: 26 | AP32: 0 | AQ32: 26 | AR32: 0 | AS32: 26 | AT32: 0 | AU32: 26 | AV32: 0 | AW32: 26 | AX32: 0 | AY32: 26 | AZ32: 0 | BA32: 26 | BB32: 0 | BC32: 26 | BD32: 0 | BE32: 26 | BF32: 0 | BG32: 26 | BH32: 0 | BI32: 26 | BJ32: 0 | BK32: 26 | BL32: 0 | BM32: 26 | BN32: 0 | BO32: 26 | BP32: 0 | BQ32: 26 | BR32: 0 | BS32: 26 | BT32: 0 | BU32: 26 | BV32: 0 | BW32: 26 | BX32: 0 | BY32: 26 | BZ32: 0 | CA32: 26 | CB32: 0 | CC32: 26 | CD32: 0 | CE32: 26 | CF32: 0 | CG32: 26 | CH32: 0 | CI32: 26 | CJ32: 0 | CK32: 26 | CL32: 0 | CM32: 26 | CN32: 0 | CO32: 26 | CP32: 0 | CQ32: 26 | CR32: 0 | CS32: 26 | CT32: 0 | CU32: 26 | CV32: 0 | CW32: 26 | CX32: 0 | CY32: 26 | CZ32: 0 | DA32: 26 | DB32: 0 | DC32: 26 | DD32: 0 | DE32: 26 | DF32: 0 | DG32: 26 | DH32: 0 | DI32: 26 | DJ32: 0 | DK32: 26 | DL32: 0 | DM32: 26 | DN32: 0 | DO32: 26 | DP32: 0 | DQ32: 26 | DR32: 0 | DS32: 26 | DT32: 0 | DU32: 26 | DV32: 0 | DW32: 26 | DX32: 0 | DY32: 26 | DZ32: 0 | EA32: 26 | EB32: 0 | EC32: 26 | ED32: 0 | EE32: 26 | EF32: 0 | EG32: 26 | EH32: 0 | EI32: 26 | EJ32: 0 | EK32: 26 | EL32: 0 | EM32: 26 | EN32: 0 | EO32: 26 | EP32: 0 | EQ32: 26 | ER32: 0 | ES32: 26 | ET32: 0 | EU32: 26 | EV32: 0 | EW32: 26 | EX32: 0 | EY32: 26 | EZ32: 0 | FA32: 26 | FB32: 0 | FC32: 26 | FD32: 0 | FE32: 26 | FF32: 0 | FG32: 26 | FH32: 0 | FI32: 26 | FJ32: 0 | FK32: 26 | FL32: 0 | FM32: 26 | FN32: 0 | FO32: 26 | FP32: 0 | FQ32: 26 | FR32: 0 | FS32: 26 | FT32: 0 | FU32: 26 | FV32: 0 | FW32: 26 | FX32: 0 | FY32: 26 | FZ32: 0 | GA32: 26 | GB32: 0 | GC32: 26 | GD32: 0 | GE32: 26 | GF32: 0 | GG32: 26 | GH32: 0 | GI32: 26 | GJ32: 0 | GK32: 26 | GL32: 0 | GM32: 26 | GN32: 0 | GO32: 26 | GP32: 0 | GQ32: 26 | GR32: 0
A33: 27 | B33: 0 | C33: 27 | D33: 0 | E33: 27 | F33: 0 | G33: 27 | H33: 0 | I33: 27 | J33: 0 | K33: 27 | L33: 0 | M33: 27 | N33: 0 | O33: 27 | P33: 0 | Q33: 27 | R33: 0 | S33: 27 | T33: 5 | U33: 27 | V33: 0 | W33: 27 | X33: 0 | Y33: 27 | Z33: 0 | AA33: 27 | AB33: 0 | AC33: 27 | AD33: 0 | AE33: 27 | AF33: 0 | AG33: 27 | AH33: 0 | AI33: 27 | AJ33: 0 | AK33: 27 | AL33: 0 | AM33: 27 | AN33: 0 | AO33: 27 | AP33: 0 | AQ33: 27 | AR33: 0 | AS33: 27 | AT33: 0 | AU33: 27 | AV33: 0 | AW33: 27 | AX33: 0 | AY33: 27 | AZ33: 0 | BA33: 27 | BB33: 0 | BC33: 27 | BD33: 0 | BE33: 27 | BF33: 0 | BG33: 27 | BH33: 0 | BI33: 27 | BJ33: 0 | BK33: 27 | BL33: 0 | BM33: 27 | BN33: 0 | BO33: 27 | BP33: 0 | BQ33: 27 | BR33: 0 | BS33: 27 | BT33: 0 | BU33: 27 | BV33: 0 | BW33: 27 | BX33: 0 | BY33: 27 | BZ33: 0 | CA33: 27 | CB33: 0 | CC33: 27 | CD33: 0 | CE33: 27 | CF33: 0 | CG33: 27 | CH33: 0 | CI33: 27 | CJ33: 0 | CK33: 27 | CL33: 0 | CM33: 27 | CN33: 0 | CO33: 27 | CP33: 0 | CQ33: 27 | CR33: 0 | CS33: 27 | CT33: 0 | CU33: 27 | CV33: 0 | CW33: 27 | CX33: 0 | CY33: 27 | CZ33: 0 | DA33: 27 | DB33: 0 | DC33: 27 | DD33: 0 | DE33: 27 | DF33: 0 | DG33: 27 | DH33: 0 | DI33: 27 | DJ33: 0 | DK33: 27 | DL33: 0 | DM33: 27 | DN33: 0 | DO33: 27 | DP33: 0 | DQ33: 27 | DR33: 0 | DS33: 27 | DT33: 0 | DU33: 27 | DV33: 0 | DW33: 27 | DX33: 0 | DY33: 27 | DZ33: 0 | EA33: 27 | EB33: 0 | EC33: 27 | ED33: 0 | EE33: 27 | EF33: 0 | EG33: 27 | EH33: 0 | EI33: 27 | EJ33: 0 | EK33: 27 | EL33: 0 | EM33: 27 | EN33: 0 | EO33: 27 | EP33: 0 | EQ33: 27 | ER33: 0 | ES33: 27 | ET33: 0 | EU33: 27 | EV33: 0 | EW33: 27 | EX33: 0 | EY33: 27 | EZ33: 0 | FA33: 27 | FB33: 0 | FC33: 27 | FD33: 0 | FE33: 27 | FF33: 0 | FG33: 27 | FH33: 0 | FI33: 27 | FJ33: 0 | FK33: 27 | FL33: 0 | FM33: 27 | FN33: 0 | FO33: 27 | FP33: 0 | FQ33: 27 | FR33: 0 | FS33: 27 | FT33: 0 | FU33: 27 | FV33: 0 | FW33: 27 | FX33: 0 | FY33: 27 | FZ33: 0 | GA33: 27 | GB33: 0 | GC33: 27 | GD33: 0 | GE33: 27 | GF33: 0 | GG33: 27 | GH33: 0 | GI33: 27 | GJ33: 0 | GK33: 27 | GL33: 0 | GM33: 27 | GN33: 0 | GO33: 27 | GP33: 0 | GQ33: 27 | GR33: 0
A34: 28 | B34: 0 | C34: 28 | D34: 0 | E34: 28 | F34: 0 | G34: 28 | H34: 0 | I34: 28 | J34: 0 | K34: 28 | L34: 0 | M34: 28 | N34: 0 | O34: 28 | P34: 0 | Q34: 28 | R34: 0 | S34: 28 | T34: 5 | U34: 28 | V34: 0 | W34: 28 | X34: 0 | Y34: 28 | Z34: 0 | AA34: 28 | AB34: 0 | AC34: 28 | AD34: 0 | AE34: 28 | AF34: 0 | AG34: 28 | AH34: 0 | AI34: 28 | AJ34: 0 | AK34: 28 | AL34: 0 | AM34: 28 | AN34: 0 | AO34: 28 | AP34: 0 | AQ34: 28 | AR34: 0 | AS34: 28 | AT34: 0 | AU34: 28 | AV34: 0 | AW34: 28 | AX34: 0 | AY34: 28 | AZ34: 0 | BA34: 28 | BB34: 0 | BC34: 28 | BD34: 0 | BE34: 28 | BF34: 0 | BG34: 28 | BH34: 0 | BI34: 28 | BJ34: 0 | BK34: 28 | BL34: 0 | BM34: 28 | BN34: 0 | BO34: 28 | BP34: 0 | BQ34: 28 | BR34: 0 | BS34: 28 | BT34: 0 | BU34: 28 | BV34: 0 | BW34: 28 | BX34: 0 | BY34: 28 | BZ34: 0 | CA34: 28 | CB34: 0 | CC34: 28 | CD34: 0 | CE34: 28 | CF34: 0 | CG34: 28 | CH34: 0 | CI34: 28 | CJ34: 0 | CK34: 28 | CL34: 0 | CM34: 28 | CN34: 0 | CO34: 28 | CP34: 0 | CQ34: 28 | CR34: 0 | CS34: 28 | CT34: 0 | CU34: 28 | CV34: 0 | CW34: 28 | CX34: 0 | CY34: 28 | CZ34: 0 | DA34: 28 | DB34: 0 | DC34: 28 | DD34: 0 | DE34: 28 | DF34: 0 | DG34: 28 | DH34: 0 | DI34: 28 | DJ34: 0 | DK34: 28 | DL34: 0 | DM34: 28 | DN34: 0 | DO34: 28 | DP34: 0 | DQ34: 28 | DR34: 0 | DS34: 28 | DT34: 0 | DU34: 28 | DV34: 0 | DW34: 28 | DX34: 0 | DY34: 28 | DZ34: 0 | EA34: 28 | EB34: 0 | EC34: 28 | ED34: 0 | EE34: 28 | EF34: 0 | EG34: 28 | EH34: 0 | EI34: 28 | EJ34: 0 | EK34: 28 | EL34: 0 | EM34: 28 | EN34: 0 | EO34: 28 | EP34: 0 | EQ34: 28 | ER34: 0 | ES34: 28 | ET34: 0 | EU34: 28 | EV34: 0 | EW34: 28 | EX34: 0 | EY34: 28 | EZ34: 0 | FA34: 28 | FB34: 0 | FC34: 28 | FD34: 0 | FE34: 28 | FF34: 0 | FG34: 28 | FH34: 0 | FI34: 28 | FJ34: 0 | FK34: 28 | FL34: 0 | FM34: 28 | FN34: 0 | FO34: 28 | FP34: 0 | FQ34: 28 | FR34: 0 | FS34: 28 | FT34: 0 | FU34: 28 | FV34: 0 | FW34: 28 | FX34: 0 | FY34: 28 | FZ34: 0 | GA34: 28 | GB34: 0 | GC34: 28 | GD34: 0 | GE34: 28 | GF34: 0 | GG34: 28 | GH34: 0 | GI34: 28 | GJ34: 0 | GK34: 28 | GL34: 0 | GM34: 28 | GN34: 0 | GO34: 28 | GP34: 0 | GQ34: 28 | GR34: 0
A35: 29 | B35: 0 | C35: 29 | D35: 0 | E35: 29 | F35: 0 | G35: 29 | H35: 0 | I35: 29 | J35: 0 | K35: 29 | L35: 0 | M35: 29 | N35: 0 | O35: 29 | P35: 0 | Q35: 29 | R35: 0 | S35: 29 | T35: 5 | U35: 29 | V35: 0 | W35: 29 | X35: 0 | Y35: 29 | Z35: 0 | AA35: 29 | AB35: 0 | AC35: 29 | AD35: 0 | AE35: 29 | AF35: 0 | AG35: 29 | AH35: 0 | AI35: 29 | AJ35: 0 | AK35: 29 | AL35: 0 | AM35: 29 | AN35: 0 | AO35: 29 | AP35: 0 | AQ35: 29 | AR35: 0 | AS35: 29 | AT35: 0 | AU35: 29 | AV35: 0 | AW35: 29 | AX35: 0 | AY35: 29 | AZ35: 0 | BA35: 29 | BB35: 0 | BC35: 29 | BD35: 0 | BE35: 29 | BF35: 0 | BG35: 29 | BH35: 0 | BI35: 29 | BJ35: 0 | BK35: 29 | BL35: 0 | BM35: 29 | BN35: 0 | BO35: 29 | BP35: 0 | BQ35: 29 | BR35: 0 | BS35: 29 | BT35: 0 | BU35: 29 | BV35: 0 | BW35: 29 | BX35: 0 | BY35: 29 | BZ35: 0 | CA35: 29 | CB35: 0 | CC35: 29 | CD35: 0 | CE35: 29 | CF35: 0 | CG35: 29 | CH35: 0 | CI35: 29 | CJ35: 0 | CK35: 29 | CL35: 0 | CM35: 29 | CN35: 0 | CO35: 29 | CP35: 0 | CQ35: 29 | CR35: 0 | CS35: 29 | CT35: 0 | CU35: 29 | CV35: 0 | CW35: 29 | CX35: 0 | CY35: 29 | CZ35: 0 | DA35: 29 | DB35: 0 | DC35: 29 | DD35: 0 | DE35: 29 | DF35: 0 | DG35: 29 | DH35: 0 | DI35: 29 | DJ35: 0 | DK35: 29 | DL35: 0 | DM35: 29 | DN35: 0 | DO35: 29 | DP35: 0 | DQ35: 29 | DR35: 0 | DS35: 29 | DT35: 0 | DU35: 29 | DV35: 0 | DW35: 29 | DX35: 0 | DY35: 29 | DZ35: 0 | EA35: 29 | EB35: 0 | EC35: 29 | ED35: 0 | EE35: 29 | EF35: 0 | EG35: 29 | EH35: 0 | EI35: 29 | EJ35: 0 | EK35: 29 | EL35: 0 | EM35: 29 | EN35: 0 | EO35: 29 | EP35: 0 | EQ35: 29 | ER35: 0 | ES35: 29 | ET35: 0 | EU35: 29 | EV35: 0 | EW35: 29 | EX35: 0 | EY35: 29 | EZ35: 0 | FA35: 29 | FB35: 0 | FC35: 29 | FD35: 0 | FE35: 29 | FF35: 0 | FG35: 29 | FH35: 0 | FI35: 29 | FJ35: 0 | FK35: 29 | FL35: 0 | FM35: 29 | FN35: 0 | FO35: 29 | FP35: 0 | FQ35: 29 | FR35: 0 | FS35: 29 | FT35: 0 | FU35: 29 | FV35: 0 | FW35: 29 | FX35: 0 | FY35: 29 | FZ35: 0 | GA35: 29 | GB35: 0 | GC35: 29 | GD35: 0 | GE35: 29 | GF35: 0 | GG35: 29 | GH35: 0 | GI35: 29 | GJ35: 0 | GK35: 29 | GL35: 0 | GM35: 29 | GN35: 0 | GO35: 29 | GP35: 0 | GQ35: 29 | GR35: 0
A36: 30 | B36: 0 | C36: 30 | D36: 0 | E36: 30 | F36: 0 | G36: 30 | H36: 0 | I36: 30 | J36: 0 | K36: 30 | L36: 0 | M36: 30 | N36: 0 | O36: 30 | P36: 0 | Q36: 30 | R36: 0 | S36: 30 | T36: 5 | U36: 30 | V36: 0 | W36: 30 | X36: 0 | Y36: 30 | Z36: 0 | AA36: 30 | AB36: 0 | AC36: 30 | AD36: 0 | AE36: 30 | AF36: 0 | AG36: 30 | AH36: 0 | AI36: 30 | AJ36: 0 | AK36: 30 | AL36: 0 | AM36: 30 | AN36: 0 | AO36: 30 | AP36: 0 | AQ36: 30 | AR36: 0 | AS36: 30 | AT36: 0 | AU36: 30 | AV36: 0 | AW36: 30 | AX36: 0 | AY36: 30 | AZ36: 0 | BA36: 30 | BB36: 0 | BC36: 30 | BD36: 0 | BE36: 30 | BF36: 0 | BG36: 30 | BH36: 0 | BI36: 30 | BJ36: 0 | BK36: 30 | BL36: 0 | BM36: 30 | BN36: 0 | BO36: 30 | BP36: 0 | BQ36: 30 | BR36: 0 | BS36: 30 | BT36: 0 | BU36: 30 | BV36: 0 | BW36: 30 | BX36: 0 | BY36: 30 | BZ36: 0 | CA36: 30 | CB36: 0 | CC36: 30 | CD36: 0 | CE36: 30 | CF36: 0 | CG36: 30 | CH36: 0 | CI36: 30 | CJ36: 0 | CK36: 30 | CL36: 0 | CM36: 30 | CN36: 0 | CO36: 30 | CP36: 0 | CQ36: 30 | CR36: 0 | CS36: 30 | CT36: 0 | CU36: 30 | CV36: 0 | CW36: 30 | CX36: 0 | CY36: 30 | CZ36: 0 | DA36: 30 | DB36: 0 | DC36: 30 | DD36: 0 | DE36: 30 | DF36: 0 | DG36: 30 | DH36: 0 | DI36: 30 | DJ36: 0 | DK36: 30 | DL36: 0 | DM36: 30 | DN36: 0 | DO36: 30 | DP36: 0 | DQ36: 30 | DR36: 0 | DS36: 30 | DT36: 0 | DU36: 30 | DV36: 0 | DW36: 30 | DX36: 0 | DY36: 30 | DZ36: 0 | EA36: 30 | EB36: 0 | EC36: 30 | ED36: 0 | EE36: 30 | EF36: 0 | EG36: 30 | EH36: 0 | EI36: 30 | EJ36: 0 | EK36: 30 | EL36: 0 | EM36: 30 | EN36: 0 | EO36: 30 | EP36: 0 | EQ36: 30 | ER36: 0 | ES36: 30 | ET36: 0 | EU36: 30 | EV36: 0 | EW36: 30 | EX36: 0 | EY36: 30 | EZ36: 0 | FA36: 30 | FB36: 0 | FC36: 30 | FD36: 0 | FE36: 30 | FF36: 0 | FG36: 30 | FH36: 0 | FI36: 30 | FJ36: 0 | FK36: 30 | FL36: 0 | FM36: 30 | FN36: 0 | FO36: 30 | FP36: 0 | FQ36: 30 | FR36: 0 | FS36: 30 | FT36: 0 | FU36: 30 | FV36: 0 | FW36: 30 | FX36: 0 | FY36: 30 | FZ36: 0 | GA36: 30 | GB36: 0 | GC36: 30 | GD36: 0 | GE36: 30 | GF36: 0 | GG36: 30 | GH36: 0 | GI36: 30 | GJ36: 0 | GK36: 30 | GL36: 0 | GM36: 30 | GN36: 0 | GO36: 30 | GP36: 0 | GQ36: 30 | GR36: 0
A37: 31 | B37: 0 | C37: 31 | D37: 0 | E37: 31 | F37: 0 | G37: 31 | H37: 0 | I37: 31 | J37: 0 | K37: 31 | L37: 0 | M37: 31 | N37: 0 | O37: 31 | P37: 0 | Q37: 31 | R37: 0 | S37: 31 | T37: 5 | U37: 31 | V37: 0 | W37: 31 | X37: 0 | Y37: 31 | Z37: 0 | AA37: 31 | AB37: 0 | AC37: 31 | AD37: 0 | AE37: 31 | AF37: 0 | AG37: 31 | AH37: 0 | AI37: 31 | AJ37: 0 | AK37: 31 | AL37: 0 | AM37: 31 | AN37: 0 | AO37: 31 | AP37: 0 | AQ37: 31 | AR37: 0 | AS37: 31 | AT37: 0 | AU37: 31 | AV37: 0 | AW37: 31 | AX37: 0 | AY37: 31 | AZ37: 0 | BA37: 31 | BB37: 0 | BC37: 31 | BD37: 0 | BE37: 31 | BF37: 0 | BG37: 31 | BH37: 0 | BI37: 31 | BJ37: 0 | BK37: 31 | BL37: 0 | BM37: 31 | BN37: 0 | BO37: 31 | BP37: 0 | BQ37: 31 | BR37: 0 | BS37: 31 | BT37: 0 | BU37: 31 | BV37: 0 | BW37: 31 | BX37: 0 | BY37: 31 | BZ37: 0 | CA37: 31 | CB37: 0 | CC37: 31 | CD37: 0 | CE37: 31 | CF37: 0 | CG37: 31 | CH37: 0 | CI37: 31 | CJ37: 0 | CK37: 31 | CL37: 0 | CM37: 31 | CN37: 0 | CO37: 31 | CP37: 0 | CQ37: 31 | CR37: 0 | CS37: 31 | CT37: 0 | CU37: 31 | CV37: 0 | CW37: 31 | CX37: 0 | CY37: 31 | CZ37: 0 | DA37: 31 | DB37: 0 | DC37: 31 | DD37: 0 | DE37: 31 | DF37: 0 | DG37: 31 | DH37: 0 | DI37: 31 | DJ37: 0 | DK37: 31 | DL37: 0 | DM37: 31 | DN37: 0 | DO37: 31 | DP37: 0 | DQ37: 31 | DR37: 0 | DS37: 31 | DT37: 0 | DU37: 31 | DV37: 0 | DW37: 31 | DX37: 0 | DY37: 31 | DZ37: 0 | EA37: 31 | EB37: 0 | EC37: 31 | ED37: 0 | EE37: 31 | EF37: 0 | EG37: 31 | EH37: 0 | EI37: 31 | EJ37: 0 | EK37: 31 | EL37: 0 | EM37: 31 | EN37: 0 | EO37: 31 | EP37: 0 | EQ37: 31 | ER37: 0 | ES37: 31 | ET37: 0 | EU37: 31 | EV37: 0 | EW37: 31 | EX37: 0 | EY37: 31 | EZ37: 0 | FA37: 31 | FB37: 0 | FC37: 31 | FD37: 0 | FE37: 31 | FF37: 0 | FG37: 31 | FH37: 0 | FI37: 31 | FJ37: 0 | FK37: 31 | FL37: 0 | FM37: 31 | FN37: 0 | FO37: 31 | FP37: 0 | FQ37: 31 | FR37: 0 | FS37: 31 | FT37: 0 | FU37: 31 | FV37: 0 | FW37: 31 | FX37: 0 | FY37: 31 | FZ37: 0 | GA37: 31 | GB37: 0 | GC37: 31 | GD37: 0 | GE37: 31 | GF37: 0 | GG37: 31 | GH37: 0 | GI37: 31 | GJ37: 0 | GK37: 31 | GL37: 0 | GM37: 31 | GN37: 0 | GO37: 31 | GP37: 0 | GQ37: 31 | GR37: 0
A38: 32 | B38: 0 | C38: 32 | D38: 0 | E38: 32 | F38: 0 | G38: 32 | H38: 0 | I38: 32 | J38: 0 | K38: 32 | L38: 0 | M38: 32 | N38: 0 | O38: 32 | P38: 0 | Q38: 32 | R38: 0 | S38: 32 | T38: 5 | U38: 32 | V38: 0 | W38: 32 | X38: 0 | Y38: 32 | Z38: 0 | AA38: 32 | AB38: 0 | AC38: 32 | AD38: 0 | AE38: 32 | AF38: 0 | AG38: 32 | AH38: 0 | AI38: 32 | AJ38: 0 | AK38: 32 | AL38: 0 | AM38: 32 | AN38: 0 | AO38: 32 | AP38: 0 | AQ38: 32 | AR38: 0 | AS38: 32 | AT38: 0 | AU38: 32 | AV38: 0 | AW38: 32 | AX38: 0 | AY38: 32 | AZ38: 0 | BA38: 32 | BB38: 0 | BC38: 32 | BD38: 0 | BE38: 32 | BF38: 0 | BG38: 32 | BH38: 0 | BI38: 32 | BJ38: 0 | BK38: 32 | BL38: 0 | BM38: 32 | BN38: 0 | BO38: 32 | BP38: 0 | BQ38: 32 | BR38: 0 | BS38: 32 | BT38: 0 | BU38: 32 | BV38: 0 | BW38: 32 | BX38: 0 | BY38: 32 | BZ38: 0 | CA38: 32 | CB38: 0 | CC38: 32 | CD38: 0 | CE38: 32 | CF38: 0 | CG38: 32 | CH38: 0 | CI38: 32 | CJ38: 0 | CK38: 32 | CL38: 0 | CM38: 32 | CN38: 0 | CO38: 32 | CP38: 0 | CQ38: 32 | CR38: 0 | CS38: 32 | CT38: 0 | CU38: 32 | CV38: 0 | CW38: 32 | CX38: 0 | CY38: 32 | CZ38: 0 | DA38: 32 | DB38: 0 | DC38: 32 | DD38: 0 | DE38: 32 | DF38: 0 | DG38: 32 | DH38: 0 | DI38: 32 | DJ38: 0 | DK38: 32 | DL38: 0 | DM38: 32 | DN38: 0 | DO38: 32 | DP38: 0 | DQ38: 32 | DR38: 0 | DS38: 32 | DT38: 0 | DU38: 32 | DV38: 0 | DW38: 32 | DX38: 0 | DY38: 32 | DZ38: 0 | EA38: 32 | EB38: 0 | EC38: 32 | ED38: 0 | EE38: 32 | EF38: 0 | EG38: 32 | EH38: 0 | EI38: 32 | EJ38: 0 | EK38: 32 | EL38: 0 | EM38: 32 | EN38: 0 | EO38: 32 | EP38: 0 | EQ38: 32 | ER38: 0 | ES38: 32 | ET38: 0 | EU38: 32 | EV38: 0 | EW38: 32 | EX38: 0 | EY38: 32 | EZ38: 0 | FA38: 32 | FB38: 0 | FC38: 32 | FD38: 0 | FE38: 32 | FF38: 0 | FG38: 32 | FH38: 0 | FI38: 32 | FJ38: 0 | FK38: 32 | FL38: 0 | FM38: 32 | FN38: 0 | FO38: 32 | FP38: 0 | FQ38: 32 | FR38: 0 | FS38: 32 | FT38: 0 | FU38: 32 | FV38: 0 | FW38: 32 | FX38: 0 | FY38: 32 | FZ38: 0 | GA38: 32 | GB38: 0 | GC38: 32 | GD38: 0 | GE38: 32 | GF38: 0 | GG38: 32 | GH38: 0 | GI38: 32 | GJ38: 0 | GK38: 32 | GL38: 0 | GM38: 32 | GN38: 0 | GO38: 32 | GP38: 0 | GQ38: 32 | GR38: 0
A39: 33 | B39: 0 | C39: 33 | D39: 0 | E39: 33 | F39: 0 | G39: 33 | H39: 0 | I39: 33 | J39: 0 | K39: 33 | L39: 0 | M39: 33 | N39: 0 | O39: 33 | P39: 0 | Q39: 33 | R39: 0 | S39: 33 | T39: 5 | U39: 33 | V39: 0 | W39: 33 | X39: 0 | Y39: 33 | Z39: 0 | AA39: 33 | AB39: 0 | AC39: 33 | AD39: 0 | AE39: 33 | AF39: 0 | AG39: 33 | AH39: 0 | AI39: 33 | AJ39: 0 | AK39: 33 | AL39: 0 | AM39: 33 | AN39: 0 | AO39: 33 | AP39: 0 | AQ39: 33 | AR39: 0 | AS39: 33 | AT39: 0 | AU39: 33 | AV39: 0 | AW39: 33 | AX39: 0 | AY39: 33 | AZ39: 0 | BA39: 33 | BB39: 0 | BC39: 33 | BD39: 0 | BE39: 33 | BF39: 0 | BG39: 33 | BH39: 0 | BI39: 33 | BJ39: 0 | BK39: 33 | BL39: 0 | BM39: 33 | BN39: 0 | BO39: 33 | BP39: 0 | BQ39: 33 | BR39: 0 | BS39: 33 | BT39: 0 | BU39: 33 | BV39: 0 | BW39: 33 | BX39: 0 | BY39: 33 | BZ39: 0 | CA39: 33 | CB39: 0 | CC39: 33 | CD39: 0 | CE39: 33 | CF39: 0 | CG39: 33 | CH39: 0 | CI39: 33 | CJ39: 0 | CK39: 33 | CL39: 0 | CM39: 33 | CN39: 0 | CO39: 33 | CP39: 0 | CQ39: 33 | CR39: 0 | CS39: 33 | CT39: 0 | CU39: 33 | CV39: 0 | CW39: 33 | CX39: 0 | CY39: 33 | CZ39: 0 | DA39: 33 | DB39: 0 | DC39: 33 | DD39: 0 | DE39: 33 | DF39: 0 | DG39: 33 | DH39: 0 | DI39: 33 | DJ39: 0 | DK39: 33 | DL39: 0 | DM39: 33 | DN39: 0 | DO39: 33 | DP39: 0 | DQ39: 33 | DR39: 0 | DS39: 33 | DT39: 0 | DU39: 33 | DV39: 0 | DW39: 33 | DX39: 0 | DY39: 33 | DZ39: 0 | EA39: 33 | EB39: 0 | EC39: 33 | ED39: 0 | EE39: 33 | EF39: 0 | EG39: 33 | EH39: 0 | EI39: 33 | EJ39: 0 | EK39: 33 | EL39: 0 | EM39: 33 | EN39: 0 | EO39: 33 | EP39: 0 | EQ39: 33 | ER39: 0 | ES39: 33 | ET39: 0 | EU39: 33 | EV39: 0 | EW39: 33 | EX39: 0 | EY39: 33 | EZ39: 0 | FA39: 33 | FB39: 0 | FC39: 33 | FD39: 0 | FE39: 33 | FF39: 0 | FG39: 33 | FH39: 0 | FI39: 33 | FJ39: 0 | FK39: 33 | FL39: 0 | FM39: 33 | FN39: 0 | FO39: 33 | FP39: 0 | FQ39: 33 | FR39: 0 | FS39: 33 | FT39: 0 | FU39: 33 | FV39: 0 | FW39: 33 | FX39: 0 | FY39: 33 | FZ39: 0 | GA39: 33 | GB39: 0 | GC39: 33 | GD39: 0 | GE39: 33 | GF39: 0 | GG39: 33 | GH39: 0 | GI39: 33 | GJ39: 0 | GK39: 33 | GL39: 0 | GM39: 33 | GN39: 0 | GO39: 33 | GP39: 0 | GQ39: 33 | GR39: 0
A40: 34 | B40: 0 | C40: 34 | D40: 0 | E40: 34 | F40: 0 | G40: 34 | H40: 0 | I40: 34 | J40: 0 | K40: 34 | L40: 0 | M40: 34 | N40: 0 | O40: 34 | P40: 0 | Q40: 34 | R40: 0 | S40: 34 | T40: 5 | U40: 34 | V40: 0 | W40: 34 | X40: 0 | Y40: 34 | Z40: 0 | AA40: 34 | AB40: 0 | AC40: 34 | AD40: 0 | AE40: 34 | AF40: 0 | AG40: 34 | AH40: 0 | AI40: 34 | AJ40: 0 | AK40: 34 | AL40: 0 | AM40: 34 | AN40: 0 | AO40: 34 | AP40: 0 | AQ40: 34 | AR40: 0 | AS40: 34 | AT40: 0 | AU40: 34 | AV40: 0 | AW40: 34 | AX40: 0 | AY40: 34 | AZ40: 0 | BA40: 34 | BB40: 0 | BC40: 34 | BD40: 0 | BE40: 34 | BF40: 0 | BG40: 34 | BH40: 0 | BI40: 34 | BJ40: 0 | BK40: 34 | BL40: 0 | BM40: 34 | BN40: 0 | BO40: 34 | BP40: 0 | BQ40: 34 | BR40: 0 | BS40: 34 | BT40: 0 | BU40: 34 | BV40: 0 | BW40: 34 | BX40: 0 | BY40: 34 | BZ40: 0 | CA40: 34 | CB40: 0 | CC40: 34 | CD40: 0 | CE40: 34 | CF40: 0 | CG40: 34 | CH40: 0 | CI40: 34 | CJ40: 0 | CK40: 34 | CL40: 0 | CM40: 34 | CN40: 0 | CO40: 34 | CP40: 0 | CQ40: 34 | CR40: 0 | CS40: 34 | CT40: 0 | CU40: 34 | CV40: 0 | CW40: 34 | CX40: 0 | CY40: 34 | CZ40: 0 | DA40: 34 | DB40: 0 | DC40: 34 | DD40: 0 | DE40: 34 | DF40: 0 | DG40: 34 | DH40: 0 | DI40: 34 | DJ40: 0 | DK40: 34 | DL40: 0 | DM40: 34 | DN40: 0 | DO40: 34 | DP40: 0 | DQ40: 34 | DR40: 0 | DS40: 34 | DT40: 0 | DU40: 34 | DV40: 0 | DW40: 34 | DX40: 0 | DY40: 34 | DZ40: 0 | EA40: 34 | EB40: 0 | EC40: 34 | ED40: 0 | EE40: 34 | EF40: 0 | EG40: 34 | EH40: 0 | EI40: 34 | EJ40: 0 | EK40: 34 | EL40: 0 | EM40: 34 | EN40: 0 | EO40: 34 | EP40: 0 | EQ40: 34 | ER40: 0 | ES40: 34 | ET40: 0 | EU40: 34 | EV40: 0 | EW40: 34 | EX40: 0 | EY40: 34 | EZ40: 0 | FA40: 34 | FB40: 0 | FC40: 34 | FD40: 0 | FE40: 34 | FF40: 0 | FG40: 34 | FH40: 0 | FI40: 34 | FJ40: 0 | FK40: 34 | FL40: 0 | FM40: 34 | FN40: 0 | FO40: 34 | FP40: 0 | FQ40: 34 | FR40: 0 | FS40: 34 | FT40: 0 | FU40: 34 | FV40: 0 | FW40: 34 | FX40: 0 | FY40: 34 | FZ40: 0 | GA40: 34 | GB40: 0 | GC40: 34 | GD40: 0 | GE40: 34 | GF40: 0 | GG40: 34 | GH40: 0 | GI40: 34 | GJ40: 0 | GK40: 34 | GL40: 0 | GM40: 34 | GN40: 0 | GO40: 34 | GP40: 0 | GQ40: 34 | GR40: 0
A41: 35 | B41: 0 | C41: 35 | D41: 0 | E41: 35 | F41: 0 | G41: 35 | H41: 0 | I41: 35 | J41: 0 | K41: 35 | L41: 0 | M41: 35 | N41: 0 | O41: 35 | P41: 0 | Q41: 35 | R41: 0 | S41: 35 | T41: 5 | U41: 35 | V41: 0 | W41: 35 | X41: 0 | Y41: 35 | Z41: 0 | AA41: 35 | AB41: 0 | AC41: 35 | AD41: 0 | AE41: 35 | AF41: 0 | AG41: 35 | AH41: 0 | AI41: 35 | AJ41: 0 | AK41: 35 | AL41: 0 | AM41: 35 | AN41: 0 | AO41: 35 | AP41: 0 | AQ41: 35 | AR41: 0 | AS41: 35 | AT41: 0 | AU41: 35 | AV41: 0 | AW41: 35 | AX41: 0 | AY41: 35 | AZ41: 0 | BA41: 35 | BB41: 0 | BC41: 35 | BD41: 0 | BE41: 35 | BF41: 0 | BG41: 35 | BH41: 0 | BI41: 35 | BJ41: 0 | BK41: 35 | BL41: 0 | BM41: 35 | BN41: 0 | BO41: 35 | BP41: 0 | BQ41: 35 | BR41: 0 | BS41: 35 | BT41: 0 | BU41: 35 | BV41: 0 | BW41: 35 | BX41: 0 | BY41: 35 | BZ41: 0 | CA41: 35 | CB41: 0 | CC41: 35 | CD41: 0 | CE41: 35 | CF41: 0 | CG41: 35 | CH41: 0 | CI41: 35 | CJ41: 0 | CK41: 35 | CL41: 0 | CM41: 35 | CN41: 0 | CO41: 35 | CP41: 0 | CQ41: 35 | CR41: 0 | CS41: 35 | CT41: 0 | CU41: 35 | CV41: 0 | CW41: 35 | CX41: 0 | CY41: 35 | CZ41: 0 | DA41: 35 | DB41: 0 | DC41: 35 | DD41: 0 | DE41: 35 | DF41: 0 | DG41: 35 | DH41: 0 | DI41: 35 | DJ41: 0 | DK41: 35 | DL41: 0 | DM41: 35 | DN41: 0 | DO41: 35 | DP41: 0 | DQ41: 35 | DR41: 0 | DS41: 35 | DT41: 0 | DU41: 35 | DV41: 0 | DW41: 35 | DX41: 0 | DY41: 35 | DZ41: 0 | EA41: 35 | EB41: 0 | EC41: 35 | ED41: 0 | EE41: 35 | EF41: 0 | EG41: 35 | EH41: 0 | EI41: 35 | EJ41: 0 | EK41: 35 | EL41: 0 | EM41: 35 | EN41: 0 | EO41: 35 | EP41: 0 | EQ41: 35 | ER41: 0 | ES41: 35 | ET41: 0 | EU41: 35 | EV41: 0 | EW41: 35 | EX41: 0 | EY41: 35 | EZ41: 0 | FA41: 35 | FB41: 0 | FC41: 35 | FD41: 0 | FE41: 35 | FF41: 0 | FG41: 35 | FH41: 0 | FI41: 35 | FJ41: 0 | FK41: 35 | FL41: 0 | FM41: 35 | FN41: 0 | FO41: 35 | FP41: 0 | FQ41: 35 | FR41: 0 | FS41: 35 | FT41: 0 | FU41: 35 | FV41: 0 | FW41: 35 | FX41: 0 | FY41: 35 | FZ41: 0 | GA41: 35 | GB41: 0 | GC41: 35 | GD41: 0 | GE41: 35 | GF41: 0 | GG41: 35 | GH41: 0 | GI41: 35 | GJ41: 0 | GK41: 35 | GL41: 0 | GM41: 35 | GN41: 0 | GO41: 35 | GP41: 0 | GQ41: 35 | GR41: 0
A42: 36 | B42: 0 | C42: 36 | D42: 0 | E42: 36 | F42: 0 | G42: 36 | H42: 0 | I42: 36 | J42: 0 | K42: 36 | L42: 0 | M42: 36 | N42: 0 | O42: 36 | P42: 0 | Q42: 36 | R42: 0 | S42: 36 | T42: 5 | U42: 36 | V42: 0 | W42: 36 | X42: 0 | Y42: 36 | Z42: 0 | AA42: 36 | AB42: 0 | AC42: 36 | AD42: 0 | AE42: 36 | AF42: 0 | AG42: 36 | AH42: 0 | AI42: 36 | AJ42: 0 | AK42: 36 | AL42: 0 | AM42: 36 | AN42: 0 | AO42: 36 | AP42: 0 | AQ42: 36 | AR42: 0 | AS42: 36 | AT42: 0 | AU42: 36 | AV42: 0 | AW42: 36 | AX42: 0 | AY42: 36 | AZ42: 0 | BA42: 36 | BB42: 0 | BC42: 36 | BD42: 0 | BE42: 36 | BF42: 0 | BG42: 36 | BH42: 0 | BI42: 36 | BJ42: 0 | BK42: 36 | BL42: 0 | BM42: 36 | BN42: 0 | BO42: 36 | BP42: 0 | BQ42: 36 | BR42: 0 | BS42: 36 | BT42: 0 | BU42: 36 | BV42: 0 | BW42: 36 | BX42: 0 | BY42: 36 | BZ42: 0 | CA42: 36 | CB42: 0 | CC42: 36 | CD42: 0 | CE42: 36 | CF42: 0 | CG42: 36 | CH42: 0 | CI42: 36 | CJ42: 0 | CK42: 36 | CL42: 0 | CM42: 36 | CN42: 0 | CO42: 36 | CP42: 0 | CQ42: 36 | CR42: 0 | CS42: 36 | CT42: 0 | CU42: 36 | CV42: 0 | CW42: 36 | CX42: 0 | CY42: 36 | CZ42: 0 | DA42: 36 | DB42: 0 | DC42: 36 | DD42: 0 | DE42: 36 | DF42: 0 | DG42: 36 | DH42: 0 | DI42: 36 | DJ42: 0 | DK42: 36 | DL42: 0 | DM42: 36 | DN42: 0 | DO42: 36 | DP42: 0 | DQ42: 36 | DR42: 0 | DS42: 36 | DT42: 0 | DU42: 36 | DV42: 0 | DW42: 36 | DX42: 0 | DY42: 36 | DZ42: 0 | EA42: 36 | EB42: 0 | EC42: 36 | ED42: 0 | EE42: 36 | EF42: 0 | EG42: 36 | EH42: 0 | EI42: 36 | EJ42: 0 | EK42: 36 | EL42: 0 | EM42: 36 | EN42: 0 | EO42: 36 | EP42: 0 | EQ42: 36 | ER42: 0 | ES42: 36 | ET42: 0 | EU42: 36 | EV42: 0 | EW42: 36 | EX42: 0 | EY42: 36 | EZ42: 0 | FA42: 36 | FB42: 0 | FC42: 36 | FD42: 0 | FE42: 36 | FF42: 0 | FG42: 36 | FH42: 0 | FI42: 36 | FJ42: 0 | FK42: 36 | FL42: 0 | FM42: 36 | FN42: 0 | FO42: 36 | FP42: 0 | FQ42: 36 | FR42: 0 | FS42: 36 | FT42: 0 | FU42: 36 | FV42: 0 | FW42: 36 | FX42: 0 | FY42: 36 | FZ42: 0 | GA42: 36 | GB42: 0 | GC42: 36 | GD42: 0 | GE42: 36 | GF42: 0 | GG42: 36 | GH42: 0 | GI42: 36 | GJ42: 0 | GK42: 36 | GL42: 0 | GM42: 36 | GN42: 0 | GO42: 36 | GP42: 0 | GQ42: 36 | GR42: 0
A43: 37 | B43: 0 | C43: 37 | D43: 0 | E43: 37 | F43: 0 | G43: 37 | H43: 0 | I43: 37 | J43: 0 | K43: 37 | L43: 0 | M43: 37 | N43: 0 | O43: 37 | P43: 0 | Q43: 37 | R43: 0 | S43: 37 | T43: 5 | U43: 37 | V43: 0 | W43: 37 | X43: 0 | Y43: 37 | Z43: 0 | AA43: 37 | AB43: 0 | AC43: 37 | AD43: 0 | AE43: 37 | AF43: 0 | AG43: 37 | AH43: 0 | AI43: 37 | AJ43: 0 | AK43: 37 | AL43: 0 | AM43: 37 | AN43: 0 | AO43: 37 | AP43: 0 | AQ43: 37 | AR43: 0 | AS43: 37 | AT43: 0 | AU43: 37 | AV43: 0 | AW43: 37 | AX43: 0 | AY43: 37 | AZ43: 0 | BA43: 37 | BB43: 0 | BC43: 37 | BD43: 0 | BE43: 37 | BF43: 0 | BG43: 37 | BH43: 0 | BI43: 37 | BJ43: 0 | BK43: 37 | BL43: 0 | BM43: 37 | BN43: 0 | BO43: 37 | BP43: 0 | BQ43: 37 | BR43: 0 | BS43: 37 | BT43: 0 | BU43: 37 | BV43: 0 | BW43: 37 | BX43: 0 | BY43: 37 | BZ43: 0 | CA43: 37 | CB43: 0 | CC43: 37 | CD43: 0 | CE43: 37 | CF43: 0 | CG43: 37 | CH43: 0 | CI43: 37 | CJ43: 0 | CK43: 37 | CL43: 0 | CM43: 37 | CN43: 0 | CO43: 37 | CP43: 0 | CQ43: 37 | CR43: 0 | CS43: 37 | CT43: 0 | CU43: 37 | CV43: 0 | CW43: 37 | CX43: 0 | CY43: 37 | CZ43: 0 | DA43: 37 | DB43: 0 | DC43: 37 | DD43: 0 | DE43: 37 | DF43: 0 | DG43: 37 | DH43: 0 | DI43: 37 | DJ43: 0 | DK43: 37 | DL43: 0 | DM43: 37 | DN43: 0 | DO43: 37 | DP43: 0 | DQ43: 37 | DR43: 0 | DS43: 37 | DT43: 0 | DU43: 37 | DV43: 0 | DW43: 37 | DX43: 0 | DY43: 37 | DZ43: 0 | EA43: 37 | EB43: 0 | EC43: 37 | ED43: 0 | EE43: 37 | EF43: 0 | EG43: 37 | EH43: 0 | EI43: 37 | EJ43: 0 | EK43: 37 | EL43: 0 | EM43: 37 | EN43: 0 | EO43: 37 | EP43: 0 | EQ43: 37 | ER43: 0 | ES43: 37 | ET43: 0 | EU43: 37 | EV43: 0 | EW43: 37 | EX43: 0 | EY43: 37 | EZ43: 0 | FA43: 37 | FB43: 0 | FC43: 37 | FD43: 0 | FE43: 37 | FF43: 0 | FG43: 37 | FH43: 0 | FI43: 37 | FJ43: 0 | FK43: 37 | FL43: 0 | FM43: 37 | FN43: 0 | FO43: 37 | FP43: 0 | FQ43: 37 | FR43: 0 | FS43: 37 | FT43: 0 | FU43: 37 | FV43: 0 | FW43: 37 | FX43: 0 | FY43: 37 | FZ43: 0 | GA43: 37 | GB43: 0 | GC43: 37 | GD43: 0 | GE43: 37 | GF43: 0 | GG43: 37 | GH43: 0 | GI43: 37 | GJ43: 0 | GK43: 37 | GL43: 0 | GM43: 37 | GN43: 0 | GO43: 37 | GP43: 0 | GQ43: 37 | GR43: 0
A44: 38 | B44: 0 | C44: 38 | D44: 0 | E44: 38 | F44: 0 | G44: 38 | H44: 0 | I44: 38 | J44: 0 | K44: 38 | L44: 0 | M44: 38 | N44: 0 | O44: 38 | P44: 0 | Q44: 38 | R44: 0 | S44: 38 | T44: 5 | U44: 38 | V44: 0 | W44: 38 | X44: 0 | Y44: 38 | Z44: 0 | AA44: 38 | AB44: 0 | AC44: 38 | AD44: 0 | AE44: 38 | AF44: 0 | AG44: 38 | AH44: 0 | AI44: 38 | AJ44: 0 | AK44: 38 | AL44: 0 | AM44: 38 | AN44: 0 | AO44: 38 | AP44: 0 | AQ44: 38 | AR44: 0 | AS44: 38 | AT44: 0 | AU44: 38 | AV44: 0 | AW44: 38 | AX44: 0 | AY44: 38 | AZ44: 0 | BA44: 38 | BB44: 0 | BC44: 38 | BD44: 0 | BE44: 38 | BF44: 0 | BG44: 38 | BH44: 0 | BI44: 38 | BJ44: 0 | BK44: 38 | BL44: 0 | BM44: 38 | BN44: 0 | BO44: 38 | BP44: 0 | BQ44: 38 | BR44: 0 | BS44: 38 | BT44: 0 | BU44: 38 | BV44: 0 | BW44: 38 | BX44: 0 | BY44: 38 | BZ44: 0 | CA44: 38 | CB44: 0 | CC44: 38 | CD44: 0 | CE44: 38 | CF44: 0 | CG44: 38 | CH44: 0 | CI44: 38 | CJ44: 0 | CK44: 38 | CL44: 0 | CM44: 38 | CN44: 0 | CO44: 38 | CP44: 0 | CQ44: 38 | CR44: 0 | CS44: 38 | CT44: 0 | CU44: 38 | CV44: 0 | CW44: 38 | CX44: 0 | CY44: 38 | CZ44: 0 | DA44: 38 | DB44: 0 | DC44: 38 | DD44: 0 | DE44: 38 | DF44: 0 | DG44: 38 | DH44: 0 | DI44: 38 | DJ44: 0 | DK44: 38 | DL44: 0 | DM44: 38 | DN44: 0 | DO44: 38 | DP44: 0 | DQ44: 38 | DR44: 0 | DS44: 38 | DT44: 0 | DU44: 38 | DV44: 0 | DW44: 38 | DX44: 0 | DY44: 38 | DZ44: 0 | EA44: 38 | EB44: 0 | EC44: 38 | ED44: 0 | EE44: 38 | EF44: 0 | EG44: 38 | EH44: 0 | EI44: 38 | EJ44: 0 | EK44: 38 | EL44: 0 | EM44: 38 | EN44: 0 | EO44: 38 | EP44: 0 | EQ44: 38 | ER44: 0 | ES44: 38 | ET44: 0 | EU44: 38 | EV44: 0 | EW44: 38 | EX44: 0 | EY44: 38 | EZ44: 0 | FA44: 38 | FB44: 0 | FC44: 38 | FD44: 0 | FE44: 38 | FF44: 0 | FG44: 38 | FH44: 0 | FI44: 38 | FJ44: 0 | FK44: 38 | FL44: 0 | FM44: 38 | FN44: 0 | FO44: 38 | FP44: 0 | FQ44: 38 | FR44: 0 | FS44: 38 | FT44: 0 | FU44: 38 | FV44: 0 | FW44: 38 | FX44: 0 | FY44: 38 | FZ44: 0 | GA44: 38 | GB44: 0 | GC44: 38 | GD44: 0 | GE44: 38 | GF44: 0 | GG44: 38 | GH44: 0 | GI44: 38 | GJ44: 0 | GK44: 38 | GL44: 0 | GM44: 38 | GN44: 0 | GO44: 38 | GP44: 0 | GQ44: 38 | GR44: 0
A45: 39 | B45: 0 | C45: 39 | D45: 0 | E45: 39 | F45: 0 | G45: 39 | H45: 0 | I45: 39 | J45: 0 | K45: 39 | L45: 0 | M45: 39 | N45: 0 | O45: 39 | P45: 0 | Q45: 39 | R45: 0 | S45: 39 | T45: 5 | U45: 39 | V45: 0 | W45: 39 | X45: 0 | Y45: 39 | Z45: 0 | AA45: 39 | AB45: 0 | AC45: 39 | AD45: 0 | AE45: 39 | AF45: 0 | AG45: 39 | AH45: 0 | AI45: 39 | AJ45: 0 | AK45: 39 | AL45: 0 | AM45: 39 | AN45: 0 | AO45: 39 | AP45: 0 | AQ45: 39 | AR45: 0 | AS45: 39 | AT45: 0 | AU45: 39 | AV45: 0 | AW45: 39 | AX45: 0 | AY45: 39 | AZ45: 0 | BA45: 39 | BB45: 0 | BC45: 39 | BD45: 0 | BE45: 39 | BF45: 0 | BG45: 39 | BH45: 0 | BI45: 39 | BJ45: 0 | BK45: 39 | BL45: 0 | BM45: 39 | BN45: 0 | BO45: 39 | BP45: 0 | BQ45: 39 | BR45: 0 | BS45: 39 | BT45: 0 | BU45: 39 | BV45: 0 | BW45: 39 | BX45: 0 | BY45: 39 | BZ45: 0 | CA45: 39 | CB45: 0 | CC45: 39 | CD45: 0 | CE45: 39 | CF45: 0 | CG45: 39 | CH45: 0 | CI45: 39 | CJ45: 0 | CK45: 39 | CL45: 0 | CM45: 39 | CN45: 0 | CO45: 39 | CP45: 0 | CQ45: 39 | CR45: 0 | CS45: 39 | CT45: 0 | CU45: 39 | CV45: 0 | CW45: 39 | CX45: 0 | CY45: 39 | CZ45: 0 | DA45: 39 | DB45: 0 | DC45: 39 | DD45: 0 | DE45: 39 | DF45: 0 | DG45: 39 | DH45: 0 | DI45: 39 | DJ45: 0 | DK45: 39 | DL45: 0 | DM45: 39 | DN45: 0 | DO45: 39 | DP45: 0 | DQ45: 39 | DR45: 0 | DS45: 39 | DT45: 0 | DU45: 39 | DV45: 0 | DW45: 39 | DX45: 0 | DY45: 39 | DZ45: 0 | EA45: 39 | EB45: 0 | EC45: 39 | ED45: 0 | EE45: 39 | EF45: 0 | EG45: 39 | EH45: 0 | EI45: 39 | EJ45: 0 | EK45: 39 | EL45: 0 | EM45: 39 | EN45: 0 | EO45: 39 | EP45: 0 | EQ45: 39 | ER45: 0 | ES45: 39 | ET45: 0 | EU45: 39 | EV45: 0 | EW45: 39 | EX45: 0 | EY45: 39 | EZ45: 0 | FA45: 39 | FB45: 0 | FC45: 39 | FD45: 0 | FE45: 39 | FF45: 0 | FG45: 39 | FH45: 0 | FI45: 39 | FJ45: 0 | FK45: 39 | FL45: 0 | FM45: 39 | FN45: 0 | FO45: 39 | FP45: 0 | FQ45: 39 | FR45: 0 | FS45: 39 | FT45: 0 | FU45: 39 | FV45: 0 | FW45: 39 | FX45: 0 | FY45: 39 | FZ45: 0 | GA45: 39 | GB45: 0 | GC45: 39 | GD45: 0 | GE45: 39 | GF45: 0 | GG45: 39 | GH45: 0 | GI45: 39 | GJ45: 0 | GK45: 39 | GL45: 0 | GM45: 39 | GN45: 0 | GO45: 39 | GP45: 0 | GQ45: 39 | GR45: 0
A46: 40 | B46: 0 | C46: 40 | D46: 0 | E46: 40 | F46: 0 | G46: 40 | H46: 0 | I46: 40 | J46: 0 | K46: 40 | L46: 0 | M46: 40 | N46: 0 | O46: 40 | P46: 0 | Q46: 40 | R46: 0 | S46: 40 | T46: 5 | U46: 40 | V46: 0 | W46: 40 | X46: 0 | Y46: 40 | Z46: 0 | AA46: 40 | AB46: 0 | AC46: 40 | AD46: 0 | AE46: 40 | AF46: 0 | AG46: 40 | AH46: 0 | AI46: 40 | AJ46: 0 | AK46: 40 | AL46: 0 | AM46: 40 | AN46: 0 | AO46: 40 | AP46: 0 | AQ46: 40 | AR46: 0 | AS46: 40 | AT46: 0 | AU46: 40 | AV46: 0 | AW46: 40 | AX46: 0 | AY46: 40 | AZ46: 0 | BA46: 40 | BB46: 0 | BC46: 40 | BD46: 0 | BE46: 40 | BF46: 0 | BG46: 40 | BH46: 0 | BI46: 40 | BJ46: 0 | BK46: 40 | BL46: 0 | BM46: 40 | BN46: 0 | BO46: 40 | BP46: 0 | BQ46: 40 | BR46: 0 | BS46: 40 | BT46: 0 | BU46: 40 | BV46: 0 | BW46: 40 | BX46: 0 | BY46: 40 | BZ46: 0 | CA46: 40 | CB46: 0 | CC46: 40 | CD46: 0 | CE46: 40 | CF46: 0 | CG46: 40 | CH46: 0 | CI46: 40 | CJ46: 0 | CK46: 40 | CL46: 0 | CM46: 40 | CN46: 0 | CO46: 40 | CP46: 0 | CQ46: 40 | CR46: 0 | CS46: 40 | CT46: 0 | CU46: 40 | CV46: 0 | CW46: 40 | CX46: 0 | CY46: 40 | CZ46: 0 | DA46: 40 | DB46: 0 | DC46: 40 | DD46: 0 | DE46: 40 | DF46: 0 | DG46: 40 | DH46: 0 | DI46: 40 | DJ46: 0 | DK46: 40 | DL46: 0 | DM46: 40 | DN46: 0 | DO46: 40 | DP46: 0 | DQ46: 40 | DR46: 0 | DS46: 40 | DT46: 0 | DU46: 40 | DV46: 0 | DW46: 40 | DX46: 0 | DY46: 40 | DZ46: 0 | EA46: 40 | EB46: 0 | EC46: 40 | ED46: 0 | EE46: 40 | EF46: 0 | EG46: 40 | EH46: 0 | EI46: 40 | EJ46: 0 | EK46: 40 | EL46: 0 | EM46: 40 | EN46: 0 | EO46: 40 | EP46: 0 | EQ46: 40 | ER46: 0 | ES46: 40 | ET46: 0 | EU46: 40 | EV46: 0 | EW46: 40 | EX46: 0 | EY46: 40 | EZ46: 0 | FA46: 40 | FB46: 0 | FC46: 40 | FD46: 0 | FE46: 40 | FF46: 0 | FG46: 40 | FH46: 0 | FI46: 40 | FJ46: 0 | FK46: 40 | FL46: 0 | FM46: 40 | FN46: 0 | FO46: 40 | FP46: 0 | FQ46: 40 | FR46: 0 | FS46: 40 | FT46: 0 | FU46: 40 | FV46: 0 | FW46: 40 | FX46: 0 | FY46: 40 | FZ46: 0 | GA46: 40 | GB46: 0 | GC46: 40 | GD46: 0 | GE46: 40 | GF46: 0 | GG46: 40 | GH46: 0 | GI46: 40 | GJ46: 0 | GK46: 40 | GL46: 0 | GM46: 40 | GN46: 0 | GO46: 40 | GP46: 0 | GQ46: 40 | GR46: 0
A47: 41 | B47: 0 | C47: 41 | D47: 0 | E47: 41 | F47: 0 | G47: 41 | H47: 0 | I47: 41 | J47: 0 | K47: 41 | L47: 0 | M47: 41 | N47: 0 | O47: 41 | P47: 0 | Q47: 41 | R47: 0 | S47: 41 | T47: 5 | U47: 41 | V47: 0 | W47: 41 | X47: 0 | Y47: 41 | Z47: 0 | AA47: 41 | AB47: 0 | AC47: 41 | AD47: 0 | AE47: 41 | AF47: 0 | AG47: 41 | AH47: 0 | AI47: 41 | AJ47: 0 | AK47: 41 | AL47: 0 | AM47: 41 | AN47: 0 | AO47: 41 | AP47: 0 | AQ47: 41 | AR47: 0 | AS47: 41 | AT47: 0 | AU47: 41 | AV47: 0 | AW47: 41 | AX47: 0 | AY47: 41 | AZ47: 0 | BA47: 41 | BB47: 0 | BC47: 41 | BD47: 0 | BE47: 41 | BF47: 0 | BG47: 41 | BH47: 0 | BI47: 41 | BJ47: 0 | BK47: 41 | BL47: 0 | BM47: 41 | BN47: 0 | BO47: 41 | BP47: 0 | BQ47: 41 | BR47: 0 | BS47: 41 | BT47: 0 | BU47: 41 | BV47: 0 | BW47: 41 | BX47: 0 | BY47: 41 | BZ47: 0 | CA47: 41 | CB47: 0 | CC47: 41 | CD47: 0 | CE47: 41 | CF47: 0 | CG47: 41 | CH47: 0 | CI47: 41 | CJ47: 0 | CK47: 41 | CL47: 0 | CM47: 41 | CN47: 0 | CO47: 41 | CP47: 0 | CQ47: 41 | CR47: 0 | CS47: 41 | CT47: 0 | CU47: 41 | CV47: 0 | CW47: 41 | CX47: 0 | CY47: 41 | CZ47: 0 | DA47: 41 | DB47: 0 | DC47: 41 | DD47: 0 | DE47: 41 | DF47: 0 | DG47: 41 | DH47: 0 | DI47: 41 | DJ47: 0 | DK47: 41 | DL47: 0 | DM47: 41 | DN47: 0 | DO47: 41 | DP47: 0 | DQ47: 41 | DR47: 0 | DS47: 41 | DT47: 0 | DU47: 41 | DV47: 0 | DW47: 41 | DX47: 0 | DY47: 41 | DZ47: 0 | EA47: 41 | EB47: 0 | EC47: 41 | ED47: 0 | EE47: 41 | EF47: 0 | EG47: 41 | EH47: 0 | EI47: 41 | EJ47: 0 | EK47: 41 | EL47: 0 | EM47: 41 | EN47: 0 | EO47: 41 | EP47: 0 | EQ47: 41 | ER47: 0 | ES47: 41 | ET47: 0 | EU47: 41 | EV47: 0 | EW47: 41 | EX47: 0 | EY47: 41 | EZ47: 0 | FA47: 41 | FB47: 0 | FC47: 41 | FD47: 0 | FE47: 41 | FF47: 0 | FG47: 41 | FH47: 0 | FI47: 41 | FJ47: 0 | FK47: 41 | FL47: 0 | FM47: 41 | FN47: 0 | FO47: 41 | FP47: 0 | FQ47: 41 | FR47: 0 | FS47: 41 | FT47: 0 | FU47: 41 | FV47: 0 | FW47: 41 | FX47: 0 | FY47: 41 | FZ47: 0 | GA47: 41 | GB47: 0 | GC47: 41 | GD47: 0 | GE47: 41 | GF47: 0 | GG47: 41 | GH47: 0 | GI47: 41 | GJ47: 0 | GK47: 41 | GL47: 0 | GM47: 41 | GN47: 0 | GO47: 41 | GP47: 0 | GQ47: 41 | GR47: 0
A48: 42 | B48: 0 | C48: 42 | D48: 0 | E48: 42 | F48: 0 | G48: 42 | H48: 0 | I48: 42 | J48: 0 | K48: 42 | L48: 0 | M48: 42 | N48: 0 | O48: 42 | P48: 0 | Q48: 42 | R48: 0 | S48: 42 | T48: 5 | U48: 42 | V48: 0 | W48: 42 | X48: 0 | Y48: 42 | Z48: 0 | AA48: 42 | AB48: 0 | AC48: 42 | AD48: 0 | AE48: 42 | AF48: 0 | AG48: 42 | AH48: 0 | AI48: 42 | AJ48: 0 | AK48: 42 | AL48: 0 | AM48: 42 | AN48: 0 | AO48: 42 | AP48: 0 | AQ48: 42 | AR48: 0 | AS48: 42 | AT48: 0 | AU48: 42 | AV48: 0 | AW48: 42 | AX48: 0 | AY48: 42 | AZ48: 0 | BA48: 42 | BB48: 0 | BC48: 42 | BD48: 0 | BE48: 42 | BF48: 0 | BG48: 42 | BH48: 0 | BI48: 42 | BJ48: 0 | BK48: 42 | BL48: 0 | BM48: 42 | BN48: 0 | BO48: 42 | BP48: 0 | BQ48: 42 | BR48: 0 | BS48: 42 | BT48: 0 | BU48: 42 | BV48: 0 | BW48: 42 | BX48: 0 | BY48: 42 | BZ48: 0 | CA48: 42 | CB48: 0 | CC48: 42 | CD48: 0 | CE48: 42 | CF48: 0 | CG48: 42 | CH48: 0 | CI48: 42 | CJ48: 0 | CK48: 42 | CL48: 0 | CM48: 42 | CN48: 0 | CO48: 42 | CP48: 0 | CQ48: 42 | CR48: 0 | CS48: 42 | CT48: 0 | CU48: 42 | CV48: 0 | CW48: 42 | CX48: 0 | CY48: 42 | CZ48: 0 | DA48: 42 | DB48: 0 | DC48: 42 | DD48: 0 | DE48: 42 | DF48: 0 | DG48: 42 | DH48: 0 | DI48: 42 | DJ48: 0 | DK48: 42 | DL48: 0 | DM48: 42 | DN48: 0 | DO48: 42 | DP48: 0 | DQ48: 42 | DR48: 0 | DS48: 42 | DT48: 0 | DU48: 42 | DV48: 0 | DW48: 42 | DX48: 0 | DY48: 42 | DZ48: 0 | EA48: 42 | EB48: 0 | EC48: 42 | ED48: 0 | EE48: 42 | EF48: 0 | EG48: 42 | EH48: 0 | EI48: 42 | EJ48: 0 | EK48: 42 | EL48: 0 | EM48: 42 | EN48: 0 | EO48: 42 | EP48: 0 | EQ48: 42 | ER48: 0 | ES48: 42 | ET48: 0 | EU48: 42 | EV48: 0 | EW48: 42 | EX48: 0 | EY48: 42 | EZ48: 0 | FA48: 42 | FB48: 0 | FC48: 42 | FD48: 0 | FE48: 42 | FF48: 0 | FG48: 42 | FH48: 0 | FI48: 42 | FJ48: 0 | FK48: 42 | FL48: 0 | FM48: 42 | FN48: 0 | FO48: 42 | FP48: 0 | FQ48: 42 | FR48: 0 | FS48: 42 | FT48: 0 | FU48: 42 | FV48: 0 | FW48: 42 | FX48: 0 | FY48: 42 | FZ48: 0 | GA48: 42 | GB48: 0 | GC48: 42 | GD48: 0 | GE48: 42 | GF48: 0 | GG48: 42 | GH48: 0 | GI48: 42 | GJ48: 0 | GK48: 42 | GL48: 0 | GM48: 42 | GN48: 0 | GO48: 42 | GP48: 0 | GQ48: 42 | GR48: 0
A49: 43 | B49: 0 | C49: 43 | D49: 0 | E49: 43 | F49: 0 | G49: 43 | H49: 0 | I49: 43 | J49: 0 | K49: 43 | L49: 0 | M49: 43 | N49: 0 | O49: 43 | P49: 0 | Q49: 43 | R49: 0 | S49: 43 | T49: 5 | U49: 43 | V49: 0 | W49: 43 | X49: 0 | Y49: 43 | Z49: 0 | AA49: 43 | AB49: 0 | AC49: 43 | AD49: 0 | AE49: 43 | AF49: 0 | AG49: 43 | AH49: 0 | AI49: 43 | AJ49: 0 | AK49: 43 | AL49: 0 | AM49: 43 | AN49: 0 | AO49: 43 | AP49: 0 | AQ49: 43 | AR49: 0 | AS49: 43 | AT49: 0 | AU49: 43 | AV49: 0 | AW49: 43 | AX49: 0 | AY49: 43 | AZ49: 0 | BA49: 43 | BB49: 0 | BC49: 43 | BD49: 0 | BE49: 43 | BF49: 0 | BG49: 43 | BH49: 0 | BI49: 43 | BJ49: 0 | BK49: 43 | BL49: 0 | BM49: 43 | BN49: 0 | BO49: 43 | BP49: 0 | BQ49: 43 | BR49: 0 | BS49: 43 | BT49: 0 | BU49: 43 | BV49: 0 | BW49: 43 | BX49: 0 | BY49: 43 | BZ49: 0 | CA49: 43 | CB49: 0 | CC49: 43 | CD49: 0 | CE49: 43 | CF49: 0 | CG49: 43 | CH49: 0 | CI49: 43 | CJ49: 0 | CK49: 43 | CL49: 0 | CM49: 43 | CN49: 0 | CO49: 43 | CP49: 0 | CQ49: 43 | CR49: 0 | CS49: 43 | CT49: 0 | CU49: 43 | CV49: 0 | CW49: 43 | CX49: 0 | CY49: 43 | CZ49: 0 | DA49: 43 | DB49: 0 | DC49: 43 | DD49: 0 | DE49: 43 | DF49: 0 | DG49: 43 | DH49: 0 | DI49: 43 | DJ49: 0 | DK49: 43 | DL49: 0 | DM49: 43 | DN49: 0 | DO49: 43 | DP49: 0 | DQ49: 43 | DR49: 0 | DS49: 43 | DT49: 0 | DU49: 43 | DV49: 0 | DW49: 43 | DX49: 0 | DY49: 43 | DZ49: 0 | EA49: 43 | EB49: 0 | EC49: 43 | ED49: 0 | EE49: 43 | EF49: 0 | EG49: 43 | EH49: 0 | EI49: 43 | EJ49: 0 | EK49: 43 | EL49: 0 | EM49: 43 | EN49: 0 | EO49: 43 | EP49: 0 | EQ49: 43 | ER49: 0 | ES49: 43 | ET49: 0 | EU49: 43 | EV49: 0 | EW49: 43 | EX49: 0 | EY49: 43 | EZ49: 0 | FA49: 43 | FB49: 0 | FC49: 43 | FD49: 0 | FE49: 43 | FF49: 0 | FG49: 43 | FH49: 0 | FI49: 43 | FJ49: 0 | FK49: 43 | FL49: 0 | FM49: 43 | FN49: 0 | FO49: 43 | FP49: 0 | FQ49: 43 | FR49: 0 | FS49: 43 | FT49: 0 | FU49: 43 | FV49: 0 | FW49: 43 | FX49: 0 | FY49: 43 | FZ49: 0 | GA49: 43 | GB49: 0 | GC49: 43 | GD49: 0 | GE49: 43 | GF49: 0 | GG49: 43 | GH49: 0 | GI49: 43 | GJ49: 0 | GK49: 43 | GL49: 0 | GM49: 43 | GN49: 0 | GO49: 43 | GP49: 0 | GQ49: 43 | GR49: 0
A50: 44 | B50: 0 | C50: 44 | D50: 0 | E50: 44 | F50: 0 | G50: 44 | H50: 0 | I50: 44 | J50: 0 | K50: 44 | L50: 0 | M50: 44 | N50: 0 | O50: 44 | P50: 0 | Q50: 44 | R50: 0 | S50: 44 | T50: 5 | U50: 44 | V50: 0 | W50: 44 | X50: 0 | Y50: 44 | Z50: 0 | AA50: 44 | AB50: 0 | AC50: 44 | AD50: 0 | AE50: 44 | AF50: 0 | AG50: 44 | AH50: 0 | AI50: 44 | AJ50: 0 | AK50: 44 | AL50: 0 | AM50: 44 | AN50: 0 | AO50: 44 | AP50: 0 | AQ50: 44 | AR50: 0 | AS50: 44 | AT50: 0 | AU50: 44 | AV50: 0 | AW50: 44 | AX50: 0 | AY50: 44 | AZ50: 0 | BA50: 44 | BB50: 0 | BC50: 44 | BD50: 0 | BE50: 44 | BF50: 0 | BG50: 44 | BH50: 0 | BI50: 44 | BJ50: 0 | BK50: 44 | BL50: 0 | BM50: 44 | BN50: 0 | BO50: 44 | BP50: 0 | BQ50: 44 | BR50: 0 | BS50: 44 | BT50: 0 | BU50: 44 | BV50: 0 | BW50: 44 | BX50: 0 | BY50: 44 | BZ50: 0 | CA50: 44 | CB50: 0 | CC50: 44 | CD50: 0 | CE50: 44 | CF50: 0 | CG50: 44 | CH50: 0 | CI50: 44 | CJ50: 0 | CK50: 44 | CL50: 0 | CM50: 44 | CN50: 0 | CO50: 44 | CP50: 0 | CQ50: 44 | CR50: 0 | CS50: 44 | CT50: 0 | CU50: 44 | CV50: 0 | CW50: 44 | CX50: 0 | CY50: 44 | CZ50: 0 | DA50: 44 | DB50: 0 | DC50: 44 | DD50: 0 | DE50: 44 | DF50: 0 | DG50: 44 | DH50: 0 | DI50: 44 | DJ50: 0 | DK50: 44 | DL50: 0 | DM50: 44 | DN50: 0 | DO50: 44 | DP50: 0 | DQ50: 44 | DR50: 0 | DS50: 44 | DT50: 0 | DU50: 44 | DV50: 0 | DW50: 44 | DX50: 0 | DY50: 44 | DZ50: 0 | EA50: 44 | EB50: 0 | EC50: 44 | ED50: 0 | EE50: 44 | EF50: 0 | EG50: 44 | EH50: 0 | EI50: 44 | EJ50: 0 | EK50: 44 | EL50: 0 | EM50: 44 | EN50: 0 | EO50: 44 | EP50: 0 | EQ50: 44 | ER50: 0 | ES50: 44 | ET50: 0 | EU50: 44 | EV50: 0 | EW50: 44 | EX50: 0 | EY50: 44 | EZ50: 0 | FA50: 44 | FB50: 0 | FC50: 44 | FD50: 0 | FE50: 44 | FF50: 0 | FG50: 44 | FH50: 0 | FI50: 44 | FJ50: 0 | FK50: 44 | FL50: 0 | FM50: 44 | FN50: 0 | FO50: 44 | FP50: 0 | FQ50: 44 | FR50: 0 | FS50: 44 | FT50: 0 | FU50: 44 | FV50: 0 | FW50: 44 | FX50: 0 | FY50: 44 | FZ50: 0 | GA50: 44 | GB50: 0 | GC50: 44 | GD50: 0 | GE50: 44 | GF50: 0 | GG50: 44 | GH50: 0 | GI50: 44 | GJ50: 0 | GK50: 44 | GL50: 0 | GM50: 44 | GN50: 0 | GO50: 44 | GP50: 0 | GQ50: 44 | GR50: 0
A51: 45 | B51: 0 | C51: 45 | D51: 0 | E51: 45 | F51: 0 | G51: 45 | H51: 0 | I51: 45 | J51: 0 | K51: 45 | L51: 0 | M51: 45 | N51: 0 | O51: 45 | P51: 0 | Q51: 45 | R51: 0 | S51: 45 | T51: 5 | U51: 45 | V51: 0 | W51: 45 | X51: 0 | Y51: 45 | Z51: 0 | AA51: 45 | AB51: 0 | AC51: 45 | AD51: 0 | AE51: 45 | AF51: 0 | AG51: 45 | AH51: 0 | AI51: 45 | AJ51: 0 | AK51: 45 | AL51: 0 | AM51: 45 | AN51: 0 | AO51: 45 | AP51: 0 | AQ51: 45 | AR51: 0 | AS51: 45 | AT51: 0 | AU51: 45 | AV51: 0 | AW51: 45 | AX51: 0 | AY51: 45 | AZ51: 0 | BA51: 45 | BB51: 0 | BC51: 45 | BD51: 0 | BE51: 45 | BF51: 0 | BG51: 45 | BH51: 0 | BI51: 45 | BJ51: 0 | BK51: 45 | BL51: 0 | BM51: 45 | BN51: 0 | BO51: 45 | BP51: 0 | BQ51: 45 | BR51: 0 | BS51: 45 | BT51: 0 | BU51: 45 | BV51: 0 | BW51: 45 | BX51: 0 | BY51: 45 | BZ51: 0 | CA51: 45 | CB51: 0 | CC51: 45 | CD51: 0 | CE51: 45 | CF51: 0 | CG51: 45 | CH51: 0 | CI51: 45 | CJ51: 0 | CK51: 45 | CL51: 0 | CM51: 45 | CN51: 0 | CO51: 45 | CP51: 0 | CQ51: 45 | CR51: 0 | CS51: 45 | CT51: 0 | CU51: 45 | CV51: 0 | CW51: 45 | CX51: 0 | CY51: 45 | CZ51: 0 | DA51: 45 | DB51: 0 | DC51: 45 | DD51: 0 | DE51: 45 | DF51: 0 | DG51: 45 | DH51: 0 | DI51: 45 | DJ51: 0 | DK51: 45 | DL51: 0 | DM51: 45 | DN51: 0 | DO51: 45 | DP51: 0 | DQ51: 45 | DR51: 0 | DS51: 45 | DT51: 0 | DU51: 45 | DV51: 0 | DW51: 45 | DX51: 0 | DY51: 45 | DZ51: 0 | EA51: 45 | EB51: 0 | EC51: 45 | ED51: 0 | EE51: 45 | EF51: 0 | EG51: 45 | EH51: 0 | EI51: 45 | EJ51: 0 | EK51: 45 | EL51: 0 | EM51: 45 | EN51: 0 | EO51: 45 | EP51: 0 | EQ51: 45 | ER51: 0 | ES51: 45 | ET51: 0 | EU51: 45 | EV51: 0 | EW51: 45 | EX51: 0 | EY51: 45 | EZ51: 0 | FA51: 45 | FB51: 0 | FC51: 45 | FD51: 0 | FE51: 45 | FF51: 0 | FG51: 45 | FH51: 0 | FI51: 45 | FJ51: 0 | FK51: 45 | FL51: 0 | FM51: 45 | FN51: 0 | FO51: 45 | FP51: 0 | FQ51: 45 | FR51: 0 | FS51: 45 | FT51: 0 | FU51: 45 | FV51: 0 | FW51: 45 | FX51: 0 | FY51: 45 | FZ51: 0 | GA51: 45 | GB51: 0 | GC51: 45 | GD51: 0 | GE51: 45 | GF51: 0 | GG51: 45 | GH51: 0 | GI51: 45 | GJ51: 0 | GK51: 45 | GL51: 0 | GM51: 45 | GN51: 0 | GO51: 45 | GP51: 0 | GQ51: 45 | GR51: 0
A52: 46 | B52: 0 | C52: 46 | D52: 0 | E52: 46 | F52: 0 | G52: 46 | H52: 0 | I52: 46 | J52: 0 | K52: 46 | L52: 0 | M52: 46 | N52: 0 | O52: 46 | P52: 0 | Q52: 46 | R52: 0 | S52: 46 | T52: 5 | U52: 46 | V52: 0 | W52: 46 | X52: 0 | Y52: 46 | Z52: 0 | AA52: 46 | AB52: 0 | AC52: 46 | AD52: 0 | AE52: 46 | AF52: 0 | AG52: 46 | AH52: 0 | AI52: 46 | AJ52: 0 | AK52: 46 | AL52: 0 | AM52: 46 | AN52: 0 | AO52: 46 | AP52: 0 | AQ52: 46 | AR52: 0 | AS52: 46 | AT52: 0 | AU52: 46 | AV52: 0 | AW52: 46 | AX52: 0 | AY52: 46 | AZ52: 0 | BA52: 46 | BB52: 0 | BC52: 46 | BD52: 0 | BE52: 46 | BF52: 0 | BG52: 46 | BH52: 0 | BI52: 46 | BJ52: 0 | BK52: 46 | BL52: 0 | BM52: 46 | BN52: 0 | BO52: 46 | BP52: 0 | BQ52: 46 | BR52: 0 | BS52: 46 | BT52: 0 | BU52: 46 | BV52: 0 | BW52: 46 | BX52: 0 | BY52: 46 | BZ52: 0 | CA52: 46 | CB52: 0 | CC52: 46 | CD52: 0 | CE52: 46 | CF52: 0 | CG52: 46 | CH52: 0 | CI52: 46 | CJ52: 0 | CK52: 46 | CL52: 0 | CM52: 46 | CN52: 0 | CO52: 46 | CP52: 0 | CQ52: 46 | CR52: 0 | CS52: 46 | CT52: 0 | CU52: 46 | CV52: 0 | CW52: 46 | CX52: 0 | CY52: 46 | CZ52: 0 | DA52: 46 | DB52: 0 | DC52: 46 | DD52: 0 | DE52: 46 | DF52: 0 | DG52: 46 | DH52: 0 | DI52: 46 | DJ52: 0 | DK52: 46 | DL52: 0 | DM52: 46 | DN52: 0 | DO52: 46 | DP52: 0 | DQ52: 46 | DR52: 0 | DS52: 46 | DT52: 0 | DU52: 46 | DV52: 0 | DW52: 46 | DX52: 0 | DY52: 46 | DZ52: 0 | EA52: 46 | EB52: 0 | EC52: 46 | ED52: 0 | EE52: 46 | EF52: 0 | EG52: 46 | EH52: 0 | EI52: 46 | EJ52: 0 | EK52: 46 | EL52: 0 | EM52: 46 | EN52: 0 | EO52: 46 | EP52: 0 | EQ52: 46 | ER52: 0 | ES52: 46 | ET52: 0 | EU52: 46 | EV52: 0 | EW52: 46 | EX52: 0 | EY52: 46 | EZ52: 0 | FA52: 46 | FB52: 0 | FC52: 46 | FD52: 0 | FE52: 46 | FF52: 0 | FG52: 46 | FH52: 0 | FI52: 46 | FJ52: 0 | FK52: 46 | FL52: 0 | FM52: 46 | FN52: 0 | FO52: 46 | FP52: 0 | FQ52: 46 | FR52: 0 | FS52: 46 | FT52: 0 | FU52: 46 | FV52: 0 | FW52: 46 | FX52: 0 | FY52: 46 | FZ52: 0 | GA52: 46 | GB52: 0 | GC52: 46 | GD52: 0 | GE52: 46 | GF52: 0 | GG52: 46 | GH52: 0 | GI52: 46 | GJ52: 0 | GK52: 46 | GL52: 0 | GM52: 46 | GN52: 0 | GO52: 46 | GP52: 0 | GQ52: 46 | GR52: 0
A53: 47 | B53: 0 | C53: 47 | D53: 0 | E53: 47 | F53: 0 | G53: 47 | H53: 0 | I53: 47 | J53: 0 | K53: 47 | L53: 0 | M53: 47 | N53: 0 | O53: 47 | P53: 0 | Q53: 47 | R53: 0 | S53: 47 | T53: 5 | U53: 47 | V53: 0 | W53: 47 | X53: 0 | Y53: 47 | Z53: 0 | AA53: 47 | AB53: 0 | AC53: 47 | AD53: 0 | AE53: 47 | AF53: 0 | AG53: 47 | AH53: 0 | AI53: 47 | AJ53: 0 | AK53: 47 | AL53: 0 | AM53: 47 | AN53: 0 | AO53: 47 | AP53: 0 | AQ53: 47 | AR53: 0 | AS53: 47 | AT53: 0 | AU53: 47 | AV53: 0 | AW53: 47 | AX53: 0 | AY53: 47 | AZ53: 0 | BA53: 47 | BB53: 0 | BC53: 47 | BD53: 0 | BE53: 47 | BF53: 0 | BG53: 47 | BH53: 0 | BI53: 47 | BJ53: 0 | BK53: 47 | BL53: 0 | BM53: 47 | BN53: 0 | BO53: 47 | BP53: 0 | BQ53: 47 | BR53: 0 | BS53: 47 | BT53: 0 | BU53: 47 | BV53: 0 | BW53: 47 | BX53: 0 | BY53: 47 | BZ53: 0 | CA53: 47 | CB53: 0 | CC53: 47 | CD53: 0 | CE53: 47 | CF53: 0 | CG53: 47 | CH53: 0 | CI53: 47 | CJ53: 0 | CK53: 47 | CL53: 0 | CM53: 47 | CN53: 0 | CO53: 47 | CP53: 0 | CQ53: 47 | CR53: 0 | CS53: 47 | CT53: 0 | CU53: 47 | CV53: 0 | CW53: 47 | CX53: 0 | CY53: 47 | CZ53: 0 | DA53: 47 | DB53: 0 | DC53: 47 | DD53: 0 | DE53: 47 | DF53: 0 | DG53: 47 | DH53: 0 | DI53: 47 | DJ53: 0 | DK53: 47 | DL53: 0 | DM53: 47 | DN53: 0 | DO53: 47 | DP53: 0 | DQ53: 47 | DR53: 0 | DS53: 47 | DT53: 0 | DU53: 47 | DV53: 0 | DW53: 47 | DX53: 0 | DY53: 47 | DZ53: 0 | EA53: 47 | EB53: 0 | EC53: 47 | ED53: 0 | EE53: 47 | EF53: 0 | EG53: 47 | EH53: 0 | EI53: 47 | EJ53: 0 | EK53: 47 | EL53: 0 | EM53: 47 | EN53: 0 | EO53: 47 | EP53: 0 | EQ53: 47 | ER53: 0 | ES53: 47 | ET53: 0 | EU53: 47 | EV53: 0 | EW53: 47 | EX53: 0 | EY53: 47 | EZ53: 0 | FA53: 47 | FB53: 0 | FC53: 47 | FD53: 0 | FE53: 47 | FF53: 0 | FG53: 47 | FH53: 0 | FI53: 47 | FJ53: 0 | FK53: 47 | FL53: 0 | FM53: 47 | FN53: 0 | FO53: 47 | FP53: 0 | FQ53: 47 | FR53: 0 | FS53: 47 | FT53: 0 | FU53: 47 | FV53: 0 | FW53: 47 | FX53: 0 | FY53: 47 | FZ53: 0 | GA53: 47 | GB53: 0 | GC53: 47 | GD53: 0 | GE53: 47 | GF53: 0 | GG53: 47 | GH53: 0 | GI53: 47 | GJ53: 0 | GK53: 47 | GL53: 0 | GM53: 47 | GN53: 0 | GO53: 47 | GP53: 0 | GQ53: 47 | GR53: 0
A54: 48 | B54: 0 | C54: 48 | D54: 0 | E54: 48 | F54: 0 | G54: 48 | H54: 0 | I54: 48 | J54: 0 | K54: 48 | L54: 0 | M54: 48 | N54: 0 | O54: 48 | P54: 0 | Q54: 48 | R54: 0 | S54: 48 | T54: 5 | U54: 48 | V54: 0 | W54: 48 | X54: 0 | Y54: 48 | Z54: 0 | AA54: 48 | AB54: 0 | AC54: 48 | AD54: 0 | AE54: 48 | AF54: 0 | AG54: 48 | AH54: 0 | AI54: 48 | AJ54: 0 | AK54: 48 | AL54: 0 | AM54: 48 | AN54: 0 | AO54: 48 | AP54: 0 | AQ54: 48 | AR54: 0 | AS54: 48 | AT54: 0 | AU54: 48 | AV54: 0 | AW54: 48 | AX54: 0 | AY54: 48 | AZ54: 0 | BA54: 48 | BB54: 0 | BC54: 48 | BD54: 0 | BE54: 48 | BF54: 0 | BG54: 48 | BH54: 0 | BI54: 48 | BJ54: 0 | BK54: 48 | BL54: 0 | BM54: 48 | BN54: 0 | BO54: 48 | BP54: 0 | BQ54: 48 | BR54: 0 | BS54: 48 | BT54: 0 | BU54: 48 | BV54: 0 | BW54: 48 | BX54: 0 | BY54: 48 | BZ54: 0 | CA54: 48 | CB54: 0 | CC54: 48 | CD54: 0 | CE54: 48 | CF54: 0 | CG54: 48 | CH54: 0 | CI54: 48 | CJ54: 0 | CK54: 48 | CL54: 0 | CM54: 48 | CN54: 0 | CO54: 48 | CP54: 0 | CQ54: 48 | CR54: 0 | CS54: 48 | CT54: 0 | CU54: 48 | CV54: 0 | CW54: 48 | CX54: 0 | CY54: 48 | CZ54: 0 | DA54: 48 | DB54: 0 | DC54: 48 | DD54: 0 | DE54: 48 | DF54: 0 | DG54: 48 | DH54: 0 | DI54: 48 | DJ54: 0 | DK54: 48 | DL54: 0 | DM54: 48 | DN54: 0 | DO54: 48 | DP54: 0 | DQ54: 48 | DR54: 0 | DS54: 48 | DT54: 0 | DU54: 48 | DV54: 0 | DW54: 48 | DX54: 0 | DY54: 48 | DZ54: 0 | EA54: 48 | EB54: 0 | EC54: 48 | ED54: 0 | EE54: 48 | EF54: 0 | EG54: 48 | EH54: 0 | EI54: 48 | EJ54: 0 | EK54: 48 | EL54: 0 | EM54: 48 | EN54: 0 | EO54: 48 | EP54: 0 | EQ54: 48 | ER54: 0 | ES54: 48 | ET54: 0 | EU54: 48 | EV54: 0 | EW54: 48 | EX54: 0 | EY54: 48 | EZ54: 0 | FA54: 48 | FB54: 0 | FC54: 48 | FD54: 0 | FE54: 48 | FF54: 0 | FG54: 48 | FH54: 0 | FI54: 48 | FJ54: 0 | FK54: 48 | FL54: 0 | FM54: 48 | FN54: 0 | FO54: 48 | FP54: 0 | FQ54: 48 | FR54: 0 | FS54: 48 | FT54: 0 | FU54: 48 | FV54: 0 | FW54: 48 | FX54: 0 | FY54: 48 | FZ54: 0 | GA54: 48 | GB54: 0 | GC54: 48 | GD54: 0 | GE54: 48 | GF54: 0 | GG54: 48 | GH54: 0 | GI54: 48 | GJ54: 0 | GK54: 48 | GL54: 0 | GM54: 48 | GN54: 0 | GO54: 48 | GP54: 0 | GQ54: 48 | GR54: 0
A55: 49 | B55: 0 | C55: 49 | D55: 0 | E55: 49 | F55: 0 | G55: 49 | H55: 0 | I55: 49 | J55: 0 | K55: 49 | L55: 0 | M55: 49 | N55: 0 | O55: 49 | P55: 0 | Q55: 49 | R55: 0 | S55: 49 | T55: 5 | U55: 49 | V55: 0 | W55: 49 | X55: 0 | Y55: 49 | Z55: 0 | AA55: 49 | AB55: 0 | AC55: 49 | AD55: 0 | AE55: 49 | AF55: 0 | AG55: 49 | AH55: 0 | AI55: 49 | AJ55: 0 | AK55: 49 | AL55: 0 | AM55: 49 | AN55: 0 | AO55: 49 | AP55: 0 | AQ55: 49 | AR55: 0 | AS55: 49 | AT55: 0 | AU55: 49 | AV55: 0 | AW55: 49 | AX55: 0 | AY55: 49 | AZ55: 0 | BA55: 49 | BB55: 0 | BC55: 49 | BD55: 0 | BE55: 49 | BF55: 0 | BG55: 49 | BH55: 0 | BI55: 49 | BJ55: 0 | BK55: 49 | BL55: 0 | BM55: 49 | BN55: 0 | BO55: 49 | BP55: 0 | BQ55: 49 | BR55: 0 | BS55: 49 | BT55: 0 | BU55: 49 | BV55: 0 | BW55: 49 | BX55: 0 | BY55: 49 | BZ55: 0 | CA55: 49 | CB55: 0 | CC55: 49 | CD55: 0 | CE55: 49 | CF55: 0 | CG55: 49 | CH55: 0 | CI55: 49 | CJ55: 0 | CK55: 49 | CL55: 0 | CM55: 49 | CN55: 0 | CO55: 49 | CP55: 0 | CQ55: 49 | CR55: 0 | CS55: 49 | CT55: 0 | CU55: 49 | CV55: 0 | CW55: 49 | CX55: 0 | CY55: 49 | CZ55: 0 | DA55: 49 | DB55: 0 | DC55: 49 | DD55: 0 | DE55: 49 | DF55: 0 | DG55: 49 | DH55: 0 | DI55: 49 | DJ55: 0 | DK55: 49 | DL55: 0 | DM55: 49 | DN55: 0 | DO55: 49 | DP55: 0 | DQ55: 49 | DR55: 0 | DS55: 49 | DT55: 0 | DU55: 49 | DV55: 0 | DW55: 49 | DX55: 0 | DY55: 49 | DZ55: 0 | EA55: 49 | EB55: 0 | EC55: 49 | ED55: 0 | EE55: 49 | EF55: 0 | EG55: 49 | EH55: 0 | EI55: 49 | EJ55: 0 | EK55: 49 | EL55: 0 | EM55: 49 | EN55: 0 | EO55: 49 | EP55: 0 | EQ55: 49 | ER55: 0 | ES55: 49 | ET55: 0 | EU55: 49 | EV55: 0 | EW55: 49 | EX55: 0 | EY55: 49 | EZ55: 0 | FA55: 49 | FB55: 0 | FC55: 49 | FD55: 0 | FE55: 49 | FF55: 0 | FG55: 49 | FH55: 0 | FI55: 49 | FJ55: 0 | FK55: 49 | FL55: 0 | FM55: 49 | FN55: 0 | FO55: 49 | FP55: 0 | FQ55: 49 | FR55: 0 | FS55: 49 | FT55: 0 | FU55: 49 | FV55: 0 | FW55: 49 | FX55: 0 | FY55: 49 | FZ55: 0 | GA55: 49 | GB55: 0 | GC55: 49 | GD55: 0 | GE55: 49 | GF55: 0 | GG55: 49 | GH55: 0 | GI55: 49 | GJ55: 0 | GK55: 49 | GL55: 0 | GM55: 49 | GN55: 0 | GO55: 49 | GP55: 0 | GQ55: 49 | GR55: 0
A56: 50 | B56: 0 | C56: 50 | D56: 0 | E56: 50 | F56: 0 | G56: 50 | H56: 0 | I56: 50 | J56: 0 | K56: 50 | L56: 0 | M56: 50 | N56: 0 | O56: 50 | P56: 0 | Q56: 50 | R56: 0 | S56: 50 | T56: 5 | U56: 50 | V56: 0 | W56: 50 | X56: 0 | Y56: 50 | Z56: 0 | AA56: 50 | AB56: 0 | AC56: 50 | AD56: 0 | AE56: 50 | AF56: 0 | AG56: 50 | AH56: 0 | AI56: 50 | AJ56: 0 | AK56: 50 | AL56: 0 | AM56: 50 | AN56: 0 | AO56: 50 | AP56: 0 | AQ56: 50 | AR56: 0 | AS56: 50 | AT56: 0 | AU56: 50 | AV56: 0 | AW56: 50 | AX56: 0 | AY56: 50 | AZ56: 0 | BA56: 50 | BB56: 0 | BC56: 50 | BD56: 0 | BE56: 50 | BF56: 0 | BG56: 50 | BH56: 0 | BI56: 50 | BJ56: 0 | BK56: 50 | BL56: 0 | BM56: 50 | BN56: 0 | BO56: 50 | BP56: 0 | BQ56: 50 | BR56: 0 | BS56: 50 | BT56: 0 | BU56: 50 | BV56: 0 | BW56: 50 | BX56: 0 | BY56: 50 | BZ56: 0 | CA56: 50 | CB56: 0 | CC56: 50 | CD56: 0 | CE56: 50 | CF56: 0 | CG56: 50 | CH56: 0 | CI56: 50 | CJ56: 0 | CK56: 50 | CL56: 0 | CM56: 50 | CN56: 0 | CO56: 50 | CP56: 0 | CQ56: 50 | CR56: 0 | CS56: 50 | CT56: 0 | CU56: 50 | CV56: 0 | CW56: 50 | CX56: 0 | CY56: 50 | CZ56: 0 | DA56: 50 | DB56: 0 | DC56: 50 | DD56: 0 | DE56: 50 | DF56: 0 | DG56: 50 | DH56: 0 | DI56: 50 | DJ56: 0 | DK56: 50 | DL56: 0 | DM56: 50 | DN56: 0 | DO56: 50 | DP56: 0 | DQ56: 50 | DR56: 0 | DS56: 50 | DT56: 0 | DU56: 50 | DV56: 0 | DW56: 50 | DX56: 0 | DY56: 50 | DZ56: 0 | EA56: 50 | EB56: 0 | EC56: 50 | ED56: 0 | EE56: 50 | EF56: 0 | EG56: 50 | EH56: 0 | EI56: 50 | EJ56: 0 | EK56: 50 | EL56: 0 | EM56: 50 | EN56: 0 | EO56: 50 | EP56: 0 | EQ56: 50 | ER56: 0 | ES56: 50 | ET56: 0 | EU56: 50 | EV56: 0 | EW56: 50 | EX56: 0 | EY56: 50 | EZ56: 0 | FA56: 50 | FB56: 0 | FC56: 50 | FD56: 0 | FE56: 50 | FF56: 0 | FG56: 50 | FH56: 0 | FI56: 50 | FJ56: 0 | FK56: 50 | FL56: 0 | FM56: 50 | FN56: 0 | FO56: 50 | FP56: 0 | FQ56: 50 | FR56: 0 | FS56: 50 | FT56: 0 | FU56: 50 | FV56: 0 | FW56: 50 | FX56: 0 | FY56: 50 | FZ56: 0 | GA56: 50 | GB56: 0 | GC56: 50 | GD56: 0 | GE56: 50 | GF56: 0 | GG56: 50 | GH56: 0 | GI56: 50 | GJ56: 0 | GK56: 50 | GL56: 0 | GM56: 50 | GN56: 0 | GO56: 50 | GP56: 0 | GQ56: 50 | GR56: 0
A57: 51 | B57: 0 | C57: 51 | D57: 0 | E57: 51 | F57: 0 | G57: 51 | H57: 0 | I57: 51 | J57: 0 | K57: 51 | L57: 0 | M57: 51 | N57: 0 | O57: 51 | P57: 0 | Q57: 51 | R57: 0 | S57: 51 | T57: 5 | U57: 51 | V57: 0 | W57: 51 | X57: 0 | Y57: 51 | Z57: 0 | AA57: 51 | AB57: 0 | AC57: 51 | AD57: 0 | AE57: 51 | AF57: 0 | AG57: 51 | AH57: 0 | AI57: 51 | AJ57: 0 | AK57: 51 | AL57: 0 | AM57: 51 | AN57: 0 | AO57: 51 | AP57: 0 | AQ57: 51 | AR57: 0 | AS57: 51 | AT57: 0 | AU57: 51 | AV57: 0 | AW57: 51 | AX57: 0 | AY57: 51 | AZ57: 0 | BA57: 51 | BB57: 0 | BC57: 51 | BD57: 0 | BE57: 51 | BF57: 0 | BG57: 51 | BH57: 0 | BI57: 51 | BJ57: 0 | BK57: 51 | BL57: 0 | BM57: 51 | BN57: 0 | BO57: 51 | BP57: 0 | BQ57: 51 | BR57: 0 | BS57: 51 | BT57: 0 | BU57: 51 | BV57: 0 | BW57: 51 | BX57: 0 | BY57: 51 | BZ57: 0 | CA57: 51 | CB57: 0 | CC57: 51 | CD57: 0 | CE57: 51 | CF57: 0 | CG57: 51 | CH57: 0 | CI57: 51 | CJ57: 0 | CK57: 51 | CL57: 0 | CM57: 51 | CN57: 0 | CO57: 51 | CP57: 0 | CQ57: 51 | CR57: 0 | CS57: 51 | CT57: 0 | CU57: 51 | CV57: 0 | CW57: 51 | CX57: 0 | CY57: 51 | CZ57: 0 | DA57: 51 | DB57: 0 | DC57: 51 | DD57: 0 | DE57: 51 | DF57: 0 | DG57: 51 | DH57: 0 | DI57: 51 | DJ57: 0 | DK57: 51 | DL57: 0 | DM57: 51 | DN57: 0 | DO57: 51 | DP57: 0 | DQ57: 51 | DR57: 0 | DS57: 51 | DT57: 0 | DU57: 51 | DV57: 0 | DW57: 51 | DX57: 0 | DY57: 51 | DZ57: 0 | EA57: 51 | EB57: 0 | EC57: 51 | ED57: 0 | EE57: 51 | EF57: 0 | EG57: 51 | EH57: 0 | EI57: 51 | EJ57: 0 | EK57: 51 | EL57: 0 | EM57: 51 | EN57: 0 | EO57: 51 | EP57: 0 | EQ57: 51 | ER57: 0 | ES57: 51 | ET57: 0 | EU57: 51 | EV57: 0 | EW57: 51 | EX57: 0 | EY57: 51 | EZ57: 0 | FA57: 51 | FB57: 0 | FC57: 51 | FD57: 0 | FE57: 51 | FF57: 0 | FG57: 51 | FH57: 0 | FI57: 51 | FJ57: 0 | FK57: 51 | FL57: 0 | FM57: 51 | FN57: 0 | FO57: 51 | FP57: 0 | FQ57: 51 | FR57: 0 | FS57: 51 | FT57: 0 | FU57: 51 | FV57: 0 | FW57: 51 | FX57: 0 | FY57: 51 | FZ57: 0 | GA57: 51 | GB57: 0 | GC57: 51 | GD57: 0 | GE57: 51 | GF57: 0 | GG57: 51 | GH57: 0 | GI57: 51 | GJ57: 0 | GK57: 51 | GL57: 0 | GM57: 51 | GN57: 0 | GO57: 51 | GP57: 0 | GQ57: 51 | GR57: 0
A58: 52 | B58: 0 | C58: 52 | D58: 0 | E58: 52 | F58: 0 | G58: 52 | H58: 0 | I58: 52 | J58: 0 | K58: 52 | L58: 0 | M58: 52 | N58: 0 | O58: 52 | P58: 0 | Q58: 52 | R58: 0 | S58: 52 | T58: 0 | U58: 52 | V58: 0 | W58: 52 | X58: 0 | Y58: 52 | Z58: 0 | AA58: 52 | AB58: 0 | AC58: 52 | AD58: 0 | AE58: 52 | AF58: 0 | AG58: 52 | AH58: 0 | AI58: 52 | AJ58: 0 | AK58: 52 | AL58: 0 | AM58: 52 | AN58: 0 | AO58: 52 | AP58: 0 | AQ58: 52 | AR58: 0 | AS58: 52 | AT58: 0 | AU58: 52 | AV58: 0 | AW58: 52 | AX58: 0 | AY58: 52 | AZ58: 0 | BA58: 52 | BB58: 0 | BC58: 52 | BD58: 0 | BE58: 52 | BF58: 0 | BG58: 52 | BH58: 0 | BI58: 52 | BJ58: 0 | BK58: 52 | BL58: 0 | BM58: 52 | BN58: 0 | BO58: 52 | BP58: 0 | BQ58: 52 | BR58: 0 | BS58: 52 | BT58: 0 | BU58: 52 | BV58: 0 | BW58: 52 | BX58: 0 | BY58: 52 | BZ58: 0 | CA58: 52 | CB58: 0 | CC58: 52 | CD58: 0 | CE58: 52 | CF58: 0 | CG58: 52 | CH58: 0 | CI58: 52 | CJ58: 0 | CK58: 52 | CL58: 0 | CM58: 52 | CN58: 0 | CO58: 52 | CP58: 0 | CQ58: 52 | CR58: 0 | CS58: 52 | CT58: 0 | CU58: 52 | CV58: 0 | CW58: 52 | CX58: 0 | CY58: 52 | CZ58: 0 | DA58: 52 | DB58: 0 | DC58: 52 | DD58: 0 | DE58: 52 | DF58: 0 | DG58: 52 | DH58: 0 | DI58: 52 | DJ58: 0 | DK58: 52 | DL58: 0 | DM58: 52 | DN58: 0 | DO58: 52 | DP58: 0 | DQ58: 52 | DR58: 0 | DS58: 52 | DT58: 0 | DU58: 52 | DV58: 0 | DW58: 52 | DX58: 0 | DY58: 52 | DZ58: 0 | EA58: 52 | EB58: 0 | EC58: 52 | ED58: 0 | EE58: 52 | EF58: 0 | EG58: 52 | EH58: 0 | EI58: 52 | EJ58: 0 | EK58: 52 | EL58: 0 | EM58: 52 | EN58: 0 | EO58: 52 | EP58: 0 | EQ58: 52 | ER58: 0 | ES58: 52 | ET58: 0 | EU58: 52 | EV58: 0 | EW58: 52 | EX58: 0 | EY58: 52 | EZ58: 0 | FA58: 52 | FB58: 0 | FC58: 52 | FD58: 0 | FE58: 52 | FF58: 0 | FG58: 52 | FH58: 0 | FI58: 52 | FJ58: 0 | FK58: 52 | FL58: 0 | FM58: 52 | FN58: 0 | FO58: 52 | FP58: 0 | FQ58: 52 | FR58: 0 | FS58: 52 | FT58: 0 | FU58: 52 | FV58: 0 | FW58: 52 | FX58: 0 | FY58: 52 | FZ58: 0 | GA58: 52 | GB58: 0 | GC58: 52 | GD58: 0 | GE58: 52 | GF58: 0 | GG58: 52 | GH58: 0 | GI58: 52 | GJ58: 0 | GK58: 52 | GL58: 0 | GM58: 52 | GN58: 0 | GO58: 52 | GP58: 0 | GQ58: 52 | GR58: 0
A59: 53 | B59: 0 | C59: 53 | D59: 0 | E59: 53 | F59: 0 | G59: 53 | H59: 0 | I59: 53 | J59: 0 | K59: 53 | L59: 0 | M59: 53 | N59: 0 | O59: 53 | P59: 0 | Q59: 53 | R59: 0 | S59: 53 | T59: 0 | U59: 53 | V59: 0 | W59: 53 | X59: 0 | Y59: 53 | Z59: 0 | AA59: 53 | AB59: 0 | AC59: 53 | AD59: 0 | AE59: 53 | AF59: 0 | AG59: 53 | AH59: 0 | AI59: 53 | AJ59: 0 | AK59: 53 | AL59: 0 | AM59: 53 | AN59: 0 | AO59: 53 | AP59: 0 | AQ59: 53 | AR59: 0 | AS59: 53 | AT59: 0 | AU59: 53 | AV59: 0 | AW59: 53 | AX59: 0 | AY59: 53 | AZ59: 0 | BA59: 53 | BB59: 0 | BC59: 53 | BD59: 0 | BE59: 53 | BF59: 0 | BG59: 53 | BH59: 0 | BI59: 53 | BJ59: 0 | BK59: 53 | BL59: 0 | BM59: 53 | BN59: 0 | BO59: 53 | BP59: 0 | BQ59: 53 | BR59: 0 | BS59: 53 | BT59: 0 | BU59: 53 | BV59: 0 | BW59: 53 | BX59: 0 | BY59: 53 | BZ59: 0 | CA59: 53 | CB59: 0 | CC59: 53 | CD59: 0 | CE59: 53 | CF59: 0 | CG59: 53 | CH59: 0 | CI59: 53 | CJ59: 0 | CK59: 53 | CL59: 0 | CM59: 53 | CN59: 0 | CO59: 53 | CP59: 0 | CQ59: 53 | CR59: 0 | CS59: 53 | CT59: 0 | CU59: 53 | CV59: 0 | CW59: 53 | CX59: 0 | CY59: 53 | CZ59: 0 | DA59: 53 | DB59: 0 | DC59: 53 | DD59: 0 | DE59: 53 | DF59: 0 | DG59: 53 | DH59: 0 | DI59: 53 | DJ59: 0 | DK59: 53 | DL59: 0 | DM59: 53 | DN59: 0 | DO59: 53 | DP59: 0 | DQ59: 53 | DR59: 0 | DS59: 53 | DT59: 0 | DU59: 53 | DV59: 0 | DW59: 53 | DX59: 0 | DY59: 53 | DZ59: 0 | EA59: 53 | EB59: 0 | EC59: 53 | ED59: 0 | EE59: 53 | EF59: 0 | EG59: 53 | EH59: 0 | EI59: 53 | EJ59: 0 | EK59: 53 | EL59: 0 | EM59: 53 | EN59: 0 | EO59: 53 | EP59: 0 | EQ59: 53 | ER59: 0 | ES59: 53 | ET59: 0 | EU59: 53 | EV59: 0 | EW59: 53 | EX59: 0 | EY59: 53 | EZ59: 0 | FA59: 53 | FB59: 0 | FC59: 53 | FD59: 0 | FE59: 53 | FF59: 0 | FG59: 53 | FH59: 0 | FI59: 53 | FJ59: 0 | FK59: 53 | FL59: 0 | FM59: 53 | FN59: 0 | FO59: 53 | FP59: 0 | FQ59: 53 | FR59: 0 | FS59: 53 | FT59: 0 | FU59: 53 | FV59: 0 | FW59: 53 | FX59: 0 | FY59: 53 | FZ59: 0 | GA59: 53 | GB59: 0 | GC59: 53 | GD59: 0 | GE59: 53 | GF59: 0 | GG59: 53 | GH59: 0 | GI59: 53 | GJ59: 0 | GK59: 53 | GL59: 0 | GM59: 53 | GN59: 0 | GO59: 53 | GP59: 0 | GQ59: 53 | GR59: 0
A60: 54 | B60: 0 | C60: 54 | D60: 0 | E60: 54 | F60: 0 | G60: 54 | H60: 0 | I60: 54 | J60: 0 | K60: 54 | L60: 0 | M60: 54 | N60: 0 | O60: 54 | P60: 0 | Q60: 54 | R60: 0 | S60: 54 | T60: 0 | U60: 54 | V60: 0 | W60: 54 | X60: 0 | Y60: 54 | Z60: 0 | AA60: 54 | AB60: 0 | AC60: 54 | AD60: 0 | AE60: 54 | AF60: 0 | AG60: 54 | AH60: 0 | AI60: 54 | AJ60: 0 | AK60: 54 | AL60: 0 | AM60: 54 | AN60: 0 | AO60: 54 | AP60: 0 | AQ60: 54 | AR60: 0 | AS60: 54 | AT60: 0 | AU60: 54 | AV60: 0 | AW60: 54 | AX60: 0 | AY60: 54 | AZ60: 0 | BA60: 54 | BB60: 0 | BC60: 54 | BD60: 0 | BE60: 54 | BF60: 0 | BG60: 54 | BH60: 0 | BI60: 54 | BJ60: 0 | BK60: 54 | BL60: 0 | BM60: 54 | BN60: 0 | BO60: 54 | BP60: 0 | BQ60: 54 | BR60: 0 | BS60: 54 | BT60: 0 | BU60: 54 | BV60: 0 | BW60: 54 | BX60: 0 | BY60: 54 | BZ60: 0 | CA60: 54 | CB60: 0 | CC60: 54 | CD60: 0 | CE60: 54 | CF60: 0 | CG60: 54 | CH60: 0 | CI60: 54 | CJ60: 0 | CK60: 54 | CL60: 0 | CM60: 54 | CN60: 0 | CO60: 54 | CP60: 0 | CQ60: 54 | CR60: 0 | CS60: 54 | CT60: 0 | CU60: 54 | CV60: 0 | CW60: 54 | CX60: 0 | CY60: 54 | CZ60: 0 | DA60: 54 | DB60: 0 | DC60: 54 | DD60: 0 | DE60: 54 | DF60: 0 | DG60: 54 | DH60: 0 | DI60: 54 | DJ60: 0 | DK60: 54 | DL60: 0 | DM60: 54 | DN60: 0 | DO60: 54 | DP60: 0 | DQ60: 54 | DR60: 0 | DS60: 54 | DT60: 0 | DU60: 54 | DV60: 0 | DW60: 54 | DX60: 0 | DY60: 54 | DZ60: 0 | EA60: 54 | EB60: 0 | EC60: 54 | ED60: 0 | EE60: 54 | EF60: 0 | EG60: 54 | EH60: 0 | EI60: 54 | EJ60: 0 | EK60: 54 | EL60: 0 | EM60: 54 | EN60: 0 | EO60: 54 | EP60: 0 | EQ60: 54 | ER60: 0 | ES60: 54 | ET60: 0 | EU60: 54 | EV60: 0 | EW60: 54 | EX60: 0 | EY60: 54 | EZ60: 0 | FA60: 54 | FB60: 0 | FC60: 54 | FD60: 0 | FE60: 54 | FF60: 0 | FG60: 54 | FH60: 0 | FI60: 54 | FJ60: 0 | FK60: 54 | FL60: 0 | FM60: 54 | FN60: 0 | FO60: 54 | FP60: 0 | FQ60: 54 | FR60: 0 | FS60: 54 | FT60: 0 | FU60: 54 | FV60: 0 | FW60: 54 | FX60: 0 | FY60: 54 | FZ60: 0 | GA60: 54 | GB60: 0 | GC60: 54 | GD60: 0 | GE60: 54 | GF60: 0 | GG60: 54 | GH60: 0 | GI60: 54 | GJ60: 0 | GK60: 54 | GL60: 0 | GM60: 54 | GN60: 0 | GO60: 54 | GP60: 0 | GQ60: 54 | GR60: 0
A61: 55 | B61: 0 | C61: 55 | D61: 0 | E61: 55 | F61: 0 | G61: 55 | H61: 0 | I61: 55 | J61: 0 | K61: 55 | L61: 0 | M61: 55 | N61: 0 | O61: 55 | P61: 0 | Q61: 55 | R61: 0 | S61: 55 | T61: 0 | U61: 55 | V61: 0 | W61: 55 | X61: 0 | Y61: 55 | Z61: 0 | AA61: 55 | AB61: 0 | AC61: 55 | AD61: 0 | AE61: 55 | AF61: 0 | AG61: 55 | AH61: 0 | AI61: 55 | AJ61: 0 | AK61: 55 | AL61: 0 | AM61: 55 | AN61: 0 | AO61: 55 | AP61: 0 | AQ61: 55 | AR61: 0 | AS61: 55 | AT61: 0 | AU61: 55 | AV61: 0 | AW61: 55 | AX61: 0 | AY61: 55 | AZ61: 0 | BA61: 55 | BB61: 0 | BC61: 55 | BD61: 0 | BE61: 55 | BF61: 0 | BG61: 55 | BH61: 0 | BI61: 55 | BJ61: 0 | BK61: 55 | BL61: 0 | BM61: 55 | BN61: 0 | BO61: 55 | BP61: 0 | BQ61: 55 | BR61: 0 | BS61: 55 | BT61: 0 | BU61: 55 | BV61: 0 | BW61: 55 | BX61: 0 | BY61: 55 | BZ61: 0 | CA61: 55 | CB61: 0 | CC61: 55 | CD61: 0 | CE61: 55 | CF61: 0 | CG61: 55 | CH61: 0 | CI61: 55 | CJ61: 0 | CK61: 55 | CL61: 0 | CM61: 55 | CN61: 0 | CO61: 55 | CP61: 0 | CQ61: 55 | CR61: 0 | CS61: 55 | CT61: 0 | CU61: 55 | CV61: 0 | CW61: 55 | CX61: 0 | CY61: 55 | CZ61: 0 | DA61: 55 | DB61: 0 | DC61: 55 | DD61: 0 | DE61: 55 | DF61: 0 | DG61: 55 | DH61: 0 | DI61: 55 | DJ61: 0 | DK61: 55 | DL61: 0 | DM61: 55 | DN61: 0 | DO61: 55 | DP61: 0 | DQ61: 55 | DR61: 0 | DS61: 55 | DT61: 0 | DU61: 55 | DV61: 0 | DW61: 55 | DX61: 0 | DY61: 55 | DZ61: 0 | EA61: 55 | EB61: 0 | EC61: 55 | ED61: 0 | EE61: 55 | EF61: 0 | EG61: 55 | EH61: 0 | EI61: 55 | EJ61: 0 | EK61: 55 | EL61: 0 | EM61: 55 | EN61: 0 | EO61: 55 | EP61: 0 | EQ61: 55 | ER61: 0 | ES61: 55 | ET61: 0 | EU61: 55 | EV61: 0 | EW61: 55 | EX61: 0 | EY61: 55 | EZ61: 0 | FA61: 55 | FB61: 0 | FC61: 55 | FD61: 0 | FE61: 55 | FF61: 0 | FG61: 55 | FH61: 0 | FI61: 55 | FJ61: 0 | FK61: 55 | FL61: 0 | FM61: 55 | FN61: 0 | FO61: 55 | FP61: 0 | FQ61: 55 | FR61: 0 | FS61: 55 | FT61: 0 | FU61: 55 | FV61: 0 | FW61: 55 | FX61: 0 | FY61: 55 | FZ61: 0 | GA61: 55 | GB61: 0 | GC61: 55 | GD61: 0 | GE61: 55 | GF61: 0 | GG61: 55 | GH61: 0 | GI61: 55 | GJ61: 0 | GK61: 55 | GL61: 0 | GM61: 55 | GN61: 0 | GO61: 55 | GP61: 0 | GQ61: 55 | GR61: 0
A62: 56 | B62: 0 | C62: 56 | D62: 0 | E62: 56 | F62: 0 | G62: 56 | H62: 0 | I62: 56 | J62: 0 | K62: 56 | L62: 0 | M62: 56 | N62: 0 | O62: 56 | P62: 0 | Q62: 56 | R62: 0 | S62: 56 | T62: 0 | U62: 56 | V62: 0 | W62: 56 | X62: 0 | Y62: 56 | Z62: 0 | AA62: 56 | AB62: 0 | AC62: 56 | AD62: 0 | AE62: 56 | AF62: 0 | AG62: 56 | AH62: 0 | AI62: 56 | AJ62: 0 | AK62: 56 | AL62: 0 | AM62: 56 | AN62: 0 | AO62: 56 | AP62: 0 | AQ62: 56 | AR62: 0 | AS62: 56 | AT62: 0 | AU62: 56 | AV62: 0 | AW62: 56 | AX62: 0 | AY62: 56 | AZ62: 0 | BA62: 56 | BB62: 0 | BC62: 56 | BD62: 0 | BE62: 56 | BF62: 0 | BG62: 56 | BH62: 0 | BI62: 56 | BJ62: 0 | BK62: 56 | BL62: 0 | BM62: 56 | BN62: 0 | BO62: 56 | BP62: 0 | BQ62: 56 | BR62: 0 | BS62: 56 | BT62: 0 | BU62: 56 | BV62: 0 | BW62: 56 | BX62: 0 | BY62: 56 | BZ62: 0 | CA62: 56 | CB62: 0 | CC62: 56 | CD62: 0 | CE62: 56 | CF62: 0 | CG62: 56 | CH62: 0 | CI62: 56 | CJ62: 0 | CK62: 56 | CL62: 0 | CM62: 56 | CN62: 0 | CO62: 56 | CP62: 0 | CQ62: 56 | CR62: 0 | CS62: 56 | CT62: 0 | CU62: 56 | CV62: 0 | CW62: 56 | CX62: 0 | CY62: 56 | CZ62: 0 | DA62: 56 | DB62: 0 | DC62: 56 | DD62: 0 | DE62: 56 | DF62: 0 | DG62: 56 | DH62: 0 | DI62: 56 | DJ62: 0 | DK62: 56 | DL62: 0 | DM62: 56 | DN62: 0 | DO62: 56 | DP62: 0 | DQ62: 56 | DR62: 0 | DS62: 56 | DT62: 0 | DU62: 56 | DV62: 0 | DW62: 56 | DX62: 0 | DY62: 56 | DZ62: 0 | EA62: 56 | EB62: 0 | EC62: 56 | ED62: 0 | EE62: 56 | EF62: 0 | EG62: 56 | EH62: 0 | EI62: 56 | EJ62: 0 | EK62: 56 | EL62: 0 | EM62: 56 | EN62: 0 | EO62: 56 | EP62: 0 | EQ62: 56 | ER62: 0 | ES62: 56 | ET62: 0 | EU62: 56 | EV62: 0 | EW62: 56 | EX62: 0 | EY62: 56 | EZ62: 0 | FA62: 56 | FB62: 0 | FC62: 56 | FD62: 0 | FE62: 56 | FF62: 0 | FG62: 56 | FH62: 0 | FI62: 56 | FJ62: 0 | FK62: 56 | FL62: 0 | FM62: 56 | FN62: 0 | FO62: 56 | FP62: 0 | FQ62: 56 | FR62: 0 | FS62: 56 | FT62: 0 | FU62: 56 | FV62: 0 | FW62: 56 | FX62: 0 | FY62: 56 | FZ62: 0 | GA62: 56 | GB62: 0 | GC62: 56 | GD62: 0 | GE62: 56 | GF62: 0 | GG62: 56 | GH62: 0 | GI62: 56 | GJ62: 0 | GK62: 56 | GL62: 0 | GM62: 56 | GN62: 0 | GO62: 56 | GP62: 0 | GQ62: 56 | GR62: 0
A63: 57 | B63: 0 | C63: 57 | D63: 0 | E63: 57 | F63: 0 | G63: 57 | H63: 0 | I63: 57 | J63: 0 | K63: 57 | L63: 0 | M63: 57 | N63: 0 | O63: 57 | P63: 0 | Q63: 57 | R63: 0 | S63: 57 | T63: 0 | U63: 57 | V63: 0 | W63: 57 | X63: 0 | Y63: 57 | Z63: 0 | AA63: 57 | AB63: 0 | AC63: 57 | AD63: 0 | AE63: 57 | AF63: 0 | AG63: 57 | AH63: 0 | AI63: 57 | AJ63: 0 | AK63: 57 | AL63: 0 | AM63: 57 | AN63: 0 | AO63: 57 | AP63: 0 | AQ63: 57 | AR63: 0 | AS63: 57 | AT63: 0 | AU63: 57 | AV63: 0 | AW63: 57 | AX63: 0 | AY63: 57 | AZ63: 0 | BA63: 57 | BB63: 0 | BC63: 57 | BD63: 0 | BE63: 57 | BF63: 0 | BG63: 57 | BH63: 0 | BI63: 57 | BJ63: 0 | BK63: 57 | BL63: 0 | BM63: 57 | BN63: 0 | BO63: 57 | BP63: 0 | BQ63: 57 | BR63: 0 | BS63: 57 | BT63: 0 | BU63: 57 | BV63: 0 | BW63: 57 | BX63: 0 | BY63: 57 | BZ63: 0 | CA63: 57 | CB63: 0 | CC63: 57 | CD63: 0 | CE63: 57 | CF63: 0 | CG63: 57 | CH63: 0 | CI63: 57 | CJ63: 0 | CK63: 57 | CL63: 0 | CM63: 57 | CN63: 0 | CO63: 57 | CP63: 0 | CQ63: 57 | CR63: 0 | CS63: 57 | CT63: 0 | CU63: 57 | CV63: 0 | CW63: 57 | CX63: 0 | CY63: 57 | CZ63: 0 | DA63: 57 | DB63: 0 | DC63: 57 | DD63: 0 | DE63: 57 | DF63: 0 | DG63: 57 | DH63: 0 | DI63: 57 | DJ63: 0 | DK63: 57 | DL63: 0 | DM63: 57 | DN63: 0 | DO63: 57 | DP63: 0 | DQ63: 57 | DR63: 0 | DS63: 57 | DT63: 0 | DU63: 57 | DV63: 0 | DW63: 57 | DX63: 0 | DY63: 57 | DZ63: 0 | EA63: 57 | EB63: 0 | EC63: 57 | ED63: 0 | EE63: 57 | EF63: 0 | EG63: 57 | EH63: 0 | EI63: 57 | EJ63: 0 | EK63: 57 | EL63: 0 | EM63: 57 | EN63: 0 | EO63: 57 | EP63: 0 | EQ63: 57 | ER63: 0 | ES63: 57 | ET63: 0 | EU63: 57 | EV63: 0 | EW63: 57 | EX63: 0 | EY63: 57 | EZ63: 0 | FA63: 57 | FB63: 0 | FC63: 57 | FD63: 0 | FE63: 57 | FF63: 0 | FG63: 57 | FH63: 0 | FI63: 57 | FJ63: 0 | FK63: 57 | FL63: 0 | FM63: 57 | FN63: 0 | FO63: 57 | FP63: 0 | FQ63: 57 | FR63: 0 | FS63: 57 | FT63: 0 | FU63: 57 | FV63: 0 | FW63: 57 | FX63: 0 | FY63: 57 | FZ63: 0 | GA63: 57 | GB63: 0 | GC63: 57 | GD63: 0 | GE63: 57 | GF63: 0 | GG63: 57 | GH63: 0 | GI63: 57 | GJ63: 0 | GK63: 57 | GL63: 0 | GM63: 57 | GN63: 0 | GO63: 57 | GP63: 0 | GQ63: 57 | GR63: 0
A64: 58 | B64: 0 | C64: 58 | D64: 0 | E64: 58 | F64: 0 | G64: 58 | H64: 0 | I64: 58 | J64: 0 | K64: 58 | L64: 0 | M64: 58 | N64: 0 | O64: 58 | P64: 0 | Q64: 58 | R64: 0 | S64: 58 | T64: 0 | U64: 58 | V64: 0 | W64: 58 | X64: 0 | Y64: 58 | Z64: 0 | AA64: 58 | AB64: 0 | AC64: 58 | AD64: 0 | AE64: 58 | AF64: 0 | AG64: 58 | AH64: 0 | AI64: 58 | AJ64: 0 | AK64: 58 | AL64: 0 | AM64: 58 | AN64: 0 | AO64: 58 | AP64: 0 | AQ64: 58 | AR64: 0 | AS64: 58 | AT64: 0 | AU64: 58 | AV64: 0 | AW64: 58 | AX64: 0 | AY64: 58 | AZ64: 0 | BA64: 58 | BB64: 0 | BC64: 58 | BD64: 0 | BE64: 58 | BF64: 0 | BG64: 58 | BH64: 0 | BI64: 58 | BJ64: 0 | BK64: 58 | BL64: 0 | BM64: 58 | BN64: 0 | BO64: 58 | BP64: 0 | BQ64: 58 | BR64: 0 | BS64: 58 | BT64: 0 | BU64: 58 | BV64: 0 | BW64: 58 | BX64: 0 | BY64: 58 | BZ64: 0 | CA64: 58 | CB64: 0 | CC64: 58 | CD64: 0 | CE64: 58 | CF64: 0 | CG64: 58 | CH64: 0 | CI64: 58 | CJ64: 0 | CK64: 58 | CL64: 0 | CM64: 58 | CN64: 0 | CO64: 58 | CP64: 0 | CQ64: 58 | CR64: 0 | CS64: 58 | CT64: 0 | CU64: 58 | CV64: 0 | CW64: 58 | CX64: 0 | CY64: 58 | CZ64: 0 | DA64: 58 | DB64: 0 | DC64: 58 | DD64: 0 | DE64: 58 | DF64: 0 | DG64: 58 | DH64: 0 | DI64: 58 | DJ64: 0 | DK64: 58 | DL64: 0 | DM64: 58 | DN64: 0 | DO64: 58 | DP64: 0 | DQ64: 58 | DR64: 0 | DS64: 58 | DT64: 0 | DU64: 58 | DV64: 0 | DW64: 58 | DX64: 0 | DY64: 58 | DZ64: 0 | EA64: 58 | EB64: 0 | EC64: 58 | ED64: 0 | EE64: 58 | EF64: 0 | EG64: 58 | EH64: 0 | EI64: 58 | EJ64: 0 | EK64: 58 | EL64: 0 | EM64: 58 | EN64: 0 | EO64: 58 | EP64: 0 | EQ64: 58 | ER64: 0 | ES64: 58 | ET64: 0 | EU64: 58 | EV64: 0 | EW64: 58 | EX64: 0 | EY64: 58 | EZ64: 0 | FA64: 58 | FB64: 0 | FC64: 58 | FD64: 0 | FE64: 58 | FF64: 0 | FG64: 58 | FH64: 0 | FI64: 58 | FJ64: 0 | FK64: 58 | FL64: 0 | FM64: 58 | FN64: 0 | FO64: 58 | FP64: 0 | FQ64: 58 | FR64: 0 | FS64: 58 | FT64: 0 | FU64: 58 | FV64: 0 | FW64: 58 | FX64: 0 | FY64: 58 | FZ64: 0 | GA64: 58 | GB64: 0 | GC64: 58 | GD64: 0 | GE64: 58 | GF64: 0 | GG64: 58 | GH64: 0 | GI64: 58 | GJ64: 0 | GK64: 58 | GL64: 0 | GM64: 58 | GN64: 0 | GO64: 58 | GP64: 0 | GQ64: 58 | GR64: 0
A65: 59 | B65: 0 | C65: 59 | D65: 0 | E65: 59 | F65: 0 | G65: 59 | H65: 0 | I65: 59 | J65: 0 | K65: 59 | L65: 0 | M65: 59 | N65: 0 | O65: 59 | P65: 0 | Q65: 59 | R65: 0 | S65: 59 | T65: 0 | U65: 59 | V65: 0 | W65: 59 | X65: 0 | Y65: 59 | Z65: 0 | AA65: 59 | AB65: 0 | AC65: 59 | AD65: 0 | AE65: 59 | AF65: 0 | AG65: 59 | AH65: 0 | AI65: 59 | AJ65: 0 | AK65: 59 | AL65: 0 | AM65: 59 | AN65: 0 | AO65: 59 | AP65: 0 | AQ65: 59 | AR65: 0 | AS65: 59 | AT65: 0 | AU65: 59 | AV65: 0 | AW65: 59 | AX65: 0 | AY65: 59 | AZ65: 0 | BA65: 59 | BB65: 0 | BC65: 59 | BD65: 0 | BE65: 59 | BF65: 0 | BG65: 59 | BH65: 0 | BI65: 59 | BJ65: 0 | BK65: 59 | BL65: 0 | BM65: 59 | BN65: 0 | BO65: 59 | BP65: 0 | BQ65: 59 | BR65: 0 | BS65: 59 | BT65: 0 | BU65: 59 | BV65: 0 | BW65: 59 | BX65: 0 | BY65: 59 | BZ65: 0 | CA65: 59 | CB65: 0 | CC65: 59 | CD65: 0 | CE65: 59 | CF65: 0 | CG65: 59 | CH65: 0 | CI65: 59 | CJ65: 0 | CK65: 59 | CL65: 0 | CM65: 59 | CN65: 0 | CO65: 59 | CP65: 0 | CQ65: 59 | CR65: 0 | CS65: 59 | CT65: 0 | CU65: 59 | CV65: 0 | CW65: 59 | CX65: 0 | CY65: 59 | CZ65: 0 | DA65: 59 | DB65: 0 | DC65: 59 | DD65: 0 | DE65: 59 | DF65: 0 | DG65: 59 | DH65: 0 | DI65: 59 | DJ65: 0 | DK65: 59 | DL65: 0 | DM65: 59 | DN65: 0 | DO65: 59 | DP65: 0 | DQ65: 59 | DR65: 0 | DS65: 59 | DT65: 0 | DU65: 59 | DV65: 0 | DW65: 59 | DX65: 0 | DY65: 59 | DZ65: 0 | EA65: 59 | EB65: 0 | EC65: 59 | ED65: 0 | EE65: 59 | EF65: 0 | EG65: 59 | EH65: 0 | EI65: 59 | EJ65: 0 | EK65: 59 | EL65: 0 | EM65: 59 | EN65: 0 | EO65: 59 | EP65: 0 | EQ65: 59 | ER65: 0 | ES65: 59 | ET65: 0 | EU65: 59 | EV65: 0 | EW65: 59 | EX65: 0 | EY65: 59 | EZ65: 0 | FA65: 59 | FB65: 0 | FC65: 59 | FD65: 0 | FE65: 59 | FF65: 0 | FG65: 59 | FH65: 0 | FI65: 59 | FJ65: 0 | FK65: 59 | FL65: 0 | FM65: 59 | FN65: 0 | FO65: 59 | FP65: 0 | FQ65: 59 | FR65: 0 | FS65: 59 | FT65: 0 | FU65: 59 | FV65: 0 | FW65: 59 | FX65: 0 | FY65: 59 | FZ65: 0 | GA65: 59 | GB65: 0 | GC65: 59 | GD65: 0 | GE65: 59 | GF65: 0 | GG65: 59 | GH65: 0 | GI65: 59 | GJ65: 0 | GK65: 59 | GL65: 0 | GM65: 59 | GN65: 0 | GO65: 59 | GP65: 0 | GQ65: 59 | GR65: 0
A66: 60 | B66: 0 | C66: 60 | D66: 0 | E66: 60 | F66: 0 | G66: 60 | H66: 0 | I66: 60 | J66: 0 | K66: 60 | L66: 0 | M66: 60 | N66: 0 | O66: 60 | P66: 0 | Q66: 60 | R66: 0 | S66: 60 | T66: 0 | U66: 60 | V66: 0 | W66: 60 | X66: 0 | Y66: 60 | Z66: 0 | AA66: 60 | AB66: 0 | AC66: 60 | AD66: 0 | AE66: 60 | AF66: 0 | AG66: 60 | AH66: 0 | AI66: 60 | AJ66: 0 | AK66: 60 | AL66: 0 | AM66: 60 | AN66: 0 | AO66: 60 | AP66: 0 | AQ66: 60 | AR66: 0 | AS66: 60 | AT66: 0 | AU66: 60 | AV66: 0 | AW66: 60 | AX66: 0 | AY66: 60 | AZ66: 0 | BA66: 60 | BB66: 0 | BC66: 60 | BD66: 0 | BE66: 60 | BF66: 0 | BG66: 60 | BH66: 0 | BI66: 60 | BJ66: 0 | BK66: 60 | BL66: 0 | BM66: 60 | BN66: 0 | BO66: 60 | BP66: 0 | BQ66: 60 | BR66: 0 | BS66: 60 | BT66: 0 | BU66: 60 | BV66: 0 | BW66: 60 | BX66: 0 | BY66: 60 | BZ66: 0 | CA66: 60 | CB66: 0 | CC66: 60 | CD66: 0 | CE66: 60 | CF66: 0 | CG66: 60 | CH66: 0 | CI66: 60 | CJ66: 0 | CK66: 60 | CL66: 0 | CM66: 60 | CN66: 0 | CO66: 60 | CP66: 0 | CQ66: 60 | CR66: 0 | CS66: 60 | CT66: 0 | CU66: 60 | CV66: 0 | CW66: 60 | CX66: 0 | CY66: 60 | CZ66: 0 | DA66: 60 | DB66: 0 | DC66: 60 | DD66: 0 | DE66: 60 | DF66: 0 | DG66: 60 | DH66: 0 | DI66: 60 | DJ66: 0 | DK66: 60 | DL66: 0 | DM66: 60 | DN66: 0 | DO66: 60 | DP66: 0 | DQ66: 60 | DR66: 0 | DS66: 60 | DT66: 0 | DU66: 60 | DV66: 0 | DW66: 60 | DX66: 0 | DY66: 60 | DZ66: 0 | EA66: 60 | EB66: 0 | EC66: 60 | ED66: 0 | EE66: 60 | EF66: 0 | EG66: 60 | EH66: 0 | EI66: 60 | EJ66: 0 | EK66: 60 | EL66: 0 | EM66: 60 | EN66: 0 | EO66: 60 | EP66: 0 | EQ66: 60 | ER66: 0 | ES66: 60 | ET66: 0 | EU66: 60 | EV66: 0 | EW66: 60 | EX66: 0 | EY66: 60 | EZ66: 0 | FA66: 60 | FB66: 0 | FC66: 60 | FD66: 0 | FE66: 60 | FF66: 0 | FG66: 60 | FH66: 0 | FI66: 60 | FJ66: 0 | FK66: 60 | FL66: 0 | FM66: 60 | FN66: 0 | FO66: 60 | FP66: 0 | FQ66: 60 | FR66: 0 | FS66: 60 | FT66: 0 | FU66: 60 | FV66: 0 | FW66: 60 | FX66: 0 | FY66: 60 | FZ66: 0 | GA66: 60 | GB66: 0 | GC66: 60 | GD66: 0 | GE66: 60 | GF66: 0 | GG66: 60 | GH66: 0 | GI66: 60 | GJ66: 0 | GK66: 60 | GL66: 0 | GM66: 60 | GN66: 0 | GO66: 60 | GP66: 0 | GQ66: 60 | GR66: 0
A67: 61 | B67: 0 | C67: 61 | D67: 0 | E67: 61 | F67: 0 | G67: 61 | H67: 0 | I67: 61 | J67: 0 | K67: 61 | L67: 0 | M67: 61 | N67: 0 | O67: 61 | P67: 0 | Q67: 61 | R67: 0 | S67: 61 | T67: 0 | U67: 61 | V67: 0 | W67: 61 | X67: 0 | Y67: 61 | Z67: 0 | AA67: 61 | AB67: 0 | AC67: 61 | AD67: 0 | AE67: 61 | AF67: 0 | AG67: 61 | AH67: 0 | AI67: 61 | AJ67: 0 | AK67: 61 | AL67: 0 | AM67: 61 | AN67: 0 | AO67: 61 | AP67: 0 | AQ67: 61 | AR67: 0 | AS67: 61 | AT67: 0 | AU67: 61 | AV67: 0 | AW67: 61 | AX67: 0 | AY67: 61 | AZ67: 0 | BA67: 61 | BB67: 0 | BC67: 61 | BD67: 0 | BE67: 61 | BF67: 0 | BG67: 61 | BH67: 0 | BI67: 61 | BJ67: 0 | BK67: 61 | BL67: 0 | BM67: 61 | BN67: 0 | BO67: 61 | BP67: 0 | BQ67: 61 | BR67: 0 | BS67: 61 | BT67: 0 | BU67: 61 | BV67: 0 | BW67: 61 | BX67: 0 | BY67: 61 | BZ67: 0 | CA67: 61 | CB67: 0 | CC67: 61 | CD67: 0 | CE67: 61 | CF67: 0 | CG67: 61 | CH67: 0 | CI67: 61 | CJ67: 0 | CK67: 61 | CL67: 0 | CM67: 61 | CN67: 0 | CO67: 61 | CP67: 0 | CQ67: 61 | CR67: 0 | CS67: 61 | CT67: 0 | CU67: 61 | CV67: 0 | CW67: 61 | CX67: 0 | CY67: 61 | CZ67: 0 | DA67: 61 | DB67: 0 | DC67: 61 | DD67: 0 | DE67: 61 | DF67: 0 | DG67: 61 | DH67: 0 | DI67: 61 | DJ67: 0 | DK67: 61 | DL67: 0 | DM67: 61 | DN67: 0 | DO67: 61 | DP67: 0 | DQ67: 61 | DR67: 0 | DS67: 61 | DT67: 0 | DU67: 61 | DV67: 0 | DW67: 61 | DX67: 0 | DY67: 61 | DZ67: 0 | EA67: 61 | EB67: 0 | EC67: 61 | ED67: 0 | EE67: 61 | EF67: 0 | EG67: 61 | EH67: 0 | EI67: 61 | EJ67: 0 | EK67: 61 | EL67: 0 | EM67: 61 | EN67: 0 | EO67: 61 | EP67: 0 | EQ67: 61 | ER67: 0 | ES67: 61 | ET67: 0 | EU67: 61 | EV67: 0 | EW67: 61 | EX67: 0 | EY67: 61 | EZ67: 0 | FA67: 61 | FB67: 0 | FC67: 61 | FD67: 0 | FE67: 61 | FF67: 0 | FG67: 61 | FH67: 0 | FI67: 61 | FJ67: 0 | FK67: 61 | FL67: 0 | FM67: 61 | FN67: 0 | FO67: 61 | FP67: 0 | FQ67: 61 | FR67: 0 | FS67: 61 | FT67: 0 | FU67: 61 | FV67: 0 | FW67: 61 | FX67: 0 | FY67: 61 | FZ67: 0 | GA67: 61 | GB67: 0 | GC67: 61 | GD67: 0 | GE67: 61 | GF67: 0 | GG67: 61 | GH67: 0 | GI67: 61 | GJ67: 0 | GK67: 61 | GL67: 0 | GM67: 61 | GN67: 0 | GO67: 61 | GP67: 0 | GQ67: 61 | GR67: 0
A68: 62 | B68: 0 | C68: 62 | D68: 0 | E68: 62 | F68: 0 | G68: 62 | H68: 0 | I68: 62 | J68: 0 | K68: 62 | L68: 0 | M68: 62 | N68: 0 | O68: 62 | P68: 0 | Q68: 62 | R68: 0 | S68: 62 | T68: 0 | U68: 62 | V68: 0 | W68: 62 | X68: 0 | Y68: 62 | Z68: 0 | AA68: 62 | AB68: 0 | AC68: 62 | AD68: 0 | AE68: 62 | AF68: 0 | AG68: 62 | AH68: 0 | AI68: 62 | AJ68: 0 | AK68: 62 | AL68: 0 | AM68: 62 | AN68: 0 | AO68: 62 | AP68: 0 | AQ68: 62 | AR68: 0 | AS68: 62 | AT68: 0 | AU68: 62 | AV68: 0 | AW68: 62 | AX68: 0 | AY68: 62 | AZ68: 0 | BA68: 62 | BB68: 0 | BC68: 62 | BD68: 0 | BE68: 62 | BF68: 0 | BG68: 62 | BH68: 0 | BI68: 62 | BJ68: 0 | BK68: 62 | BL68: 0 | BM68: 62 | BN68: 0 | BO68: 62 | BP68: 0 | BQ68: 62 | BR68: 0 | BS68: 62 | BT68: 0 | BU68: 62 | BV68: 0 | BW68: 62 | BX68: 0 | BY68: 62 | BZ68: 0 | CA68: 62 | CB68: 0 | CC68: 62 | CD68: 0 | CE68: 62 | CF68: 0 | CG68: 62 | CH68: 0 | CI68: 62 | CJ68: 0 | CK68: 62 | CL68: 0 | CM68: 62 | CN68: 0 | CO68: 62 | CP68: 0 | CQ68: 62 | CR68: 0 | CS68: 62 | CT68: 0 | CU68: 62 | CV68: 0 | CW68: 62 | CX68: 0 | CY68: 62 | CZ68: 0 | DA68: 62 | DB68: 0 | DC68: 62 | DD68: 0 | DE68: 62 | DF68: 0 | DG68: 62 | DH68: 0 | DI68: 62 | DJ68: 0 | DK68: 62 | DL68: 0 | DM68: 62 | DN68: 0 | DO68: 62 | DP68: 0 | DQ68: 62 | DR68: 0 | DS68: 62 | DT68: 0 | DU68: 62 | DV68: 0 | DW68: 62 | DX68: 0 | DY68: 62 | DZ68: 0 | EA68: 62 | EB68: 0 | EC68: 62 | ED68: 0 | EE68: 62 | EF68: 0 | EG68: 62 | EH68: 0 | EI68: 62 | EJ68: 0 | EK68: 62 | EL68: 0 | EM68: 62 | EN68: 0 | EO68: 62 | EP68: 0 | EQ68: 62 | ER68: 0 | ES68: 62 | ET68: 0 | EU68: 62 | EV68: 0 | EW68: 62 | EX68: 0 | EY68: 62 | EZ68: 0 | FA68: 62 | FB68: 0 | FC68: 62 | FD68: 0 | FE68: 62 | FF68: 0 | FG68: 62 | FH68: 0 | FI68: 62 | FJ68: 0 | FK68: 62 | FL68: 0 | FM68: 62 | FN68: 0 | FO68: 62 | FP68: 0 | FQ68: 62 | FR68: 0 | FS68: 62 | FT68: 0 | FU68: 62 | FV68: 0 | FW68: 62 | FX68: 0 | FY68: 62 | FZ68: 0 | GA68: 62 | GB68: 0 | GC68: 62 | GD68: 0 | GE68: 62 | GF68: 0 | GG68: 62 | GH68: 0 | GI68: 62 | GJ68: 0 | GK68: 62 | GL68: 0 | GM68: 62 | GN68: 0 | GO68: 62 | GP68: 0 | GQ68: 62 | GR68: 0
A69: 63 | B69: 0 | C69: 63 | D69: 0 | E69: 63 | F69: 0 | G69: 63 | H69: 0 | I69: 63 | J69: 0 | K69: 63 | L69: 0 | M69: 63 | N69: 0 | O69: 63 | P69: 0 | Q69: 63 | R69: 0 | S69: 63 | T69: 0 | U69: 63 | V69: 0 | W69: 63 | X69: 0 | Y69: 63 | Z69: 0 | AA69: 63 | AB69: 0 | AC69: 63 | AD69: 0 | AE69: 63 | AF69: 0 | AG69: 63 | AH69: 0 | AI69: 63 | AJ69: 0 | AK69: 63 | AL69: 0 | AM69: 63 | AN69: 0 | AO69: 63 | AP69: 0 | AQ69: 63 | AR69: 0 | AS69: 63 | AT69: 0 | AU69: 63 | AV69: 0 | AW69: 63 | AX69: 0 | AY69: 63 | AZ69: 0 | BA69: 63 | BB69: 0 | BC69: 63 | BD69: 0 | BE69: 63 | BF69: 0 | BG69: 63 | BH69: 0 | BI69: 63 | BJ69: 0 | BK69: 63 | BL69: 0 | BM69: 63 | BN69: 0 | BO69: 63 | BP69: 0 | BQ69: 63 | BR69: 0 | BS69: 63 | BT69: 0 | BU69: 63 | BV69: 0 | BW69: 63 | BX69: 0 | BY69: 63 | BZ69: 0 | CA69: 63 | CB69: 0 | CC69: 63 | CD69: 0 | CE69: 63 | CF69: 0 | CG69: 63 | CH69: 0 | CI69: 63 | CJ69: 0 | CK69: 63 | CL69: 0 | CM69: 63 | CN69: 0 | CO69: 63 | CP69: 0 | CQ69: 63 | CR69: 0 | CS69: 63 | CT69: 0 | CU69: 63 | CV69: 0 | CW69: 63 | CX69: 0 | CY69: 63 | CZ69: 0 | DA69: 63 | DB69: 0 | DC69: 63 | DD69: 0 | DE69: 63 | DF69: 0 | DG69: 63 | DH69: 0 | DI69: 63 | DJ69: 0 | DK69: 63 | DL69: 0 | DM69: 63 | DN69: 0 | DO69: 63 | DP69: 0 | DQ69: 63 | DR69: 0 | DS69: 63 | DT69: 0 | DU69: 63 | DV69: 0 | DW69: 63 | DX69: 0 | DY69: 63 | DZ69: 0 | EA69: 63 | EB69: 0 | EC69: 63 | ED69: 0 | EE69: 63 | EF69: 0 | EG69: 63 | EH69: 0 | EI69: 63 | EJ69: 0 | EK69: 63 | EL69: 0 | EM69: 63 | EN69: 0 | EO69: 63 | EP69: 0 | EQ69: 63 | ER69: 0 | ES69: 63 | ET69: 0 | EU69: 63 | EV69: 0 | EW69: 63 | EX69: 0 | EY69: 63 | EZ69: 0 | FA69: 63 | FB69: 0 | FC69: 63 | FD69: 0 | FE69: 63 | FF69: 0 | FG69: 63 | FH69: 0 | FI69: 63 | FJ69: 0 | FK69: 63 | FL69: 0 | FM69: 63 | FN69: 0 | FO69: 63 | FP69: 0 | FQ69: 63 | FR69: 0 | FS69: 63 | FT69: 0 | FU69: 63 | FV69: 0 | FW69: 63 | FX69: 0 | FY69: 63 | FZ69: 0 | GA69: 63 | GB69: 0 | GC69: 63 | GD69: 0 | GE69: 63 | GF69: 0 | GG69: 63 | GH69: 0 | GI69: 63 | GJ69: 0 | GK69: 63 | GL69: 0 | GM69: 63 | GN69: 0 | GO69: 63 | GP69: 0 | GQ69: 63 | GR69: 0
A70: 64 | B70: 0 | C70: 64 | D70: 0 | E70: 64 | F70: 0 | G70: 64 | H70: 0 | I70: 64 | J70: 0 | K70: 64 | L70: 0 | M70: 64 | N70: 0 | O70: 64 | P70: 0 | Q70: 64 | R70: 0 | S70: 64 | T70: 0 | U70: 64 | V70: 0 | W70: 64 | X70: 0 | Y70: 64 | Z70: 0 | AA70: 64 | AB70: 0 | AC70: 64 | AD70: 0 | AE70: 64 | AF70: 0 | AG70: 64 | AH70: 0 | AI70: 64 | AJ70: 0 | AK70: 64 | AL70: 0 | AM70: 64 | AN70: 0 | AO70: 64 | AP70: 0 | AQ70: 64 | AR70: 0 | AS70: 64 | AT70: 0 | AU70: 64 | AV70: 0 | AW70: 64 | AX70: 0 | AY70: 64 | AZ70: 0 | BA70: 64 | BB70: 0 | BC70: 64 | BD70: 0 | BE70: 64 | BF70: 0 | BG70: 64 | BH70: 0 | BI70: 64 | BJ70: 0 | BK70: 64 | BL70: 0 | BM70: 64 | BN70: 0 | BO70: 64 | BP70: 0 | BQ70: 64 | BR70: 0 | BS70: 64 | BT70: 0 | BU70: 64 | BV70: 0 | BW70: 64 | BX70: 0 | BY70: 64 | BZ70: 0 | CA70: 64 | CB70: 0 | CC70: 64 | CD70: 0 | CE70: 64 | CF70: 0 | CG70: 64 | CH70: 0 | CI70: 64 | CJ70: 0 | CK70: 64 | CL70: 0 | CM70: 64 | CN70: 0 | CO70: 64 | CP70: 0 | CQ70: 64 | CR70: 0 | CS70: 64 | CT70: 0 | CU70: 64 | CV70: 0 | CW70: 64 | CX70: 0 | CY70: 64 | CZ70: 0 | DA70: 64 | DB70: 0 | DC70: 64 | DD70: 0 | DE70: 64 | DF70: 0 | DG70: 64 | DH70: 0 | DI70: 64 | DJ70: 0 | DK70: 64 | DL70: 0 | DM70: 64 | DN70: 0 | DO70: 64 | DP70: 0 | DQ70: 64 | DR70: 0 | DS70: 64 | DT70: 0 | DU70: 64 | DV70: 0 | DW70: 64 | DX70: 0 | DY70: 64 | DZ70: 0 | EA70: 64 | EB70: 0 | EC70: 64 | ED70: 0 | EE70: 64 | EF70: 0 | EG70: 64 | EH70: 0 | EI70: 64 | EJ70: 0 | EK70: 64 | EL70: 0 | EM70: 64 | EN70: 0 | EO70: 64 | EP70: 0 | EQ70: 64 | ER70: 0 | ES70: 64 | ET70: 0 | EU70: 64 | EV70: 0 | EW70: 64 | EX70: 0 | EY70: 64 | EZ70: 0 | FA70: 64 | FB70: 0 | FC70: 64 | FD70: 0 | FE70: 64 | FF70: 0 | FG70: 64 | FH70: 0 | FI70: 64 | FJ70: 0 | FK70: 64 | FL70: 0 | FM70: 64 | FN70: 0 | FO70: 64 | FP70: 0 | FQ70: 64 | FR70: 0 | FS70: 64 | FT70: 0 | FU70: 64 | FV70: 0 | FW70: 64 | FX70: 0 | FY70: 64 | FZ70: 0 | GA70: 64 | GB70: 0 | GC70: 64 | GD70: 0 | GE70: 64 | GF70: 0 | GG70: 64 | GH70: 0 | GI70: 64 | GJ70: 0 | GK70: 64 | GL70: 0 | GM70: 64 | GN70: 0 | GO70: 64 | GP70: 0 | GQ70: 64 | GR70: 0
A71: 65 | B71: 0 | C71: 65 | D71: 0 | E71: 65 | F71: 0 | G71: 65 | H71: 0 | I71: 65 | J71: 0 | K71: 65 | L71: 0 | M71: 65 | N71: 0 | O71: 65 | P71: 0 | Q71: 65 | R71: 0 | S71: 65 | T71: 0 | U71: 65 | V71: 0 | W71: 65 | X71: 0 | Y71: 65 | Z71: 0 | AA71: 65 | AB71: 0 | AC71: 65 | AD71: 0 | AE71: 65 | AF71: 0 | AG71: 65 | AH71: 0 | AI71: 65 | AJ71: 0 | AK71: 65 | AL71: 0 | AM71: 65 | AN71: 0 | AO71: 65 | AP71: 0 | AQ71: 65 | AR71: 0 | AS71: 65 | AT71: 0 | AU71: 65 | AV71: 0 | AW71: 65 | AX71: 0 | AY71: 65 | AZ71: 0 | BA71: 65 | BB71: 0 | BC71: 65 | BD71: 0 | BE71: 65 | BF71: 0 | BG71: 65 | BH71: 0 | BI71: 65 | BJ71: 0 | BK71: 65 | BL71: 0 | BM71: 65 | BN71: 0 | BO71: 65 | BP71: 0 | BQ71: 65 | BR71: 0 | BS71: 65 | BT71: 0 | BU71: 65 | BV71: 0 | BW71: 65 | BX71: 0 | BY71: 65 | BZ71: 0 | CA71: 65 | CB71: 0 | CC71: 65 | CD71: 0 | CE71: 65 | CF71: 0 | CG71: 65 | CH71: 0 | CI71: 65 | CJ71: 0 | CK71: 65 | CL71: 0 | CM71: 65 | CN71: 0 | CO71: 65 | CP71: 0 | CQ71: 65 | CR71: 0 | CS71: 65 | CT71: 0 | CU71: 65 | CV71: 0 | CW71: 65 | CX71: 0 | CY71: 65 | CZ71: 0 | DA71: 65 | DB71: 0 | DC71: 65 | DD71: 0 | DE71: 65 | DF71: 0 | DG71: 65 | DH71: 0 | DI71: 65 | DJ71: 0 | DK71: 65 | DL71: 0 | DM71: 65 | DN71: 0 | DO71: 65 | DP71: 0 | DQ71: 65 | DR71: 0 | DS71: 65 | DT71: 0 | DU71: 65 | DV71: 0 | DW71: 65 | DX71: 0 | DY71: 65 | DZ71: 0 | EA71: 65 | EB71: 0 | EC71: 65 | ED71: 0 | EE71: 65 | EF71: 0 | EG71: 65 | EH71: 0 | EI71: 65 | EJ71: 0 | EK71: 65 | EL71: 0 | EM71: 65 | EN71: 0 | EO71: 65 | EP71: 0 | EQ71: 65 | ER71: 0 | ES71: 65 | ET71: 0 | EU71: 65 | EV71: 0 | EW71: 65 | EX71: 0 | EY71: 65 | EZ71: 0 | FA71: 65 | FB71: 0 | FC71: 65 | FD71: 0 | FE71: 65 | FF71: 0 | FG71: 65 | FH71: 0 | FI71: 65 | FJ71: 0 | FK71: 65 | FL71: 0 | FM71: 65 | FN71: 0 | FO71: 65 | FP71: 0 | FQ71: 65 | FR71: 0 | FS71: 65 | FT71: 0 | FU71: 65 | FV71: 0 | FW71: 65 | FX71: 0 | FY71: 65 | FZ71: 0 | GA71: 65 | GB71: 0 | GC71: 65 | GD71: 0 | GE71: 65 | GF71: 0 | GG71: 65 | GH71: 0 | GI71: 65 | GJ71: 0 | GK71: 65 | GL71: 0 | GM71: 65 | GN71: 0 | GO71: 65 | GP71: 0 | GQ71: 65 | GR71: 0
A72: 66 | B72: 0 | C72: 66 | D72: 0 | E72: 66 | F72: 0 | G72: 66 | H72: 0 | I72: 66 | J72: 0 | K72: 66 | L72: 0 | M72: 66 | N72: 0 | O72: 66 | P72: 0 | Q72: 66 | R72: 0 | S72: 66 | T72: 0 | U72: 66 | V72: 0 | W72: 66 | X72: 0 | Y72: 66 | Z72: 0 | AA72: 66 | AB72: 0 | AC72: 66 | AD72: 0 | AE72: 66 | AF72: 0 | AG72: 66 | AH72: 0 | AI72: 66 | AJ72: 0 | AK72: 66 | AL72: 0 | AM72: 66 | AN72: 0 | AO72: 66 | AP72: 0 | AQ72: 66 | AR72: 0 | AS72: 66 | AT72: 0 | AU72: 66 | AV72: 0 | AW72: 66 | AX72: 0 | AY72: 66 | AZ72: 0 | BA72: 66 | BB72: 0 | BC72: 66 | BD72: 0 | BE72: 66 | BF72: 0 | BG72: 66 | BH72: 0 | BI72: 66 | BJ72: 0 | BK72: 66 | BL72: 0 | BM72: 66 | BN72: 0 | BO72: 66 | BP72: 0 | BQ72: 66 | BR72: 0 | BS72: 66 | BT72: 0 | BU72: 66 | BV72: 0 | BW72: 66 | BX72: 0 | BY72: 66 | BZ72: 0 | CA72: 66 | CB72: 0 | CC72: 66 | CD72: 0 | CE72: 66 | CF72: 0 | CG72: 66 | CH72: 0 | CI72: 66 | CJ72: 0 | CK72: 66 | CL72: 0 | CM72: 66 | CN72: 0 | CO72: 66 | CP72: 0 | CQ72: 66 | CR72: 0 | CS72: 66 | CT72: 0 | CU72: 66 | CV72: 0 | CW72: 66 | CX72: 0 | CY72: 66 | CZ72: 0 | DA72: 66 | DB72: 0 | DC72: 66 | DD72: 0 | DE72: 66 | DF72: 0 | DG72: 66 | DH72: 0 | DI72: 66 | DJ72: 0 | DK72: 66 | DL72: 0 | DM72: 66 | DN72: 0 | DO72: 66 | DP72: 0 | DQ72: 66 | DR72: 0 | DS72: 66 | DT72: 0 | DU72: 66 | DV72: 0 | DW72: 66 | DX72: 0 | DY72: 66 | DZ72: 0 | EA72: 66 | EB72: 0 | EC72: 66 | ED72: 0 | EE72: 66 | EF72: 0 | EG72: 66 | EH72: 0 | EI72: 66 | EJ72: 0 | EK72: 66 | EL72: 0 | EM72: 66 | EN72: 0 | EO72: 66 | EP72: 0 | EQ72: 66 | ER72: 0 | ES72: 66 | ET72: 0 | EU72: 66 | EV72: 0 | EW72: 66 | EX72: 0 | EY72: 66 | EZ72: 0 | FA72: 66 | FB72: 0 | FC72: 66 | FD72: 0 | FE72: 66 | FF72: 0 | FG72: 66 | FH72: 0 | FI72: 66 | FJ72: 0 | FK72: 66 | FL72: 0 | FM72: 66 | FN72: 0 | FO72: 66 | FP72: 0 | FQ72: 66 | FR72: 0 | FS72: 66 | FT72: 0 | FU72: 66 | FV72: 0 | FW72: 66 | FX72: 0 | FY72: 66 | FZ72: 0 | GA72: 66 | GB72: 0 | GC72: 66 | GD72: 0 | GE72: 66 | GF72: 0 | GG72: 66 | GH72: 0 | GI72: 66 | GJ72: 0 | GK72: 66 | GL72: 0 | GM72: 66 | GN72: 0 | GO72: 66 | GP72: 0 | GQ72: 66 | GR72: 0
A73: 67 | B73: 0 | C73: 67 | D73: 0 | E73: 67 | F73: 0 | G73: 67 | H73: 0 | I73: 67 | J73: 0 | K73: 67 | L73: 0 | M73: 67 | N73: 0 | O73: 67 | P73: 0 | Q73: 67 | R73: 0 | S73: 67 | T73: 0 | U73: 67 | V73: 0 | W73: 67 | X73: 0 | Y73: 67 | Z73: 0 | AA73: 67 | AB73: 0 | AC73: 67 | AD73: 0 | AE73: 67 | AF73: 0 | AG73: 67 | AH73: 0 | AI73: 67 | AJ73: 0 | AK73: 67 | AL73: 0 | AM73: 67 | AN73: 0 | AO73: 67 | AP73: 0 | AQ73: 67 | AR73: 0 | AS73: 67 | AT73: 0 | AU73: 67 | AV73: 0 | AW73: 67 | AX73: 0 | AY73: 67 | AZ73: 0 | BA73: 67 | BB73: 0 | BC73: 67 | BD73: 0 | BE73: 67 | BF73: 0 | BG73: 67 | BH73: 0 | BI73: 67 | BJ73: 0 | BK73: 67 | BL73: 0 | BM73: 67 | BN73: 0 | BO73: 67 | BP73: 0 | BQ73: 67 | BR73: 0 | BS73: 67 | BT73: 0 | BU73: 67 | BV73: 0 | BW73: 67 | BX73: 0 | BY73: 67 | BZ73: 0 | CA73: 67 | CB73: 0 | CC73: 67 | CD73: 0 | CE73: 67 | CF73: 0 | CG73: 67 | CH73: 0 | CI73: 67 | CJ73: 0 | CK73: 67 | CL73: 0 | CM73: 67 | CN73: 0 | CO73: 67 | CP73: 0 | CQ73: 67 | CR73: 0 | CS73: 67 | CT73: 0 | CU73: 67 | CV73: 0 | CW73: 67 | CX73: 0 | CY73: 67 | CZ73: 0 | DA73: 67 | DB73: 0 | DC73: 67 | DD73: 0 | DE73: 67 | DF73: 0 | DG73: 67 | DH73: 0 | DI73: 67 | DJ73: 0 | DK73: 67 | DL73: 0 | DM73: 67 | DN73: 0 | DO73: 67 | DP73: 0 | DQ73: 67 | DR73: 0 | DS73: 67 | DT73: 0 | DU73: 67 | DV73: 0 | DW73: 67 | DX73: 0 | DY73: 67 | DZ73: 0 | EA73: 67 | EB73: 0 | EC73: 67 | ED73: 0 | EE73: 67 | EF73: 0 | EG73: 67 | EH73: 0 | EI73: 67 | EJ73: 0 | EK73: 67 | EL73: 0 | EM73: 67 | EN73: 0 | EO73: 67 | EP73: 0 | EQ73: 67 | ER73: 0 | ES73: 67 | ET73: 0 | EU73: 67 | EV73: 0 | EW73: 67 | EX73: 0 | EY73: 67 | EZ73: 0 | FA73: 67 | FB73: 0 | FC73: 67 | FD73: 0 | FE73: 67 | FF73: 0 | FG73: 67 | FH73: 0 | FI73: 67 | FJ73: 0 | FK73: 67 | FL73: 0 | FM73: 67 | FN73: 0 | FO73: 67 | FP73: 0 | FQ73: 67 | FR73: 0 | FS73: 67 | FT73: 0 | FU73: 67 | FV73: 0 | FW73: 67 | FX73: 0 | FY73: 67 | FZ73: 0 | GA73: 67 | GB73: 0 | GC73: 67 | GD73: 0 | GE73: 67 | GF73: 0 | GG73: 67 | GH73: 0 | GI73: 67 | GJ73: 0 | GK73: 67 | GL73: 0 | GM73: 67 | GN73: 0 | GO73: 67 | GP73: 0 | GQ73: 67 | GR73: 0
A74: 68 | B74: 0 | C74: 68 | D74: 0 | E74: 68 | F74: 0 | G74: 68 | H74: 0 | I74: 68 | J74: 0 | K74: 68 | L74: 0 | M74: 68 | N74: 0 | O74: 68 | P74: 0 | Q74: 68 | R74: 0 | S74: 68 | T74: 0 | U74: 68 | V74: 0 | W74: 68 | X74: 0 | Y74: 68 | Z74: 0 | AA74: 68 | AB74: 0 | AC74: 68 | AD74: 0 | AE74: 68 | AF74: 0 | AG74: 68 | AH74: 0 | AI74: 68 | AJ74: 0 | AK74: 68 | AL74: 0 | AM74: 68 | AN74: 0 | AO74: 68 | AP74: 0 | AQ74: 68 | AR74: 0 | AS74: 68 | AT74: 0 | AU74: 68 | AV74: 0 | AW74: 68 | AX74: 0 | AY74: 68 | AZ74: 0 | BA74: 68 | BB74: 0 | BC74: 68 | BD74: 0 | BE74: 68 | BF74: 0 | BG74: 68 | BH74: 0 | BI74: 68 | BJ74: 0 | BK74: 68 | BL74: 0 | BM74: 68 | BN74: 0 | BO74: 68 | BP74: 0 | BQ74: 68 | BR74: 0 | BS74: 68 | BT74: 0 | BU74: 68 | BV74: 0 | BW74: 68 | BX74: 0 | BY74: 68 | BZ74: 0 | CA74: 68 | CB74: 0 | CC74: 68 | CD74: 0 | CE74: 68 | CF74: 0 | CG74: 68 | CH74: 0 | CI74: 68 | CJ74: 0 | CK74: 68 | CL74: 0 | CM74: 68 | CN74: 0 | CO74: 68 | CP74: 0 | CQ74: 68 | CR74: 0 | CS74: 68 | CT74: 0 | CU74: 68 | CV74: 0 | CW74: 68 | CX74: 0 | CY74: 68 | CZ74: 0 | DA74: 68 | DB74: 0 | DC74: 68 | DD74: 0 | DE74: 68 | DF74: 0 | DG74: 68 | DH74: 0 | DI74: 68 | DJ74: 0 | DK74: 68 | DL74: 0 | DM74: 68 | DN74: 0 | DO74: 68 | DP74: 0 | DQ74: 68 | DR74: 0 | DS74: 68 | DT74: 0 | DU74: 68 | DV74: 0 | DW74: 68 | DX74: 0 | DY74: 68 | DZ74: 0 | EA74: 68 | EB74: 0 | EC74: 68 | ED74: 0 | EE74: 68 | EF74: 0 | EG74: 68 | EH74: 0 | EI74: 68 | EJ74: 0 | EK74: 68 | EL74: 0 | EM74: 68 | EN74: 0 | EO74: 68 | EP74: 0 | EQ74: 68 | ER74: 0 | ES74: 68 | ET74: 0 | EU74: 68 | EV74: 0 | EW74: 68 | EX74: 0 | EY74: 68 | EZ74: 0 | FA74: 68 | FB74: 0 | FC74: 68 | FD74: 0 | FE74: 68 | FF74: 0 | FG74: 68 | FH74: 0 | FI74: 68 | FJ74: 0 | FK74: 68 | FL74: 0 | FM74: 68 | FN74: 0 | FO74: 68 | FP74: 0 | FQ74: 68 | FR74: 0 | FS74: 68 | FT74: 0 | FU74: 68 | FV74: 0 | FW74: 68 | FX74: 0 | FY74: 68 | FZ74: 0 | GA74: 68 | GB74: 0 | GC74: 68 | GD74: 0 | GE74: 68 | GF74: 0 | GG74: 68 | GH74: 0 | GI74: 68 | GJ74: 0 | GK74: 68 | GL74: 0 | GM74: 68 | GN74: 0 | GO74: 68 | GP74: 0 | GQ74: 68 | GR74: 0
A75: 69 | B75: 0 | C75: 69 | D75: 0 | E75: 69 | F75: 0 | G75: 69 | H75: 0 | I75: 69 | J75: 0 | K75: 69 | L75: 0 | M75: 69 | N75: 0 | O75: 69 | P75: 0 | Q75: 69 | R75: 0 | S75: 69 | T75: 0 | U75: 69 | V75: 0 | W75: 69 | X75: 0 | Y75: 69 | Z75: 0 | AA75: 69 | AB75: 0 | AC75: 69 | AD75: 0 | AE75: 69 | AF75: 0 | AG75: 69 | AH75: 0 | AI75: 69 | AJ75: 0 | AK75: 69 | AL75: 0 | AM75: 69 | AN75: 0 | AO75: 69 | AP75: 0 | AQ75: 69 | AR75: 0 | AS75: 69 | AT75: 0 | AU75: 69 | AV75: 0 | AW75: 69 | AX75: 0 | AY75: 69 | AZ75: 0 | BA75: 69 | BB75: 0 | BC75: 69 | BD75: 0 | BE75: 69 | BF75: 0 | BG75: 69 | BH75: 0 | BI75: 69 | BJ75: 0 | BK75: 69 | BL75: 0 | BM75: 69 | BN75: 0 | BO75: 69 | BP75: 0 | BQ75: 69 | BR75: 0 | BS75: 69 | BT75: 0 | BU75: 69 | BV75: 0 | BW75: 69 | BX75: 0 | BY75: 69 | BZ75: 0 | CA75: 69 | CB75: 0 | CC75: 69 | CD75: 0 | CE75: 69 | CF75: 0 | CG75: 69 | CH75: 0 | CI75: 69 | CJ75: 0 | CK75: 69 | CL75: 0 | CM75: 69 | CN75: 0 | CO75: 69 | CP75: 0 | CQ75: 69 | CR75: 0 | CS75: 69 | CT75: 0 | CU75: 69 | CV75: 0 | CW75: 69 | CX75: 0 | CY75: 69 | CZ75: 0 | DA75: 69 | DB75: 0 | DC75: 69 | DD75: 0 | DE75: 69 | DF75: 0 | DG75: 69 | DH75: 0 | DI75: 69 | DJ75: 0 | DK75: 69 | DL75: 0 | DM75: 69 | DN75: 0 | DO75: 69 | DP75: 0 | DQ75: 69 | DR75: 0 | DS75: 69 | DT75: 0 | DU75: 69 | DV75: 0 | DW75: 69 | DX75: 0 | DY75: 69 | DZ75: 0 | EA75: 69 | EB75: 0 | EC75: 69 | ED75: 0 | EE75: 69 | EF75: 0 | EG75: 69 | EH75: 0 | EI75: 69 | EJ75: 0 | EK75: 69 | EL75: 0 | EM75: 69 | EN75: 0 | EO75: 69 | EP75: 0 | EQ75: 69 | ER75: 0 | ES75: 69 | ET75: 0 | EU75: 69 | EV75: 0 | EW75: 69 | EX75: 0 | EY75: 69 | EZ75: 0 | FA75: 69 | FB75: 0 | FC75: 69 | FD75: 0 | FE75: 69 | FF75: 0 | FG75: 69 | FH75: 0 | FI75: 69 | FJ75: 0 | FK75: 69 | FL75: 0 | FM75: 69 | FN75: 0 | FO75: 69 | FP75: 0 | FQ75: 69 | FR75: 0 | FS75: 69 | FT75: 0 | FU75: 69 | FV75: 0 | FW75: 69 | FX75: 0 | FY75: 69 | FZ75: 0 | GA75: 69 | GB75: 0 | GC75: 69 | GD75: 0 | GE75: 69 | GF75: 0 | GG75: 69 | GH75: 0 | GI75: 69 | GJ75: 0 | GK75: 69 | GL75: 0 | GM75: 69 | GN75: 0 | GO75: 69 | GP75: 0 | GQ75: 69 | GR75: 0
A76: 70 | B76: 0 | C76: 70 | D76: 0 | E76: 70 | F76: 0 | G76: 70 | H76: 0 | I76: 70 | J76: 0 | K76: 70 | L76: 0 | M76: 70 | N76: 0 | O76: 70 | P76: 0 | Q76: 70 | R76: 0 | S76: 70 | T76: 0 | U76: 70 | V76: 0 | W76: 70 | X76: 0 | Y76: 70 | Z76: 0 | AA76: 70 | AB76: 0 | AC76: 70 | AD76: 0 | AE76: 70 | AF76: 0 | AG76: 70 | AH76: 0 | AI76: 70 | AJ76: 0 | AK76: 70 | AL76: 0 | AM76: 70 | AN76: 0 | AO76: 70 | AP76: 0 | AQ76: 70 | AR76: 0 | AS76: 70 | AT76: 0 | AU76: 70 | AV76: 0 | AW76: 70 | AX76: 0 | AY76: 70 | AZ76: 0 | BA76: 70 | BB76: 0 | BC76: 70 | BD76: 0 | BE76: 70 | BF76: 0 | BG76: 70 | BH76: 0 | BI76: 70 | BJ76: 0 | BK76: 70 | BL76: 0 | BM76: 70 | BN76: 0 | BO76: 70 | BP76: 0 | BQ76: 70 | BR76: 0 | BS76: 70 | BT76: 0 | BU76: 70 | BV76: 0 | BW76: 70 | BX76: 0 | BY76: 70 | BZ76: 0 | CA76: 70 | CB76: 0 | CC76: 70 | CD76: 0 | CE76: 70 | CF76: 0 | CG76: 70 | CH76: 0 | CI76: 70 | CJ76: 0 | CK76: 70 | CL76: 0 | CM76: 70 | CN76: 0 | CO76: 70 | CP76: 0 | CQ76: 70 | CR76: 0 | CS76: 70 | CT76: 0 | CU76: 70 | CV76: 0 | CW76: 70 | CX76: 0 | CY76: 70 | CZ76: 0 | DA76: 70 | DB76: 0 | DC76: 70 | DD76: 0 | DE76: 70 | DF76: 0 | DG76: 70 | DH76: 0 | DI76: 70 | DJ76: 0 | DK76: 70 | DL76: 0 | DM76: 70 | DN76: 0 | DO76: 70 | DP76: 0 | DQ76: 70 | DR76: 0 | DS76: 70 | DT76: 0 | DU76: 70 | DV76: 0 | DW76: 70 | DX76: 0 | DY76: 70 | DZ76: 0 | EA76: 70 | EB76: 0 | EC76: 70 | ED76: 0 | EE76: 70 | EF76: 0 | EG76: 70 | EH76: 0 | EI76: 70 | EJ76: 0 | EK76: 70 | EL76: 0 | EM76: 70 | EN76: 0 | EO76: 70 | EP76: 0 | EQ76: 70 | ER76: 0 | ES76: 70 | ET76: 0 | EU76: 70 | EV76: 0 | EW76: 70 | EX76: 0 | EY76: 70 | EZ76: 0 | FA76: 70 | FB76: 0 | FC76: 70 | FD76: 0 | FE76: 70 | FF76: 0 | FG76: 70 | FH76: 0 | FI76: 70 | FJ76: 0 | FK76: 70 | FL76: 0 | FM76: 70 | FN76: 0 | FO76: 70 | FP76: 0 | FQ76: 70 | FR76: 0 | FS76: 70 | FT76: 0 | FU76: 70 | FV76: 0 | FW76: 70 | FX76: 0 | FY76: 70 | FZ76: 0 | GA76: 70 | GB76: 0 | GC76: 70 | GD76: 0 | GE76: 70 | GF76: 0 | GG76: 70 | GH76: 0 | GI76: 70 | GJ76: 0 | GK76: 70 | GL76: 0 | GM76: 70 | GN76: 0 | GO76: 70 | GP76: 0 | GQ76: 70 | GR76: 0
A77: 71 | B77: 0 | C77: 71 | D77: 0 | E77: 71 | F77: 0 | G77: 71 | H77: 0 | I77: 71 | J77: 0 | K77: 71 | L77: 0 | M77: 71 | N77: 0 | O77: 71 | P77: 0 | Q77: 71 | R77: 0 | S77: 71 | T77: 0 | U77: 71 | V77: 0 | W77: 71 | X77: 0 | Y77: 71 | Z77: 0 | AA77: 71 | AB77: 0 | AC77: 71 | AD77: 0 | AE77: 71 | AF77: 0 | AG77: 71 | AH77: 0 | AI77: 71 | AJ77: 0 | AK77: 71 | AL77: 0 | AM77: 71 | AN77: 0 | AO77: 71 | AP77: 0 | AQ77: 71 | AR77: 0 | AS77: 71 | AT77: 0 | AU77: 71 | AV77: 0 | AW77: 71 | AX77: 0 | AY77: 71 | AZ77: 0 | BA77: 71 | BB77: 0 | BC77: 71 | BD77: 0 | BE77: 71 | BF77: 0 | BG77: 71 | BH77: 0 | BI77: 71 | BJ77: 0 | BK77: 71 | BL77: 0 | BM77: 71 | BN77: 0 | BO77: 71 | BP77: 0 | BQ77: 71 | BR77: 0 | BS77: 71 | BT77: 0 | BU77: 71 | BV77: 0 | BW77: 71 | BX77: 0 | BY77: 71 | BZ77: 0 | CA77: 71 | CB77: 0 | CC77: 71 | CD77: 0 | CE77: 71 | CF77: 0 | CG77: 71 | CH77: 0 | CI77: 71 | CJ77: 0 | CK77: 71 | CL77: 0 | CM77: 71 | CN77: 0 | CO77: 71 | CP77: 0 | CQ77: 71 | CR77: 0 | CS77: 71 | CT77: 0 | CU77: 71 | CV77: 0 | CW77: 71 | CX77: 0 | CY77: 71 | CZ77: 0 | DA77: 71 | DB77: 0 | DC77: 71 | DD77: 0 | DE77: 71 | DF77: 0 | DG77: 71 | DH77: 0 | DI77: 71 | DJ77: 0 | DK77: 71 | DL77: 0 | DM77: 71 | DN77: 0 | DO77: 71 | DP77: 0 | DQ77: 71 | DR77: 0 | DS77: 71 | DT77: 0 | DU77: 71 | DV77: 0 | DW77: 71 | DX77: 0 | DY77: 71 | DZ77: 0 | EA77: 71 | EB77: 0 | EC77: 71 | ED77: 0 | EE77: 71 | EF77: 0 | EG77: 71 | EH77: 0 | EI77: 71 | EJ77: 0 | EK77: 71 | EL77: 0 | EM77: 71 | EN77: 0 | EO77: 71 | EP77: 0 | EQ77: 71 | ER77: 0 | ES77: 71 | ET77: 0 | EU77: 71 | EV77: 0 | EW77: 71 | EX77: 0 | EY77: 71 | EZ77: 0 | FA77: 71 | FB77: 0 | FC77: 71 | FD77: 0 | FE77: 71 | FF77: 0 | FG77: 71 | FH77: 0 | FI77: 71 | FJ77: 0 | FK77: 71 | FL77: 0 | FM77: 71 | FN77: 0 | FO77: 71 | FP77: 0 | FQ77: 71 | FR77: 0 | FS77: 71 | FT77: 0 | FU77: 71 | FV77: 0 | FW77: 71 | FX77: 0 | FY77: 71 | FZ77: 0 | GA77: 71 | GB77: 0 | GC77: 71 | GD77: 0 | GE77: 71 | GF77: 0 | GG77: 71 | GH77: 0 | GI77: 71 | GJ77: 0 | GK77: 71 | GL77: 0 | GM77: 71 | GN77: 0 | GO77: 71 | GP77: 0 | GQ77: 71 | GR77: 0
A78: 72 | B78: 0 | C78: 72 | D78: 0 | E78: 72 | F78: 0 | G78: 72 | H78: 0 | I78: 72 | J78: 0 | K78: 72 | L78: 0 | M78: 72 | N78: 0 | O78: 72 | P78: 0 | Q78: 72 | R78: 0 | S78: 72 | T78: 0 | U78: 72 | V78: 0 | W78: 72 | X78: 0 | Y78: 72 | Z78: 0 | AA78: 72 | AB78: 0 | AC78: 72 | AD78: 0 | AE78: 72 | AF78: 0 | AG78: 72 | AH78: 0 | AI78: 72 | AJ78: 0 | AK78: 72 | AL78: 0 | AM78: 72 | AN78: 0 | AO78: 72 | AP78: 0 | AQ78: 72 | AR78: 0 | AS78: 72 | AT78: 0 | AU78: 72 | AV78: 0 | AW78: 72 | AX78: 0 | AY78: 72 | AZ78: 0 | BA78: 72 | BB78: 0 | BC78: 72 | BD78: 0 | BE78: 72 | BF78: 0 | BG78: 72 | BH78: 0 | BI78: 72 | BJ78: 0 | BK78: 72 | BL78: 0 | BM78: 72 | BN78: 0 | BO78: 72 | BP78: 0 | BQ78: 72 | BR78: 0 | BS78: 72 | BT78: 0 | BU78: 72 | BV78: 0 | BW78: 72 | BX78: 0 | BY78: 72 | BZ78: 0 | CA78: 72 | CB78: 0 | CC78: 72 | CD78: 0 | CE78: 72 | CF78: 0 | CG78: 72 | CH78: 0 | CI78: 72 | CJ78: 0 | CK78: 72 | CL78: 0 | CM78: 72 | CN78: 0 | CO78: 72 | CP78: 0 | CQ78: 72 | CR78: 0 | CS78: 72 | CT78: 0 | CU78: 72 | CV78: 0 | CW78: 72 | CX78: 0 | CY78: 72 | CZ78: 0 | DA78: 72 | DB78: 0 | DC78: 72 | DD78: 0 | DE78: 72 | DF78: 0 | DG78: 72 | DH78: 0 | DI78: 72 | DJ78: 0 | DK78: 72 | DL78: 0 | DM78: 72 | DN78: 0 | DO78: 72 | DP78: 0 | DQ78: 72 | DR78: 0 | DS78: 72 | DT78: 0 | DU78: 72 | DV78: 0 | DW78: 72 | DX78: 0 | DY78: 72 | DZ78: 0 | EA78: 72 | EB78: 0 | EC78: 72 | ED78: 0 | EE78: 72 | EF78: 0 | EG78: 72 | EH78: 0 | EI78: 72 | EJ78: 0 | EK78: 72 | EL78: 0 | EM78: 72 | EN78: 0 | EO78: 72 | EP78: 0 | EQ78: 72 | ER78: 0 | ES78: 72 | ET78: 0 | EU78: 72 | EV78: 0 | EW78: 72 | EX78: 0 | EY78: 72 | EZ78: 0 | FA78: 72 | FB78: 0 | FC78: 72 | FD78: 0 | FE78: 72 | FF78: 0 | FG78: 72 | FH78: 0 | FI78: 72 | FJ78: 0 | FK78: 72 | FL78: 0 | FM78: 72 | FN78: 0 | FO78: 72 | FP78: 0 | FQ78: 72 | FR78: 0 | FS78: 72 | FT78: 0 | FU78: 72 | FV78: 0 | FW78: 72 | FX78: 0 | FY78: 72 | FZ78: 0 | GA78: 72 | GB78: 0 | GC78: 72 | GD78: 0 | GE78: 72 | GF78: 0 | GG78: 72 | GH78: 0 | GI78: 72 | GJ78: 0 | GK78: 72 | GL78: 0 | GM78: 72 | GN78: 0 | GO78: 72 | GP78: 0 | GQ78: 72 | GR78: 0
A79: 73 | B79: 0 | C79: 73 | D79: 0 | E79: 73 | F79: 0 | G79: 73 | H79: 0 | I79: 73 | J79: 0 | K79: 73 | L79: 0 | M79: 73 | N79: 0 | O79: 73 | P79: 0 | Q79: 73 | R79: 0 | S79: 73 | T79: 0 | U79: 73 | V79: 0 | W79: 73 | X79: 0 | Y79: 73 | Z79: 0 | AA79: 73 | AB79: 0 | AC79: 73 | AD79: 0 | AE79: 73 | AF79: 0 | AG79: 73 | AH79: 0 | AI79: 73 | AJ79: 0 | AK79: 73 | AL79: 0 | AM79: 73 | AN79: 0 | AO79: 73 | AP79: 0 | AQ79: 73 | AR79: 0 | AS79: 73 | AT79: 0 | AU79: 73 | AV79: 0 | AW79: 73 | AX79: 0 | AY79: 73 | AZ79: 0 | BA79: 73 | BB79: 0 | BC79: 73 | BD79: 0 | BE79: 73 | BF79: 0 | BG79: 73 | BH79: 0 | BI79: 73 | BJ79: 0 | BK79: 73 | BL79: 0 | BM79: 73 | BN79: 0 | BO79: 73 | BP79: 0 | BQ79: 73 | BR79: 0 | BS79: 73 | BT79: 0 | BU79: 73 | BV79: 0 | BW79: 73 | BX79: 0 | BY79: 73 | BZ79: 0 | CA79: 73 | CB79: 0 | CC79: 73 | CD79: 0 | CE79: 73 | CF79: 0 | CG79: 73 | CH79: 0 | CI79: 73 | CJ79: 0 | CK79: 73 | CL79: 0 | CM79: 73 | CN79: 0 | CO79: 73 | CP79: 0 | CQ79: 73 | CR79: 0 | CS79: 73 | CT79: 0 | CU79: 73 | CV79: 0 | CW79: 73 | CX79: 0 | CY79: 73 | CZ79: 0 | DA79: 73 | DB79: 0 | DC79: 73 | DD79: 0 | DE79: 73 | DF79: 0 | DG79: 73 | DH79: 0 | DI79: 73 | DJ79: 0 | DK79: 73 | DL79: 0 | DM79: 73 | DN79: 0 | DO79: 73 | DP79: 0 | DQ79: 73 | DR79: 0 | DS79: 73 | DT79: 0 | DU79: 73 | DV79: 0 | DW79: 73 | DX79: 0 | DY79: 73 | DZ79: 0 | EA79: 73 | EB79: 0 | EC79: 73 | ED79: 0 | EE79: 73 | EF79: 0 | EG79: 73 | EH79: 0 | EI79: 73 | EJ79: 0 | EK79: 73 | EL79: 0 | EM79: 73 | EN79: 0 | EO79: 73 | EP79: 0 | EQ79: 73 | ER79: 0 | ES79: 73 | ET79: 0 | EU79: 73 | EV79: 0 | EW79: 73 | EX79: 0 | EY79: 73 | EZ79: 0 | FA79: 73 | FB79: 0 | FC79: 73 | FD79: 0 | FE79: 73 | FF79: 0 | FG79: 73 | FH79: 0 | FI79: 73 | FJ79: 0 | FK79: 73 | FL79: 0 | FM79: 73 | FN79: 0 | FO79: 73 | FP79: 0 | FQ79: 73 | FR79: 0 | FS79: 73 | FT79: 0 | FU79: 73 | FV79: 0 | FW79: 73 | FX79: 0 | FY79: 73 | FZ79: 0 | GA79: 73 | GB79: 0 | GC79: 73 | GD79: 0 | GE79: 73 | GF79: 0 | GG79: 73 | GH79: 0 | GI79: 73 | GJ79: 0 | GK79: 73 | GL79: 0 | GM79: 73 | GN79: 0 | GO79: 73 | GP79: 0 | GQ79: 73 | GR79: 0
A80: 74 | B80: 0 | C80: 74 | D80: 0 | E80: 74 | F80: 0 | G80: 74 | H80: 0 | I80: 74 | J80: 0 | K80: 74 | L80: 0 | M80: 74 | N80: 0 | O80: 74 | P80: 0 | Q80: 74 | R80: 0 | S80: 74 | T80: 0 | U80: 74 | V80: 0 | W80: 74 | X80: 0 | Y80: 74 | Z80: 0 | AA80: 74 | AB80: 0 | AC80: 74 | AD80: 0 | AE80: 74 | AF80: 0 | AG80: 74 | AH80: 0 | AI80: 74 | AJ80: 0 | AK80: 74 | AL80: 0 | AM80: 74 | AN80: 0 | AO80: 74 | AP80: 0 | AQ80: 74 | AR80: 0 | AS80: 74 | AT80: 0 | AU80: 74 | AV80: 0 | AW80: 74 | AX80: 0 | AY80: 74 | AZ80: 0 | BA80: 74 | BB80: 0 | BC80: 74 | BD80: 0 | BE80: 74 | BF80: 0 | BG80: 74 | BH80: 0 | BI80: 74 | BJ80: 0 | BK80: 74 | BL80: 0 | BM80: 74 | BN80: 0 | BO80: 74 | BP80: 0 | BQ80: 74 | BR80: 0 | BS80: 74 | BT80: 0 | BU80: 74 | BV80: 0 | BW80: 74 | BX80: 0 | BY80: 74 | BZ80: 0 | CA80: 74 | CB80: 0 | CC80: 74 | CD80: 0 | CE80: 74 | CF80: 0 | CG80: 74 | CH80: 0 | CI80: 74 | CJ80: 0 | CK80: 74 | CL80: 0 | CM80: 74 | CN80: 0 | CO80: 74 | CP80: 0 | CQ80: 74 | CR80: 0 | CS80: 74 | CT80: 0 | CU80: 74 | CV80: 0 | CW80: 74 | CX80: 0 | CY80: 74 | CZ80: 0 | DA80: 74 | DB80: 0 | DC80: 74 | DD80: 0 | DE80: 74 | DF80: 0 | DG80: 74 | DH80: 0 | DI80: 74 | DJ80: 0 | DK80: 74 | DL80: 0 | DM80: 74 | DN80: 0 | DO80: 74 | DP80: 0 | DQ80: 74 | DR80: 0 | DS80: 74 | DT80: 0 | DU80: 74 | DV80: 0 | DW80: 74 | DX80: 0 | DY80: 74 | DZ80: 0 | EA80: 74 | EB80: 0 | EC80: 74 | ED80: 0 | EE80: 74 | EF80: 0 | EG80: 74 | EH80: 0 | EI80: 74 | EJ80: 0 | EK80: 74 | EL80: 0 | EM80: 74 | EN80: 0 | EO80: 74 | EP80: 0 | EQ80: 74 | ER80: 0 | ES80: 74 | ET80: 0 | EU80: 74 | EV80: 0 | EW80: 74 | EX80: 0 | EY80: 74 | EZ80: 0 | FA80: 74 | FB80: 0 | FC80: 74 | FD80: 0 | FE80: 74 | FF80: 0 | FG80: 74 | FH80: 0 | FI80: 74 | FJ80: 0 | FK80: 74 | FL80: 0 | FM80: 74 | FN80: 0 | FO80: 74 | FP80: 0 | FQ80: 74 | FR80: 0 | FS80: 74 | FT80: 0 | FU80: 74 | FV80: 0 | FW80: 74 | FX80: 0 | FY80: 74 | FZ80: 0 | GA80: 74 | GB80: 0 | GC80: 74 | GD80: 0 | GE80: 74 | GF80: 0 | GG80: 74 | GH80: 0 | GI80: 74 | GJ80: 0 | GK80: 74 | GL80: 0 | GM80: 74 | GN80: 0 | GO80: 74 | GP80: 0 | GQ80: 74 | GR80: 0
A81: 75 | B81: 0 | C81: 75 | D81: 0 | E81: 75 | F81: 0 | G81: 75 | H81: 0 | I81: 75 | J81: 0 | K81: 75 | L81: 0 | M81: 75 | N81: 0 | O81: 75 | P81: 0 | Q81: 75 | R81: 0 | S81: 75 | T81: 0 | U81: 75 | V81: 0 | W81: 75 | X81: 0 | Y81: 75 | Z81: 0 | AA81: 75 | AB81: 0 | AC81: 75 | AD81: 0 | AE81: 75 | AF81: 0 | AG81: 75 | AH81: 0 | AI81: 75 | AJ81: 0 | AK81: 75 | AL81: 0 | AM81: 75 | AN81: 0 | AO81: 75 | AP81: 0 | AQ81: 75 | AR81: 0 | AS81: 75 | AT81: 0 | AU81: 75 | AV81: 0 | AW81: 75 | AX81: 0 | AY81: 75 | AZ81: 0 | BA81: 75 | BB81: 0 | BC81: 75 | BD81: 0 | BE81: 75 | BF81: 0 | BG81: 75 | BH81: 0 | BI81: 75 | BJ81: 0 | BK81: 75 | BL81: 0 | BM81: 75 | BN81: 0 | BO81: 75 | BP81: 0 | BQ81: 75 | BR81: 0 | BS81: 75 | BT81: 0 | BU81: 75 | BV81: 0 | BW81: 75 | BX81: 0 | BY81: 75 | BZ81: 0 | CA81: 75 | CB81: 0 | CC81: 75 | CD81: 0 | CE81: 75 | CF81: 0 | CG81: 75 | CH81: 0 | CI81: 75 | CJ81: 0 | CK81: 75 | CL81: 0 | CM81: 75 | CN81: 0 | CO81: 75 | CP81: 0 | CQ81: 75 | CR81: 0 | CS81: 75 | CT81: 0 | CU81: 75 | CV81: 0 | CW81: 75 | CX81: 0 | CY81: 75 | CZ81: 0 | DA81: 75 | DB81: 0 | DC81: 75 | DD81: 0 | DE81: 75 | DF81: 0 | DG81: 75 | DH81: 0 | DI81: 75 | DJ81: 0 | DK81: 75 | DL81: 0 | DM81: 75 | DN81: 0 | DO81: 75 | DP81: 0 | DQ81: 75 | DR81: 0 | DS81: 75 | DT81: 0 | DU81: 75 | DV81: 0 | DW81: 75 | DX81: 0 | DY81: 75 | DZ81: 0 | EA81: 75 | EB81: 0 | EC81: 75 | ED81: 0 | EE81: 75 | EF81: 0 | EG81: 75 | EH81: 0 | EI81: 75 | EJ81: 0 | EK81: 75 | EL81: 0 | EM81: 75 | EN81: 0 | EO81: 75 | EP81: 0 | EQ81: 75 | ER81: 0 | ES81: 75 | ET81: 0 | EU81: 75 | EV81: 0 | EW81: 75 | EX81: 0 | EY81: 75 | EZ81: 0 | FA81: 75 | FB81: 0 | FC81: 75 | FD81: 0 | FE81: 75 | FF81: 0 | FG81: 75 | FH81: 0 | FI81: 75 | FJ81: 0 | FK81: 75 | FL81: 0 | FM81: 75 | FN81: 0 | FO81: 75 | FP81: 0 | FQ81: 75 | FR81: 0 | FS81: 75 | FT81: 0 | FU81: 75 | FV81: 0 | FW81: 75 | FX81: 0 | FY81: 75 | FZ81: 0 | GA81: 75 | GB81: 0 | GC81: 75 | GD81: 0 | GE81: 75 | GF81: 0 | GG81: 75 | GH81: 0 | GI81: 75 | GJ81: 0 | GK81: 75 | GL81: 0 | GM81: 75 | GN81: 0 | GO81: 75 | GP81: 0 | GQ81: 75 | GR81: 0
A82: 76 | B82: 0 | C82: 76 | D82: 0 | E82: 76 | F82: 0 | G82: 76 | H82: 0 | I82: 76 | J82: 0 | K82: 76 | L82: 0 | M82: 76 | N82: 0 | O82: 76 | P82: 0 | Q82: 76 | R82: 0 | S82: 76 | T82: 0 | U82: 76 | V82: 0 | W82: 76 | X82: 0 | Y82: 76 | Z82: 0 | AA82: 76 | AB82: 0 | AC82: 76 | AD82: 0 | AE82: 76 | AF82: 0 | AG82: 76 | AH82: 0 | AI82: 76 | AJ82: 0 | AK82: 76 | AL82: 0 | AM82: 76 | AN82: 0 | AO82: 76 | AP82: 0 | AQ82: 76 | AR82: 0 | AS82: 76 | AT82: 0 | AU82: 76 | AV82: 0 | AW82: 76 | AX82: 0 | AY82: 76 | AZ82: 0 | BA82: 76 | BB82: 0 | BC82: 76 | BD82: 0 | BE82: 76 | BF82: 0 | BG82: 76 | BH82: 0 | BI82: 76 | BJ82: 0 | BK82: 76 | BL82: 0 | BM82: 76 | BN82: 0 | BO82: 76 | BP82: 0 | BQ82: 76 | BR82: 0 | BS82: 76 | BT82: 0 | BU82: 76 | BV82: 0 | BW82: 76 | BX82: 0 | BY82: 76 | BZ82: 0 | CA82: 76 | CB82: 0 | CC82: 76 | CD82: 0 | CE82: 76 | CF82: 0 | CG82: 76 | CH82: 0 | CI82: 76 | CJ82: 0 | CK82: 76 | CL82: 0 | CM82: 76 | CN82: 0 | CO82: 76 | CP82: 0 | CQ82: 76 | CR82: 0 | CS82: 76 | CT82: 0 | CU82: 76 | CV82: 0 | CW82: 76 | CX82: 0 | CY82: 76 | CZ82: 0 | DA82: 76 | DB82: 0 | DC82: 76 | DD82: 0 | DE82: 76 | DF82: 0 | DG82: 76 | DH82: 0 | DI82: 76 | DJ82: 0 | DK82: 76 | DL82: 0 | DM82: 76 | DN82: 0 | DO82: 76 | DP82: 0 | DQ82: 76 | DR82: 0 | DS82: 76 | DT82: 0 | DU82: 76 | DV82: 0 | DW82: 76 | DX82: 0 | DY82: 76 | DZ82: 0 | EA82: 76 | EB82: 0 | EC82: 76 | ED82: 0 | EE82: 76 | EF82: 0 | EG82: 76 | EH82: 0 | EI82: 76 | EJ82: 0 | EK82: 76 | EL82: 0 | EM82: 76 | EN82: 0 | EO82: 76 | EP82: 0 | EQ82: 76 | ER82: 0 | ES82: 76 | ET82: 0 | EU82: 76 | EV82: 0 | EW82: 76 | EX82: 0 | EY82: 76 | EZ82: 0 | FA82: 76 | FB82: 0 | FC82: 76 | FD82: 0 | FE82: 76 | FF82: 0 | FG82: 76 | FH82: 0 | FI82: 76 | FJ82: 0 | FK82: 76 | FL82: 0 | FM82: 76 | FN82: 0 | FO82: 76 | FP82: 0 | FQ82: 76 | FR82: 0 | FS82: 76 | FT82: 0 | FU82: 76 | FV82: 0 | FW82: 76 | FX82: 0 | FY82: 76 | FZ82: 0 | GA82: 76 | GB82: 0 | GC82: 76 | GD82: 0 | GE82: 76 | GF82: 0 | GG82: 76 | GH82: 0 | GI82: 76 | GJ82: 0 | GK82: 76 | GL82: 0 | GM82: 76 | GN82: 0 | GO82: 76 | GP82: 0 | GQ82: 76 | GR82: 0
A83: 77 | B83: 0 | C83: 77 | D83: 0 | E83: 77 | F83: 0 | G83: 77 | H83: 0 | I83: 77 | J83: 0 | K83: 77 | L83: 0 | M83: 77 | N83: 0 | O83: 77 | P83: 0 | Q83: 77 | R83: 0 | S83: 77 | T83: 0 | U83: 77 | V83: 0 | W83: 77 | X83: 0 | Y83: 77 | Z83: 0 | AA83: 77 | AB83: 0 | AC83: 77 | AD83: 0 | AE83: 77 | AF83: 0 | AG83: 77 | AH83: 0 | AI83: 77 | AJ83: 0 | AK83: 77 | AL83: 0 | AM83: 77 | AN83: 0 | AO83: 77 | AP83: 0 | AQ83: 77 | AR83: 0 | AS83: 77 | AT83: 0 | AU83: 77 | AV83: 0 | AW83: 77 | AX83: 0 | AY83: 77 | AZ83: 0 | BA83: 77 | BB83: 0 | BC83: 77 | BD83: 0 | BE83: 77 | BF83: 0 | BG83: 77 | BH83: 0 | BI83: 77 | BJ83: 0 | BK83: 77 | BL83: 0 | BM83: 77 | BN83: 0 | BO83: 77 | BP83: 0 | BQ83: 77 | BR83: 0 | BS83: 77 | BT83: 0 | BU83: 77 | BV83: 0 | BW83: 77 | BX83: 0 | BY83: 77 | BZ83: 0 | CA83: 77 | CB83: 0 | CC83: 77 | CD83: 0 | CE83: 77 | CF83: 0 | CG83: 77 | CH83: 0 | CI83: 77 | CJ83: 0 | CK83: 77 | CL83: 0 | CM83: 77 | CN83: 0 | CO83: 77 | CP83: 0 | CQ83: 77 | CR83: 0 | CS83: 77 | CT83: 0 | CU83: 77 | CV83: 0 | CW83: 77 | CX83: 0 | CY83: 77 | CZ83: 0 | DA83: 77 | DB83: 0 | DC83: 77 | DD83: 0 | DE83: 77 | DF83: 0 | DG83: 77 | DH83: 0 | DI83: 77 | DJ83: 0 | DK83: 77 | DL83: 0 | DM83: 77 | DN83: 0 | DO83: 77 | DP83: 0 | DQ83: 77 | DR83: 0 | DS83: 77 | DT83: 0 | DU83: 77 | DV83: 0 | DW83: 77 | DX83: 0 | DY83: 77 | DZ83: 0 | EA83: 77 | EB83: 0 | EC83: 77 | ED83: 0 | EE83: 77 | EF83: 0 | EG83: 77 | EH83: 0 | EI83: 77 | EJ83: 0 | EK83: 77 | EL83: 0 | EM83: 77 | EN83: 0 | EO83: 77 | EP83: 0 | EQ83: 77 | ER83: 0 | ES83: 77 | ET83: 0 | EU83: 77 | EV83: 0 | EW83: 77 | EX83: 0 | EY83: 77 | EZ83: 0 | FA83: 77 | FB83: 0 | FC83: 77 | FD83: 0 | FE83: 77 | FF83: 0 | FG83: 77 | FH83: 0 | FI83: 77 | FJ83: 0 | FK83: 77 | FL83: 0 | FM83: 77 | FN83: 0 | FO83: 77 | FP83: 0 | FQ83: 77 | FR83: 0 | FS83: 77 | FT83: 0 | FU83: 77 | FV83: 0 | FW83: 77 | FX83: 0 | FY83: 77 | FZ83: 0 | GA83: 77 | GB83: 0 | GC83: 77 | GD83: 0 | GE83: 77 | GF83: 0 | GG83: 77 | GH83: 0 | GI83: 77 | GJ83: 0 | GK83: 77 | GL83: 0 | GM83: 77 | GN83: 0 | GO83: 77 | GP83: 0 | GQ83: 77 | GR83: 0
A84: 78 | B84: 0 | C84: 78 | D84: 0 | E84: 78 | F84: 0 | G84: 78 | H84: 0 | I84: 78 | J84: 0 | K84: 78 | L84: 0 | M84: 78 | N84: 0 | O84: 78 | P84: 0 | Q84: 78 | R84: 0 | S84: 78 | T84: 0 | U84: 78 | V84: 0 | W84: 78 | X84: 0 | Y84: 78 | Z84: 0 | AA84: 78 | AB84: 0 | AC84: 78 | AD84: 0 | AE84: 78 | AF84: 0 | AG84: 78 | AH84: 0 | AI84: 78 | AJ84: 0 | AK84: 78 | AL84: 0 | AM84: 78 | AN84: 0 | AO84: 78 | AP84: 0 | AQ84: 78 | AR84: 0 | AS84: 78 | AT84: 0 | AU84: 78 | AV84: 0 | AW84: 78 | AX84: 0 | AY84: 78 | AZ84: 0 | BA84: 78 | BB84: 0 | BC84: 78 | BD84: 0 | BE84: 78 | BF84: 0 | BG84: 78 | BH84: 0 | BI84: 78 | BJ84: 0 | BK84: 78 | BL84: 0 | BM84: 78 | BN84: 0 | BO84: 78 | BP84: 0 | BQ84: 78 | BR84: 0 | BS84: 78 | BT84: 0 | BU84: 78 | BV84: 0 | BW84: 78 | BX84: 0 | BY84: 78 | BZ84: 0 | CA84: 78 | CB84: 0 | CC84: 78 | CD84: 0 | CE84: 78 | CF84: 0 | CG84: 78 | CH84: 0 | CI84: 78 | CJ84: 0 | CK84: 78 | CL84: 0 | CM84: 78 | CN84: 0 | CO84: 78 | CP84: 0 | CQ84: 78 | CR84: 0 | CS84: 78 | CT84: 0 | CU84: 78 | CV84: 0 | CW84: 78 | CX84: 0 | CY84: 78 | CZ84: 0 | DA84: 78 | DB84: 0 | DC84: 78 | DD84: 0 | DE84: 78 | DF84: 0 | DG84: 78 | DH84: 0 | DI84: 78 | DJ84: 0 | DK84: 78 | DL84: 0 | DM84: 78 | DN84: 0 | DO84: 78 | DP84: 0 | DQ84: 78 | DR84: 0 | DS84: 78 | DT84: 0 | DU84: 78 | DV84: 0 | DW84: 78 | DX84: 0 | DY84: 78 | DZ84: 0 | EA84: 78 | EB84: 0 | EC84: 78 | ED84: 0 | EE84: 78 | EF84: 0 | EG84: 78 | EH84: 0 | EI84: 78 | EJ84: 0 | EK84: 78 | EL84: 0 | EM84: 78 | EN84: 0 | EO84: 78 | EP84: 0 | EQ84: 78 | ER84: 0 | ES84: 78 | ET84: 0 | EU84: 78 | EV84: 0 | EW84: 78 | EX84: 0 | EY84: 78 | EZ84: 0 | FA84: 78 | FB84: 0 | FC84: 78 | FD84: 0 | FE84: 78 | FF84: 0 | FG84: 78 | FH84: 0 | FI84: 78 | FJ84: 0 | FK84: 78 | FL84: 0 | FM84: 78 | FN84: 0 | FO84: 78 | FP84: 0 | FQ84: 78 | FR84: 0 | FS84: 78 | FT84: 0 | FU84: 78 | FV84: 0 | FW84: 78 | FX84: 0 | FY84: 78 | FZ84: 0 | GA84: 78 | GB84: 0 | GC84: 78 | GD84: 0 | GE84: 78 | GF84: 0 | GG84: 78 | GH84: 0 | GI84: 78 | GJ84: 0 | GK84: 78 | GL84: 0 | GM84: 78 | GN84: 0 | GO84: 78 | GP84: 0 | GQ84: 78 | GR84: 0
A85: 79 | B85: 0 | C85: 79 | D85: 0 | E85: 79 | F85: 0 | G85: 79 | H85: 0 | I85: 79 | J85: 0 | K85: 79 | L85: 0 | M85: 79 | N85: 0 | O85: 79 | P85: 0 | Q85: 79 | R85: 0 | S85: 79 | T85: 0 | U85: 79 | V85: 0 | W85: 79 | X85: 0 | Y85: 79 | Z85: 0 | AA85: 79 | AB85: 0 | AC85: 79 | AD85: 0 | AE85: 79 | AF85: 0 | AG85: 79 | AH85: 0 | AI85: 79 | AJ85: 0 | AK85: 79 | AL85: 0 | AM85: 79 | AN85: 0 | AO85: 79 | AP85: 0 | AQ85: 79 | AR85: 0 | AS85: 79 | AT85: 0 | AU85: 79 | AV85: 0 | AW85: 79 | AX85: 0 | AY85: 79 | AZ85: 0 | BA85: 79 | BB85: 0 | BC85: 79 | BD85: 0 | BE85: 79 | BF85: 0 | BG85: 79 | BH85: 0 | BI85: 79 | BJ85: 0 | BK85: 79 | BL85: 0 | BM85: 79 | BN85: 0 | BO85: 79 | BP85: 0 | BQ85: 79 | BR85: 0 | BS85: 79 | BT85: 0 | BU85: 79 | BV85: 0 | BW85: 79 | BX85: 0 | BY85: 79 | BZ85: 0 | CA85: 79 | CB85: 0 | CC85: 79 | CD85: 0 | CE85: 79 | CF85: 0 | CG85: 79 | CH85: 0 | CI85: 79 | CJ85: 0 | CK85: 79 | CL85: 0 | CM85: 79 | CN85: 0 | CO85: 79 | CP85: 0 | CQ85: 79 | CR85: 0 | CS85: 79 | CT85: 0 | CU85: 79 | CV85: 0 | CW85: 79 | CX85: 0 | CY85: 79 | CZ85: 0 | DA85: 79 | DB85: 0 | DC85: 79 | DD85: 0 | DE85: 79 | DF85: 0 | DG85: 79 | DH85: 0 | DI85: 79 | DJ85: 0 | DK85: 79 | DL85: 0 | DM85: 79 | DN85: 0 | DO85: 79 | DP85: 0 | DQ85: 79 | DR85: 0 | DS85: 79 | DT85: 0 | DU85: 79 | DV85: 0 | DW85: 79 | DX85: 0 | DY85: 79 | DZ85: 0 | EA85: 79 | EB85: 0 | EC85: 79 | ED85: 0 | EE85: 79 | EF85: 0 | EG85: 79 | EH85: 0 | EI85: 79 | EJ85: 0 | EK85: 79 | EL85: 0 | EM85: 79 | EN85: 0 | EO85: 79 | EP85: 0 | EQ85: 79 | ER85: 0 | ES85: 79 | ET85: 0 | EU85: 79 | EV85: 0 | EW85: 79 | EX85: 0 | EY85: 79 | EZ85: 0 | FA85: 79 | FB85: 0 | FC85: 79 | FD85: 0 | FE85: 79 | FF85: 0 | FG85: 79 | FH85: 0 | FI85: 79 | FJ85: 0 | FK85: 79 | FL85: 0 | FM85: 79 | FN85: 0 | FO85: 79 | FP85: 0 | FQ85: 79 | FR85: 0 | FS85: 79 | FT85: 0 | FU85: 79 | FV85: 0 | FW85: 79 | FX85: 0 | FY85: 79 | FZ85: 0 | GA85: 79 | GB85: 0 | GC85: 79 | GD85: 0 | GE85: 79 | GF85: 0 | GG85: 79 | GH85: 0 | GI85: 79 | GJ85: 0 | GK85: 79 | GL85: 0 | GM85: 79 | GN85: 0 | GO85: 79 | GP85: 0 | GQ85: 79 | GR85: 0
A86: 80 | B86: 0 | C86: 80 | D86: 0 | E86: 80 | F86: 0 | G86: 80 | H86: 0 | I86: 80 | J86: 0 | K86: 80 | L86: 0 | M86: 80 | N86: 0 | O86: 80 | P86: 0 | Q86: 80 | R86: 0 | S86: 80 | T86: 0 | U86: 80 | V86: 0 | W86: 80 | X86: 0 | Y86: 80 | Z86: 0 | AA86: 80 | AB86: 0 | AC86: 80 | AD86: 0 | AE86: 80 | AF86: 0 | AG86: 80 | AH86: 0 | AI86: 80 | AJ86: 0 | AK86: 80 | AL86: 0 | AM86: 80 | AN86: 0 | AO86: 80 | AP86: 0 | AQ86: 80 | AR86: 0 | AS86: 80 | AT86: 0 | AU86: 80 | AV86: 0 | AW86: 80 | AX86: 0 | AY86: 80 | AZ86: 0 | BA86: 80 | BB86: 0 | BC86: 80 | BD86: 0 | BE86: 80 | BF86: 0 | BG86: 80 | BH86: 0 | BI86: 80 | BJ86: 0 | BK86: 80 | BL86: 0 | BM86: 80 | BN86: 0 | BO86: 80 | BP86: 0 | BQ86: 80 | BR86: 0 | BS86: 80 | BT86: 0 | BU86: 80 | BV86: 0 | BW86: 80 | BX86: 0 | BY86: 80 | BZ86: 0 | CA86: 80 | CB86: 0 | CC86: 80 | CD86: 0 | CE86: 80 | CF86: 0 | CG86: 80 | CH86: 0 | CI86: 80 | CJ86: 0 | CK86: 80 | CL86: 0 | CM86: 80 | CN86: 0 | CO86: 80 | CP86: 0 | CQ86: 80 | CR86: 0 | CS86: 80 | CT86: 0 | CU86: 80 | CV86: 0 | CW86: 80 | CX86: 0 | CY86: 80 | CZ86: 0 | DA86: 80 | DB86: 0 | DC86: 80 | DD86: 0 | DE86: 80 | DF86: 0 | DG86: 80 | DH86: 0 | DI86: 80 | DJ86: 0 | DK86: 80 | DL86: 0 | DM86: 80 | DN86: 0 | DO86: 80 | DP86: 0 | DQ86: 80 | DR86: 0 | DS86: 80 | DT86: 0 | DU86: 80 | DV86: 0 | DW86: 80 | DX86: 0 | DY86: 80 | DZ86: 0 | EA86: 80 | EB86: 0 | EC86: 80 | ED86: 0 | EE86: 80 | EF86: 0 | EG86: 80 | EH86: 0 | EI86: 80 | EJ86: 0 | EK86: 80 | EL86: 0 | EM86: 80 | EN86: 0 | EO86: 80 | EP86: 0 | EQ86: 80 | ER86: 0 | ES86: 80 | ET86: 0 | EU86: 80 | EV86: 0 | EW86: 80 | EX86: 0 | EY86: 80 | EZ86: 0 | FA86: 80 | FB86: 0 | FC86: 80 | FD86: 0 | FE86: 80 | FF86: 0 | FG86: 80 | FH86: 0 | FI86: 80 | FJ86: 0 | FK86: 80 | FL86: 0 | FM86: 80 | FN86: 0 | FO86: 80 | FP86: 0 | FQ86: 80 | FR86: 0 | FS86: 80 | FT86: 0 | FU86: 80 | FV86: 0 | FW86: 80 | FX86: 0 | FY86: 80 | FZ86: 0 | GA86: 80 | GB86: 0 | GC86: 80 | GD86: 0 | GE86: 80 | GF86: 0 | GG86: 80 | GH86: 0 | GI86: 80 | GJ86: 0 | GK86: 80 | GL86: 0 | GM86: 80 | GN86: 0 | GO86: 80 | GP86: 0 | GQ86: 80 | GR86: 0
A87: 81 | B87: 0 | C87: 81 | D87: 0 | E87: 81 | F87: 0 | G87: 81 | H87: 0 | I87: 81 | J87: 0 | K87: 81 | L87: 0 | M87: 81 | N87: 0 | O87: 81 | P87: 0 | Q87: 81 | R87: 0 | S87: 81 | T87: 0 | U87: 81 | V87: 0 | W87: 81 | X87: 0 | Y87: 81 | Z87: 0 | AA87: 81 | AB87: 0 | AC87: 81 | AD87: 0 | AE87: 81 | AF87: 0 | AG87: 81 | AH87: 0 | AI87: 81 | AJ87: 0 | AK87: 81 | AL87: 0 | AM87: 81 | AN87: 0 | AO87: 81 | AP87: 0 | AQ87: 81 | AR87: 0 | AS87: 81 | AT87: 0 | AU87: 81 | AV87: 0 | AW87: 81 | AX87: 0 | AY87: 81 | AZ87: 0 | BA87: 81 | BB87: 0 | BC87: 81 | BD87: 0 | BE87: 81 | BF87: 0 | BG87: 81 | BH87: 0 | BI87: 81 | BJ87: 0 | BK87: 81 | BL87: 0 | BM87: 81 | BN87: 0 | BO87: 81 | BP87: 0 | BQ87: 81 | BR87: 0 | BS87: 81 | BT87: 0 | BU87: 81 | BV87: 0 | BW87: 81 | BX87: 0 | BY87: 81 | BZ87: 0 | CA87: 81 | CB87: 0 | CC87: 81 | CD87: 0 | CE87: 81 | CF87: 0 | CG87: 81 | CH87: 0 | CI87: 81 | CJ87: 0 | CK87: 81 | CL87: 0 | CM87: 81 | CN87: 0 | CO87: 81 | CP87: 0 | CQ87: 81 | CR87: 0 | CS87: 81 | CT87: 0 | CU87: 81 | CV87: 0 | CW87: 81 | CX87: 0 | CY87: 81 | CZ87: 0 | DA87: 81 | DB87: 0 | DC87: 81 | DD87: 0 | DE87: 81 | DF87: 0 | DG87: 81 | DH87: 0 | DI87: 81 | DJ87: 0 | DK87: 81 | DL87: 0 | DM87: 81 | DN87: 0 | DO87: 81 | DP87: 0 | DQ87: 81 | DR87: 0 | DS87: 81 | DT87: 0 | DU87: 81 | DV87: 0 | DW87: 81 | DX87: 0 | DY87: 81 | DZ87: 0 | EA87: 81 | EB87: 0 | EC87: 81 | ED87: 0 | EE87: 81 | EF87: 0 | EG87: 81 | EH87: 0 | EI87: 81 | EJ87: 0 | EK87: 81 | EL87: 0 | EM87: 81 | EN87: 0 | EO87: 81 | EP87: 0 | EQ87: 81 | ER87: 0 | ES87: 81 | ET87: 0 | EU87: 81 | EV87: 0 | EW87: 81 | EX87: 0 | EY87: 81 | EZ87: 0 | FA87: 81 | FB87: 0 | FC87: 81 | FD87: 0 | FE87: 81 | FF87: 0 | FG87: 81 | FH87: 0 | FI87: 81 | FJ87: 0 | FK87: 81 | FL87: 0 | FM87: 81 | FN87: 0 | FO87: 81 | FP87: 0 | FQ87: 81 | FR87: 0 | FS87: 81 | FT87: 0 | FU87: 81 | FV87: 0 | FW87: 81 | FX87: 0 | FY87: 81 | FZ87: 0 | GA87: 81 | GB87: 0 | GC87: 81 | GD87: 0 | GE87: 81 | GF87: 0 | GG87: 81 | GH87: 0 | GI87: 81 | GJ87: 0 | GK87: 81 | GL87: 0 | GM87: 81 | GN87: 0 | GO87: 81 | GP87: 0 | GQ87: 81 | GR87: 0
A88: 82 | B88: 0 | C88: 82 | D88: 0 | E88: 82 | F88: 0 | G88: 82 | H88: 0 | I88: 82 | J88: 0 | K88: 82 | L88: 0 | M88: 82 | N88: 0 | O88: 82 | P88: 0 | Q88: 82 | R88: 0 | S88: 82 | T88: 0 | U88: 82 | V88: 0 | W88: 82 | X88: 0 | Y88: 82 | Z88: 0 | AA88: 82 | AB88: 0 | AC88: 82 | AD88: 0 | AE88: 82 | AF88: 0 | AG88: 82 | AH88: 0 | AI88: 82 | AJ88: 0 | AK88: 82 | AL88: 0 | AM88: 82 | AN88: 0 | AO88: 82 | AP88: 0 | AQ88: 82 | AR88: 0 | AS88: 82 | AT88: 0 | AU88: 82 | AV88: 0 | AW88: 82 | AX88: 0 | AY88: 82 | AZ88: 0 | BA88: 82 | BB88: 0 | BC88: 82 | BD88: 0 | BE88: 82 | BF88: 0 | BG88: 82 | BH88: 0 | BI88: 82 | BJ88: 0 | BK88: 82 | BL88: 0 | BM88: 82 | BN88: 0 | BO88: 82 | BP88: 0 | BQ88: 82 | BR88: 0 | BS88: 82 | BT88: 0 | BU88: 82 | BV88: 0 | BW88: 82 | BX88: 0 | BY88: 82 | BZ88: 0 | CA88: 82 | CB88: 0 | CC88: 82 | CD88: 0 | CE88: 82 | CF88: 0 | CG88: 82 | CH88: 0 | CI88: 82 | CJ88: 0 | CK88: 82 | CL88: 0 | CM88: 82 | CN88: 0 | CO88: 82 | CP88: 0 | CQ88: 82 | CR88: 0 | CS88: 82 | CT88: 0 | CU88: 82 | CV88: 0 | CW88: 82 | CX88: 0 | CY88: 82 | CZ88: 0 | DA88: 82 | DB88: 0 | DC88: 82 | DD88: 0 | DE88: 82 | DF88: 0 | DG88: 82 | DH88: 0 | DI88: 82 | DJ88: 0 | DK88: 82 | DL88: 0 | DM88: 82 | DN88: 0 | DO88: 82 | DP88: 0 | DQ88: 82 | DR88: 0 | DS88: 82 | DT88: 0 | DU88: 82 | DV88: 0 | DW88: 82 | DX88: 0 | DY88: 82 | DZ88: 0 | EA88: 82 | EB88: 0 | EC88: 82 | ED88: 0 | EE88: 82 | EF88: 0 | EG88: 82 | EH88: 0 | EI88: 82 | EJ88: 0 | EK88: 82 | EL88: 0 | EM88: 82 | EN88: 0 | EO88: 82 | EP88: 0 | EQ88: 82 | ER88: 0 | ES88: 82 | ET88: 0 | EU88: 82 | EV88: 0 | EW88: 82 | EX88: 0 | EY88: 82 | EZ88: 0 | FA88: 82 | FB88: 0 | FC88: 82 | FD88: 0 | FE88: 82 | FF88: 0 | FG88: 82 | FH88: 0 | FI88: 82 | FJ88: 0 | FK88: 82 | FL88: 0 | FM88: 82 | FN88: 0 | FO88: 82 | FP88: 0 | FQ88: 82 | FR88: 0 | FS88: 82 | FT88: 0 | FU88: 82 | FV88: 0 | FW88: 82 | FX88: 0 | FY88: 82 | FZ88: 0 | GA88: 82 | GB88: 0 | GC88: 82 | GD88: 0 | GE88: 82 | GF88: 0 | GG88: 82 | GH88: 0 | GI88: 82 | GJ88: 0 | GK88: 82 | GL88: 0 | GM88: 82 | GN88: 0 | GO88: 82 | GP88: 0 | GQ88: 82 | GR88: 0
A89: 83 | B89: 0 | C89: 83 | D89: 0 | E89: 83 | F89: 0 | G89: 83 | H89: 0 | I89: 83 | J89: 0 | K89: 83 | L89: 0 | M89: 83 | N89: 0 | O89: 83 | P89: 0 | Q89: 83 | R89: 0 | S89: 83 | T89: 0 | U89: 83 | V89: 0 | W89: 83 | X89: 0 | Y89: 83 | Z89: 0 | AA89: 83 | AB89: 0 | AC89: 83 | AD89: 0 | AE89: 83 | AF89: 0 | AG89: 83 | AH89: 0 | AI89: 83 | AJ89: 0 | AK89: 83 | AL89: 0 | AM89: 83 | AN89: 0 | AO89: 83 | AP89: 0 | AQ89: 83 | AR89: 0 | AS89: 83 | AT89: 0 | AU89: 83 | AV89: 0 | AW89: 83 | AX89: 0 | AY89: 83 | AZ89: 0 | BA89: 83 | BB89: 0 | BC89: 83 | BD89: 0 | BE89: 83 | BF89: 0 | BG89: 83 | BH89: 0 | BI89: 83 | BJ89: 0 | BK89: 83 | BL89: 0 | BM89: 83 | BN89: 0 | BO89: 83 | BP89: 0 | BQ89: 83 | BR89: 0 | BS89: 83 | BT89: 0 | BU89: 83 | BV89: 0 | BW89: 83 | BX89: 0 | BY89: 83 | BZ89: 0 | CA89: 83 | CB89: 0 | CC89: 83 | CD89: 0 | CE89: 83 | CF89: 0 | CG89: 83 | CH89: 0 | CI89: 83 | CJ89: 0 | CK89: 83 | CL89: 0 | CM89: 83 | CN89: 0 | CO89: 83 | CP89: 0 | CQ89: 83 | CR89: 0 | CS89: 83 | CT89: 0 | CU89: 83 | CV89: 0 | CW89: 83 | CX89: 0 | CY89: 83 | CZ89: 0 | DA89: 83 | DB89: 0 | DC89: 83 | DD89: 0 | DE89: 83 | DF89: 0 | DG89: 83 | DH89: 0 | DI89: 83 | DJ89: 0 | DK89: 83 | DL89: 0 | DM89: 83 | DN89: 0 | DO89: 83 | DP89: 0 | DQ89: 83 | DR89: 0 | DS89: 83 | DT89: 0 | DU89: 83 | DV89: 0 | DW89: 83 | DX89: 0 | DY89: 83 | DZ89: 0 | EA89: 83 | EB89: 0 | EC89: 83 | ED89: 0 | EE89: 83 | EF89: 0 | EG89: 83 | EH89: 0 | EI89: 83 | EJ89: 0 | EK89: 83 | EL89: 0 | EM89: 83 | EN89: 0 | EO89: 83 | EP89: 0 | EQ89: 83 | ER89: 0 | ES89: 83 | ET89: 0 | EU89: 83 | EV89: 0 | EW89: 83 | EX89: 0 | EY89: 83 | EZ89: 0 | FA89: 83 | FB89: 0 | FC89: 83 | FD89: 0 | FE89: 83 | FF89: 0 | FG89: 83 | FH89: 0 | FI89: 83 | FJ89: 0 | FK89: 83 | FL89: 0 | FM89: 83 | FN89: 0 | FO89: 83 | FP89: 0 | FQ89: 83 | FR89: 0 | FS89: 83 | FT89: 0 | FU89: 83 | FV89: 0 | FW89: 83 | FX89: 0 | FY89: 83 | FZ89: 0 | GA89: 83 | GB89: 0 | GC89: 83 | GD89: 0 | GE89: 83 | GF89: 0 | GG89: 83 | GH89: 0 | GI89: 83 | GJ89: 0 | GK89: 83 | GL89: 0 | GM89: 83 | GN89: 0 | GO89: 83 | GP89: 0 | GQ89: 83 | GR89: 0
A90: 84 | B90: 0 | C90: 84 | D90: 0 | E90: 84 | F90: 0 | G90: 84 | H90: 0 | I90: 84 | J90: 0 | K90: 84 | L90: 0 | M90: 84 | N90: 0 | O90: 84 | P90: 0 | Q90: 84 | R90: 0 | S90: 84 | T90: 0 | U90: 84 | V90: 0 | W90: 84 | X90: 0 | Y90: 84 | Z90: 0 | AA90: 84 | AB90: 0 | AC90: 84 | AD90: 0 | AE90: 84 | AF90: 0 | AG90: 84 | AH90: 0 | AI90: 84 | AJ90: 0 | AK90: 84 | AL90: 0 | AM90: 84 | AN90: 0 | AO90: 84 | AP90: 0 | AQ90: 84 | AR90: 0 | AS90: 84 | AT90: 0 | AU90: 84 | AV90: 0 | AW90: 84 | AX90: 0 | AY90: 84 | AZ90: 0 | BA90: 84 | BB90: 0 | BC90: 84 | BD90: 0 | BE90: 84 | BF90: 0 | BG90: 84 | BH90: 0 | BI90: 84 | BJ90: 0 | BK90: 84 | BL90: 0 | BM90: 84 | BN90: 0 | BO90: 84 | BP90: 0 | BQ90: 84 | BR90: 0 | BS90: 84 | BT90: 0 | BU90: 84 | BV90: 0 | BW90: 84 | BX90: 0 | BY90: 84 | BZ90: 0 | CA90: 84 | CB90: 0 | CC90: 84 | CD90: 0 | CE90: 84 | CF90: 0 | CG90: 84 | CH90: 0 | CI90: 84 | CJ90: 0 | CK90: 84 | CL90: 0 | CM90: 84 | CN90: 0 | CO90: 84 | CP90: 0 | CQ90: 84 | CR90: 0 | CS90: 84 | CT90: 0 | CU90: 84 | CV90: 0 | CW90: 84 | CX90: 0 | CY90: 84 | CZ90: 0 | DA90: 84 | DB90: 0 | DC90: 84 | DD90: 0 | DE90: 84 | DF90: 0 | DG90: 84 | DH90: 0 | DI90: 84 | DJ90: 0 | DK90: 84 | DL90: 0 | DM90: 84 | DN90: 0 | DO90: 84 | DP90: 0 | DQ90: 84 | DR90: 0 | DS90: 84 | DT90: 0 | DU90: 84 | DV90: 0 | DW90: 84 | DX90: 0 | DY90: 84 | DZ90: 0 | EA90: 84 | EB90: 0 | EC90: 84 | ED90: 0 | EE90: 84 | EF90: 0 | EG90: 84 | EH90: 0 | EI90: 84 | EJ90: 0 | EK90: 84 | EL90: 0 | EM90: 84 | EN90: 0 | EO90: 84 | EP90: 0 | EQ90: 84 | ER90: 0 | ES90: 84 | ET90: 0 | EU90: 84 | EV90: 0 | EW90: 84 | EX90: 0 | EY90: 84 | EZ90: 0 | FA90: 84 | FB90: 0 | FC90: 84 | FD90: 0 | FE90: 84 | FF90: 0 | FG90: 84 | FH90: 0 | FI90: 84 | FJ90: 0 | FK90: 84 | FL90: 0 | FM90: 84 | FN90: 0 | FO90: 84 | FP90: 0 | FQ90: 84 | FR90: 0 | FS90: 84 | FT90: 0 | FU90: 84 | FV90: 0 | FW90: 84 | FX90: 0 | FY90: 84 | FZ90: 0 | GA90: 84 | GB90: 0 | GC90: 84 | GD90: 0 | GE90: 84 | GF90: 0 | GG90: 84 | GH90: 0 | GI90: 84 | GJ90: 0 | GK90: 84 | GL90: 0 | GM90: 84 | GN90: 0 | GO90: 84 | GP90: 0 | GQ90: 84 | GR90: 0
A91: 85 | B91: 0 | C91: 85 | D91: 0 | E91: 85 | F91: 0 | G91: 85 | H91: 0 | I91: 85 | J91: 0 | K91: 85 | L91: 0 | M91: 85 | N91: 0 | O91: 85 | P91: 0 | Q91: 85 | R91: 0 | S91: 85 | T91: 0 | U91: 85 | V91: 0 | W91: 85 | X91: 0 | Y91: 85 | Z91: 0 | AA91: 85 | AB91: 0 | AC91: 85 | AD91: 0 | AE91: 85 | AF91: 0 | AG91: 85 | AH91: 0 | AI91: 85 | AJ91: 0 | AK91: 85 | AL91: 0 | AM91: 85 | AN91: 0 | AO91: 85 | AP91: 0 | AQ91: 85 | AR91: 0 | AS91: 85 | AT91: 0 | AU91: 85 | AV91: 0 | AW91: 85 | AX91: 0 | AY91: 85 | AZ91: 0 | BA91: 85 | BB91: 0 | BC91: 85 | BD91: 0 | BE91: 85 | BF91: 0 | BG91: 85 | BH91: 0 | BI91: 85 | BJ91: 0 | BK91: 85 | BL91: 0 | BM91: 85 | BN91: 0 | BO91: 85 | BP91: 0 | BQ91: 85 | BR91: 0 | BS91: 85 | BT91: 0 | BU91: 85 | BV91: 0 | BW91: 85 | BX91: 0 | BY91: 85 | BZ91: 0 | CA91: 85 | CB91: 0 | CC91: 85 | CD91: 0 | CE91: 85 | CF91: 0 | CG91: 85 | CH91: 0 | CI91: 85 | CJ91: 0 | CK91: 85 | CL91: 0 | CM91: 85 | CN91: 0 | CO91: 85 | CP91: 0 | CQ91: 85 | CR91: 0 | CS91: 85 | CT91: 0 | CU91: 85 | CV91: 0 | CW91: 85 | CX91: 0 | CY91: 85 | CZ91: 0 | DA91: 85 | DB91: 0 | DC91: 85 | DD91: 0 | DE91: 85 | DF91: 0 | DG91: 85 | DH91: 0 | DI91: 85 | DJ91: 0 | DK91: 85 | DL91: 0 | DM91: 85 | DN91: 0 | DO91: 85 | DP91: 0 | DQ91: 85 | DR91: 0 | DS91: 85 | DT91: 0 | DU91: 85 | DV91: 0 | DW91: 85 | DX91: 0 | DY91: 85 | DZ91: 0 | EA91: 85 | EB91: 0 | EC91: 85 | ED91: 0 | EE91: 85 | EF91: 0 | EG91: 85 | EH91: 0 | EI91: 85 | EJ91: 0 | EK91: 85 | EL91: 0 | EM91: 85 | EN91: 0 | EO91: 85 | EP91: 0 | EQ91: 85 | ER91: 0 | ES91: 85 | ET91: 0 | EU91: 85 | EV91: 0 | EW91: 85 | EX91: 0 | EY91: 85 | EZ91: 0 | FA91: 85 | FB91: 0 | FC91: 85 | FD91: 0 | FE91: 85 | FF91: 0 | FG91: 85 | FH91: 0 | FI91: 85 | FJ91: 0 | FK91: 85 | FL91: 0 | FM91: 85 | FN91: 0 | FO91: 85 | FP91: 0 | FQ91: 85 | FR91: 0 | FS91: 85 | FT91: 0 | FU91: 85 | FV91: 0 | FW91: 85 | FX91: 0 | FY91: 85 | FZ91: 0 | GA91: 85 | GB91: 0 | GC91: 85 | GD91: 0 | GE91: 85 | GF91: 0 | GG91: 85 | GH91: 0 | GI91: 85 | GJ91: 0 | GK91: 85 | GL91: 0 | GM91: 85 | GN91: 0 | GO91: 85 | GP91: 0 | GQ91: 85 | GR91: 0
A92: 86 | B92: 0 | C92: 86 | D92: 0 | E92: 86 | F92: 0 | G92: 86 | H92: 0 | I92: 86 | J92: 0 | K92: 86 | L92: 0 | M92: 86 | N92: 0 | O92: 86 | P92: 0 | Q92: 86 | R92: 0 | S92: 86 | T92: 0 | U92: 86 | V92: 0 | W92: 86 | X92: 0 | Y92: 86 | Z92: 0 | AA92: 86 | AB92: 0 | AC92: 86 | AD92: 0 | AE92: 86 | AF92: 0 | AG92: 86 | AH92: 0 | AI92: 86 | AJ92: 0 | AK92: 86 | AL92: 0 | AM92: 86 | AN92: 0 | AO92: 86 | AP92: 0 | AQ92: 86 | AR92: 0 | AS92: 86 | AT92: 0 | AU92: 86 | AV92: 0 | AW92: 86 | AX92: 0 | AY92: 86 | AZ92: 0 | BA92: 86 | BB92: 0 | BC92: 86 | BD92: 0 | BE92: 86 | BF92: 0 | BG92: 86 | BH92: 0 | BI92: 86 | BJ92: 0 | BK92: 86 | BL92: 0 | BM92: 86 | BN92: 0 | BO92: 86 | BP92: 0 | BQ92: 86 | BR92: 0 | BS92: 86 | BT92: 0 | BU92: 86 | BV92: 0 | BW92: 86 | BX92: 0 | BY92: 86 | BZ92: 0 | CA92: 86 | CB92: 0 | CC92: 86 | CD92: 0 | CE92: 86 | CF92: 0 | CG92: 86 | CH92: 0 | CI92: 86 | CJ92: 0 | CK92: 86 | CL92: 0 | CM92: 86 | CN92: 0 | CO92: 86 | CP92: 0 | CQ92: 86 | CR92: 0 | CS92: 86 | CT92: 0 | CU92: 86 | CV92: 0 | CW92: 86 | CX92: 0 | CY92: 86 | CZ92: 0 | DA92: 86 | DB92: 0 | DC92: 86 | DD92: 0 | DE92: 86 | DF92: 0 | DG92: 86 | DH92: 0 | DI92: 86 | DJ92: 0 | DK92: 86 | DL92: 0 | DM92: 86 | DN92: 0 | DO92: 86 | DP92: 0 | DQ92: 86 | DR92: 0 | DS92: 86 | DT92: 0 | DU92: 86 | DV92: 0 | DW92: 86 | DX92: 0 | DY92: 86 | DZ92: 0 | EA92: 86 | EB92: 0 | EC92: 86 | ED92: 0 | EE92: 86 | EF92: 0 | EG92: 86 | EH92: 0 | EI92: 86 | EJ92: 0 | EK92: 86 | EL92: 0 | EM92: 86 | EN92: 0 | EO92: 86 | EP92: 0 | EQ92: 86 | ER92: 0 | ES92: 86 | ET92: 0 | EU92: 86 | EV92: 0 | EW92: 86 | EX92: 0 | EY92: 86 | EZ92: 0 | FA92: 86 | FB92: 0 | FC92: 86 | FD92: 0 | FE92: 86 | FF92: 0 | FG92: 86 | FH92: 0 | FI92: 86 | FJ92: 0 | FK92: 86 | FL92: 0 | FM92: 86 | FN92: 0 | FO92: 86 | FP92: 0 | FQ92: 86 | FR92: 0 | FS92: 86 | FT92: 0 | FU92: 86 | FV92: 0 | FW92: 86 | FX92: 0 | FY92: 86 | FZ92: 0 | GA92: 86 | GB92: 0 | GC92: 86 | GD92: 0 | GE92: 86 | GF92: 0 | GG92: 86 | GH92: 0 | GI92: 86 | GJ92: 0 | GK92: 86 | GL92: 0 | GM92: 86 | GN92: 0 | GO92: 86 | GP92: 0 | GQ92: 86 | GR92: 0
A93: 87 | B93: 0 | C93: 87 | D93: 0 | E93: 87 | F93: 0 | G93: 87 | H93: 0 | I93: 87 | J93: 0 | K93: 87 | L93: 0 | M93: 87 | N93: 0 | O93: 87 | P93: 0 | Q93: 87 | R93: 0 | S93: 87 | T93: 0 | U93: 87 | V93: 0 | W93: 87 | X93: 0 | Y93: 87 | Z93: 0 | AA93: 87 | AB93: 0 | AC93: 87 | AD93: 0 | AE93: 87 | AF93: 0 | AG93: 87 | AH93: 0 | AI93: 87 | AJ93: 0 | AK93: 87 | AL93: 0 | AM93: 87 | AN93: 0 | AO93: 87 | AP93: 0 | AQ93: 87 | AR93: 0 | AS93: 87 | AT93: 0 | AU93: 87 | AV93: 0 | AW93: 87 | AX93: 0 | AY93: 87 | AZ93: 0 | BA93: 87 | BB93: 0 | BC93: 87 | BD93: 0 | BE93: 87 | BF93: 0 | BG93: 87 | BH93: 0 | BI93: 87 | BJ93: 0 | BK93: 87 | BL93: 0 | BM93: 87 | BN93: 0 | BO93: 87 | BP93: 0 | BQ93: 87 | BR93: 0 | BS93: 87 | BT93: 0 | BU93: 87 | BV93: 0 | BW93: 87 | BX93: 0 | BY93: 87 | BZ93: 0 | CA93: 87 | CB93: 0 | CC93: 87 | CD93: 0 | CE93: 87 | CF93: 0 | CG93: 87 | CH93: 0 | CI93: 87 | CJ93: 0 | CK93: 87 | CL93: 0 | CM93: 87 | CN93: 0 | CO93: 87 | CP93: 0 | CQ93: 87 | CR93: 0 | CS93: 87 | CT93: 0 | CU93: 87 | CV93: 0 | CW93: 87 | CX93: 0 | CY93: 87 | CZ93: 0 | DA93: 87 | DB93: 0 | DC93: 87 | DD93: 0 | DE93: 87 | DF93: 0 | DG93: 87 | DH93: 0 | DI93: 87 | DJ93: 0 | DK93: 87 | DL93: 0 | DM93: 87 | DN93: 0 | DO93: 87 | DP93: 0 | DQ93: 87 | DR93: 0 | DS93: 87 | DT93: 0 | DU93: 87 | DV93: 0 | DW93: 87 | DX93: 0 | DY93: 87 | DZ93: 0 | EA93: 87 | EB93: 0 | EC93: 87 | ED93: 0 | EE93: 87 | EF93: 0 | EG93: 87 | EH93: 0 | EI93: 87 | EJ93: 0 | EK93: 87 | EL93: 0 | EM93: 87 | EN93: 0 | EO93: 87 | EP93: 0 | EQ93: 87 | ER93: 0 | ES93: 87 | ET93: 0 | EU93: 87 | EV93: 0 | EW93: 87 | EX93: 0 | EY93: 87 | EZ93: 0 | FA93: 87 | FB93: 0 | FC93: 87 | FD93: 0 | FE93: 87 | FF93: 0 | FG93: 87 | FH93: 0 | FI93: 87 | FJ93: 0 | FK93: 87 | FL93: 0 | FM93: 87 | FN93: 0 | FO93: 87 | FP93: 0 | FQ93: 87 | FR93: 0 | FS93: 87 | FT93: 0 | FU93: 87 | FV93: 0 | FW93: 87 | FX93: 0 | FY93: 87 | FZ93: 0 | GA93: 87 | GB93: 0 | GC93: 87 | GD93: 0 | GE93: 87 | GF93: 0 | GG93: 87 | GH93: 0 | GI93: 87 | GJ93: 0 | GK93: 87 | GL93: 0 | GM93: 87 | GN93: 0 | GO93: 87 | GP93: 0 | GQ93: 87 | GR93: 0
A94: 88 | B94: 0 | C94: 88 | D94: 0 | E94: 88 | F94: 0 | G94: 88 | H94: 0 | I94: 88 | J94: 0 | K94: 88 | L94: 0 | M94: 88 | N94: 0 | O94: 88 | P94: 0 | Q94: 88 | R94: 0 | S94: 88 | T94: 0 | U94: 88 | V94: 0 | W94: 88 | X94: 0 | Y94: 88 | Z94: 0 | AA94: 88 | AB94: 0 | AC94: 88 | AD94: 0 | AE94: 88 | AF94: 0 | AG94: 88 | AH94: 0 | AI94: 88 | AJ94: 0 | AK94: 88 | AL94: 0 | AM94: 88 | AN94: 0 | AO94: 88 | AP94: 0 | AQ94: 88 | AR94: 0 | AS94: 88 | AT94: 0 | AU94: 88 | AV94: 0 | AW94: 88 | AX94: 0 | AY94: 88 | AZ94: 0 | BA94: 88 | BB94: 0 | BC94: 88 | BD94: 0 | BE94: 88 | BF94: 0 | BG94: 88 | BH94: 0 | BI94: 88 | BJ94: 0 | BK94: 88 | BL94: 0 | BM94: 88 | BN94: 0 | BO94: 88 | BP94: 0 | BQ94: 88 | BR94: 0 | BS94: 88 | BT94: 0 | BU94: 88 | BV94: 0 | BW94: 88 | BX94: 0 | BY94: 88 | BZ94: 0 | CA94: 88 | CB94: 0 | CC94: 88 | CD94: 0 | CE94: 88 | CF94: 0 | CG94: 88 | CH94: 0 | CI94: 88 | CJ94: 0 | CK94: 88 | CL94: 0 | CM94: 88 | CN94: 0 | CO94: 88 | CP94: 0 | CQ94: 88 | CR94: 0 | CS94: 88 | CT94: 0 | CU94: 88 | CV94: 0 | CW94: 88 | CX94: 0 | CY94: 88 | CZ94: 0 | DA94: 88 | DB94: 0 | DC94: 88 | DD94: 0 | DE94: 88 | DF94: 0 | DG94: 88 | DH94: 0 | DI94: 88 | DJ94: 0 | DK94: 88 | DL94: 0 | DM94: 88 | DN94: 0 | DO94: 88 | DP94: 0 | DQ94: 88 | DR94: 0 | DS94: 88 | DT94: 0 | DU94: 88 | DV94: 0 | DW94: 88 | DX94: 0 | DY94: 88 | DZ94: 0 | EA94: 88 | EB94: 0 | EC94: 88 | ED94: 0 | EE94: 88 | EF94: 0 | EG94: 88 | EH94: 0 | EI94: 88 | EJ94: 0 | EK94: 88 | EL94: 0 | EM94: 88 | EN94: 0 | EO94: 88 | EP94: 0 | EQ94: 88 | ER94: 0 | ES94: 88 | ET94: 0 | EU94: 88 | EV94: 0 | EW94: 88 | EX94: 0 | EY94: 88 | EZ94: 0 | FA94: 88 | FB94: 0 | FC94: 88 | FD94: 0 | FE94: 88 | FF94: 0 | FG94: 88 | FH94: 0 | FI94: 88 | FJ94: 0 | FK94: 88 | FL94: 0 | FM94: 88 | FN94: 0 | FO94: 88 | FP94: 0 | FQ94: 88 | FR94: 0 | FS94: 88 | FT94: 0 | FU94: 88 | FV94: 0 | FW94: 88 | FX94: 0 | FY94: 88 | FZ94: 0 | GA94: 88 | GB94: 0 | GC94: 88 | GD94: 0 | GE94: 88 | GF94: 0 | GG94: 88 | GH94: 0 | GI94: 88 | GJ94: 0 | GK94: 88 | GL94: 0 | GM94: 88 | GN94: 0 | GO94: 88 | GP94: 0 | GQ94: 88 | GR94: 0
A95: 89 | B95: 0 | C95: 89 | D95: 0 | E95: 89 | F95: 0 | G95: 89 | H95: 0 | I95: 89 | J95: 0 | K95: 89 | L95: 0 | M95: 89 | N95: 0 | O95: 89 | P95: 0 | Q95: 89 | R95: 0 | S95: 89 | T95: 0 | U95: 89 | V95: 0 | W95: 89 | X95: 0 | Y95: 89 | Z95: 0 | AA95: 89 | AB95: 0 | AC95: 89 | AD95: 0 | AE95: 89 | AF95: 0 | AG95: 89 | AH95: 0 | AI95: 89 | AJ95: 0 | AK95: 89 | AL95: 0 | AM95: 89 | AN95: 0 | AO95: 89 | AP95: 0 | AQ95: 89 | AR95: 0 | AS95: 89 | AT95: 0 | AU95: 89 | AV95: 0 | AW95: 89 | AX95: 0 | AY95: 89 | AZ95: 0 | BA95: 89 | BB95: 0 | BC95: 89 | BD95: 0 | BE95: 89 | BF95: 0 | BG95: 89 | BH95: 0 | BI95: 89 | BJ95: 0 | BK95: 89 | BL95: 0 | BM95: 89 | BN95: 0 | BO95: 89 | BP95: 0 | BQ95: 89 | BR95: 0 | BS95: 89 | BT95: 0 | BU95: 89 | BV95: 0 | BW95: 89 | BX95: 0 | BY95: 89 | BZ95: 0 | CA95: 89 | CB95: 0 | CC95: 89 | CD95: 0 | CE95: 89 | CF95: 0 | CG95: 89 | CH95: 0 | CI95: 89 | CJ95: 0 | CK95: 89 | CL95: 0 | CM95: 89 | CN95: 0 | CO95: 89 | CP95: 0 | CQ95: 89 | CR95: 0 | CS95: 89 | CT95: 0 | CU95: 89 | CV95: 0 | CW95: 89 | CX95: 0 | CY95: 89 | CZ95: 0 | DA95: 89 | DB95: 0 | DC95: 89 | DD95: 0 | DE95: 89 | DF95: 0 | DG95: 89 | DH95: 0 | DI95: 89 | DJ95: 0 | DK95: 89 | DL95: 0 | DM95: 89 | DN95: 0 | DO95: 89 | DP95: 0 | DQ95: 89 | DR95: 0 | DS95: 89 | DT95: 0 | DU95: 89 | DV95: 0 | DW95: 89 | DX95: 0 | DY95: 89 | DZ95: 0 | EA95: 89 | EB95: 0 | EC95: 89 | ED95: 0 | EE95: 89 | EF95: 0 | EG95: 89 | EH95: 0 | EI95: 89 | EJ95: 0 | EK95: 89 | EL95: 0 | EM95: 89 | EN95: 0 | EO95: 89 | EP95: 0 | EQ95: 89 | ER95: 0 | ES95: 89 | ET95: 0 | EU95: 89 | EV95: 0 | EW95: 89 | EX95: 0 | EY95: 89 | EZ95: 0 | FA95: 89 | FB95: 0 | FC95: 89 | FD95: 0 | FE95: 89 | FF95: 0 | FG95: 89 | FH95: 0 | FI95: 89 | FJ95: 0 | FK95: 89 | FL95: 0 | FM95: 89 | FN95: 0 | FO95: 89 | FP95: 0 | FQ95: 89 | FR95: 0 | FS95: 89 | FT95: 0 | FU95: 89 | FV95: 0 | FW95: 89 | FX95: 0 | FY95: 89 | FZ95: 0 | GA95: 89 | GB95: 0 | GC95: 89 | GD95: 0 | GE95: 89 | GF95: 0 | GG95: 89 | GH95: 0 | GI95: 89 | GJ95: 0 | GK95: 89 | GL95: 0 | GM95: 89 | GN95: 0 | GO95: 89 | GP95: 0 | GQ95: 89 | GR95: 0
A96: 90 | B96: 0 | C96: 90 | D96: 0 | E96: 90 | F96: 0 | G96: 90 | H96: 0 | I96: 90 | J96: 0 | K96: 90 | L96: 0 | M96: 90 | N96: 0 | O96: 90 | P96: 0 | Q96: 90 | R96: 0 | S96: 90 | T96: 0 | U96: 90 | V96: 0 | W96: 90 | X96: 0 | Y96: 90 | Z96: 0 | AA96: 90 | AB96: 0 | AC96: 90 | AD96: 0 | AE96: 90 | AF96: 0 | AG96: 90 | AH96: 0 | AI96: 90 | AJ96: 0 | AK96: 90 | AL96: 0 | AM96: 90 | AN96: 0 | AO96: 90 | AP96: 0 | AQ96: 90 | AR96: 0 | AS96: 90 | AT96: 0 | AU96: 90 | AV96: 0 | AW96: 90 | AX96: 0 | AY96: 90 | AZ96: 0 | BA96: 90 | BB96: 0 | BC96: 90 | BD96: 0 | BE96: 90 | BF96: 0 | BG96: 90 | BH96: 0 | BI96: 90 | BJ96: 0 | BK96: 90 | BL96: 0 | BM96: 90 | BN96: 0 | BO96: 90 | BP96: 0 | BQ96: 90 | BR96: 0 | BS96: 90 | BT96: 0 | BU96: 90 | BV96: 0 | BW96: 90 | BX96: 0 | BY96: 90 | BZ96: 0 | CA96: 90 | CB96: 0 | CC96: 90 | CD96: 0 | CE96: 90 | CF96: 0 | CG96: 90 | CH96: 0 | CI96: 90 | CJ96: 0 | CK96: 90 | CL96: 0 | CM96: 90 | CN96: 0 | CO96: 90 | CP96: 0 | CQ96: 90 | CR96: 0 | CS96: 90 | CT96: 0 | CU96: 90 | CV96: 0 | CW96: 90 | CX96: 0 | CY96: 90 | CZ96: 0 | DA96: 90 | DB96: 0 | DC96: 90 | DD96: 0 | DE96: 90 | DF96: 0 | DG96: 90 | DH96: 0 | DI96: 90 | DJ96: 0 | DK96: 90 | DL96: 0 | DM96: 90 | DN96: 0 | DO96: 90 | DP96: 0 | DQ96: 90 | DR96: 0 | DS96: 90 | DT96: 0 | DU96: 90 | DV96: 0 | DW96: 90 | DX96: 0 | DY96: 90 | DZ96: 0 | EA96: 90 | EB96: 0 | EC96: 90 | ED96: 0 | EE96: 90 | EF96: 0 | EG96: 90 | EH96: 0 | EI96: 90 | EJ96: 0 | EK96: 90 | EL96: 0 | EM96: 90 | EN96: 0 | EO96: 90 | EP96: 0 | EQ96: 90 | ER96: 0 | ES96: 90 | ET96: 0 | EU96: 90 | EV96: 0 | EW96: 90 | EX96: 0 | EY96: 90 | EZ96: 0 | FA96: 90 | FB96: 0 | FC96: 90 | FD96: 0 | FE96: 90 | FF96: 0 | FG96: 90 | FH96: 0 | FI96: 90 | FJ96: 0 | FK96: 90 | FL96: 0 | FM96: 90 | FN96: 0 | FO96: 90 | FP96: 0 | FQ96: 90 | FR96: 0 | FS96: 90 | FT96: 0 | FU96: 90 | FV96: 0 | FW96: 90 | FX96: 0 | FY96: 90 | FZ96: 0 | GA96: 90 | GB96: 0 | GC96: 90 | GD96: 0 | GE96: 90 | GF96: 0 | GG96: 90 | GH96: 0 | GI96: 90 | GJ96: 0 | GK96: 90 | GL96: 0 | GM96: 90 | GN96: 0 | GO96: 90 | GP96: 0 | GQ96: 90 | GR96: 0
A97: 91 | B97: 0 | C97: 91 | D97: 0 | E97: 91 | F97: 0 | G97: 91 | H97: 0 | I97: 91 | J97: 0 | K97: 91 | L97: 0 | M97: 91 | N97: 0 | O97: 91 | P97: 0 | Q97: 91 | R97: 0 | S97: 91 | T97: 0 | U97: 91 | V97: 0 | W97: 91 | X97: 0 | Y97: 91 | Z97: 0 | AA97: 91 | AB97: 0 | AC97: 91 | AD97: 0 | AE97: 91 | AF97: 0 | AG97: 91 | AH97: 0 | AI97: 91 | AJ97: 0 | AK97: 91 | AL97: 0 | AM97: 91 | AN97: 0 | AO97: 91 | AP97: 0 | AQ97: 91 | AR97: 0 | AS97: 91 | AT97: 0 | AU97: 91 | AV97: 0 | AW97: 91 | AX97: 0 | AY97: 91 | AZ97: 0 | BA97: 91 | BB97: 0 | BC97: 91 | BD97: 0 | BE97: 91 | BF97: 0 | BG97: 91 | BH97: 0 | BI97: 91 | BJ97: 0 | BK97: 91 | BL97: 0 | BM97: 91 | BN97: 0 | BO97: 91 | BP97: 0 | BQ97: 91 | BR97: 0 | BS97: 91 | BT97: 0 | BU97: 91 | BV97: 0 | BW97: 91 | BX97: 0 | BY97: 91 | BZ97: 0 | CA97: 91 | CB97: 0 | CC97: 91 | CD97: 0 | CE97: 91 | CF97: 0 | CG97: 91 | CH97: 0 | CI97: 91 | CJ97: 0 | CK97: 91 | CL97: 0 | CM97: 91 | CN97: 0 | CO97: 91 | CP97: 0 | CQ97: 91 | CR97: 0 | CS97: 91 | CT97: 0 | CU97: 91 | CV97: 0 | CW97: 91 | CX97: 0 | CY97: 91 | CZ97: 0 | DA97: 91 | DB97: 0 | DC97: 91 | DD97: 0 | DE97: 91 | DF97: 0 | DG97: 91 | DH97: 0 | DI97: 91 | DJ97: 0 | DK97: 91 | DL97: 0 | DM97: 91 | DN97: 0 | DO97: 91 | DP97: 0 | DQ97: 91 | DR97: 0 | DS97: 91 | DT97: 0 | DU97: 91 | DV97: 0 | DW97: 91 | DX97: 0 | DY97: 91 | DZ97: 0 | EA97: 91 | EB97: 0 | EC97: 91 | ED97: 0 | EE97: 91 | EF97: 0 | EG97: 91 | EH97: 0 | EI97: 91 | EJ97: 0 | EK97: 91 | EL97: 0 | EM97: 91 | EN97: 0 | EO97: 91 | EP97: 0 | EQ97: 91 | ER97: 0 | ES97: 91 | ET97: 0 | EU97: 91 | EV97: 0 | EW97: 91 | EX97: 0 | EY97: 91 | EZ97: 0 | FA97: 91 | FB97: 0 | FC97: 91 | FD97: 0 | FE97: 91 | FF97: 0 | FG97: 91 | FH97: 0 | FI97: 91 | FJ97: 0 | FK97: 91 | FL97: 0 | FM97: 91 | FN97: 0 | FO97: 91 | FP97: 0 | FQ97: 91 | FR97: 0 | FS97: 91 | FT97: 0 | FU97: 91 | FV97: 0 | FW97: 91 | FX97: 0 | FY97: 91 | FZ97: 0 | GA97: 91 | GB97: 0 | GC97: 91 | GD97: 0 | GE97: 91 | GF97: 0 | GG97: 91 | GH97: 0 | GI97: 91 | GJ97: 0 | GK97: 91 | GL97: 0 | GM97: 91 | GN97: 0 | GO97: 91 | GP97: 0 | GQ97: 91 | GR97: 0
A98: 92 | B98: 0 | C98: 92 | D98: 0 | E98: 92 | F98: 0 | G98: 92 | H98: 0 | I98: 92 | J98: 0 | K98: 92 | L98: 0 | M98: 92 | N98: 0 | O98: 92 | P98: 0 | Q98: 92 | R98: 0 | S98: 92 | T98: 0 | U98: 92 | V98: 0 | W98: 92 | X98: 0 | Y98: 92 | Z98: 0 | AA98: 92 | AB98: 0 | AC98: 92 | AD98: 0 | AE98: 92 | AF98: 0 | AG98: 92 | AH98: 0 | AI98: 92 | AJ98: 0 | AK98: 92 | AL98: 0 | AM98: 92 | AN98: 0 | AO98: 92 | AP98: 0 | AQ98: 92 | AR98: 0 | AS98: 92 | AT98: 0 | AU98: 92 | AV98: 0 | AW98: 92 | AX98: 0 | AY98: 92 | AZ98: 0 | BA98: 92 | BB98: 0 | BC98: 92 | BD98: 0 | BE98: 92 | BF98: 0 | BG98: 92 | BH98: 0 | BI98: 92 | BJ98: 0 | BK98: 92 | BL98: 0 | BM98: 92 | BN98: 0 | BO98: 92 | BP98: 0 | BQ98: 92 | BR98: 0 | BS98: 92 | BT98: 0 | BU98: 92 | BV98: 0 | BW98: 92 | BX98: 0 | BY98: 92 | BZ98: 0 | CA98: 92 | CB98: 0 | CC98: 92 | CD98: 0 | CE98: 92 | CF98: 0 | CG98: 92 | CH98: 0 | CI98: 92 | CJ98: 0 | CK98: 92 | CL98: 0 | CM98: 92 | CN98: 0 | CO98: 92 | CP98: 0 | CQ98: 92 | CR98: 0 | CS98: 92 | CT98: 0 | CU98: 92 | CV98: 0 | CW98: 92 | CX98: 0 | CY98: 92 | CZ98: 0 | DA98: 92 | DB98: 0 | DC98: 92 | DD98: 0 | DE98: 92 | DF98: 0 | DG98: 92 | DH98: 0 | DI98: 92 | DJ98: 0 | DK98: 92 | DL98: 0 | DM98: 92 | DN98: 0 | DO98: 92 | DP98: 0 | DQ98: 92 | DR98: 0 | DS98: 92 | DT98: 0 | DU98: 92 | DV98: 0 | DW98: 92 | DX98: 0 | DY98: 92 | DZ98: 0 | EA98: 92 | EB98: 0 | EC98: 92 | ED98: 0 | EE98: 92 | EF98: 0 | EG98: 92 | EH98: 0 | EI98: 92 | EJ98: 0 | EK98: 92 | EL98: 0 | EM98: 92 | EN98: 0 | EO98: 92 | EP98: 0 | EQ98: 92 | ER98: 0 | ES98: 92 | ET98: 0 | EU98: 92 | EV98: 0 | EW98: 92 | EX98: 0 | EY98: 92 | EZ98: 0 | FA98: 92 | FB98: 0 | FC98: 92 | FD98: 0 | FE98: 92 | FF98: 0 | FG98: 92 | FH98: 0 | FI98: 92 | FJ98: 0 | FK98: 92 | FL98: 0 | FM98: 92 | FN98: 0 | FO98: 92 | FP98: 0 | FQ98: 92 | FR98: 0 | FS98: 92 | FT98: 0 | FU98: 92 | FV98: 0 | FW98: 92 | FX98: 0 | FY98: 92 | FZ98: 0 | GA98: 92 | GB98: 0 | GC98: 92 | GD98: 0 | GE98: 92 | GF98: 0 | GG98: 92 | GH98: 0 | GI98: 92 | GJ98: 0 | GK98: 92 | GL98: 0 | GM98: 92 | GN98: 0 | GO98: 92 | GP98: 0 | GQ98: 92 | GR98: 0
A99: 93 | B99: 0 | C99: 93 | D99: 0 | E99: 93 | F99: 0 | G99: 93 | H99: 0 | I99: 93 | J99: 0 | K99: 93 | L99: 0 | M99: 93 | N99: 0 | O99: 93 | P99: 0 | Q99: 93 | R99: 0 | S99: 93 | T99: 0 | U99: 93 | V99: 0 | W99: 93 | X99: 0 | Y99: 93 | Z99: 0 | AA99: 93 | AB99: 0 | AC99: 93 | AD99: 0 | AE99: 93 | AF99: 0 | AG99: 93 | AH99: 0 | AI99: 93 | AJ99: 0 | AK99: 93 | AL99: 0 | AM99: 93 | AN99: 0 | AO99: 93 | AP99: 0 | AQ99: 93 | AR99: 0 | AS99: 93 | AT99: 0 | AU99: 93 | AV99: 0 | AW99: 93 | AX99: 0 | AY99: 93 | AZ99: 0 | BA99: 93 | BB99: 0 | BC99: 93 | BD99: 0 | BE99: 93 | BF99: 0 | BG99: 93 | BH99: 0 | BI99: 93 | BJ99: 0 | BK99: 93 | BL99: 0 | BM99: 93 | BN99: 0 | BO99: 93 | BP99: 0 | BQ99: 93 | BR99: 0 | BS99: 93 | BT99: 0 | BU99: 93 | BV99: 0 | BW99: 93 | BX99: 0 | BY99: 93 | BZ99: 0 | CA99: 93 | CB99: 0 | CC99: 93 | CD99: 0 | CE99: 93 | CF99: 0 | CG99: 93 | CH99: 0 | CI99: 93 | CJ99: 0 | CK99: 93 | CL99: 0 | CM99: 93 | CN99: 0 | CO99: 93 | CP99: 0 | CQ99: 93 | CR99: 0 | CS99: 93 | CT99: 0 | CU99: 93 | CV99: 0 | CW99: 93 | CX99: 0 | CY99: 93 | CZ99: 0 | DA99: 93 | DB99: 0 | DC99: 93 | DD99: 0 | DE99: 93 | DF99: 0 | DG99: 93 | DH99: 0 | DI99: 93 | DJ99: 0 | DK99: 93 | DL99: 0 | DM99: 93 | DN99: 0 | DO99: 93 | DP99: 0 | DQ99: 93 | DR99: 0 | DS99: 93 | DT99: 0 | DU99: 93 | DV99: 0 | DW99: 93 | DX99: 0 | DY99: 93 | DZ99: 0 | EA99: 93 | EB99: 0 | EC99: 93 | ED99: 0 | EE99: 93 | EF99: 0 | EG99: 93 | EH99: 0 | EI99: 93 | EJ99: 0 | EK99: 93 | EL99: 0 | EM99: 93 | EN99: 0 | EO99: 93 | EP99: 0 | EQ99: 93 | ER99: 0 | ES99: 93 | ET99: 0 | EU99: 93 | EV99: 0 | EW99: 93 | EX99: 0 | EY99: 93 | EZ99: 0 | FA99: 93 | FB99: 0 | FC99: 93 | FD99: 0 | FE99: 93 | FF99: 0 | FG99: 93 | FH99: 0 | FI99: 93 | FJ99: 0 | FK99: 93 | FL99: 0 | FM99: 93 | FN99: 0 | FO99: 93 | FP99: 0 | FQ99: 93 | FR99: 0 | FS99: 93 | FT99: 0 | FU99: 93 | FV99: 0 | FW99: 93 | FX99: 0 | FY99: 93 | FZ99: 0 | GA99: 93 | GB99: 0 | GC99: 93 | GD99: 0 | GE99: 93 | GF99: 0 | GG99: 93 | GH99: 0 | GI99: 93 | GJ99: 0 | GK99: 93 | GL99: 0 | GM99: 93 | GN99: 0 | GO99: 93 | GP99: 0 | GQ99: 93 | GR99: 0
A100: 94 | B100: 0 | C100: 94 | D100: 0 | E100: 94 | F100: 0 | G100: 94 | H100: 0 | I100: 94 | J100: 0 | K100: 94 | L100: 0 | M100: 94 | N100: 0 | O100: 94 | P100: 0 | Q100: 94 | R100: 0 | S100: 94 | T100: 0 | U100: 94 | V100: 0 | W100: 94 | X100: 0 | Y100: 94 | Z100: 0 | AA100: 94 | AB100: 0 | AC100: 94 | AD100: 0 | AE100: 94 | AF100: 0 | AG100: 94 | AH100: 0 | AI100: 94 | AJ100: 0 | AK100: 94 | AL100: 0 | AM100: 94 | AN100: 0 | AO100: 94 | AP100: 0 | AQ100: 94 | AR100: 0 | AS100: 94 | AT100: 0 | AU100: 94 | AV100: 0 | AW100: 94 | AX100: 0 | AY100: 94 | AZ100: 0 | BA100: 94 | BB100: 0 | BC100: 94 | BD100: 0 | BE100: 94 | BF100: 0 | BG100: 94 | BH100: 0 | BI100: 94 | BJ100: 0 | BK100: 94 | BL100: 0 | BM100: 94 | BN100: 0 | BO100: 94 | BP100: 0 | BQ100: 94 | BR100: 0 | BS100: 94 | BT100: 0 | BU100: 94 | BV100: 0 | BW100: 94 | BX100: 0 | BY100: 94 | BZ100: 0 | CA100: 94 | CB100: 0 | CC100: 94 | CD100: 0 | CE100: 94 | CF100: 0 | CG100: 94 | CH100: 0 | CI100: 94 | CJ100: 0 | CK100: 94 | CL100: 0 | CM100: 94 | CN100: 0 | CO100: 94 | CP100: 0 | CQ100: 94 | CR100: 0 | CS100: 94 | CT100: 0 | CU100: 94 | CV100: 0 | CW100: 94 | CX100: 0 | CY100: 94 | CZ100: 0 | DA100: 94 | DB100: 0 | DC100: 94 | DD100: 0 | DE100: 94 | DF100: 0 | DG100: 94 | DH100: 0 | DI100: 94 | DJ100: 0 | DK100: 94 | DL100: 0 | DM100: 94 | DN100: 0 | DO100: 94 | DP100: 0 | DQ100: 94 | DR100: 0 | DS100: 94 | DT100: 0 | DU100: 94 | DV100: 0 | DW100: 94 | DX100: 0 | DY100: 94 | DZ100: 0 | EA100: 94 | EB100: 0 | EC100: 94 | ED100: 0 | EE100: 94 | EF100: 0 | EG100: 94 | EH100: 0 | EI100: 94 | EJ100: 0 | EK100: 94 | EL100: 0 | EM100: 94 | EN100: 0 | EO100: 94 | EP100: 0 | EQ100: 94 | ER100: 0 | ES100: 94 | ET100: 0 | EU100: 94 | EV100: 0 | EW100: 94 | EX100: 0 | EY100: 94 | EZ100: 0 | FA100: 94 | FB100: 0 | FC100: 94 | FD100: 0 | FE100: 94 | FF100: 0 | FG100: 94 | FH100: 0 | FI100: 94 | FJ100: 0 | FK100: 94 | FL100: 0 | FM100: 94 | FN100: 0 | FO100: 94 | FP100: 0 | FQ100: 94 | FR100: 0 | FS100: 94 | FT100: 0 | FU100: 94 | FV100: 0 | FW100: 94 | FX100: 0 | FY100: 94 | FZ100: 0 | GA100: 94 | GB100: 0 | GC100: 94 | GD100: 0 | GE100: 94 | GF100: 0 | GG100: 94 | GH100: 0 | GI100: 94 | GJ100: 0 | GK100: 94 | GL100: 0 | GM100: 94 | GN100: 0 | GO100: 94 | GP100: 0 | GQ100: 94 | GR100: 0
A101: 95 | B101: 0 | C101: 95 | D101: 0 | E101: 95 | F101: 0 | G101: 95 | H101: 0 | I101: 95 | J101: 0 | K101: 95 | L101: 0 | M101: 95 | N101: 0 | O101: 95 | P101: 0 | Q101: 95 | R101: 0 | S101: 95 | T101: 0 | U101: 95 | V101: 0 | W101: 95 | X101: 0 | Y101: 95 | Z101: 0 | AA101: 95 | AB101: 0 | AC101: 95 | AD101: 0 | AE101: 95 | AF101: 0 | AG101: 95 | AH101: 0 | AI101: 95 | AJ101: 0 | AK101: 95 | AL101: 0 | AM101: 95 | AN101: 0 | AO101: 95 | AP101: 0 | AQ101: 95 | AR101: 0 | AS101: 95 | AT101: 0 | AU101: 95 | AV101: 0 | AW101: 95 | AX101: 0 | AY101: 95 | AZ101: 0 | BA101: 95 | BB101: 0 | BC101: 95 | BD101: 0 | BE101: 95 | BF101: 0 | BG101: 95 | BH101: 0 | BI101: 95 | BJ101: 0 | BK101: 95 | BL101: 0 | BM101: 95 | BN101: 0 | BO101: 95 | BP101: 0 | BQ101: 95 | BR101: 0 | BS101: 95 | BT101: 0 | BU101: 95 | BV101: 0 | BW101: 95 | BX101: 0 | BY101: 95 | BZ101: 0 | CA101: 95 | CB101: 0 | CC101: 95 | CD101: 0 | CE101: 95 | CF101: 0 | CG101: 95 | CH101: 0 | CI101: 95 | CJ101: 0 | CK101: 95 | CL101: 0 | CM101: 95 | CN101: 0 | CO101: 95 | CP101: 0 | CQ101: 95 | CR101: 0 | CS101: 95 | CT101: 0 | CU101: 95 | CV101: 0 | CW101: 95 | CX101: 0 | CY101: 95 | CZ101: 0 | DA101: 95 | DB101: 0 | DC101: 95 | DD101: 0 | DE101: 95 | DF101: 0 | DG101: 95 | DH101: 0 | DI101: 95 | DJ101: 0 | DK101: 95 | DL101: 0 | DM101: 95 | DN101: 0 | DO101: 95 | DP101: 0 | DQ101: 95 | DR101: 0 | DS101: 95 | DT101: 0 | DU101: 95 | DV101: 0 | DW101: 95 | DX101: 0 | DY101: 95 | DZ101: 0 | EA101: 95 | EB101: 0 | EC101: 95 | ED101: 0 | EE101: 95 | EF101: 0 | EG101: 95 | EH101: 0 | EI101: 95 | EJ101: 0 | EK101: 95 | EL101: 0 | EM101: 95 | EN101: 0 | EO101: 95 | EP101: 0 | EQ101: 95 | ER101: 0 | ES101: 95 | ET101: 0 | EU101: 95 | EV101: 0 | EW101: 95 | EX101: 0 | EY101: 95 | EZ101: 0 | FA101: 95 | FB101: 0 | FC101: 95 | FD101: 0 | FE101: 95 | FF101: 0 | FG101: 95 | FH101: 0 | FI101: 95 | FJ101: 0 | FK101: 95 | FL101: 0 | FM101: 95 | FN101: 0 | FO101: 95 | FP101: 0 | FQ101: 95 | FR101: 0 | FS101: 95 | FT101: 0 | FU101: 95 | FV101: 0 | FW101: 95 | FX101: 0 | FY101: 95 | FZ101: 0 | GA101: 95 | GB101: 0 | GC101: 95 | GD101: 0 | GE101: 95 | GF101: 0 | GG101: 95 | GH101: 0 | GI101: 95 | GJ101: 0 | GK101: 95 | GL101: 0 | GM101: 95 | GN101: 0 | GO101: 95 | GP101: 0 | GQ101: 95 | GR101: 0
A102: 96 | B102: 0 | C102: 96 | D102: 0 | E102: 96 | F102: 0 | G102: 96 | H102: 0 | I102: 96 | J102: 0 | K102: 96 | L102: 0 | M102: 96 | N102: 0 | O102: 96 | P102: 0 | Q102: 96 | R102: 0 | S102: 96 | T102: 0 | U102: 96 | V102: 0 | W102: 96 | X102: 0 | Y102: 96 | Z102: 0 | AA102: 96 | AB102: 0 | AC102: 96 | AD102: 0 | AE102: 96 | AF102: 0 | AG102: 96 | AH102: 0 | AI102: 96 | AJ102: 0 | AK102: 96 | AL102: 0 | AM102: 96 | AN102: 0 | AO102: 96 | AP102: 0 | AQ102: 96 | AR102: 0 | AS102: 96 | AT102: 0 | AU102: 96 | AV102: 0 | AW102: 96 | AX102: 0 | AY102: 96 | AZ102: 0 | BA102: 96 | BB102: 0 | BC102: 96 | BD102: 0 | BE102: 96 | BF102: 0 | BG102: 96 | BH102: 0 | BI102: 96 | BJ102: 0 | BK102: 96 | BL102: 0 | BM102: 96 | BN102: 0 | BO102: 96 | BP102: 0 | BQ102: 96 | BR102: 0 | BS102: 96 | BT102: 0 | BU102: 96 | BV102: 0 | BW102: 96 | BX102: 0 | BY102: 96 | BZ102: 0 | CA102: 96 | CB102: 0 | CC102: 96 | CD102: 0 | CE102: 96 | CF102: 0 | CG102: 96 | CH102: 0 | CI102: 96 | CJ102: 0 | CK102: 96 | CL102: 0 | CM102: 96 | CN102: 0 | CO102: 96 | CP102: 0 | CQ102: 96 | CR102: 0 | CS102: 96 | CT102: 0 | CU102: 96 | CV102: 0 | CW102: 96 | CX102: 0 | CY102: 96 | CZ102: 0 | DA102: 96 | DB102: 0 | DC102: 96 | DD102: 0 | DE102: 96 | DF102: 0 | DG102: 96 | DH102: 0 | DI102: 96 | DJ102: 0 | DK102: 96 | DL102: 0 | DM102: 96 | DN102: 0 | DO102: 96 | DP102: 0 | DQ102: 96 | DR102: 0 | DS102: 96 | DT102: 0 | DU102: 96 | DV102: 0 | DW102: 96 | DX102: 0 | DY102: 96 | DZ102: 0 | EA102: 96 | EB102: 0 | EC102: 96 | ED102: 0 | EE102: 96 | EF102: 0 | EG102: 96 | EH102: 0 | EI102: 96 | EJ102: 0 | EK102: 96 | EL102: 0 | EM102: 96 | EN102: 0 | EO102: 96 | EP102: 0 | EQ102: 96 | ER102: 0 | ES102: 96 | ET102: 0 | EU102: 96 | EV102: 0 | EW102: 96 | EX102: 0 | EY102: 96 | EZ102: 0 | FA102: 96 | FB102: 0 | FC102: 96 | FD102: 0 | FE102: 96 | FF102: 0 | FG102: 96 | FH102: 0 | FI102: 96 | FJ102: 0 | FK102: 96 | FL102: 0 | FM102: 96 | FN102: 0 | FO102: 96 | FP102: 0 | FQ102: 96 | FR102: 0 | FS102: 96 | FT102: 0 | FU102: 96 | FV102: 0 | FW102: 96 | FX102: 0 | FY102: 96 | FZ102: 0 | GA102: 96 | GB102: 0 | GC102: 96 | GD102: 0 | GE102: 96 | GF102: 0 | GG102: 96 | GH102: 0 | GI102: 96 | GJ102: 0 | GK102: 96 | GL102: 0 | GM102: 96 | GN102: 0 | GO102: 96 | GP102: 0 | GQ102: 96 | GR102: 0
A103: 97 | B103: 0 | C103: 97 | D103: 0 | E103: 97 | F103: 0 | G103: 97 | H103: 0 | I103: 97 | J103: 0 | K103: 97 | L103: 0 | M103: 97 | N103: 0 | O103: 97 | P103: 0 | Q103: 97 | R103: 0 | S103: 97 | T103: 0 | U103: 97 | V103: 0 | W103: 97 | X103: 0 | Y103: 97 | Z103: 0 | AA103: 97 | AB103: 0 | AC103: 97 | AD103: 0 | AE103: 97 | AF103: 0 | AG103: 97 | AH103: 0 | AI103: 97 | AJ103: 0 | AK103: 97 | AL103: 0 | AM103: 97 | AN103: 0 | AO103: 97 | AP103: 0 | AQ103: 97 | AR103: 0 | AS103: 97 | AT103: 0 | AU103: 97 | AV103: 0 | AW103: 97 | AX103: 0 | AY103: 97 | AZ103: 0 | BA103: 97 | BB103: 0 | BC103: 97 | BD103: 0 | BE103: 97 | BF103: 0 | BG103: 97 | BH103: 0 | BI103: 97 | BJ103: 0 | BK103: 97 | BL103: 0 | BM103: 97 | BN103: 0 | BO103: 97 | BP103: 0 | BQ103: 97 | BR103: 0 | BS103: 97 | BT103: 0 | BU103: 97 | BV103: 0 | BW103: 97 | BX103: 0 | BY103: 97 | BZ103: 0 | CA103: 97 | CB103: 0 | CC103: 97 | CD103: 0 | CE103: 97 | CF103: 0 | CG103: 97 | CH103: 0 | CI103: 97 | CJ103: 0 | CK103: 97 | CL103: 0 | CM103: 97 | CN103: 0 | CO103: 97 | CP103: 0 | CQ103: 97 | CR103: 0 | CS103: 97 | CT103: 0 | CU103: 97 | CV103: 0 | CW103: 97 | CX103: 0 | CY103: 97 | CZ103: 0 | DA103: 97 | DB103: 0 | DC103: 97 | DD103: 0 | DE103: 97 | DF103: 0 | DG103: 97 | DH103: 0 | DI103: 97 | DJ103: 0 | DK103: 97 | DL103: 0 | DM103: 97 | DN103: 0 | DO103: 97 | DP103: 0 | DQ103: 97 | DR103: 0 | DS103: 97 | DT103: 0 | DU103: 97 | DV103: 0 | DW103: 97 | DX103: 0 | DY103: 97 | DZ103: 0 | EA103: 97 | EB103: 0 | EC103: 97 | ED103: 0 | EE103: 97 | EF103: 0 | EG103: 97 | EH103: 0 | EI103: 97 | EJ103: 0 | EK103: 97 | EL103: 0 | EM103: 97 | EN103: 0 | EO103: 97 | EP103: 0 | EQ103: 97 | ER103: 0 | ES103: 97 | ET103: 0 | EU103: 97 | EV103: 0 | EW103: 97 | EX103: 0 | EY103: 97 | EZ103: 0 | FA103: 97 | FB103: 0 | FC103: 97 | FD103: 0 | FE103: 97 | FF103: 0 | FG103: 97 | FH103: 0 | FI103: 97 | FJ103: 0 | FK103: 97 | FL103: 0 | FM103: 97 | FN103: 0 | FO103: 97 | FP103: 0 | FQ103: 97 | FR103: 0 | FS103: 97 | FT103: 0 | FU103: 97 | FV103: 0 | FW103: 97 | FX103: 0 | FY103: 97 | FZ103: 0 | GA103: 97 | GB103: 0 | GC103: 97 | GD103: 0 | GE103: 97 | GF103: 0 | GG103: 97 | GH103: 0 | GI103: 97 | GJ103: 0 | GK103: 97 | GL103: 0 | GM103: 97 | GN103: 0 | GO103: 97 | GP103: 0 | GQ103: 97 | GR103: 0
A104: 98 | B104: 0 | C104: 98 | D104: 0 | E104: 98 | F104: 0 | G104: 98 | H104: 0 | I104: 98 | J104: 0 | K104: 98 | L104: 0 | M104: 98 | N104: 0 | O104: 98 | P104: 0 | Q104: 98 | R104: 0 | S104: 98 | T104: 0 | U104: 98 | V104: 0 | W104: 98 | X104: 0 | Y104: 98 | Z104: 0 | AA104: 98 | AB104: 0 | AC104: 98 | AD104: 0 | AE104: 98 | AF104: 0 | AG104: 98 | AH104: 0 | AI104: 98 | AJ104: 0 | AK104: 98 | AL104: 0 | AM104: 98 | AN104: 0 | AO104: 98 | AP104: 0 | AQ104: 98 | AR104: 0 | AS104: 98 | AT104: 0 | AU104: 98 | AV104: 0 | AW104: 98 | AX104: 0 | AY104: 98 | AZ104: 0 | BA104: 98 | BB104: 0 | BC104: 98 | BD104: 0 | BE104: 98 | BF104: 0 | BG104: 98 | BH104: 0 | BI104: 98 | BJ104: 0 | BK104: 98 | BL104: 0 | BM104: 98 | BN104: 0 | BO104: 98 | BP104: 0 | BQ104: 98 | BR104: 0 | BS104: 98 | BT104: 0 | BU104: 98 | BV104: 0 | BW104: 98 | BX104: 0 | BY104: 98 | BZ104: 0 | CA104: 98 | CB104: 0 | CC104: 98 | CD104: 0 | CE104: 98 | CF104: 0 | CG104: 98 | CH104: 0 | CI104: 98 | CJ104: 0 | CK104: 98 | CL104: 0 | CM104: 98 | CN104: 0 | CO104: 98 | CP104: 0 | CQ104: 98 | CR104: 0 | CS104: 98 | CT104: 0 | CU104: 98 | CV104: 0 | CW104: 98 | CX104: 0 | CY104: 98 | CZ104: 0 | DA104: 98 | DB104: 0 | DC104: 98 | DD104: 0 | DE104: 98 | DF104: 0 | DG104: 98 | DH104: 0 | DI104: 98 | DJ104: 0 | DK104: 98 | DL104: 0 | DM104: 98 | DN104: 0 | DO104: 98 | DP104: 0 | DQ104: 98 | DR104: 0 | DS104: 98 | DT104: 0 | DU104: 98 | DV104: 0 | DW104: 98 | DX104: 0 | DY104: 98 | DZ104: 0 | EA104: 98 | EB104: 0 | EC104: 98 | ED104: 0 | EE104: 98 | EF104: 0 | EG104: 98 | EH104: 0 | EI104: 98 | EJ104: 0 | EK104: 98 | EL104: 0 | EM104: 98 | EN104: 0 | EO104: 98 | EP104: 0 | EQ104: 98 | ER104: 0 | ES104: 98 | ET104: 0 | EU104: 98 | EV104: 0 | EW104: 98 | EX104: 0 | EY104: 98 | EZ104: 0 | FA104: 98 | FB104: 0 | FC104: 98 | FD104: 0 | FE104: 98 | FF104: 0 | FG104: 98 | FH104: 0 | FI104: 98 | FJ104: 0 | FK104: 98 | FL104: 0 | FM104: 98 | FN104: 0 | FO104: 98 | FP104: 0 | FQ104: 98 | FR104: 0 | FS104: 98 | FT104: 0 | FU104: 98 | FV104: 0 | FW104: 98 | FX104: 0 | FY104: 98 | FZ104: 0 | GA104: 98 | GB104: 0 | GC104: 98 | GD104: 0 | GE104: 98 | GF104: 0 | GG104: 98 | GH104: 0 | GI104: 98 | GJ104: 0 | GK104: 98 | GL104: 0 | GM104: 98 | GN104: 0 | GO104: 98 | GP104: 0 | GQ104: 98 | GR104: 0
A105: 99 | B105: 0 | C105: 99 | D105: 0 | E105: 99 | F105: 0 | G105: 99 | H105: 0 | I105: 99 | J105: 0 | K105: 99 | L105: 0 | M105: 99 | N105: 0 | O105: 99 | P105: 0 | Q105: 99 | R105: 0 | S105: 99 | T105: 0 | U105: 99 | V105: 0 | W105: 99 | X105: 0 | Y105: 99 | Z105: 0 | AA105: 99 | AB105: 0 | AC105: 99 | AD105: 0 | AE105: 99 | AF105: 0 | AG105: 99 | AH105: 0 | AI105: 99 | AJ105: 0 | AK105: 99 | AL105: 0 | AM105: 99 | AN105: 0 | AO105: 99 | AP105: 0 | AQ105: 99 | AR105: 0 | AS105: 99 | AT105: 0 | AU105: 99 | AV105: 0 | AW105: 99 | AX105: 0 | AY105: 99 | AZ105: 0 | BA105: 99 | BB105: 0 | BC105: 99 | BD105: 0 | BE105: 99 | BF105: 0 | BG105: 99 | BH105: 0 | BI105: 99 | BJ105: 0 | BK105: 99 | BL105: 0 | BM105: 99 | BN105: 0 | BO105: 99 | BP105: 0 | BQ105: 99 | BR105: 0 | BS105: 99 | BT105: 0 | BU105: 99 | BV105: 0 | BW105: 99 | BX105: 0 | BY105: 99 | BZ105: 0 | CA105: 99 | CB105: 0 | CC105: 99 | CD105: 0 | CE105: 99 | CF105: 0 | CG105: 99 | CH105: 0 | CI105: 99 | CJ105: 0 | CK105: 99 | CL105: 0 | CM105: 99 | CN105: 0 | CO105: 99 | CP105: 0 | CQ105: 99 | CR105: 0 | CS105: 99 | CT105: 0 | CU105: 99 | CV105: 0 | CW105: 99 | CX105: 0 | CY105: 99 | CZ105: 0 | DA105: 99 | DB105: 0 | DC105: 99 | DD105: 0 | DE105: 99 | DF105: 0 | DG105: 99 | DH105: 0 | DI105: 99 | DJ105: 0 | DK105: 99 | DL105: 0 | DM105: 99 | DN105: 0 | DO105: 99 | DP105: 0 | DQ105: 99 | DR105: 0 | DS105: 99 | DT105: 0 | DU105: 99 | DV105: 0 | DW105: 99 | DX105: 0 | DY105: 99 | DZ105: 0 | EA105: 99 | EB105: 0 | EC105: 99 | ED105: 0 | EE105: 99 | EF105: 0 | EG105: 99 | EH105: 0 | EI105: 99 | EJ105: 0 | EK105: 99 | EL105: 0 | EM105: 99 | EN105: 0 | EO105: 99 | EP105: 0 | EQ105: 99 | ER105: 0 | ES105: 99 | ET105: 0 | EU105: 99 | EV105: 0 | EW105: 99 | EX105: 0 | EY105: 99 | EZ105: 0 | FA105: 99 | FB105: 0 | FC105: 99 | FD105: 0 | FE105: 99 | FF105: 0 | FG105: 99 | FH105: 0 | FI105: 99 | FJ105: 0 | FK105: 99 | FL105: 0 | FM105: 99 | FN105: 0 | FO105: 99 | FP105: 0 | FQ105: 99 | FR105: 0 | FS105: 99 | FT105: 0 | FU105: 99 | FV105: 0 | FW105: 99 | FX105: 0 | FY105: 99 | FZ105: 0 | GA105: 99 | GB105: 0 | GC105: 99 | GD105: 0 | GE105: 99 | GF105: 0 | GG105: 99 | GH105: 0 | GI105: 99 | GJ105: 0 | GK105: 99 | GL105: 0 | GM105: 99 | GN105: 0 | GO105: 99 | GP105: 0 | GQ105: 99 | GR105: 0
A106: 100 | B106: 0 | C106: 100 | D106: 0 | E106: 100 | F106: 0 | G106: 100 | H106: 0 | I106: 100 | J106: 0 | K106: 100 | L106: 0 | M106: 100 | N106: 0 | O106: 100 | P106: 0 | Q106: 100 | R106: 0 | S106: 100 | T106: 0 | U106: 100 | V106: 0 | W106: 100 | X106: 0 | Y106: 100 | Z106: 0 | AA106: 100 | AB106: 0 | AC106: 100 | AD106: 0 | AE106: 100 | AF106: 0 | AG106: 100 | AH106: 0 | AI106: 100 | AJ106: 0 | AK106: 100 | AL106: 0 | AM106: 100 | AN106: 0 | AO106: 100 | AP106: 0 | AQ106: 100 | AR106: 0 | AS106: 100 | AT106: 0 | AU106: 100 | AV106: 0 | AW106: 100 | AX106: 0 | AY106: 100 | AZ106: 0 | BA106: 100 | BB106: 0 | BC106: 100 | BD106: 0 | BE106: 100 | BF106: 0 | BG106: 100 | BH106: 0 | BI106: 100 | BJ106: 0 | BK106: 100 | BL106: 0 | BM106: 100 | BN106: 0 | BO106: 100 | BP106: 0 | BQ106: 100 | BR106: 0 | BS106: 100 | BT106: 0 | BU106: 100 | BV106: 0 | BW106: 100 | BX106: 0 | BY106: 100 | BZ106: 0 | CA106: 100 | CB106: 0 | CC106: 100 | CD106: 0 | CE106: 100 | CF106: 0 | CG106: 100 | CH106: 0 | CI106: 100 | CJ106: 0 | CK106: 100 | CL106: 0 | CM106: 100 | CN106: 0 | CO106: 100 | CP106: 0 | CQ106: 100 | CR106: 0 | CS106: 100 | CT106: 0 | CU106: 100 | CV106: 0 | CW106: 100 | CX106: 0 | CY106: 100 | CZ106: 0 | DA106: 100 | DB106: 0 | DC106: 100 | DD106: 0 | DE106: 100 | DF106: 0 | DG106: 100 | DH106: 0 | DI106: 100 | DJ106: 0 | DK106: 100 | DL106: 0 | DM106: 100 | DN106: 0 | DO106: 100 | DP106: 0 | DQ106: 100 | DR106: 0 | DS106: 100 | DT106: 0 | DU106: 100 | DV106: 0 | DW106: 100 | DX106: 0 | DY106: 100 | DZ106: 0 | EA106: 100 | EB106: 0 | EC106: 100 | ED106: 0 | EE106: 100 | EF106: 0 | EG106: 100 | EH106: 0 | EI106: 100 | EJ106: 0 | EK106: 100 | EL106: 0 | EM106: 100 | EN106: 0 | EO106: 100 | EP106: 0 | EQ106: 100 | ER106: 0 | ES106: 100 | ET106: 0 | EU106: 100 | EV106: 0 | EW106: 100 | EX106: 0 | EY106: 100 | EZ106: 0 | FA106: 100 | FB106: 0 | FC106: 100 | FD106: 0 | FE106: 100 | FF106: 0 | FG106: 100 | FH106: 0 | FI106: 100 | FJ106: 0 | FK106: 100 | FL106: 0 | FM106: 100 | FN106: 0 | FO106: 100 | FP106: 0 | FQ106: 100 | FR106: 0 | FS106: 100 | FT106: 0 | FU106: 100 | FV106: 0 | FW106: 100 | FX106: 0 | FY106: 100 | FZ106: 0 | GA106: 100 | GB106: 0 | GC106: 100 | GD106: 0 | GE106: 100 | GF106: 0 | GG106: 100 | GH106: 0 | GI106: 100 | GJ106: 0 | GK106: 100 | GL106: 0 | GM106: 100 | GN106: 0 | GO106: 100 | GP106: 0 | GQ106: 100 | GR106: 0
A107: 101 | B107: 0 | C107: 101 | D107: 0 | E107: 101 | F107: 0 | G107: 101 | H107: 0 | I107: 101 | J107: 0 | K107: 101 | L107: 0 | M107: 101 | N107: 0 | O107: 101 | P107: 0 | Q107: 101 | R107: 0 | S107: 101 | T107: 0 | U107: 101 | V107: 0 | W107: 101 | X107: 0 | Y107: 101 | Z107: 0 | AA107: 101 | AB107: 0 | AC107: 101 | AD107: 0 | AE107: 101 | AF107: 0 | AG107: 101 | AH107: 0 | AI107: 101 | AJ107: 0 | AK107: 101 | AL107: 0 | AM107: 101 | AN107: 0 | AO107: 101 | AP107: 0 | AQ107: 101 | AR107: 0 | AS107: 101 | AT107: 0 | AU107: 101 | AV107: 0 | AW107: 101 | AX107: 0 | AY107: 101 | AZ107: 0 | BA107: 101 | BB107: 0 | BC107: 101 | BD107: 0 | BE107: 101 | BF107: 0 | BG107: 101 | BH107: 0 | BI107: 101 | BJ107: 0 | BK107: 101 | BL107: 0 | BM107: 101 | BN107: 0 | BO107: 101 | BP107: 0 | BQ107: 101 | BR107: 0 | BS107: 101 | BT107: 0 | BU107: 101 | BV107: 0 | BW107: 101 | BX107: 0 | BY107: 101 | BZ107: 0 | CA107: 101 | CB107: 0 | CC107: 101 | CD107: 0 | CE107: 101 | CF107: 0 | CG107: 101 | CH107: 0 | CI107: 101 | CJ107: 0 | CK107: 101 | CL107: 0 | CM107: 101 | CN107: 0 | CO107: 101 | CP107: 0 | CQ107: 101 | CR107: 0 | CS107: 101 | CT107: 0 | CU107: 101 | CV107: 0 | CW107: 101 | CX107: 0 | CY107: 101 | CZ107: 0 | DA107: 101 | DB107: 0 | DC107: 101 | DD107: 0 | DE107: 101 | DF107: 0 | DG107: 101 | DH107: 0 | DI107: 101 | DJ107: 0 | DK107: 101 | DL107: 0 | DM107: 101 | DN107: 0 | DO107: 101 | DP107: 0 | DQ107: 101 | DR107: 0 | DS107: 101 | DT107: 0 | DU107: 101 | DV107: 0 | DW107: 101 | DX107: 0 | DY107: 101 | DZ107: 0 | EA107: 101 | EB107: 0 | EC107: 101 | ED107: 0 | EE107: 101 | EF107: 0 | EG107: 101 | EH107: 0 | EI107: 101 | EJ107: 0 | EK107: 101 | EL107: 0 | EM107: 101 | EN107: 0 | EO107: 101 | EP107: 0 | EQ107: 101 | ER107: 0 | ES107: 101 | ET107: 0 | EU107: 101 | EV107: 0 | EW107: 101 | EX107: 0 | EY107: 101 | EZ107: 0 | FA107: 101 | FB107: 0 | FC107: 101 | FD107: 0 | FE107: 101 | FF107: 0 | FG107: 101 | FH107: 0 | FI107: 101 | FJ107: 0 | FK107: 101 | FL107: 0 | FM107: 101 | FN107: 0 | FO107: 101 | FP107: 0 | FQ107: 101 | FR107: 0 | FS107: 101 | FT107: 0 | FU107: 101 | FV107: 0 | FW107: 101 | FX107: 0 | FY107: 101 | FZ107: 0 | GA107: 101 | GB107: 0 | GC107: 101 | GD107: 0 | GE107: 101 | GF107: 0 | GG107: 101 | GH107: 0 | GI107: 101 | GJ107: 0 | GK107: 101 | GL107: 0 | GM107: 101 | GN107: 0 | GO107: 101 | GP107: 0 | GQ107: 101 | GR107: 0
A108: 102 | B108: 0 | C108: 102 | D108: 0 | E108: 102 | F108: 0 | G108: 102 | H108: 0 | I108: 102 | J108: 0 | K108: 102 | L108: 0 | M108: 102 | N108: 0 | O108: 102 | P108: 0 | Q108: 102 | R108: 0 | S108: 102 | T108: 0 | U108: 102 | V108: 0 | W108: 102 | X108: 0 | Y108: 102 | Z108: 0 | AA108: 102 | AB108: 0 | AC108: 102 | AD108: 0 | AE108: 102 | AF108: 0 | AG108: 102 | AH108: 0 | AI108: 102 | AJ108: 0 | AK108: 102 | AL108: 0 | AM108: 102 | AN108: 0 | AO108: 102 | AP108: 0 | AQ108: 102 | AR108: 0 | AS108: 102 | AT108: 0 | AU108: 102 | AV108: 0 | AW108: 102 | AX108: 0 | AY108: 102 | AZ108: 0 | BA108: 102 | BB108: 0 | BC108: 102 | BD108: 0 | BE108: 102 | BF108: 0 | BG108: 102 | BH108: 0 | BI108: 102 | BJ108: 0 | BK108: 102 | BL108: 0 | BM108: 102 | BN108: 0 | BO108: 102 | BP108: 0 | BQ108: 102 | BR108: 0 | BS108: 102 | BT108: 0 | BU108: 102 | BV108: 0 | BW108: 102 | BX108: 0 | BY108: 102 | BZ108: 0 | CA108: 102 | CB108: 0 | CC108: 102 | CD108: 0 | CE108: 102 | CF108: 0 | CG108: 102 | CH108: 0 | CI108: 102 | CJ108: 0 | CK108: 102 | CL108: 0 | CM108: 102 | CN108: 0 | CO108: 102 | CP108: 0 | CQ108: 102 | CR108: 0 | CS108: 102 | CT108: 0 | CU108: 102 | CV108: 0 | CW108: 102 | CX108: 0 | CY108: 102 | CZ108: 0 | DA108: 102 | DB108: 0 | DC108: 102 | DD108: 0 | DE108: 102 | DF108: 0 | DG108: 102 | DH108: 0 | DI108: 102 | DJ108: 0 | DK108: 102 | DL108: 0 | DM108: 102 | DN108: 0 | DO108: 102 | DP108: 0 | DQ108: 102 | DR108: 0 | DS108: 102 | DT108: 0 | DU108: 102 | DV108: 0 | DW108: 102 | DX108: 0 | DY108: 102 | DZ108: 0 | EA108: 102 | EB108: 0 | EC108: 102 | ED108: 0 | EE108: 102 | EF108: 0 | EG108: 102 | EH108: 0 | EI108: 102 | EJ108: 0 | EK108: 102 | EL108: 0 | EM108: 102 | EN108: 0 | EO108: 102 | EP108: 0 | EQ108: 102 | ER108: 0 | ES108: 102 | ET108: 0 | EU108: 102 | EV108: 0 | EW108: 102 | EX108: 0 | EY108: 102 | EZ108: 0 | FA108: 102 | FB108: 0 | FC108: 102 | FD108: 0 | FE108: 102 | FF108: 0 | FG108: 102 | FH108: 0 | FI108: 102 | FJ108: 0 | FK108: 102 | FL108: 0 | FM108: 102 | FN108: 0 | FO108: 102 | FP108: 0 | FQ108: 102 | FR108: 0 | FS108: 102 | FT108: 0 | FU108: 102 | FV108: 0 | FW108: 102 | FX108: 0 | FY108: 102 | FZ108: 0 | GA108: 102 | GB108: 0 | GC108: 102 | GD108: 0 | GE108: 102 | GF108: 0 | GG108: 102 | GH108: 0 | GI108: 102 | GJ108: 0 | GK108: 102 | GL108: 0 | GM108: 102 | GN108: 0 | GO108: 102 | GP108: 0 | GQ108: 102 | GR108: 0
A109: 103 | B109: 0 | C109: 103 | D109: 0 | E109: 103 | F109: 0 | G109: 103 | H109: 0 | I109: 103 | J109: 0 | K109: 103 | L109: 0 | M109: 103 | N109: 0 | O109: 103 | P109: 0 | Q109: 103 | R109: 0 | S109: 103 | T109: 0 | U109: 103 | V109: 0 | W109: 103 | X109: 0 | Y109: 103 | Z109: 0 | AA109: 103 | AB109: 0 | AC109: 103 | AD109: 0 | AE109: 103 | AF109: 0 | AG109: 103 | AH109: 0 | AI109: 103 | AJ109: 0 | AK109: 103 | AL109: 0 | AM109: 103 | AN109: 0 | AO109: 103 | AP109: 0 | AQ109: 103 | AR109: 0 | AS109: 103 | AT109: 0 | AU109: 103 | AV109: 0 | AW109: 103 | AX109: 0 | AY109: 103 | AZ109: 0 | BA109: 103 | BB109: 0 | BC109: 103 | BD109: 0 | BE109: 103 | BF109: 0 | BG109: 103 | BH109: 0 | BI109: 103 | BJ109: 0 | BK109: 103 | BL109: 0 | BM109: 103 | BN109: 0 | BO109: 103 | BP109: 0 | BQ109: 103 | BR109: 0 | BS109: 103 | BT109: 0 | BU109: 103 | BV109: 0 | BW109: 103 | BX109: 0 | BY109: 103 | BZ109: 0 | CA109: 103 | CB109: 0 | CC109: 103 | CD109: 0 | CE109: 103 | CF109: 0 | CG109: 103 | CH109: 0 | CI109: 103 | CJ109: 0 | CK109: 103 | CL109: 0 | CM109: 103 | CN109: 0 | CO109: 103 | CP109: 0 | CQ109: 103 | CR109: 0 | CS109: 103 | CT109: 0 | CU109: 103 | CV109: 0 | CW109: 103 | CX109: 0 | CY109: 103 | CZ109: 0 | DA109: 103 | DB109: 0 | DC109: 103 | DD109: 0 | DE109: 103 | DF109: 0 | DG109: 103 | DH109: 0 | DI109: 103 | DJ109: 0 | DK109: 103 | DL109: 0 | DM109: 103 | DN109: 0 | DO109: 103 | DP109: 0 | DQ109: 103 | DR109: 0 | DS109: 103 | DT109: 0 | DU109: 103 | DV109: 0 | DW109: 103 | DX109: 0 | DY109: 103 | DZ109: 0 | EA109: 103 | EB109: 0 | EC109: 103 | ED109: 0 | EE109: 103 | EF109: 0 | EG109: 103 | EH109: 0 | EI109: 103 | EJ109: 0 | EK109: 103 | EL109: 0 | EM109: 103 | EN109: 0 | EO109: 103 | EP109: 0 | EQ109: 103 | ER109: 0 | ES109: 103 | ET109: 0 | EU109: 103 | EV109: 0 | EW109: 103 | EX109: 0 | EY109: 103 | EZ109: 0 | FA109: 103 | FB109: 0 | FC109: 103 | FD109: 0 | FE109: 103 | FF109: 0 | FG109: 103 | FH109: 0 | FI109: 103 | FJ109: 0 | FK109: 103 | FL109: 0 | FM109: 103 | FN109: 0 | FO109: 103 | FP109: 0 | FQ109: 103 | FR109: 0 | FS109: 103 | FT109: 0 | FU109: 103 | FV109: 0 | FW109: 103 | FX109: 0 | FY109: 103 | FZ109: 0 | GA109: 103 | GB109: 0 | GC109: 103 | GD109: 0 | GE109: 103 | GF109: 0 | GG109: 103 | GH109: 0 | GI109: 103 | GJ109: 0 | GK109: 103 | GL109: 0 | GM109: 103 | GN109: 0 | GO109: 103 | GP109: 0 | GQ109: 103 | GR109: 0
A110: 104 | B110: 0 | C110: 104 | D110: 0 | E110: 104 | F110: 0 | G110: 104 | H110: 0 | I110: 104 | J110: 0 | K110: 104 | L110: 0 | M110: 104 | N110: 0 | O110: 104 | P110: 0 | Q110: 104 | R110: 0 | S110: 104 | T110: 0 | U110: 104 | V110: 0 | W110: 104 | X110: 0 | Y110: 104 | Z110: 0 | AA110: 104 | AB110: 0 | AC110: 104 | AD110: 0 | AE110: 104 | AF110: 0 | AG110: 104 | AH110: 0 | AI110: 104 | AJ110: 0 | AK110: 104 | AL110: 0 | AM110: 104 | AN110: 0 | AO110: 104 | AP110: 0 | AQ110: 104 | AR110: 0 | AS110: 104 | AT110: 0 | AU110: 104 | AV110: 0 | AW110: 104 | AX110: 0 | AY110: 104 | AZ110: 0 | BA110: 104 | BB110: 0 | BC110: 104 | BD110: 0 | BE110: 104 | BF110: 0 | BG110: 104 | BH110: 0 | BI110: 104 | BJ110: 0 | BK110: 104 | BL110: 0 | BM110: 104 | BN110: 0 | BO110: 104 | BP110: 0 | BQ110: 104 | BR110: 0 | BS110: 104 | BT110: 0 | BU110: 104 | BV110: 0 | BW110: 104 | BX110: 0 | BY110: 104 | BZ110: 0 | CA110: 104 | CB110: 0 | CC110: 104 | CD110: 0 | CE110: 104 | CF110: 0 | CG110: 104 | CH110: 0 | CI110: 104 | CJ110: 0 | CK110: 104 | CL110: 0 | CM110: 104 | CN110: 0 | CO110: 104 | CP110: 0 | CQ110: 104 | CR110: 0 | CS110: 104 | CT110: 0 | CU110: 104 | CV110: 0 | CW110: 104 | CX110: 0 | CY110: 104 | CZ110: 0 | DA110: 104 | DB110: 0 | DC110: 104 | DD110: 0 | DE110: 104 | DF110: 0 | DG110: 104 | DH110: 0 | DI110: 104 | DJ110: 0 | DK110: 104 | DL110: 0 | DM110: 104 | DN110: 0 | DO110: 104 | DP110: 0 | DQ110: 104 | DR110: 0 | DS110: 104 | DT110: 0 | DU110: 104 | DV110: 0 | DW110: 104 | DX110: 0 | DY110: 104 | DZ110: 0 | EA110: 104 | EB110: 0 | EC110: 104 | ED110: 0 | EE110: 104 | EF110: 0 | EG110: 104 | EH110: 0 | EI110: 104 | EJ110: 0 | EK110: 104 | EL110: 0 | EM110: 104 | EN110: 0 | EO110: 104 | EP110: 0 | EQ110: 104 | ER110: 0 | ES110: 104 | ET110: 0 | EU110: 104 | EV110: 0 | EW110: 104 | EX110: 0 | EY110: 104 | EZ110: 0 | FA110: 104 | FB110: 0 | FC110: 104 | FD110: 0 | FE110: 104 | FF110: 0 | FG110: 104 | FH110: 0 | FI110: 104 | FJ110: 0 | FK110: 104 | FL110: 0 | FM110: 104 | FN110: 0 | FO110: 104 | FP110: 0 | FQ110: 104 | FR110: 0 | FS110: 104 | FT110: 0 | FU110: 104 | FV110: 0 | FW110: 104 | FX110: 0 | FY110: 104 | FZ110: 0 | GA110: 104 | GB110: 0 | GC110: 104 | GD110: 0 | GE110: 104 | GF110: 0 | GG110: 104 | GH110: 0 | GI110: 104 | GJ110: 0 | GK110: 104 | GL110: 0 | GM110: 104 | GN110: 0 | GO110: 104 | GP110: 0 | GQ110: 104 | GR110: 0
A111: 105 | B111: 0 | C111: 105 | D111: 0 | E111: 105 | F111: 0 | G111: 105 | H111: 0 | I111: 105 | J111: 0 | K111: 105 | L111: 0 | M111: 105 | N111: 0 | O111: 105 | P111: 0 | Q111: 105 | R111: 0 | S111: 105 | T111: 0 | U111: 105 | V111: 0 | W111: 105 | X111: 0 | Y111: 105 | Z111: 0 | AA111: 105 | AB111: 0 | AC111: 105 | AD111: 0 | AE111: 105 | AF111: 0 | AG111: 105 | AH111: 0 | AI111: 105 | AJ111: 0 | AK111: 105 | AL111: 0 | AM111: 105 | AN111: 0 | AO111: 105 | AP111: 0 | AQ111: 105 | AR111: 0 | AS111: 105 | AT111: 0 | AU111: 105 | AV111: 0 | AW111: 105 | AX111: 0 | AY111: 105 | AZ111: 0 | BA111: 105 | BB111: 0 | BC111: 105 | BD111: 0 | BE111: 105 | BF111: 0 | BG111: 105 | BH111: 0 | BI111: 105 | BJ111: 0 | BK111: 105 | BL111: 0 | BM111: 105 | BN111: 0 | BO111: 105 | BP111: 0 | BQ111: 105 | BR111: 0 | BS111: 105 | BT111: 0 | BU111: 105 | BV111: 0 | BW111: 105 | BX111: 0 | BY111: 105 | BZ111: 0 | CA111: 105 | CB111: 0 | CC111: 105 | CD111: 0 | CE111: 105 | CF111: 0 | CG111: 105 | CH111: 0 | CI111: 105 | CJ111: 0 | CK111: 105 | CL111: 0 | CM111: 105 | CN111: 0 | CO111: 105 | CP111: 0 | CQ111: 105 | CR111: 0 | CS111: 105 | CT111: 0 | CU111: 105 | CV111: 0 | CW111: 105 | CX111: 0 | CY111: 105 | CZ111: 0 | DA111: 105 | DB111: 0 | DC111: 105 | DD111: 0 | DE111: 105 | DF111: 0 | DG111: 105 | DH111: 0 | DI111: 105 | DJ111: 0 | DK111: 105 | DL111: 0 | DM111: 105 | DN111: 0 | DO111: 105 | DP111: 0 | DQ111: 105 | DR111: 0 | DS111: 105 | DT111: 0 | DU111: 105 | DV111: 0 | DW111: 105 | DX111: 0 | DY111: 105 | DZ111: 0 | EA111: 105 | EB111: 0 | EC111: 105 | ED111: 0 | EE111: 105 | EF111: 0 | EG111: 105 | EH111: 0 | EI111: 105 | EJ111: 0 | EK111: 105 | EL111: 0 | EM111: 105 | EN111: 0 | EO111: 105 | EP111: 0 | EQ111: 105 | ER111: 0 | ES111: 105 | ET111: 0 | EU111: 105 | EV111: 0 | EW111: 105 | EX111: 0 | EY111: 105 | EZ111: 0 | FA111: 105 | FB111: 0 | FC111: 105 | FD111: 0 | FE111: 105 | FF111: 0 | FG111: 105 | FH111: 0 | FI111: 105 | FJ111: 0 | FK111: 105 | FL111: 0 | FM111: 105 | FN111: 0 | FO111: 105 | FP111: 0 | FQ111: 105 | FR111: 0 | FS111: 105 | FT111: 0 | FU111: 105 | FV111: 0 | FW111: 105 | FX111: 0 | FY111: 105 | FZ111: 0 | GA111: 105 | GB111: 0 | GC111: 105 | GD111: 0 | GE111: 105 | GF111: 0 | GG111: 105 | GH111: 0 | GI111: 105 | GJ111: 0 | GK111: 105 | GL111: 0 | GM111: 105 | GN111: 0 | GO111: 105 | GP111: 0 | GQ111: 105 | GR111: 0
A112: 106 | B112: 0 | C112: 106 | D112: 0 | E112: 106 | F112: 0 | G112: 106 | H112: 0 | I112: 106 | J112: 0 | K112: 106 | L112: 0 | M112: 106 | N112: 0 | O112: 106 | P112: 0 | Q112: 106 | R112: 0 | S112: 106 | T112: 0 | U112: 106 | V112: 0 | W112: 106 | X112: 0 | Y112: 106 | Z112: 0 | AA112: 106 | AB112: 0 | AC112: 106 | AD112: 0 | AE112: 106 | AF112: 0 | AG112: 106 | AH112: 0 | AI112: 106 | AJ112: 0 | AK112: 106 | AL112: 0 | AM112: 106 | AN112: 0 | AO112: 106 | AP112: 0 | AQ112: 106 | AR112: 0 | AS112: 106 | AT112: 0 | AU112: 106 | AV112: 0 | AW112: 106 | AX112: 0 | AY112: 106 | AZ112: 0 | BA112: 106 | BB112: 0 | BC112: 106 | BD112: 0 | BE112: 106 | BF112: 0 | BG112: 106 | BH112: 0 | BI112: 106 | BJ112: 0 | BK112: 106 | BL112: 0 | BM112: 106 | BN112: 0 | BO112: 106 | BP112: 0 | BQ112: 106 | BR112: 0 | BS112: 106 | BT112: 0 | BU112: 106 | BV112: 0 | BW112: 106 | BX112: 0 | BY112: 106 | BZ112: 0 | CA112: 106 | CB112: 0 | CC112: 106 | CD112: 0 | CE112: 106 | CF112: 0 | CG112: 106 | CH112: 0 | CI112: 106 | CJ112: 0 | CK112: 106 | CL112: 0 | CM112: 106 | CN112: 0 | CO112: 106 | CP112: 0 | CQ112: 106 | CR112: 0 | CS112: 106 | CT112: 0 | CU112: 106 | CV112: 0 | CW112: 106 | CX112: 0 | CY112: 106 | CZ112: 0 | DA112: 106 | DB112: 0 | DC112: 106 | DD112: 0 | DE112: 106 | DF112: 0 | DG112: 106 | DH112: 0 | DI112: 106 | DJ112: 0 | DK112: 106 | DL112: 0 | DM112: 106 | DN112: 0 | DO112: 106 | DP112: 0 | DQ112: 106 | DR112: 0 | DS112: 106 | DT112: 0 | DU112: 106 | DV112: 0 | DW112: 106 | DX112: 0 | DY112: 106 | DZ112: 0 | EA112: 106 | EB112: 0 | EC112: 106 | ED112: 0 | EE112: 106 | EF112: 0 | EG112: 106 | EH112: 0 | EI112: 106 | EJ112: 0 | EK112: 106 | EL112: 0 | EM112: 106 | EN112: 0 | EO112: 106 | EP112: 0 | EQ112: 106 | ER112: 0 | ES112: 106 | ET112: 0 | EU112: 106 | EV112: 0 | EW112: 106 | EX112: 0 | EY112: 106 | EZ112: 0 | FA112: 106 | FB112: 0 | FC112: 106 | FD112: 0 | FE112: 106 | FF112: 0 | FG112: 106 | FH112: 0 | FI112: 106 | FJ112: 0 | FK112: 106 | FL112: 0 | FM112: 106 | FN112: 0 | FO112: 106 | FP112: 0 | FQ112: 106 | FR112: 0 | FS112: 106 | FT112: 0 | FU112: 106 | FV112: 0 | FW112: 106 | FX112: 0 | FY112: 106 | FZ112: 0 | GA112: 106 | GB112: 0 | GC112: 106 | GD112: 0 | GE112: 106 | GF112: 0 | GG112: 106 | GH112: 0 | GI112: 106 | GJ112: 0 | GK112: 106 | GL112: 0 | GM112: 106 | GN112: 0 | GO112: 106 | GP112: 0 | GQ112: 106 | GR112: 0
A113: 107 | B113: 0 | C113: 107 | D113: 0 | E113: 107 | F113: 0 | G113: 107 | H113: 0 | I113: 107 | J113: 0 | K113: 107 | L113: 0 | M113: 107 | N113: 0 | O113: 107 | P113: 0 | Q113: 107 | R113: 0 | S113: 107 | T113: 0 | U113: 107 | V113: 0 | W113: 107 | X113: 0 | Y113: 107 | Z113: 0 | AA113: 107 | AB113: 0 | AC113: 107 | AD113: 0 | AE113: 107 | AF113: 0 | AG113: 107 | AH113: 0 | AI113: 107 | AJ113: 0 | AK113: 107 | AL113: 0 | AM113: 107 | AN113: 0 | AO113: 107 | AP113: 0 | AQ113: 107 | AR113: 0 | AS113: 107 | AT113: 0 | AU113: 107 | AV113: 0 | AW113: 107 | AX113: 0 | AY113: 107 | AZ113: 0 | BA113: 107 | BB113: 0 | BC113: 107 | BD113: 0 | BE113: 107 | BF113: 0 | BG113: 107 | BH113: 0 | BI113: 107 | BJ113: 0 | BK113: 107 | BL113: 0 | BM113: 107 | BN113: 0 | BO113: 107 | BP113: 0 | BQ113: 107 | BR113: 0 | BS113: 107 | BT113: 0 | BU113: 107 | BV113: 0 | BW113: 107 | BX113: 0 | BY113: 107 | BZ113: 0 | CA113: 107 | CB113: 0 | CC113: 107 | CD113: 0 | CE113: 107 | CF113: 0 | CG113: 107 | CH113: 0 | CI113: 107 | CJ113: 0 | CK113: 107 | CL113: 0 | CM113: 107 | CN113: 0 | CO113: 107 | CP113: 0 | CQ113: 107 | CR113: 0 | CS113: 107 | CT113: 0 | CU113: 107 | CV113: 0 | CW113: 107 | CX113: 0 | CY113: 107 | CZ113: 0 | DA113: 107 | DB113: 0 | DC113: 107 | DD113: 0 | DE113: 107 | DF113: 0 | DG113: 107 | DH113: 0 | DI113: 107 | DJ113: 0 | DK113: 107 | DL113: 0 | DM113: 107 | DN113: 0 | DO113: 107 | DP113: 0 | DQ113: 107 | DR113: 0 | DS113: 107 | DT113: 0 | DU113: 107 | DV113: 0 | DW113: 107 | DX113: 0 | DY113: 107 | DZ113: 0 | EA113: 107 | EB113: 0 | EC113: 107 | ED113: 0 | EE113: 107 | EF113: 0 | EG113: 107 | EH113: 0 | EI113: 107 | EJ113: 0 | EK113: 107 | EL113: 0 | EM113: 107 | EN113: 0 | EO113: 107 | EP113: 0 | EQ113: 107 | ER113: 0 | ES113: 107 | ET113: 0 | EU113: 107 | EV113: 0 | EW113: 107 | EX113: 0 | EY113: 107 | EZ113: 0 | FA113: 107 | FB113: 0 | FC113: 107 | FD113: 0 | FE113: 107 | FF113: 0 | FG113: 107 | FH113: 0 | FI113: 107 | FJ113: 0 | FK113: 107 | FL113: 0 | FM113: 107 | FN113: 0 | FO113: 107 | FP113: 0 | FQ113: 107 | FR113: 0 | FS113: 107 | FT113: 0 | FU113: 107 | FV113: 0 | FW113: 107 | FX113: 0 | FY113: 107 | FZ113: 0 | GA113: 107 | GB113: 0 | GC113: 107 | GD113: 0 | GE113: 107 | GF113: 0 | GG113: 107 | GH113: 0 | GI113: 107 | GJ113: 0 | GK113: 107 | GL113: 0 | GM113: 107 | GN113: 0 | GO113: 107 | GP113: 0 | GQ113: 107 | GR113: 0
A114: 108 | B114: 0 | C114: 108 | D114: 0 | E114: 108 | F114: 0 | G114: 108 | H114: 0 | I114: 108 | J114: 0 | K114: 108 | L114: 0 | M114: 108 | N114: 0 | O114: 108 | P114: 0 | Q114: 108 | R114: 0 | S114: 108 | T114: 0 | U114: 108 | V114: 0 | W114: 108 | X114: 0 | Y114: 108 | Z114: 0 | AA114: 108 | AB114: 0 | AC114: 108 | AD114: 0 | AE114: 108 | AF114: 0 | AG114: 108 | AH114: 0 | AI114: 108 | AJ114: 0 | AK114: 108 | AL114: 0 | AM114: 108 | AN114: 0 | AO114: 108 | AP114: 0 | AQ114: 108 | AR114: 0 | AS114: 108 | AT114: 0 | AU114: 108 | AV114: 0 | AW114: 108 | AX114: 0 | AY114: 108 | AZ114: 0 | BA114: 108 | BB114: 0 | BC114: 108 | BD114: 0 | BE114: 108 | BF114: 0 | BG114: 108 | BH114: 0 | BI114: 108 | BJ114: 0 | BK114: 108 | BL114: 0 | BM114: 108 | BN114: 0 | BO114: 108 | BP114: 0 | BQ114: 108 | BR114: 0 | BS114: 108 | BT114: 0 | BU114: 108 | BV114: 0 | BW114: 108 | BX114: 0 | BY114: 108 | BZ114: 0 | CA114: 108 | CB114: 0 | CC114: 108 | CD114: 0 | CE114: 108 | CF114: 0 | CG114: 108 | CH114: 0 | CI114: 108 | CJ114: 0 | CK114: 108 | CL114: 0 | CM114: 108 | CN114: 0 | CO114: 108 | CP114: 0 | CQ114: 108 | CR114: 0 | CS114: 108 | CT114: 0 | CU114: 108 | CV114: 0 | CW114: 108 | CX114: 0 | CY114: 108 | CZ114: 0 | DA114: 108 | DB114: 0 | DC114: 108 | DD114: 0 | DE114: 108 | DF114: 0 | DG114: 108 | DH114: 0 | DI114: 108 | DJ114: 0 | DK114: 108 | DL114: 0 | DM114: 108 | DN114: 0 | DO114: 108 | DP114: 0 | DQ114: 108 | DR114: 0 | DS114: 108 | DT114: 0 | DU114: 108 | DV114: 0 | DW114: 108 | DX114: 0 | DY114: 108 | DZ114: 0 | EA114: 108 | EB114: 0 | EC114: 108 | ED114: 0 | EE114: 108 | EF114: 0 | EG114: 108 | EH114: 0 | EI114: 108 | EJ114: 0 | EK114: 108 | EL114: 0 | EM114: 108 | EN114: 0 | EO114: 108 | EP114: 0 | EQ114: 108 | ER114: 0 | ES114: 108 | ET114: 0 | EU114: 108 | EV114: 0 | EW114: 108 | EX114: 0 | EY114: 108 | EZ114: 0 | FA114: 108 | FB114: 0 | FC114: 108 | FD114: 0 | FE114: 108 | FF114: 0 | FG114: 108 | FH114: 0 | FI114: 108 | FJ114: 0 | FK114: 108 | FL114: 0 | FM114: 108 | FN114: 0 | FO114: 108 | FP114: 0 | FQ114: 108 | FR114: 0 | FS114: 108 | FT114: 0 | FU114: 108 | FV114: 0 | FW114: 108 | FX114: 0 | FY114: 108 | FZ114: 0 | GA114: 108 | GB114: 0 | GC114: 108 | GD114: 0 | GE114: 108 | GF114: 0 | GG114: 108 | GH114: 0 | GI114: 108 | GJ114: 0 | GK114: 108 | GL114: 0 | GM114: 108 | GN114: 0 | GO114: 108 | GP114: 0 | GQ114: 108 | GR114: 0
A115: 109 | B115: 0 | C115: 109 | D115: 0 | E115: 109 | F115: 0 | G115: 109 | H115: 0 | I115: 109 | J115: 0 | K115: 109 | L115: 0 | M115: 109 | N115: 0 | O115: 109 | P115: 0 | Q115: 109 | R115: 0 | S115: 109 | T115: 0 | U115: 109 | V115: 0 | W115: 109 | X115: 0 | Y115: 109 | Z115: 0 | AA115: 109 | AB115: 0 | AC115: 109 | AD115: 0 | AE115: 109 | AF115: 0 | AG115: 109 | AH115: 0 | AI115: 109 | AJ115: 0 | AK115: 109 | AL115: 0 | AM115: 109 | AN115: 0 | AO115: 109 | AP115: 0 | AQ115: 109 | AR115: 0 | AS115: 109 | AT115: 0 | AU115: 109 | AV115: 0 | AW115: 109 | AX115: 0 | AY115: 109 | AZ115: 0 | BA115: 109 | BB115: 0 | BC115: 109 | BD115: 0 | BE115: 109 | BF115: 0 | BG115: 109 | BH115: 0 | BI115: 109 | BJ115: 0 | BK115: 109 | BL115: 0 | BM115: 109 | BN115: 0 | BO115: 109 | BP115: 0 | BQ115: 109 | BR115: 0 | BS115: 109 | BT115: 0 | BU115: 109 | BV115: 0 | BW115: 109 | BX115: 0 | BY115: 109 | BZ115: 0 | CA115: 109 | CB115: 0 | CC115: 109 | CD115: 0 | CE115: 109 | CF115: 0 | CG115: 109 | CH115: 0 | CI115: 109 | CJ115: 0 | CK115: 109 | CL115: 0 | CM115: 109 | CN115: 0 | CO115: 109 | CP115: 0 | CQ115: 109 | CR115: 0 | CS115: 109 | CT115: 0 | CU115: 109 | CV115: 0 | CW115: 109 | CX115: 0 | CY115: 109 | CZ115: 0 | DA115: 109 | DB115: 0 | DC115: 109 | DD115: 0 | DE115: 109 | DF115: 0 | DG115: 109 | DH115: 0 | DI115: 109 | DJ115: 0 | DK115: 109 | DL115: 0 | DM115: 109 | DN115: 0 | DO115: 109 | DP115: 0 | DQ115: 109 | DR115: 0 | DS115: 109 | DT115: 0 | DU115: 109 | DV115: 0 | DW115: 109 | DX115: 0 | DY115: 109 | DZ115: 0 | EA115: 109 | EB115: 0 | EC115: 109 | ED115: 0 | EE115: 109 | EF115: 0 | EG115: 109 | EH115: 0 | EI115: 109 | EJ115: 0 | EK115: 109 | EL115: 0 | EM115: 109 | EN115: 0 | EO115: 109 | EP115: 0 | EQ115: 109 | ER115: 0 | ES115: 109 | ET115: 0 | EU115: 109 | EV115: 0 | EW115: 109 | EX115: 0 | EY115: 109 | EZ115: 0 | FA115: 109 | FB115: 0 | FC115: 109 | FD115: 0 | FE115: 109 | FF115: 0 | FG115: 109 | FH115: 0 | FI115: 109 | FJ115: 0 | FK115: 109 | FL115: 0 | FM115: 109 | FN115: 0 | FO115: 109 | FP115: 0 | FQ115: 109 | FR115: 0 | FS115: 109 | FT115: 0 | FU115: 109 | FV115: 0 | FW115: 109 | FX115: 0 | FY115: 109 | FZ115: 0 | GA115: 109 | GB115: 0 | GC115: 109 | GD115: 0 | GE115: 109 | GF115: 0 | GG115: 109 | GH115: 0 | GI115: 109 | GJ115: 0 | GK115: 109 | GL115: 0 | GM115: 109 | GN115: 0 | GO115: 109 | GP115: 0 | GQ115: 109 | GR115: 0
A116: 110 | B116: 0 | C116: 110 | D116: 0 | E116: 110 | F116: 0 | G116: 110 | H116: 0 | I116: 110 | J116: 0 | K116: 110 | L116: 0 | M116: 110 | N116: 0 | O116: 110 | P116: 0 | Q116: 110 | R116: 0 | S116: 110 | T116: 0 | U116: 110 | V116: 0 | W116: 110 | X116: 0 | Y116: 110 | Z116: 0 | AA116: 110 | AB116: 0 | AC116: 110 | AD116: 0 | AE116: 110 | AF116: 0 | AG116: 110 | AH116: 0 | AI116: 110 | AJ116: 0 | AK116: 110 | AL116: 0 | AM116: 110 | AN116: 0 | AO116: 110 | AP116: 0 | AQ116: 110 | AR116: 0 | AS116: 110 | AT116: 0 | AU116: 110 | AV116: 0 | AW116: 110 | AX116: 0 | AY116: 110 | AZ116: 0 | BA116: 110 | BB116: 0 | BC116: 110 | BD116: 0 | BE116: 110 | BF116: 0 | BG116: 110 | BH116: 0 | BI116: 110 | BJ116: 0 | BK116: 110 | BL116: 0 | BM116: 110 | BN116: 0 | BO116: 110 | BP116: 0 | BQ116: 110 | BR116: 0 | BS116: 110 | BT116: 0 | BU116: 110 | BV116: 0 | BW116: 110 | BX116: 0 | BY116: 110 | BZ116: 0 | CA116: 110 | CB116: 0 | CC116: 110 | CD116: 0 | CE116: 110 | CF116: 0 | CG116: 110 | CH116: 0 | CI116: 110 | CJ116: 0 | CK116: 110 | CL116: 0 | CM116: 110 | CN116: 0 | CO116: 110 | CP116: 0 | CQ116: 110 | CR116: 0 | CS116: 110 | CT116: 0 | CU116: 110 | CV116: 0 | CW116: 110 | CX116: 0 | CY116: 110 | CZ116: 0 | DA116: 110 | DB116: 0 | DC116: 110 | DD116: 0 | DE116: 110 | DF116: 0 | DG116: 110 | DH116: 0 | DI116: 110 | DJ116: 0 | DK116: 110 | DL116: 0 | DM116: 110 | DN116: 0 | DO116: 110 | DP116: 0 | DQ116: 110 | DR116: 0 | DS116: 110 | DT116: 0 | DU116: 110 | DV116: 0 | DW116: 110 | DX116: 0 | DY116: 110 | DZ116: 0 | EA116: 110 | EB116: 0 | EC116: 110 | ED116: 0 | EE116: 110 | EF116: 0 | EG116: 110 | EH116: 0 | EI116: 110 | EJ116: 0 | EK116: 110 | EL116: 0 | EM116: 110 | EN116: 0 | EO116: 110 | EP116: 0 | EQ116: 110 | ER116: 0 | ES116: 110 | ET116: 0 | EU116: 110 | EV116: 0 | EW116: 110 | EX116: 0 | EY116: 110 | EZ116: 0 | FA116: 110 | FB116: 0 | FC116: 110 | FD116: 0 | FE116: 110 | FF116: 0 | FG116: 110 | FH116: 0 | FI116: 110 | FJ116: 0 | FK116: 110 | FL116: 0 | FM116: 110 | FN116: 0 | FO116: 110 | FP116: 0 | FQ116: 110 | FR116: 0 | FS116: 110 | FT116: 0 | FU116: 110 | FV116: 0 | FW116: 110 | FX116: 0 | FY116: 110 | FZ116: 0 | GA116: 110 | GB116: 0 | GC116: 110 | GD116: 0 | GE116: 110 | GF116: 0 | GG116: 110 | GH116: 0 | GI116: 110 | GJ116: 0 | GK116: 110 | GL116: 0 | GM116: 110 | GN116: 0 | GO116: 110 | GP116: 0 | GQ116: 110 | GR116: 0
A117: 111 | B117: 0 | C117: 111 | D117: 0 | E117: 111 | F117: 0 | G117: 111 | H117: 0 | I117: 111 | J117: 0 | K117: 111 | L117: 0 | M117: 111 | N117: 0 | O117: 111 | P117: 0 | Q117: 111 | R117: 0 | S117: 111 | T117: 0 | U117: 111 | V117: 0 | W117: 111 | X117: 0 | Y117: 111 | Z117: 0 | AA117: 111 | AB117: 0 | AC117: 111 | AD117: 0 | AE117: 111 | AF117: 0 | AG117: 111 | AH117: 0 | AI117: 111 | AJ117: 0 | AK117: 111 | AL117: 0 | AM117: 111 | AN117: 0 | AO117: 111 | AP117: 0 | AQ117: 111 | AR117: 0 | AS117: 111 | AT117: 0 | AU117: 111 | AV117: 0 | AW117: 111 | AX117: 0 | AY117: 111 | AZ117: 0 | BA117: 111 | BB117: 0 | BC117: 111 | BD117: 0 | BE117: 111 | BF117: 0 | BG117: 111 | BH117: 0 | BI117: 111 | BJ117: 0 | BK117: 111 | BL117: 0 | BM117: 111 | BN117: 0 | BO117: 111 | BP117: 0 | BQ117: 111 | BR117: 0 | BS117: 111 | BT117: 0 | BU117: 111 | BV117: 0 | BW117: 111 | BX117: 0 | BY117: 111 | BZ117: 0 | CA117: 111 | CB117: 0 | CC117: 111 | CD117: 0 | CE117: 111 | CF117: 0 | CG117: 111 | CH117: 0 | CI117: 111 | CJ117: 0 | CK117: 111 | CL117: 0 | CM117: 111 | CN117: 0 | CO117: 111 | CP117: 0 | CQ117: 111 | CR117: 0 | CS117: 111 | CT117: 0 | CU117: 111 | CV117: 0 | CW117: 111 | CX117: 0 | CY117: 111 | CZ117: 0 | DA117: 111 | DB117: 0 | DC117: 111 | DD117: 0 | DE117: 111 | DF117: 0 | DG117: 111 | DH117: 0 | DI117: 111 | DJ117: 0 | DK117: 111 | DL117: 0 | DM117: 111 | DN117: 0 | DO117: 111 | DP117: 0 | DQ117: 111 | DR117: 0 | DS117: 111 | DT117: 0 | DU117: 111 | DV117: 0 | DW117: 111 | DX117: 0 | DY117: 111 | DZ117: 0 | EA117: 111 | EB117: 0 | EC117: 111 | ED117: 0 | EE117: 111 | EF117: 0 | EG117: 111 | EH117: 0 | EI117: 111 | EJ117: 0 | EK117: 111 | EL117: 0 | EM117: 111 | EN117: 0 | EO117: 111 | EP117: 0 | EQ117: 111 | ER117: 0 | ES117: 111 | ET117: 0 | EU117: 111 | EV117: 0 | EW117: 111 | EX117: 0 | EY117: 111 | EZ117: 0 | FA117: 111 | FB117: 0 | FC117: 111 | FD117: 0 | FE117: 111 | FF117: 0 | FG117: 111 | FH117: 0 | FI117: 111 | FJ117: 0 | FK117: 111 | FL117: 0 | FM117: 111 | FN117: 0 | FO117: 111 | FP117: 0 | FQ117: 111 | FR117: 0 | FS117: 111 | FT117: 0 | FU117: 111 | FV117: 0 | FW117: 111 | FX117: 0 | FY117: 111 | FZ117: 0 | GA117: 111 | GB117: 0 | GC117: 111 | GD117: 0 | GE117: 111 | GF117: 0 | GG117: 111 | GH117: 0 | GI117: 111 | GJ117: 0 | GK117: 111 | GL117: 0 | GM117: 111 | GN117: 0 | GO117: 111 | GP117: 0 | GQ117: 111 | GR117: 0
A118: 112 | B118: 0 | C118: 112 | D118: 0 | E118: 112 | F118: 0 | G118: 112 | H118: 0 | I118: 112 | J118: 0 | K118: 112 | L118: 0 | M118: 112 | N118: 0 | O118: 112 | P118: 0 | Q118: 112 | R118: 0 | S118: 112 | T118: 0 | U118: 112 | V118: 0 | W118: 112 | X118: 0 | Y118: 112 | Z118: 0 | AA118: 112 | AB118: 0 | AC118: 112 | AD118: 0 | AE118: 112 | AF118: 0 | AG118: 112 | AH118: 0 | AI118: 112 | AJ118: 0 | AK118: 112 | AL118: 0 | AM118: 112 | AN118: 0 | AO118: 112 | AP118: 0 | AQ118: 112 | AR118: 0 | AS118: 112 | AT118: 0 | AU118: 112 | AV118: 0 | AW118: 112 | AX118: 0 | AY118: 112 | AZ118: 0 | BA118: 112 | BB118: 0 | BC118: 112 | BD118: 0 | BE118: 112 | BF118: 0 | BG118: 112 | BH118: 0 | BI118: 112 | BJ118: 0 | BK118: 112 | BL118: 0 | BM118: 112 | BN118: 0 | BO118: 112 | BP118: 0 | BQ118: 112 | BR118: 0 | BS118: 112 | BT118: 0 | BU118: 112 | BV118: 0 | BW118: 112 | BX118: 0 | BY118: 112 | BZ118: 0 | CA118: 112 | CB118: 0 | CC118: 112 | CD118: 0 | CE118: 112 | CF118: 0 | CG118: 112 | CH118: 0 | CI118: 112 | CJ118: 0 | CK118: 112 | CL118: 0 | CM118: 112 | CN118: 0 | CO118: 112 | CP118: 0 | CQ118: 112 | CR118: 0 | CS118: 112 | CT118: 0 | CU118: 112 | CV118: 0 | CW118: 112 | CX118: 0 | CY118: 112 | CZ118: 0 | DA118: 112 | DB118: 0 | DC118: 112 | DD118: 0 | DE118: 112 | DF118: 0 | DG118: 112 | DH118: 0 | DI118: 112 | DJ118: 0 | DK118: 112 | DL118: 0 | DM118: 112 | DN118: 0 | DO118: 112 | DP118: 0 | DQ118: 112 | DR118: 0 | DS118: 112 | DT118: 0 | DU118: 112 | DV118: 0 | DW118: 112 | DX118: 0 | DY118: 112 | DZ118: 0 | EA118: 112 | EB118: 0 | EC118: 112 | ED118: 0 | EE118: 112 | EF118: 0 | EG118: 112 | EH118: 0 | EI118: 112 | EJ118: 0 | EK118: 112 | EL118: 0 | EM118: 112 | EN118: 0 | EO118: 112 | EP118: 0 | EQ118: 112 | ER118: 0 | ES118: 112 | ET118: 0 | EU118: 112 | EV118: 0 | EW118: 112 | EX118: 0 | EY118: 112 | EZ118: 0 | FA118: 112 | FB118: 0 | FC118: 112 | FD118: 0 | FE118: 112 | FF118: 0 | FG118: 112 | FH118: 0 | FI118: 112 | FJ118: 0 | FK118: 112 | FL118: 0 | FM118: 112 | FN118: 0 | FO118: 112 | FP118: 0 | FQ118: 112 | FR118: 0 | FS118: 112 | FT118: 0 | FU118: 112 | FV118: 0 | FW118: 112 | FX118: 0 | FY118: 112 | FZ118: 0 | GA118: 112 | GB118: 0 | GC118: 112 | GD118: 0 | GE118: 112 | GF118: 0 | GG118: 112 | GH118: 0 | GI118: 112 | GJ118: 0 | GK118: 112 | GL118: 0 | GM118: 112 | GN118: 0 | GO118: 112 | GP118: 0 | GQ118: 112 | GR118: 0
A119: 113 | B119: 0 | C119: 113 | D119: 0 | E119: 113 | F119: 0 | G119: 113 | H119: 0 | I119: 113 | J119: 0 | K119: 113 | L119: 0 | M119: 113 | N119: 0 | O119: 113 | P119: 0 | Q119: 113 | R119: 0 | S119: 113 | T119: 0 | U119: 113 | V119: 0 | W119: 113 | X119: 0 | Y119: 113 | Z119: 0 | AA119: 113 | AB119: 0 | AC119: 113 | AD119: 0 | AE119: 113 | AF119: 0 | AG119: 113 | AH119: 0 | AI119: 113 | AJ119: 0 | AK119: 113 | AL119: 0 | AM119: 113 | AN119: 0 | AO119: 113 | AP119: 0 | AQ119: 113 | AR119: 0 | AS119: 113 | AT119: 0 | AU119: 113 | AV119: 0 | AW119: 113 | AX119: 0 | AY119: 113 | AZ119: 0 | BA119: 113 | BB119: 0 | BC119: 113 | BD119: 0 | BE119: 113 | BF119: 0 | BG119: 113 | BH119: 0 | BI119: 113 | BJ119: 0 | BK119: 113 | BL119: 0 | BM119: 113 | BN119: 0 | BO119: 113 | BP119: 0 | BQ119: 113 | BR119: 0 | BS119: 113 | BT119: 0 | BU119: 113 | BV119: 0 | BW119: 113 | BX119: 0 | BY119: 113 | BZ119: 0 | CA119: 113 | CB119: 0 | CC119: 113 | CD119: 0 | CE119: 113 | CF119: 0 | CG119: 113 | CH119: 0 | CI119: 113 | CJ119: 0 | CK119: 113 | CL119: 0 | CM119: 113 | CN119: 0 | CO119: 113 | CP119: 0 | CQ119: 113 | CR119: 0 | CS119: 113 | CT119: 0 | CU119: 113 | CV119: 0 | CW119: 113 | CX119: 0 | CY119: 113 | CZ119: 0 | DA119: 113 | DB119: 0 | DC119: 113 | DD119: 0 | DE119: 113 | DF119: 0 | DG119: 113 | DH119: 0 | DI119: 113 | DJ119: 0 | DK119: 113 | DL119: 0 | DM119: 113 | DN119: 0 | DO119: 113 | DP119: 0 | DQ119: 113 | DR119: 0 | DS119: 113 | DT119: 0 | DU119: 113 | DV119: 0 | DW119: 113 | DX119: 0 | DY119: 113 | DZ119: 0 | EA119: 113 | EB119: 0 | EC119: 113 | ED119: 0 | EE119: 113 | EF119: 0 | EG119: 113 | EH119: 0 | EI119: 113 | EJ119: 0 | EK119: 113 | EL119: 0 | EM119: 113 | EN119: 0 | EO119: 113 | EP119: 0 | EQ119: 113 | ER119: 0 | ES119: 113 | ET119: 0 | EU119: 113 | EV119: 0 | EW119: 113 | EX119: 0 | EY119: 113 | EZ119: 0 | FA119: 113 | FB119: 0 | FC119: 113 | FD119: 0 | FE119: 113 | FF119: 0 | FG119: 113 | FH119: 0 | FI119: 113 | FJ119: 0 | FK119: 113 | FL119: 0 | FM119: 113 | FN119: 0 | FO119: 113 | FP119: 0 | FQ119: 113 | FR119: 0 | FS119: 113 | FT119: 0 | FU119: 113 | FV119: 0 | FW119: 113 | FX119: 0 | FY119: 113 | FZ119: 0 | GA119: 113 | GB119: 0 | GC119: 113 | GD119: 0 | GE119: 113 | GF119: 0 | GG119: 113 | GH119: 0 | GI119: 113 | GJ119: 0 | GK119: 113 | GL119: 0 | GM119: 113 | GN119: 0 | GO119: 113 | GP119: 0 | GQ119: 113 | GR119: 0
A120: 114 | B120: 0 | C120: 114 | D120: 0 | E120: 114 | F120: 0 | G120: 114 | H120: 0 | I120: 114 | J120: 0 | K120: 114 | L120: 0 | M120: 114 | N120: 0 | O120: 114 | P120: 0 | Q120: 114 | R120: 0 | S120: 114 | T120: 0 | U120: 114 | V120: 0 | W120: 114 | X120: 0 | Y120: 114 | Z120: 0 | AA120: 114 | AB120: 0 | AC120: 114 | AD120: 0 | AE120: 114 | AF120: 0 | AG120: 114 | AH120: 0 | AI120: 114 | AJ120: 0 | AK120: 114 | AL120: 0 | AM120: 114 | AN120: 0 | AO120: 114 | AP120: 0 | AQ120: 114 | AR120: 0 | AS120: 114 | AT120: 0 | AU120: 114 | AV120: 0 | AW120: 114 | AX120: 0 | AY120: 114 | AZ120: 0 | BA120: 114 | BB120: 0 | BC120: 114 | BD120: 0 | BE120: 114 | BF120: 0 | BG120: 114 | BH120: 0 | BI120: 114 | BJ120: 0 | BK120: 114 | BL120: 0 | BM120: 114 | BN120: 0 | BO120: 114 | BP120: 0 | BQ120: 114 | BR120: 0 | BS120: 114 | BT120: 0 | BU120: 114 | BV120: 0 | BW120: 114 | BX120: 0 | BY120: 114 | BZ120: 0 | CA120: 114 | CB120: 0 | CC120: 114 | CD120: 0 | CE120: 114 | CF120: 0 | CG120: 114 | CH120: 0 | CI120: 114 | CJ120: 0 | CK120: 114 | CL120: 0 | CM120: 114 | CN120: 0 | CO120: 114 | CP120: 0 | CQ120: 114 | CR120: 0 | CS120: 114 | CT120: 0 | CU120: 114 | CV120: 0 | CW120: 114 | CX120: 0 | CY120: 114 | CZ120: 0 | DA120: 114 | DB120: 0 | DC120: 114 | DD120: 0 | DE120: 114 | DF120: 0 | DG120: 114 | DH120: 0 | DI120: 114 | DJ120: 0 | DK120: 114 | DL120: 0 | DM120: 114 | DN120: 0 | DO120: 114 | DP120: 0 | DQ120: 114 | DR120: 0 | DS120: 114 | DT120: 0 | DU120: 114 | DV120: 0 | DW120: 114 | DX120: 0 | DY120: 114 | DZ120: 0 | EA120: 114 | EB120: 0 | EC120: 114 | ED120: 0 | EE120: 114 | EF120: 0 | EG120: 114 | EH120: 0 | EI120: 114 | EJ120: 0 | EK120: 114 | EL120: 0 | EM120: 114 | EN120: 0 | EO120: 114 | EP120: 0 | EQ120: 114 | ER120: 0 | ES120: 114 | ET120: 0 | EU120: 114 | EV120: 0 | EW120: 114 | EX120: 0 | EY120: 114 | EZ120: 0 | FA120: 114 | FB120: 0 | FC120: 114 | FD120: 0 | FE120: 114 | FF120: 0 | FG120: 114 | FH120: 0 | FI120: 114 | FJ120: 0 | FK120: 114 | FL120: 0 | FM120: 114 | FN120: 0 | FO120: 114 | FP120: 0 | FQ120: 114 | FR120: 0 | FS120: 114 | FT120: 0 | FU120: 114 | FV120: 0 | FW120: 114 | FX120: 0 | FY120: 114 | FZ120: 0 | GA120: 114 | GB120: 0 | GC120: 114 | GD120: 0 | GE120: 114 | GF120: 0 | GG120: 114 | GH120: 0 | GI120: 114 | GJ120: 0 | GK120: 114 | GL120: 0 | GM120: 114 | GN120: 0 | GO120: 114 | GP120: 0 | GQ120: 114 | GR120: 0
A121: 115 | B121: 0 | C121: 115 | D121: 0 | E121: 115 | F121: 0 | G121: 115 | H121: 0 | I121: 115 | J121: 0 | K121: 115 | L121: 0 | M121: 115 | N121: 0 | O121: 115 | P121: 0 | Q121: 115 | R121: 0 | S121: 115 | T121: 0 | U121: 115 | V121: 0 | W121: 115 | X121: 0 | Y121: 115 | Z121: 0 | AA121: 115 | AB121: 0 | AC121: 115 | AD121: 0 | AE121: 115 | AF121: 0 | AG121: 115 | AH121: 0 | AI121: 115 | AJ121: 0 | AK121: 115 | AL121: 0 | AM121: 115 | AN121: 0 | AO121: 115 | AP121: 0 | AQ121: 115 | AR121: 0 | AS121: 115 | AT121: 0 | AU121: 115 | AV121: 0 | AW121: 115 | AX121: 0 | AY121: 115 | AZ121: 0 | BA121: 115 | BB121: 0 | BC121: 115 | BD121: 0 | BE121: 115 | BF121: 0 | BG121: 115 | BH121: 0 | BI121: 115 | BJ121: 0 | BK121: 115 | BL121: 0 | BM121: 115 | BN121: 0 | BO121: 115 | BP121: 0 | BQ121: 115 | BR121: 0 | BS121: 115 | BT121: 0 | BU121: 115 | BV121: 0 | BW121: 115 | BX121: 0 | BY121: 115 | BZ121: 0 | CA121: 115 | CB121: 0 | CC121: 115 | CD121: 0 | CE121: 115 | CF121: 0 | CG121: 115 | CH121: 0 | CI121: 115 | CJ121: 0 | CK121: 115 | CL121: 0 | CM121: 115 | CN121: 0 | CO121: 115 | CP121: 0 | CQ121: 115 | CR121: 0 | CS121: 115 | CT121: 0 | CU121: 115 | CV121: 0 | CW121: 115 | CX121: 0 | CY121: 115 | CZ121: 0 | DA121: 115 | DB121: 0 | DC121: 115 | DD121: 0 | DE121: 115 | DF121: 0 | DG121: 115 | DH121: 0 | DI121: 115 | DJ121: 0 | DK121: 115 | DL121: 0 | DM121: 115 | DN121: 0 | DO121: 115 | DP121: 0 | DQ121: 115 | DR121: 0 | DS121: 115 | DT121: 0 | DU121: 115 | DV121: 0 | DW121: 115 | DX121: 0 | DY121: 115 | DZ121: 0 | EA121: 115 | EB121: 0 | EC121: 115 | ED121: 0 | EE121: 115 | EF121: 0 | EG121: 115 | EH121: 0 | EI121: 115 | EJ121: 0 | EK121: 115 | EL121: 0 | EM121: 115 | EN121: 0 | EO121: 115 | EP121: 0 | EQ121: 115 | ER121: 0 | ES121: 115 | ET121: 0 | EU121: 115 | EV121: 0 | EW121: 115 | EX121: 0 | EY121: 115 | EZ121: 0 | FA121: 115 | FB121: 0 | FC121: 115 | FD121: 0 | FE121: 115 | FF121: 0 | FG121: 115 | FH121: 0 | FI121: 115 | FJ121: 0 | FK121: 115 | FL121: 0 | FM121: 115 | FN121: 0 | FO121: 115 | FP121: 0 | FQ121: 115 | FR121: 0 | FS121: 115 | FT121: 0 | FU121: 115 | FV121: 0 | FW121: 115 | FX121: 0 | FY121: 115 | FZ121: 0 | GA121: 115 | GB121: 0 | GC121: 115 | GD121: 0 | GE121: 115 | GF121: 0 | GG121: 115 | GH121: 0 | GI121: 115 | GJ121: 0 | GK121: 115 | GL121: 0 | GM121: 115 | GN121: 0 | GO121: 115 | GP121: 0 | GQ121: 115 | GR121: 0
A122: 116 | B122: 0 | C122: 116 | D122: 0 | E122: 116 | F122: 0 | G122: 116 | H122: 0 | I122: 116 | J122: 0 | K122: 116 | L122: 0 | M122: 116 | N122: 0 | O122: 116 | P122: 0 | Q122: 116 | R122: 0 | S122: 116 | T122: 0 | U122: 116 | V122: 0 | W122: 116 | X122: 0 | Y122: 116 | Z122: 0 | AA122: 116 | AB122: 0 | AC122: 116 | AD122: 0 | AE122: 116 | AF122: 0 | AG122: 116 | AH122: 0 | AI122: 116 | AJ122: 0 | AK122: 116 | AL122: 0 | AM122: 116 | AN122: 0 | AO122: 116 | AP122: 0 | AQ122: 116 | AR122: 0 | AS122: 116 | AT122: 0 | AU122: 116 | AV122: 0 | AW122: 116 | AX122: 0 | AY122: 116 | AZ122: 0 | BA122: 116 | BB122: 0 | BC122: 116 | BD122: 0 | BE122: 116 | BF122: 0 | BG122: 116 | BH122: 0 | BI122: 116 | BJ122: 0 | BK122: 116 | BL122: 0 | BM122: 116 | BN122: 0 | BO122: 116 | BP122: 0 | BQ122: 116 | BR122: 0 | BS122: 116 | BT122: 0 | BU122: 116 | BV122: 0 | BW122: 116 | BX122: 0 | BY122: 116 | BZ122: 0 | CA122: 116 | CB122: 0 | CC122: 116 | CD122: 0 | CE122: 116 | CF122: 0 | CG122: 116 | CH122: 0 | CI122: 116 | CJ122: 0 | CK122: 116 | CL122: 0 | CM122: 116 | CN122: 0 | CO122: 116 | CP122: 0 | CQ122: 116 | CR122: 0 | CS122: 116 | CT122: 0 | CU122: 116 | CV122: 0 | CW122: 116 | CX122: 0 | CY122: 116 | CZ122: 0 | DA122: 116 | DB122: 0 | DC122: 116 | DD122: 0 | DE122: 116 | DF122: 0 | DG122: 116 | DH122: 0 | DI122: 116 | DJ122: 0 | DK122: 116 | DL122: 0 | DM122: 116 | DN122: 0 | DO122: 116 | DP122: 0 | DQ122: 116 | DR122: 0 | DS122: 116 | DT122: 0 | DU122: 116 | DV122: 0 | DW122: 116 | DX122: 0 | DY122: 116 | DZ122: 0 | EA122: 116 | EB122: 0 | EC122: 116 | ED122: 0 | EE122: 116 | EF122: 0 | EG122: 116 | EH122: 0 | EI122: 116 | EJ122: 0 | EK122: 116 | EL122: 0 | EM122: 116 | EN122: 0 | EO122: 116 | EP122: 0 | EQ122: 116 | ER122: 0 | ES122: 116 | ET122: 0 | EU122: 116 | EV122: 0 | EW122: 116 | EX122: 0 | EY122: 116 | EZ122: 0 | FA122: 116 | FB122: 0 | FC122: 116 | FD122: 0 | FE122: 116 | FF122: 0 | FG122: 116 | FH122: 0 | FI122: 116 | FJ122: 0 | FK122: 116 | FL122: 0 | FM122: 116 | FN122: 0 | FO122: 116 | FP122: 0 | FQ122: 116 | FR122: 0 | FS122: 116 | FT122: 0 | FU122: 116 | FV122: 0 | FW122: 116 | FX122: 0 | FY122: 116 | FZ122: 0 | GA122: 116 | GB122: 0 | GC122: 116 | GD122: 0 | GE122: 116 | GF122: 0 | GG122: 116 | GH122: 0 | GI122: 116 | GJ122: 0 | GK122: 116 | GL122: 0 | GM122: 116 | GN122: 0 | GO122: 116 | GP122: 0 | GQ122: 116 | GR122: 0
A123: 117 | B123: 0 | C123: 117 | D123: 0 | E123: 117 | F123: 0 | G123: 117 | H123: 0 | I123: 117 | J123: 0 | K123: 117 | L123: 0 | M123: 117 | N123: 0 | O123: 117 | P123: 0 | Q123: 117 | R123: 0 | S123: 117 | T123: 0 | U123: 117 | V123: 0 | W123: 117 | X123: 0 | Y123: 117 | Z123: 0 | AA123: 117 | AB123: 0 | AC123: 117 | AD123: 0 | AE123: 117 | AF123: 0 | AG123: 117 | AH123: 0 | AI123: 117 | AJ123: 0 | AK123: 117 | AL123: 0 | AM123: 117 | AN123: 0 | AO123: 117 | AP123: 0 | AQ123: 117 | AR123: 0 | AS123: 117 | AT123: 0 | AU123: 117 | AV123: 0 | AW123: 117 | AX123: 0 | AY123: 117 | AZ123: 0 | BA123: 117 | BB123: 0 | BC123: 117 | BD123: 0 | BE123: 117 | BF123: 0 | BG123: 117 | BH123: 0 | BI123: 117 | BJ123: 0 | BK123: 117 | BL123: 0 | BM123: 117 | BN123: 0 | BO123: 117 | BP123: 0 | BQ123: 117 | BR123: 0 | BS123: 117 | BT123: 0 | BU123: 117 | BV123: 0 | BW123: 117 | BX123: 0 | BY123: 117 | BZ123: 0 | CA123: 117 | CB123: 0 | CC123: 117 | CD123: 0 | CE123: 117 | CF123: 0 | CG123: 117 | CH123: 0 | CI123: 117 | CJ123: 0 | CK123: 117 | CL123: 0 | CM123: 117 | CN123: 0 | CO123: 117 | CP123: 0 | CQ123: 117 | CR123: 0 | CS123: 117 | CT123: 0 | CU123: 117 | CV123: 0 | CW123: 117 | CX123: 0 | CY123: 117 | CZ123: 0 | DA123: 117 | DB123: 0 | DC123: 117 | DD123: 0 | DE123: 117 | DF123: 0 | DG123: 117 | DH123: 0 | DI123: 117 | DJ123: 0 | DK123: 117 | DL123: 0 | DM123: 117 | DN123: 0 | DO123: 117 | DP123: 0 | DQ123: 117 | DR123: 0 | DS123: 117 | DT123: 0 | DU123: 117 | DV123: 0 | DW123: 117 | DX123: 0 | DY123: 117 | DZ123: 0 | EA123: 117 | EB123: 0 | EC123: 117 | ED123: 0 | EE123: 117 | EF123: 0 | EG123: 117 | EH123: 0 | EI123: 117 | EJ123: 0 | EK123: 117 | EL123: 0 | EM123: 117 | EN123: 0 | EO123: 117 | EP123: 0 | EQ123: 117 | ER123: 0 | ES123: 117 | ET123: 0 | EU123: 117 | EV123: 0 | EW123: 117 | EX123: 0 | EY123: 117 | EZ123: 0 | FA123: 117 | FB123: 0 | FC123: 117 | FD123: 0 | FE123: 117 | FF123: 0 | FG123: 117 | FH123: 0 | FI123: 117 | FJ123: 0 | FK123: 117 | FL123: 0 | FM123: 117 | FN123: 0 | FO123: 117 | FP123: 0 | FQ123: 117 | FR123: 0 | FS123: 117 | FT123: 0 | FU123: 117 | FV123: 0 | FW123: 117 | FX123: 0 | FY123: 117 | FZ123: 0 | GA123: 117 | GB123: 0 | GC123: 117 | GD123: 0 | GE123: 117 | GF123: 0 | GG123: 117 | GH123: 0 | GI123: 117 | GJ123: 0 | GK123: 117 | GL123: 0 | GM123: 117 | GN123: 0 | GO123: 117 | GP123: 0 | GQ123: 117 | GR123: 0
A124: 118 | B124: 0 | C124: 118 | D124: 0 | E124: 118 | F124: 0 | G124: 118 | H124: 0 | I124: 118 | J124: 0 | K124: 118 | L124: 0 | M124: 118 | N124: 0 | O124: 118 | P124: 0 | Q124: 118 | R124: 0 | S124: 118 | T124: 0 | U124: 118 | V124: 0 | W124: 118 | X124: 0 | Y124: 118 | Z124: 0 | AA124: 118 | AB124: 0 | AC124: 118 | AD124: 0 | AE124: 118 | AF124: 0 | AG124: 118 | AH124: 0 | AI124: 118 | AJ124: 0 | AK124: 118 | AL124: 0 | AM124: 118 | AN124: 0 | AO124: 118 | AP124: 0 | AQ124: 118 | AR124: 0 | AS124: 118 | AT124: 0 | AU124: 118 | AV124: 0 | AW124: 118 | AX124: 0 | AY124: 118 | AZ124: 0 | BA124: 118 | BB124: 0 | BC124: 118 | BD124: 0 | BE124: 118 | BF124: 0 | BG124: 118 | BH124: 0 | BI124: 118 | BJ124: 0 | BK124: 118 | BL124: 0 | BM124: 118 | BN124: 0 | BO124: 118 | BP124: 0 | BQ124: 118 | BR124: 0 | BS124: 118 | BT124: 0 | BU124: 118 | BV124: 0 | BW124: 118 | BX124: 0 | BY124: 118 | BZ124: 0 | CA124: 118 | CB124: 0 | CC124: 118 | CD124: 0 | CE124: 118 | CF124: 0 | CG124: 118 | CH124: 0 | CI124: 118 | CJ124: 0 | CK124: 118 | CL124: 0 | CM124: 118 | CN124: 0 | CO124: 118 | CP124: 0 | CQ124: 118 | CR124: 0 | CS124: 118 | CT124: 0 | CU124: 118 | CV124: 0 | CW124: 118 | CX124: 0 | CY124: 118 | CZ124: 0 | DA124: 118 | DB124: 0 | DC124: 118 | DD124: 0 | DE124: 118 | DF124: 0 | DG124: 118 | DH124: 0 | DI124: 118 | DJ124: 0 | DK124: 118 | DL124: 0 | DM124: 118 | DN124: 0 | DO124: 118 | DP124: 0 | DQ124: 118 | DR124: 0 | DS124: 118 | DT124: 0 | DU124: 118 | DV124: 0 | DW124: 118 | DX124: 0 | DY124: 118 | DZ124: 0 | EA124: 118 | EB124: 0 | EC124: 118 | ED124: 0 | EE124: 118 | EF124: 0 | EG124: 118 | EH124: 0 | EI124: 118 | EJ124: 0 | EK124: 118 | EL124: 0 | EM124: 118 | EN124: 0 | EO124: 118 | EP124: 0 | EQ124: 118 | ER124: 0 | ES124: 118 | ET124: 0 | EU124: 118 | EV124: 0 | EW124: 118 | EX124: 0 | EY124: 118 | EZ124: 0 | FA124: 118 | FB124: 0 | FC124: 118 | FD124: 0 | FE124: 118 | FF124: 0 | FG124: 118 | FH124: 0 | FI124: 118 | FJ124: 0 | FK124: 118 | FL124: 0 | FM124: 118 | FN124: 0 | FO124: 118 | FP124: 0 | FQ124: 118 | FR124: 0 | FS124: 118 | FT124: 0 | FU124: 118 | FV124: 0 | FW124: 118 | FX124: 0 | FY124: 118 | FZ124: 0 | GA124: 118 | GB124: 0 | GC124: 118 | GD124: 0 | GE124: 118 | GF124: 0 | GG124: 118 | GH124: 0 | GI124: 118 | GJ124: 0 | GK124: 118 | GL124: 0 | GM124: 118 | GN124: 0 | GO124: 118 | GP124: 0 | GQ124: 118 | GR124: 0
A125: 119 | B125: 0 | C125: 119 | D125: 0 | E125: 119 | F125: 0 | G125: 119 | H125: 0 | I125: 119 | J125: 0 | K125: 119 | L125: 0 | M125: 119 | N125: 0 | O125: 119 | P125: 0 | Q125: 119 | R125: 0 | S125: 119 | T125: 0 | U125: 119 | V125: 0 | W125: 119 | X125: 0 | Y125: 119 | Z125: 0 | AA125: 119 | AB125: 0 | AC125: 119 | AD125: 0 | AE125: 119 | AF125: 0 | AG125: 119 | AH125: 0 | AI125: 119 | AJ125: 0 | AK125: 119 | AL125: 0 | AM125: 119 | AN125: 0 | AO125: 119 | AP125: 0 | AQ125: 119 | AR125: 0 | AS125: 119 | AT125: 0 | AU125: 119 | AV125: 0 | AW125: 119 | AX125: 0 | AY125: 119 | AZ125: 0 | BA125: 119 | BB125: 0 | BC125: 119 | BD125: 0 | BE125: 119 | BF125: 0 | BG125: 119 | BH125: 0 | BI125: 119 | BJ125: 0 | BK125: 119 | BL125: 0 | BM125: 119 | BN125: 0 | BO125: 119 | BP125: 0 | BQ125: 119 | BR125: 0 | BS125: 119 | BT125: 0 | BU125: 119 | BV125: 0 | BW125: 119 | BX125: 0 | BY125: 119 | BZ125: 0 | CA125: 119 | CB125: 0 | CC125: 119 | CD125: 0 | CE125: 119 | CF125: 0 | CG125: 119 | CH125: 0 | CI125: 119 | CJ125: 0 | CK125: 119 | CL125: 0 | CM125: 119 | CN125: 0 | CO125: 119 | CP125: 0 | CQ125: 119 | CR125: 0 | CS125: 119 | CT125: 0 | CU125: 119 | CV125: 0 | CW125: 119 | CX125: 0 | CY125: 119 | CZ125: 0 | DA125: 119 | DB125: 0 | DC125: 119 | DD125: 0 | DE125: 119 | DF125: 0 | DG125: 119 | DH125: 0 | DI125: 119 | DJ125: 0 | DK125: 119 | DL125: 0 | DM125: 119 | DN125: 0 | DO125: 119 | DP125: 0 | DQ125: 119 | DR125: 0 | DS125: 119 | DT125: 0 | DU125: 119 | DV125: 0 | DW125: 119 | DX125: 0 | DY125: 119 | DZ125: 0 | EA125: 119 | EB125: 0 | EC125: 119 | ED125: 0 | EE125: 119 | EF125: 0 | EG125: 119 | EH125: 0 | EI125: 119 | EJ125: 0 | EK125: 119 | EL125: 0 | EM125: 119 | EN125: 0 | EO125: 119 | EP125: 0 | EQ125: 119 | ER125: 0 | ES125: 119 | ET125: 0 | EU125: 119 | EV125: 0 | EW125: 119 | EX125: 0 | EY125: 119 | EZ125: 0 | FA125: 119 | FB125: 0 | FC125: 119 | FD125: 0 | FE125: 119 | FF125: 0 | FG125: 119 | FH125: 0 | FI125: 119 | FJ125: 0 | FK125: 119 | FL125: 0 | FM125: 119 | FN125: 0 | FO125: 119 | FP125: 0 | FQ125: 119 | FR125: 0 | FS125: 119 | FT125: 0 | FU125: 119 | FV125: 0 | FW125: 119 | FX125: 0 | FY125: 119 | FZ125: 0 | GA125: 119 | GB125: 0 | GC125: 119 | GD125: 0 | GE125: 119 | GF125: 0 | GG125: 119 | GH125: 0 | GI125: 119 | GJ125: 0 | GK125: 119 | GL125: 0 | GM125: 119 | GN125: 0 | GO125: 119 | GP125: 0 | GQ125: 119 | GR125: 0
A126: 120 | B126: 0 | C126: 120 | D126: 0 | E126: 120 | F126: 0 | G126: 120 | H126: 0 | I126: 120 | J126: 0 | K126: 120 | L126: 0 | M126: 120 | N126: 0 | O126: 120 | P126: 0 | Q126: 120 | R126: 0 | S126: 120 | T126: 0 | U126: 120 | V126: 0 | W126: 120 | X126: 0 | Y126: 120 | Z126: 0 | AA126: 120 | AB126: 0 | AC126: 120 | AD126: 0 | AE126: 120 | AF126: 0 | AG126: 120 | AH126: 0 | AI126: 120 | AJ126: 0 | AK126: 120 | AL126: 0 | AM126: 120 | AN126: 0 | AO126: 120 | AP126: 0 | AQ126: 120 | AR126: 0 | AS126: 120 | AT126: 0 | AU126: 120 | AV126: 0 | AW126: 120 | AX126: 0 | AY126: 120 | AZ126: 0 | BA126: 120 | BB126: 0 | BC126: 120 | BD126: 0 | BE126: 120 | BF126: 0 | BG126: 120 | BH126: 0 | BI126: 120 | BJ126: 0 | BK126: 120 | BL126: 0 | BM126: 120 | BN126: 0 | BO126: 120 | BP126: 0 | BQ126: 120 | BR126: 0 | BS126: 120 | BT126: 0 | BU126: 120 | BV126: 0 | BW126: 120 | BX126: 0 | BY126: 120 | BZ126: 0 | CA126: 120 | CB126: 0 | CC126: 120 | CD126: 0 | CE126: 120 | CF126: 0 | CG126: 120 | CH126: 0 | CI126: 120 | CJ126: 0 | CK126: 120 | CL126: 0 | CM126: 120 | CN126: 0 | CO126: 120 | CP126: 0 | CQ126: 120 | CR126: 0 | CS126: 120 | CT126: 0 | CU126: 120 | CV126: 0 | CW126: 120 | CX126: 0 | CY126: 120 | CZ126: 0 | DA126: 120 | DB126: 0 | DC126: 120 | DD126: 0 | DE126: 120 | DF126: 0 | DG126: 120 | DH126: 0 | DI126: 120 | DJ126: 0 | DK126: 120 | DL126: 0 | DM126: 120 | DN126: 0 | DO126: 120 | DP126: 0 | DQ126: 120 | DR126: 0 | DS126: 120 | DT126: 0 | DU126: 120 | DV126: 0 | DW126: 120 | DX126: 0 | DY126: 120 | DZ126: 0 | EA126: 120 | EB126: 0 | EC126: 120 | ED126: 0 | EE126: 120 | EF126: 0 | EG126: 120 | EH126: 0 | EI126: 120 | EJ126: 0 | EK126: 120 | EL126: 0 | EM126: 120 | EN126: 0 | EO126: 120 | EP126: 0 | EQ126: 120 | ER126: 0 | ES126: 120 | ET126: 0 | EU126: 120 | EV126: 0 | EW126: 120 | EX126: 0 | EY126: 120 | EZ126: 0 | FA126: 120 | FB126: 0 | FC126: 120 | FD126: 0 | FE126: 120 | FF126: 0 | FG126: 120 | FH126: 0 | FI126: 120 | FJ126: 0 | FK126: 120 | FL126: 0 | FM126: 120 | FN126: 0 | FO126: 120 | FP126: 0 | FQ126: 120 | FR126: 0 | FS126: 120 | FT126: 0 | FU126: 120 | FV126: 0 | FW126: 120 | FX126: 0 | FY126: 120 | FZ126: 0 | GA126: 120 | GB126: 0 | GC126: 120 | GD126: 0 | GE126: 120 | GF126: 0 | GG126: 120 | GH126: 0 | GI126: 120 | GJ126: 0 | GK126: 120 | GL126: 0 | GM126: 120 | GN126: 0 | GO126: 120 | GP126: 0 | GQ126: 120 | GR126: 0

Sheet Result_流出量
A1: 時間 | B1: 水田番号 | C1: 1 | D1: 水田番号 | E1: =C1+1 -> 2 | F1: 水田番号 | G1: =E1+1 -> 3 | H1: 水田番号 | I1: =G1+1 -> 4 | J1: 水田番号 | K1: =I1+1 -> 5 | L1: 水田番号 | M1: =K1+1 -> 6 | N1: 水田番号 | O1: =M1+1 -> 7 | P1: 水田番号 | Q1: =O1+1 -> 8 | R1: 水田番号 | S1: =Q1+1 -> 9 | T1: 水田番号 | U1: =S1+1 -> 10 | V1: 水田番号 | W1: =U1+1 -> 11 | X1: 水田番号 | Y1: =W1+1 -> 12 | Z1: 水田番号 | AA1: =Y1+1 -> 13 | AB1: 水田番号 | AC1: =AA1+1 -> 14 | AD1: 水田番号 | AE1: =AC1+1 -> 15 | AF1: 水田番号 | AG1: =AE1+1 -> 16 | AH1: 水田番号 | AI1: =AG1+1 -> 17 | AJ1: 水田番号 | AK1: =AI1+1 -> 18 | AL1: 水田番号 | AM1: =AK1+1 -> 19 | AN1: 水田番号 | AO1: =AM1+1 -> 20 | AP1: 水田番号 | AQ1: =AO1+1 -> 21 | AR1: 水田番号 | AS1: =AQ1+1 -> 22 | AT1: 水田番号 | AU1: =AS1+1 -> 23 | AV1: 水田番号 | AW1: =AU1+1 -> 24 | AX1: 水田番号 | AY1: =AW1+1 -> 25 | AZ1: 水田番号 | BA1: =AY1+1 -> 26 | BB1: 水田番号 | BC1: =BA1+1 -> 27 | BD1: 水田番号 | BE1: =BC1+1 -> 28 | BF1: 水田番号 | BG1: =BE1+1 -> 29 | BH1: 水田番号 | BI1: =BG1+1 -> 30 | BJ1: 水田番号 | BK1: =BI1+1 -> 31 | BL1: 水田番号 | BM1: =BK1+1 -> 32 | BN1: 水田番号 | BO1: =BM1+1 -> 33 | BP1: 水田番号 | BQ1: =BO1+1 -> 34 | BR1: 水田番号 | BS1: =BQ1+1 -> 35 | BT1: 水田番号 | BU1: =BS1+1 -> 36 | BV1: 水田番号 | BW1: =BU1+1 -> 37 | BX1: 水田番号 | BY1: =BW1+1 -> 38 | BZ1: 水田番号 | CA1: =BY1+1 -> 39 | CB1: 水田番号 | CC1: =CA1+1 -> 40 | CD1: 水田番号 | CE1: =CC1+1 -> 41 | CF1: 水田番号 | CG1: =CE1+1 -> 42 | CH1: 水田番号 | CI1: =CG1+1 -> 43 | CJ1: 水田番号 | CK1: =CI1+1 -> 44 | CL1: 水田番号 | CM1: =CK1+1 -> 45 | CN1: 水田番号 | CO1: =CM1+1 -> 46 | CP1: 水田番号 | CQ1: =CO1+1 -> 47 | CR1: 水田番号 | CS1: =CQ1+1 -> 48 | CT1: 水田番号 | CU1: =CS1+1 -> 49 | CV1: 水田番号 | CW1: =CU1+1 -> 50 | CX1: 水田番号 | CY1: =CW1+1 -> 51 | CZ1: 水田番号 | DA1: =CY1+1 -> 52 | DB1: 水田番号 | DC1: =DA1+1 -> 53 | DD1: 水田番号 | DE1: =DC1+1 -> 54 | DF1: 水田番号 | DG1: =DE1+1 -> 55 | DH1: 水田番号 | DI1: =DG1+1 -> 56 | DJ1: 水田番号 | DK1: =DI1+1 -> 57 | DL1: 水田番号 | DM1: =DK1+1 -> 58 | DN1: 水田番号 | DO1: =DM1+1 -> 59 | DP1: 水田番号 | DQ1: =DO1+1 -> 60 | DR1: 水田番号 | DS1: =DQ1+1 -> 61 | DT1: 水田番号 | DU1: =DS1+1 -> 62 | DV1: 水田番号 | DW1: =DU1+1 -> 63 | DX1: 水田番号 | DY1: =DW1+1 -> 64 | DZ1: 水田番号 | EA1: =DY1+1 -> 65 | EB1: 水田番号 | EC1: =EA1+1 -> 66 | ED1: 水田番号 | EE1: =EC1+1 -> 67 | EF1: 水田番号 | EG1: =EE1+1 -> 68 | EH1: 水田番号 | EI1: =EG1+1 -> 69 | EJ1: 水田番号 | EK1: =EI1+1 -> 70 | EL1: 水田番号 | EM1: =EK1+1 -> 71 | EN1: 水田番号 | EO1: =EM1+1 -> 72 | EP1: 水田番号 | EQ1: =EO1+1 -> 73 | ER1: 水田番号 | ES1: =EQ1+1 -> 74 | ET1: 水田番号 | EU1: =ES1+1 -> 75 | EV1: 水田番号 | EW1: =EU1+1 -> 76 | EX1: 水田番号 | EY1: =EW1+1 -> 77 | EZ1: 水田番号 | FA1: =EY1+1 -> 78 | FB1: 水田番号 | FC1: =FA1+1 -> 79 | FD1: 水田番号 | FE1: =FC1+1 -> 80 | FF1: 水田番号 | FG1: =FE1+1 -> 81 | FH1: 水田番号 | FI1: =FG1+1 -> 82 | FJ1: 水田番号 | FK1: =FI1+1 -> 83 | FL1: 水田番号 | FM1: =FK1+1 -> 84 | FN1: 水田番号 | FO1: =FM1+1 -> 85 | FP1: 水田番号 | FQ1: =FO1+1 -> 86 | FR1: 水田番号 | FS1: =FQ1+1 -> 87 | FT1: 水田番号 | FU1: =FS1+1 -> 88 | FV1: 水田番号 | FW1: =FU1+1 -> 89 | FX1: 水田番号 | FY1: =FW1+1 -> 90 | FZ1: 水田番号 | GA1: =FY1+1 -> 91 | GB1: 水田番号 | GC1: =GA1+1 -> 92 | GD1: 水田番号 | GE1: =GC1+1 -> 93 | GF1: 水田番号 | GG1: =GE1+1 -> 94 | GH1: 水田番号 | GI1: =GG1+1 -> 95 | GJ1: 水田番号 | GK1: =GI1+1 -> 96 | GL1: 水田番号 | GM1: =GK1+1 -> 97 | GN1: 水田番号 | GO1: =GM1+1 -> 98 | GP1: 水田番号 | GQ1: =GO1+1 -> 99 | GR1: 水田番号 | GS1: =GQ1+1 -> 100
A2: ｈ | B2: 降雨量(mm/dt) | C2: 流出量（m3/s） | D2: 降雨量(mm/dt) | E2: 流出量（m3/s） | F2: 降雨量(mm/dt) | G2: 流出量（m3/s） | H2: 降雨量(mm/dt) | I2: 流出量（m3/s） | J2: 降雨量(mm/dt) | K2: 流出量（m3/s） | L2: 降雨量(mm/dt) | M2: 流出量（m3/s） | N2: 降雨量(mm/dt) | O2: 流出量（m3/s） | P2: 降雨量(mm/dt) | Q2: 流出量（m3/s） | R2: 降雨量(mm/dt) | S2: 流出量（m3/s） | T2: 降雨量(mm/dt) | U2: 流出量（m3/s） | V2: 降雨量(mm/dt) | W2: 流出量（m3/s） | X2: 降雨量(mm/dt) | Y2: 流出量（m3/s） | Z2: 降雨量(mm/dt) | AA2: 流出量（m3/s） | AB2: 降雨量(mm/dt) | AC2: 流出量（m3/s） | AD2: 降雨量(mm/dt) | AE2: 流出量（m3/s） | AF2: 降雨量(mm/dt) | AG2: 流出量（m3/s） | AH2: 降雨量(mm/dt) | AI2: 流出量（m3/s） | AJ2: 降雨量(mm/dt) | AK2: 流出量（m3/s） | AL2: 降雨量(mm/dt) | AM2: 流出量（m3/s） | AN2: 降雨量(mm/dt) | AO2: 流出量（m3/s） | AP2: 降雨量(mm/dt) | AQ2: 流出量（m3/s） | AR2: 降雨量(mm/dt) | AS2: 流出量（m3/s） | AT2: 降雨量(mm/dt) | AU2: 流出量（m3/s） | AV2: 降雨量(mm/dt) | AW2: 流出量（m3/s） | AX2: 降雨量(mm/dt) | AY2: 流出量（m3/s） | AZ2: 降雨量(mm/dt) | BA2: 流出量（m3/s） | BB2: 降雨量(mm/dt) | BC2: 流出量（m3/s） | BD2: 降雨量(mm/dt) | BE2: 流出量（m3/s） | BF2: 降雨量(mm/dt) | BG2: 流出量（m3/s） | BH2: 降雨量(mm/dt) | BI2: 流出量（m3/s） | BJ2: 降雨量(mm/dt) | BK2: 流出量（m3/s） | BL2: 降雨量(mm/dt) | BM2: 流出量（m3/s） | BN2: 降雨量(mm/dt) | BO2: 流出量（m3/s） | BP2: 降雨量(mm/dt) | BQ2: 流出量（m3/s） | BR2: 降雨量(mm/dt) | BS2: 流出量（m3/s） | BT2: 降雨量(mm/dt) | BU2: 流出量（m3/s） | BV2: 降雨量(mm/dt) | BW2: 流出量（m3/s） | BX2: 降雨量(mm/dt) | BY2: 流出量（m3/s） | BZ2: 降雨量(mm/dt) | CA2: 流出量（m3/s） | CB2: 降雨量(mm/dt) | CC2: 流出量（m3/s） | CD2: 降雨量(mm/dt) | CE2: 流出量（m3/s） | CF2: 降雨量(mm/dt) | CG2: 流出量（m3/s） | CH2: 降雨量(mm/dt) | CI2: 流出量（m3/s） | CJ2: 降雨量(mm/dt) | CK2: 流出量（m3/s） | CL2: 降雨量(mm/dt) | CM2: 流出量（m3/s） | CN2: 降雨量(mm/dt) | CO2: 流出量（m3/s） | CP2: 降雨量(mm/dt) | CQ2: 流出量（m3/s） | CR2: 降雨量(mm/dt) | CS2: 流出量（m3/s） | CT2: 降雨量(mm/dt) | CU2: 流出量（m3/s） | CV2: 降雨量(mm/dt) | CW2: 流出量（m3/s） | CX2: 降雨量(mm/dt) | CY2: 流出量（m3/s） | CZ2: 降雨量(mm/dt) | DA2: 流出量（m3/s） | DB2: 降雨量(mm/dt) | DC2: 流出量（m3/s） | DD2: 降雨量(mm/dt) | DE2: 流出量（m3/s） | DF2: 降雨量(mm/dt) | DG2: 流出量（m3/s） | DH2: 降雨量(mm/dt) | DI2: 流出量（m3/s） | DJ2: 降雨量(mm/dt) | DK2: 流出量（m3/s） | DL2: 降雨量(mm/dt) | DM2: 流出量（m3/s） | DN2: 降雨量(mm/dt) | DO2: 流出量（m3/s） | DP2: 降雨量(mm/dt) | DQ2: 流出量（m3/s） | DR2: 降雨量(mm/dt) | DS2: 流出量（m3/s） | DT2: 降雨量(mm/dt) | DU2: 流出量（m3/s） | DV2: 降雨量(mm/dt) | DW2: 流出量（m3/s） | DX2: 降雨量(mm/dt) | DY2: 流出量（m3/s） | DZ2: 降雨量(mm/dt) | EA2: 流出量（m3/s） | EB2: 降雨量(mm/dt) | EC2: 流出量（m3/s） | ED2: 降雨量(mm/dt) | EE2: 流出量（m3/s） | EF2: 降雨量(mm/dt) | EG2: 流出量（m3/s） | EH2: 降雨量(mm/dt) | EI2: 流出量（m3/s） | EJ2: 降雨量(mm/dt) | EK2: 流出量（m3/s） | EL2: 降雨量(mm/dt) | EM2: 流出量（m3/s） | EN2: 降雨量(mm/dt) | EO2: 流出量（m3/s） | EP2: 降雨量(mm/dt) | EQ2: 流出量（m3/s） | ER2: 降雨量(mm/dt) | ES2: 流出量（m3/s） | ET2: 降雨量(mm/dt) | EU2: 流出量（m3/s） | EV2: 降雨量(mm/dt) | EW2: 流出量（m3/s） | EX2: 降雨量(mm/dt) | EY2: 流出量（m3/s） | EZ2: 降雨量(mm/dt) | FA2: 流出量（m3/s） | FB2: 降雨量(mm/dt) | FC2: 流出量（m3/s） | FD2: 降雨量(mm/dt) | FE2: 流出量（m3/s） | FF2: 降雨量(mm/dt) | FG2: 流出量（m3/s） | FH2: 降雨量(mm/dt) | FI2: 流出量（m3/s） | FJ2: 降雨量(mm/dt) | FK2: 流出量（m3/s） | FL2: 降雨量(mm/dt) | FM2: 流出量（m3/s） | FN2: 降雨量(mm/dt) | FO2: 流出量（m3/s） | FP2: 降雨量(mm/dt) | FQ2: 流出量（m3/s） | FR2: 降雨量(mm/dt) | FS2: 流出量（m3/s） | FT2: 降雨量(mm/dt) | FU2: 流出量（m3/s） | FV2: 降雨量(mm/dt) | FW2: 流出量（m3/s） | FX2: 降雨量(mm/dt) | FY2: 流出量（m3/s） | FZ2: 降雨量(mm/dt) | GA2: 流出量（m3/s） | GB2: 降雨量(mm/dt) | GC2: 流出量（m3/s） | GD2: 降雨量(mm/dt) | GE2: 流出量（m3/s） | GF2: 降雨量(mm/dt) | GG2: 流出量（m3/s） | GH2: 降雨量(mm/dt) | GI2: 流出量（m3/s） | GJ2: 降雨量(mm/dt) | GK2: 流出量（m3/s） | GL2: 降雨量(mm/dt) | GM2: 流出量（m3/s） | GN2: 降雨量(mm/dt) | GO2: 流出量（m3/s） | GP2: 降雨量(mm/dt) | GQ2: 流出量（m3/s） | GR2: 降雨量(mm/dt) | GS2: 流出量（m3/s）
A3: 1
A4: 2
A5: 3
A6: 4
A7: 5
A8: 6
A9: 7
A10: 8
A11: 9
A12: 10
A13: 11
A14: 12
A15: 13
A16: 14
A17: 15
A18: 16
A19: 17
A20: 18
A21: 19
A22: 20
A23: 21
A24: 22
A25: 23
A26: 24
A27: 25
A28: 26
A29: 27
A30: 28
A31: 29
A32: 30
A33: 31
A34: 32
A35: 33
A36: 34
A37: 35
A38: 36
A39: 37
A40: 38
A41: 39
A42: 40
A43: 41
A44: 42
A45: 43
A46: 44
A47: 45
A48: 46
A49: 47
A50: 48
A51: 49
A52: 50
A53: 51
A54: 52
A55: 53
A56: 54
A57: 55
A58: 56
A59: 57
A60: 58
A61: 59
A62: 60
A63: 61
A64: 62
A65: 63
A66: 64
A67: 65
A68: 66
A69: 67
A70: 68
A71: 69
A72: 70
A73: 71
A74: 72
A75: 73
A76: 74
A77: 75
A78: 76
A79: 77
A80: 78
A81: 79
A82: 80
A83: 81
A84: 82
A85: 83
A86: 84
A87: 85
A88: 86
A89: 87
A90: 88
A91: 89
A92: 90
A93: 91
A94: 92
A95: 93
A96: 94
A97: 95
A98: 96
A99: 97
A100: 98
A101: 99
A102: 100
A103: 101
A104: 102
A105: 103
A106: 104
A107: 105
A108: 106
A109: 107
A110: 108
A111: 109
A112: 110
A113: 111
A114: 112
A115: 113
A116: 114
A117: 115
A118: 116
A119: 117
A120: 118
A121: 119
A122: 120

Sheet Result_田面水深
